Workbook

Sheet Cover Page
C3: City and Hackney - Practice Clinical Trends (LDP) Report
B19: General Health | C19: The number and percentage of patients on GP register aged over 16 with BMI and smoking status recorded
B20: Hypertension | C20: The number and percentage of patients on hypertension registers. The number and percentage of patients on register with blood pressure measured within last 9 months is less than 150/90
B21: CHD | C21: The number and percentage of patients on CHD register. Indicators included: cholesterol, BP ≤ 150/90
B22: Stroke/TIA | C22: The number and percentage of patients on Stroke/TIA register. Indicators included: BP recorded - BP <140/90.
B23: CVD Risk | C23: The number and percentage of patients eligible for CVD risk score (aged 25 -84). Indicators included: QRISK score, QRISK greater than 20% and proxy review
B24: Diabetes | C24: The number and percentage of patients on diabetes register. Indicators include: blood pressure; cholesterol; HbA1c; flu vaccination
B25: Mental Health | C25: The number and percentage of patients on Mental Health register. Indicators included: severe mental illness review and smoking status
B26: CKD | C26: The number and percentage of patients on CKD register. Indicators included: blood pressure and new diagnosis within 6 months
B27: COPD | C27: The number and percentage of patients on COPD register. Indicators included: severe or very severe COPD (FEV1<50) and smoking status
C30: N/A indicates either that no usable data has been returned or that calculation of a proportion is impossible

Sheet Full Explanatory Notes
A8: Worksheet | B8: Description of column contents
A9: General Health | B9: Patients aged 16 and over on the GP register
B10: Patients aged 16 and over on the GP register, with a BMI recorded in the last 12 months
B11: Patients aged 16 and over on the GP register, with a BMI ≥30 & <35
B12: Patients aged 16 and over on the GP register, with a BMI ≥ 35 & <40
B13: Patients aged 16 and over on the GP register, with a BMI ≥ 40
B14: Patients aged 16 and over on the GP register with smoking status recorded in the last 12 months
B15: Patients aged 16 and over on the GP register with smoking status recorded in the last 12 months, recorded as being a smoker.
A17: Hypertension | B17: Patients on the Hypertension register.
B18: Patients on the Hypertension register with BP recorded in the last 12 months.
B19: Patients on the Hypertension register with BP < 140/90 (Patients aged under 80) < 150/90 ( Aged 80 and over) (last 12m)
A21: CHD | B21: Patients on the CHD register
B22: Patients on the CHD register with cholesterol recorded in the last 12 months.
B23: Patients on the CHD register with last measured cholesterol < 5mmol in the last 12 months
B24: Patients on the CHD register with BP ≤ 150/90 (last 9m)
A26: Stroke/TIA | B26: Patients on the Stroke/TIA register
B27: Patients on the Stroke/TIA register with a BP recorded in last 12 months
B28: Patients on the Stroke/TIA register with BP recorded in the last 12 months with BP < 140/90
A30: CVD Risk | B30: Patients eligible for a CVD risk score (aged 25 - 84 excluding CVD)
B31: Patients with a QRISK or Framingham risk score done.
B32: Patients with a Q Risk score of 20% or higher
B33: Patients with a Q Risk score of 20% or higher and an annual review or proxy annual review
A35: Diabetes | B35: Patients on the diabetes register
B36: Patients on the diabetes register with BP recorded in the last 12 months
B37: Patients on the diabetes register with latest BP < 145/85 in the last 12 months
B38: Patients on the diabetes register with last measured cholesterol, measured within the last 15 months < 5mmol/l
B39: Patients on the diabetes register with last HbA1c < 59in the last 12 months
B40: Patients on the diabetes register with a Flu Jab within the last 12 months.
A43: Mental Health | B43: Patients on the Mental Health register
B44: Patients on the Mental Health register with a review recorded within the last 12 months.
B45: Patients on the Mental Health register with smoking status recorded within the last 12 months
B46: Patients on the Mental Health register with smoking status recorded within the last 12 months recorded as a smoker
B47: Patients on the Mental Health register with smoking status recorded within the last 12 months referred to the stop smoking clinic
B48: Patients on the Mental Health register with smoking status recorded within the last 12 months who are recorded as quitters
B49: Patients with Mental Health with blood pressure recorded in the last 12m
B50: Patients with Mental Health with QRISK recorded in the last 12m
B51: Patients with Mental Health with QRISK 20% or higher in the last 12m
A53: CKD | B53: Patients on CKD register
B54: Patients on the CKD register with blood pressure recorded
B55: Patients on the CKD register with blood pressure < 140/90
B56: Patients on the CKD register with new diagnosis of CKD in the last 6 months
A58: COPD | B58: Patients on COPD register
B59: No of patients with severe or very severe COPD (FEV1<50)
B60: No. of COPD Patients with smoking status recorded (last 12m) or never smoked
B61: No. of COPD patients recorded as a Smoker
B62: No. of COPD Patients who are current smokers & referred to the Stop Smoking Clinic (12m)
B63: No of COPD with flu vaccination (12m)
B64: No of COPD with pneumococcal vaccination ever
B65: No of COPD patients referred to pulmonary rehab ever

Sheet 2019-20 Changes (hidden)
A1: OLD (2017-2018) | C1: NEW (2018-2019) | E1: NEW (2019-20)
A2: List Size | C2: List Size | E2: List Size
A3: Age 16+ | C3: Age 16+ | E3: Age 16+
A4: % list size | C4: % list size | E4: % list size
A5: 16+ and BMI (last 15m) | C5: 16+ and BMI (last 12m) | E5: 16+ and BMI (last 12m)
A6: % 16+ | C6: % 16+ | E6: % 16+
A7: BMI 25 to 29 | C7: BMI ≥30 & <35 | E7: BMI ≥30 & <35
A8: % 16+ | C8: % 16+ | E8: % 16+
A9: BMI ≥ 30 | C9: BMI ≥ 35 & <40 | E9: BMI ≥ 35 & <40
A10: %16+ | C10: %16+ | E10: %16+
A11: BMI ≥ 40 | C11: BMI ≥ 40 | E11: BMI ≥ 40
A12: %16+ | C12: %16+ | E12: %16+
A13: Smoking status (last 15m) incl. never smoked | C13: Smoking status (last 12m) incl. never smoked | E13: Smoking status (last 12m) incl. never smoked
A14: % 16+ | C14: % 16+ | E14: % 16+
A15: Age 16+ and current smoker (last 15m) | C15: Age 16+ and current smoker (last 12m) | E15: Age 16+ and current smoker (last 12m)
A16: % 16+ | C16: % 16+ | E16: % 16+
A18: Hypertension Register | C18: Hypertension Register | E18: Hypertension Register
A19: % list size | C19: % list size | E19: % list size
A20: Hypertension and BP (last 9m) | C20: Hypertension and BP (last 12m) | E20: Hypertension and BP (last 12m)
A21: % Hypertension Register | C21: % Hypertension Register | E21: % Hypertension Register
A22: Hypertension and BP ≤ 150/90 (last 9m) | C22: Hypertension and BP < 140/90 (Patients aged under 80) < 150/90 ( Aged 80 and over) (last 12m) | E22: Hypertension and BP < 140/90 (Patients aged under 80) < 150/90 ( Aged 80 and over) (last 12m)
A23: % Hypertension Register | C23: % Hypertension Register | E23: % Hypertension Register
A25: CHD register | C25: CHD register | E25: CHD register
A26: % list size | C26: % list size | E26: % list size
A27: Cholesterol (last 15m) | C27: Cholesterol (last 12m) | E27: Cholesterol (last 12m)
A28: % CHD register | C28: % CHD register | E28: % CHD register
A29: Cholesterol ≤ 5 (last 15m) | C29: Cholesterol < 5 (last 12m) | E29: Cholesterol < 5 (last 12m)
A30: % CHD register | C30: % CHD register | E30: % CHD register
A31: BP (last 9m) | C31: BP ≤ 150/90 (last 9m) | E31: BP ≤ 150/90 (last 9m)
A32: % CHD register | C32: % CHD register | E32: % CHD register
A33: BP ≤ 150/90 (last 9m)
A34: % CHD register | E34: Stroke/TIA register
A35: CHD annual review or proxy review | E35: % list size
A36: % CHD register | E36: BP Recorded
A37: CHD diagnosed in last 6 months | E37: % Stroke/TIA register
A38: % CHD register | E38: BP <140/90 (last 12m)
E39: % Stroke/TIA register
A41: Aged 35 to 74 (exc CVD) | C41: Aged 25 to 84 (exc CVD) | E41: Aged 25 to 84 (exc CVD)
A42: CVD (QRISK or Framingham) risk score done | C42: QRISK recorded (5 years) | E42: QRISK recorded (5 years)
A43: % of patients aged 35 to 74 (exc CVD) | C43: % of patients aged 25 to 84 (exc CVD) | E43: % of patients aged 25 to 84 (exc CVD)
A44: QRISK ≥ 20% | C44: QRISK ≥ 20% | E44: QRISK ≥ 20%
A45: % QRISK Score recorded | C45: % QRISK Score recorded | E45: % QRISK Score recorded
A46: QRISK ≥ 20% and proxy review (BP and Chol last 15m) | C46: QRISK ≥ 20% and proxy review (BP and Chol last 12m) | E46: QRISK ≥ 20% and proxy review (BP and Chol last 12m)
A47: % Patients with QRISK ≥ 20% | C47: % Patients with QRISK ≥ 20% | E47: % Patients with QRISK ≥ 20%
A49: Diabetes register | C49: Diabetes register | E49: Diabetes register
A50: % List size | C50: % List size | E50: % List size
A51: BP (last 15m) | C51: BP (last 12m) | E51: BP (last 12m)
A52: % Diabetes Register | C52: % Diabetes Register | E52: % Diabetes Register
A53: BP ≤ 145/85 (last 15m) | C53: BP < 145/85 (last 12m) | E53: BP < 145/85 (last 12m)
A54: % Diabetes Register | C54: % Diabetes Register | E54: % Diabetes Register
A55: Cholesterol < 5mmols (last 15m) | C55: Cholesterol < 5mmols (last 12m) | E55: Cholesterol < 5mmols (last 12m)
A56: % Diabetes Register | C56: % Diabetes Register | E56: % Diabetes Register
A57: HbA1c ≤ 59(last 15m) | C57: HbA1c < 59 (last 12m) | E57: HbA1c < 59 (last 12m)
A58: % Diabetes register | C58: % Diabetes register | E58: % Diabetes register
A59: Flu jab (last 15m) | C59: Flu jab (last 12m) | E59: Flu jab (From August 2019)
A60: % Diabetes Register | C60: % Diabetes Register | E60: % Diabetes Register
A61: Annual review/ called or proxy (last 15m)
A62: % Diabetes register
A63: Cholesterol (last 15m)
A64: % Diabetes Register
A65: HbA1c ≤ 86 (last 15m)
A66: % Diabetes Register
A67: Diabetes retinal screening (last 15m)
A68: % Diabetes register
A69: Retinal screening (last 15m)
A70: % Diabetes register
A71: Neuropathy testing (last 15m)
A72: % Diabetes Register
A73: Microalbuminuria (last 15m)
A74: % Diabetes Register
A75: Type 1 Diabetes
A76: % Diabetes Register
A77: Type 2 Diabetes
A78: % Diabetes Register
A79: No Type Recorded
A80: % Diabetes Register
A81: Type 2 diabetes excluding insulin prescriptions (last 15 m)
A82: % Type 2 Diabetes
A83: Newly Diagnosed Diabetes (Last 1m)
A84: Newly Diagnosed Diabetes - Type 1
A85: Newly Diagnosed Diabetes - Type 2
A86: Newly Diagnosed Diabetes - Type Not Recorded
A87: Diabetics under 18 years old
A88: Diabetics Under 18 with HbA1c ≤ 59 (last 15m)
A89: % of Diabetics under 18
A90: No. of patients with diabetes diagnosed with CKD in the last 15m
A91: % Diabetes Register
A92: No. of patients with diabetes diagnosed with CHD and/or Stroke/TIA in the last 12 months
A93: % Diabetes Register
A94: No. of patients with diabetes diagnosed with Depression in the last 12 months
A95: %Diabetes Register
A96: No. of patients who have ever had gestational diabetes
A97: No. of patients who have ever had gestational diabetes who are also on diabetes register
A98: % of patients with gestational diabetes
A100: SMI register (QOF) | C100: Mental Health register | E100: Mental Health register
A101: % list size | C101: % list size | E101: % list size
A102: No. of SMI Patients with smoking status recorded (last 12m) or never smoked | C102: No. of Mental Health Patients with smoking status recorded (last 12m) or never smoked | E102: No. of Mental Health Patients with smoking status recorded (last 12m) or never smoked
A103: % SMI Register | C103: % Mental Health Register | E103: % Mental Health Register
A104: No. of SMI patients recorded as a Smoker | C104: No. of Mental Health patients recorded as a Smoker | E104: No. of Mental Health patients recorded as a Smoker
A105: % SMI Register | C105: % Mental Health Register | E105: % Mental Health Register
A106: No. of SMI Patients who are current smokers & referred to the Stop Smoking Clinic | C106: No. of Mental Health Patients who are current smokers & referred to the Stop Smoking Clinic | E106: No. of Mental Health Patients who are current smokers & referred to the Stop Smoking Clinic
A107: % SMI Register | C107: % Mental Health Register | E107: % Mental Health Register
A108: No. Of SMI Patients who are recorded as quitters | C108: No. Of Mental Health Patients who are recorded as quitters | E108: No. Of Mental Health Patients who are recorded as quitters
A109: % SMI Register | C109: % Mental Health Register | E109: % Mental Health Register
A110: Patients with SMI with QRISK recorded in the last 12m | C110: Patients with Mental Health with QRISK recorded in the last 12m | E110: Patients with Mental Health with QRISK recorded in the last 12m
A111: % SMI Register | C111: % Mental Health Register | E111: % Mental Health Register
A112: Patients with SMI with QRISK 20% or higher in the last 12m | C112: Patients with Mental Health with QRISK 20% or higher in the last 12m | E112: Patients with Mental Health with QRISK 20% or higher in the last 12m
A113: % patients with QRISK recorded 20% or higher | C113: % patients with QRISK recorded | E113: % patients with QRISK recorded
A114: Patients with SMI with BP & QRisk on the same day in the last 12m | C114: Patients with Mental Health with BP & QRisk on the same day in the last 12m | E114: Patients with Mental Health with BP & QRisk on the same day in the last 12m
A115: % Patients with SMI with BP & QRisk on the same day in the last 12m | C115: % Mental Health Register | E115: % Mental Health Register
A117: No. of patients on CKD register (QOF definition) | C117: No. of patients on CKD register | E117: No. of patients on CKD register
A118: % List Size | C118: % List Size | E118: % List Size
A119: BP Recorded (last 15m) | C119: BP Recorded (last 12m) | E119: BP Recorded (last 12m)
A120: % CKD register | C120: % CKD register | E120: % CKD register
A121: BP ≤ 140/90 | C121: BP < 140/90 | E121: BP < 140/90
A122: % CKD register | C122: % CKD register | E122: % CKD register
A123: No of patients with new diagnosis of CKD (last 6m) | C123: No of patients with new diagnosis of CKD (last 6m) | E123: No of patients with new diagnosis of CKD (last 6m)
A124: % CKD register | C124: % CKD register | E124: % CKD register
C126: No. of patients on COPD register | E126: No. of patients on COPD register
C127: % List Size | E127: % List Size
C128: No of patients with severe or very severe COPD (FEV1<50) | E128: No of patients with severe or very severe COPD (FEV1<50)
C129: % COPD register | E129: % COPD register
C130: No. of COPD Patients with smoking status recorded (last 12m) or never smoked | E130: No. of COPD Patients with smoking status recorded (last 12m) or never smoked
C131: % COPD | E131: % COPD
C132: No. of COPD patients recorded as a Smoker | E132: No. of COPD patients recorded as a Smoker
C133: % COPD | E133: % COPD
C134: No. of COPD Patients who are current smokers & referred to the Stop Smoking Clinic | E134: No. of COPD Patients who are current smokers & referred to the Stop Smoking Clinic
C135: % of current COPD smokers | E135: % of current COPD smokers
C136: No of COPD with flu vaccination (12m) | E136: No of COPD with flu vaccination (From August 2019)
C137: % of COPD register | E137: % of COPD register
C138: No of COPD with pneumococcal vaccination ever | E138: No of COPD with pneumococcal vaccination ever
C139: % of COPD register | E139: % of COPD register
C140: No of COPD patients referred to pulmonary rehab ever | E140: No of COPD patients referred to pulmonary rehab ever
C141: % of COPD register | E141: % of COPD register

Sheet Data (hidden)
A1: 2019-04-01 | C1: 01 LDP | E1: Last Run: | G1: Population Count | H1: 1456922 | K1: Search | L1: 01. Listsize | M1: LDP.04.11: Diabetes and BP in last 12 months | N1: LDP.05: CVD 25-84yrs (excl CVD) | O1: LDP.08.02 CKD Diagnosed (Last 6m) | P1: LDP.08.03 CKD and BP Recorded (last 12 m) | Q1: CSPMH. 01.03 QRisk Recorded (12m) | R1: CSPMH. 01.03.01 BP recorded on same day as QRisk (12m) | S1: CSPMH. 01.03.02 Qrisk>=20 (12m) | T1: LDP.08.01 CKD and BP less than 140/90 (last 12 m) | U1: LDP.08 CKD Register | V1: LDP.05.01: CVD QRISK greater than or equal 20% | W1: LDP.05.01.01: CVD Proxy Annual Review (last 12m) | X1: LDP.05.02: Cardiovascular Risk Score Done (5y) | Y1: LDP.04.09: Diabetes BP less than 145/85 (last 12m) | Z1: LDP.04.08: Diabetes Chol less than 5mmol (last 12m) | AA1: LDP.01.01.01: Obesity BMI more than or equal to 35 less than 40 (last 12m) | AB1: LDP.01.01.02: Obesity BMI between 30-35 (last 12m) | AC1: LDP.01.01.03: Obesity BMI equal to or over 40 (last 12m) | AD1: LDP.01.02: Smoking Status (last 12m) or Never Smoked (25yrs+) | AE1: LDP.01.03: Current Smoker (last 12m) | AF1: LDP.01.01: Obesity BMI recorded (last 12m) | AG1: LDP.01: Aged 16yrs+ | AH1: CSPMH.01 SMI Register | AI1: CSPMH.01.02 Smoking Status Recorded (12m) | AJ1: CSPMH.01.02.01 Current Smoker (12m) | AK1: CSPMH 01.02.01.01 Ref to clinic 12m | AL1: CSPMH.01.02.02 Ex-smoker Recorded (latest 12m) | AM1: LDP.02: Hypertension Register | AN1: LDP.02.01: Hypertension and BP < 140/90 (age under 80) < 150/90 (Age 80+) | AO1: LDP.04.07: Diabetes Influenza Vaccinations (From August 2018) | AP1: LDP.04.01: Diabetes HbA1c <7.5% OR <59mmol (last 12m) | AQ1: LDP.02.02: Hypertension BP recorded (last 12m) | AR1: LDP.03: CHD Register | AS1: LDP.03.01: CHD Chol less than 5mmol (last 12m) | AT1: LDP.03.04: CHD Cholesterol recorded (last 12m) | AU1: LDP.04: Diabetes Register | AV1: LDP.09 COPD Register | AW1: LDP.09.01 Patients with severe or very severe COPD (FEV1<50) | AX1: LDP.09.02 Patients with smoking status recorded (last 12m) or never smoked | AY1: LDP.09.03 COPD patients recorded as a Smoker | AZ1: LDP.09.04 COPD Patients who are current smokers & referred to the Stop Smoking C | BA1: LDP.09.05 No of COPD with flu vaccination (From August 2018) | BB1: LDP.09.06 No of COPD with pneumococcal vaccination ever | BC1: LDP.09.07 No of COPD patients referred to pulmonary rehab ever | BD1: LDP.03.02: CHD BP less than or equal 150/90 (last 9m) | BE1: LDP.10 Stroke or TIA register | BF1: LDP.10.01: Stroke/TIA BP recorded (last 12m) | BG1: LDP.10.02 Patients on Stroke/TIA register with BP <140/90 (12m)
A2: 2019-04-01 | E2: 2019-05-03T14:53:00 | G2: Males | H2: 707613 | J2: Organisation Code
A3: 2019-04-01 | E3: Relative Date: | G3: Females | H3: 749309 | J3: F84003 | L3: 13677 | M3: 786 | N3: 9215 | O3: 11 | P3: 228 | Q3: 143 | R3: 48 | S3: 20 | T3: 159 | U3: 237 | V3: 657 | W3: 432 | X3: 4526 | Y3: 701 | Z3: 530 | AA3: 318 | AB3: 631 | AC3: 156 | AD3: 7063 | AE3: 1040 | AF3: 3245 | AG3: 11049 | AH3: 257 | AI3: 185 | AJ3: 84 | AK3: 3 | AL3: 39 | AM3: 1608 | AN3: 1130 | AO3: 506 | AP3: 442 | AQ3: 1533 | AR3: 314 | AS3: 167 | AT3: 214 | AU3: 816 | AV3: 200 | AW3: 47 | AX3: 176 | AY3: 78 | AZ3: 4 | BA3: 139 | BB3: 124 | BC3: 153 | BD3: 256 | BE3: 189 | BF3: 173 | BG3: 130
A4: 2019-04-01 | E4: 2019-05-01 | J4: F84008 | L4: 12556 | M4: 552 | N4: 8927 | O4: 15 | P4: 202 | Q4: 114 | R4: 52 | S4: 13 | T4: 149 | U4: 218 | V4: 589 | W4: 371 | X4: 5248 | Y4: 459 | Z4: 392 | AA4: 178 | AB4: 422 | AC4: 114 | AD4: 6115 | AE4: 677 | AF4: 3059 | AG4: 10309 | AH4: 226 | AI4: 165 | AJ4: 67 | AK4: 2 | AL4: 43 | AM4: 1285 | AN4: 802 | AO4: 369 | AP4: 334 | AQ4: 1138 | AR4: 220 | AS4: 130 | AT4: 152 | AU4: 579 | AV4: 164 | AW4: 46 | AX4: 141 | AY4: 70 | AZ4: 1 | BA4: 118 | BB4: 112 | BC4: 116 | BD4: 153 | BE4: 139 | BF4: 130 | BG4: 96
A5: 2019-04-01 | J5: F84013 | L5: 15146 | M5: 487 | N5: 6548 | O5: 19 | P5: 175 | Q5: 61 | R5: 40 | S5: 10 | T5: 139 | U5: 185 | V5: 473 | W5: 367 | X5: 2749 | Y5: 438 | Z5: 391 | AA5: 225 | AB5: 477 | AC5: 98 | AD5: 5578 | AE5: 362 | AF5: 2341 | AG5: 9076 | AH5: 151 | AI5: 109 | AJ5: 36 | AK5: 4 | AL5: 14 | AM5: 991 | AN5: 741 | AO5: 286 | AP5: 290 | AQ5: 911 | AR5: 181 | AS5: 115 | AT5: 136 | AU5: 512 | AV5: 88 | AW5: 23 | AX5: 73 | AY5: 28 | AZ5: 3 | BA5: 57 | BB5: 62 | BC5: 57 | BD5: 136 | BE5: 90 | BF5: 84 | BG5: 70
A6: 2019-04-01 | J6: F84015 | L6: 5446 | M6: 414 | N6: 3423 | O6: 4 | P6: 156 | Q6: 54 | R6: 38 | S6: 11 | T6: 119 | U6: 165 | V6: 270 | W6: 231 | X6: 2272 | Y6: 383 | Z6: 313 | AA6: 178 | AB6: 421 | AC6: 143 | AD6: 3122 | AE6: 474 | AF6: 1945 | AG6: 4304 | AH6: 87 | AI6: 76 | AJ6: 39 | AK6: 2 | AL6: 17 | AM6: 837 | AN6: 601 | AO6: 303 | AP6: 245 | AQ6: 789 | AR6: 104 | AS6: 73 | AT6: 92 | AU6: 428 | AV6: 90 | AW6: 15 | AX6: 86 | AY6: 30 | AZ6: 7 | BA6: 70 | BB6: 51 | BC6: 45 | BD6: 90 | BE6: 66 | BF6: 64 | BG6: 46
A7: 2019-04-01 | J7: F84018 | L7: 11727 | M7: 588 | N7: 7986 | O7: 4 | P7: 186 | Q7: 94 | R7: 72 | S7: 15 | T7: 136 | U7: 189 | V7: 472 | W7: 388 | X7: 5088 | Y7: 533 | Z7: 419 | AA7: 252 | AB7: 591 | AC7: 179 | AD7: 6300 | AE7: 902 | AF7: 3599 | AG7: 9391 | AH7: 190 | AI7: 169 | AJ7: 75 | AK7: 9 | AL7: 33 | AM7: 1106 | AN7: 795 | AO7: 386 | AP7: 339 | AQ7: 1043 | AR7: 186 | AS7: 120 | AT7: 167 | AU7: 610 | AV7: 121 | AW7: 33 | AX7: 114 | AY7: 47 | AZ7: 3 | BA7: 91 | BB7: 75 | BC7: 84 | BD7: 150 | BE7: 94 | BF7: 92 | BG7: 66
A8: 2019-04-01 | J8: F84021 | L8: 10368 | M8: 432 | N8: 7679 | O8: 8 | P8: 176 | Q8: 64 | R8: 42 | S8: 9 | T8: 131 | U8: 189 | V8: 384 | W8: 299 | X8: 3578 | Y8: 378 | Z8: 331 | AA8: 168 | AB8: 376 | AC8: 92 | AD8: 5687 | AE8: 746 | AF8: 2470 | AG8: 8686 | AH8: 153 | AI8: 111 | AJ8: 54 | AK8: 5 | AL8: 23 | AM8: 870 | AN8: 584 | AO8: 311 | AP8: 282 | AQ8: 801 | AR8: 144 | AS8: 83 | AT8: 100 | AU8: 459 | AV8: 109 | AW8: 30 | AX8: 98 | AY8: 43 | AZ8: 2 | BA8: 79 | BB8: 79 | BC8: 83 | BD8: 110 | BE8: 84 | BF8: 73 | BG8: 56
A9: 2019-04-01 | J9: F84033 | L9: 12012 | M9: 583 | N9: 8593 | O9: 1 | P9: 203 | Q9: 77 | R9: 43 | S9: 9 | T9: 161 | U9: 217 | V9: 468 | W9: 345 | X9: 4733 | Y9: 535 | Z9: 443 | AA9: 253 | AB9: 644 | AC9: 164 | AD9: 6638 | AE9: 1188 | AF9: 3565 | AG9: 9999 | AH9: 166 | AI9: 139 | AJ9: 71 | AK9: 4 | AL9: 30 | AM9: 1220 | AN9: 898 | AO9: 439 | AP9: 340 | AQ9: 1123 | AR9: 199 | AS9: 135 | AT9: 173 | AU9: 601 | AV9: 131 | AW9: 36 | AX9: 127 | AY9: 63 | AZ9: 4 | BA9: 101 | BB9: 92 | BC9: 96 | BD9: 161 | BE9: 111 | BF9: 110 | BG9: 100
A10: 2019-04-01 | J10: F84035 | L10: 7864 | M10: 239 | N10: 6276 | O10: 4 | P10: 63 | Q10: 20 | R10: 16 | S10: 4 | T10: 53 | U10: 66 | V10: 186 | W10: 132 | X10: 1827 | Y10: 219 | Z10: 182 | AA10: 103 | AB10: 228 | AC10: 72 | AD10: 5413 | AE10: 595 | AF10: 2896 | AG10: 7052 | AH10: 48 | AI10: 39 | AJ10: 9 | AK10: 1 | AL10: 6 | AM10: 479 | AN10: 311 | AO10: 203 | AP10: 140 | AQ10: 448 | AR10: 69 | AS10: 30 | AT10: 41 | AU10: 258 | AV10: 66 | AW10: 11 | AX10: 66 | AY10: 29 | AZ10: 4 | BA10: 56 | BB10: 58 | BC10: 27 | BD10: 52 | BE10: 50 | BF10: 47 | BG10: 33
A11: 2019-04-01 | J11: F84036 | L11: 7140 | M11: 311 | N11: 5103 | O11: 3 | P11: 98 | Q11: 90 | R11: 57 | S11: 17 | T11: 73 | U11: 107 | V11: 314 | W11: 219 | X11: 4800 | Y11: 268 | Z11: 235 | AA11: 128 | AB11: 363 | AC11: 83 | AD11: 3983 | AE11: 500 | AF11: 2099 | AG11: 6000 | AH11: 159 | AI11: 130 | AJ11: 67 | AK11: 1 | AL11: 31 | AM11: 722 | AN11: 464 | AO11: 181 | AP11: 184 | AQ11: 639 | AR11: 123 | AS11: 81 | AT11: 93 | AU11: 346 | AV11: 91 | AW11: 19 | AX11: 80 | AY11: 28 | AZ11: 2 | BA11: 57 | BB11: 63 | BC11: 70 | BD11: 93 | BE11: 59 | BF11: 53 | BG11: 39
A12: 2019-04-01 | J12: F84038 | L12: 4050 | M12: 232 | N12: 2937 | O12: 0 | P12: 56 | Q12: 50 | R12: 38 | S12: 5 | T12: 53 | U12: 61 | V12: 191 | W12: 128 | X12: 2106 | Y12: 224 | Z12: 152 | AA12: 102 | AB12: 251 | AC12: 58 | AD12: 2493 | AE12: 442 | AF12: 1611 | AG12: 3479 | AH12: 96 | AI12: 81 | AJ12: 50 | AK12: 3 | AL12: 10 | AM12: 491 | AN12: 347 | AO12: 180 | AP12: 124 | AQ12: 402 | AR12: 89 | AS12: 38 | AT12: 53 | AU12: 262 | AV12: 71 | AW12: 8 | AX12: 59 | AY12: 23 | AZ12: 4 | BA12: 47 | BB12: 40 | BC12: 31 | BD12: 55 | BE12: 46 | BF12: 40 | BG12: 36
A13: 2019-04-01 | J13: F84041 | L13: 7744 | M13: 447 | N13: 5811 | O13: 7 | P13: 174 | Q13: 45 | R13: 32 | S13: 6 | T13: 129 | U13: 180 | V13: 384 | W13: 294 | X13: 3542 | Y13: 414 | Z13: 351 | AA13: 215 | AB13: 434 | AC13: 111 | AD13: 4601 | AE13: 534 | AF13: 2508 | AG13: 6701 | AH13: 113 | AI13: 82 | AJ13: 35 | AK13: 3 | AL13: 20 | AM13: 904 | AN13: 598 | AO13: 323 | AP13: 263 | AQ13: 817 | AR13: 139 | AS13: 93 | AT13: 103 | AU13: 476 | AV13: 87 | AW13: 27 | AX13: 81 | AY13: 25 | AZ13: 3 | BA13: 61 | BB13: 45 | BC13: 59 | BD13: 106 | BE13: 67 | BF13: 64 | BG13: 53
A14: 2019-04-01 | J14: F84043 | L14: 2896 | M14: 168 | N14: 1735 | O14: 1 | P14: 42 | Q14: 31 | R14: 7 | S14: 5 | T14: 31 | U14: 46 | V14: 119 | W14: 80 | X14: 877 | Y14: 151 | Z14: 114 | AA14: 55 | AB14: 107 | AC14: 35 | AD14: 1313 | AE14: 209 | AF14: 511 | AG14: 2250 | AH14: 62 | AI14: 40 | AJ14: 19 | AK14: 0 | AL14: 10 | AM14: 337 | AN14: 217 | AO14: 101 | AP14: 96 | AQ14: 314 | AR14: 51 | AS14: 23 | AT14: 33 | AU14: 177 | AV14: 30 | AW14: 6 | AX14: 24 | AY14: 15 | AZ14: 0 | BA14: 15 | BB14: 19 | BC14: 23 | BD14: 37 | BE14: 35 | BF14: 35 | BG14: 25
A15: 2019-04-01 | J15: F84060 | L15: 4753 | M15: 279 | N15: 3347 | O15: 2 | P15: 76 | Q15: 36 | R15: 24 | S15: 6 | T15: 54 | U15: 81 | V15: 179 | W15: 143 | X15: 1747 | Y15: 245 | Z15: 202 | AA15: 106 | AB15: 241 | AC15: 69 | AD15: 2675 | AE15: 304 | AF15: 1293 | AG15: 3953 | AH15: 68 | AI15: 56 | AJ15: 19 | AK15: 0 | AL15: 15 | AM15: 502 | AN15: 299 | AO15: 185 | AP15: 171 | AQ15: 458 | AR15: 60 | AS15: 38 | AT15: 44 | AU15: 291 | AV15: 29 | AW15: 10 | AX15: 27 | AY15: 7 | AZ15: 1 | BA15: 20 | BB15: 18 | BC15: 14 | BD15: 41 | BE15: 46 | BF15: 41 | BG15: 29
A16: 2019-04-01 | J16: F84063 | L16: 6033 | M16: 411 | N16: 4384 | O16: 4 | P16: 138 | Q16: 47 | R16: 25 | S16: 7 | T16: 116 | U16: 143 | V16: 266 | W16: 205 | X16: 2058 | Y16: 347 | Z16: 281 | AA16: 144 | AB16: 353 | AC16: 86 | AD16: 3684 | AE16: 703 | AF16: 2215 | AG16: 5174 | AH16: 84 | AI16: 69 | AJ16: 22 | AK16: 0 | AL16: 23 | AM16: 672 | AN16: 472 | AO16: 306 | AP16: 250 | AQ16: 619 | AR16: 123 | AS16: 86 | AT16: 105 | AU16: 435 | AV16: 70 | AW16: 16 | AX16: 64 | AY16: 31 | AZ16: 0 | BA16: 58 | BB16: 49 | BC16: 22 | BD16: 95 | BE16: 58 | BF16: 53 | BG16: 39
A17: 2019-04-01 | J17: F84069 | L17: 14524 | M17: 654 | N17: 10266 | O17: 3 | P17: 213 | Q17: 122 | R17: 85 | S17: 22 | T17: 166 | U17: 223 | V17: 591 | W17: 425 | X17: 4378 | Y17: 559 | Z17: 460 | AA17: 295 | AB17: 620 | AC17: 194 | AD17: 7263 | AE17: 1108 | AF17: 3575 | AG17: 11843 | AH17: 268 | AI17: 226 | AJ17: 98 | AK17: 3 | AL17: 51 | AM17: 1360 | AN17: 960 | AO17: 439 | AP17: 355 | AQ17: 1274 | AR17: 217 | AS17: 129 | AT17: 161 | AU17: 677 | AV17: 245 | AW17: 53 | AX17: 217 | AY17: 108 | AZ17: 3 | BA17: 164 | BB17: 172 | BC17: 192 | BD17: 175 | BE17: 118 | BF17: 110 | BG17: 89
A18: 2019-04-01 | J18: F84072 | L18: 10731 | M18: 241 | N18: 8619 | O18: 8 | P18: 67 | Q18: 29 | R18: 20 | S18: 5 | T18: 50 | U18: 72 | V18: 192 | W18: 131 | X18: 2392 | Y18: 212 | Z18: 164 | AA18: 92 | AB18: 227 | AC18: 64 | AD18: 5993 | AE18: 544 | AF18: 2284 | AG18: 9301 | AH18: 93 | AI18: 87 | AJ18: 31 | AK18: 1 | AL18: 19 | AM18: 490 | AN18: 279 | AO18: 144 | AP18: 140 | AQ18: 451 | AR18: 56 | AS18: 30 | AT18: 37 | AU18: 247 | AV18: 59 | AW18: 14 | AX18: 58 | AY18: 32 | AZ18: 2 | BA18: 34 | BB18: 25 | BC18: 34 | BD18: 45 | BE18: 48 | BF18: 42 | BG18: 26
A19: 2019-04-01 | J19: F84080 | L19: 4823 | M19: 322 | N19: 2898 | O19: 2 | P19: 93 | Q19: 28 | R19: 20 | S19: 6 | T19: 74 | U19: 102 | V19: 303 | W19: 233 | X19: 1439 | Y19: 293 | Z19: 240 | AA19: 99 | AB19: 267 | AC19: 68 | AD19: 2601 | AE19: 265 | AF19: 1313 | AG19: 3622 | AH19: 61 | AI19: 38 | AJ19: 18 | AK19: 1 | AL19: 2 | AM19: 687 | AN19: 467 | AO19: 204 | AP19: 189 | AQ19: 622 | AR19: 106 | AS19: 68 | AT19: 87 | AU19: 345 | AV19: 68 | AW19: 24 | AX19: 63 | AY19: 27 | AZ19: 5 | BA19: 43 | BB19: 41 | BC19: 30 | BD19: 92 | BE19: 35 | BF19: 33 | BG19: 25
A20: 2019-04-01 | J20: F84096 | L20: 13172 | M20: 628 | N20: 9134 | O20: 8 | P20: 277 | Q20: 145 | R20: 63 | S20: 29 | T20: 217 | U20: 298 | V20: 616 | W20: 429 | X20: 4388 | Y20: 565 | Z20: 455 | AA20: 233 | AB20: 579 | AC20: 161 | AD20: 7059 | AE20: 968 | AF20: 2942 | AG20: 10896 | AH20: 231 | AI20: 172 | AJ20: 81 | AK20: 5 | AL20: 38 | AM20: 1189 | AN20: 838 | AO20: 473 | AP20: 352 | AQ20: 1106 | AR20: 228 | AS20: 117 | AT20: 157 | AU20: 660 | AV20: 240 | AW20: 47 | AX20: 213 | AY20: 86 | AZ20: 9 | BA20: 174 | BB20: 193 | BC20: 173 | BD20: 179 | BE20: 128 | BF20: 113 | BG20: 92
A21: 2019-04-01 | J21: F84105 | L21: 11604 | M21: 590 | N21: 7988 | O21: 13 | P21: 158 | Q21: 55 | R21: 47 | S21: 7 | T21: 120 | U21: 167 | V21: 420 | W21: 265 | X21: 4502 | Y21: 550 | Z21: 399 | AA21: 216 | AB21: 562 | AC21: 148 | AD21: 6608 | AE21: 730 | AF21: 3267 | AG21: 9338 | AH21: 135 | AI21: 111 | AJ21: 43 | AK21: 3 | AL21: 22 | AM21: 1078 | AN21: 725 | AO21: 437 | AP21: 366 | AQ21: 1002 | AR21: 144 | AS21: 62 | AT21: 82 | AU21: 623 | AV21: 101 | AW21: 28 | AX21: 89 | AY21: 31 | AZ21: 3 | BA21: 80 | BB21: 58 | BC21: 54 | BD21: 105 | BE21: 102 | BF21: 97 | BG21: 70
A22: 2019-04-01 | J22: F84115 | L22: 8688 | M22: 284 | N22: 6398 | O22: 6 | P22: 100 | Q22: 28 | R22: 15 | S22: 7 | T22: 78 | U22: 110 | V22: 277 | W22: 176 | X22: 2647 | Y22: 244 | Z22: 201 | AA22: 76 | AB22: 187 | AC22: 70 | AD22: 4491 | AE22: 456 | AF22: 1557 | AG22: 7323 | AH22: 95 | AI22: 71 | AJ22: 28 | AK22: 1 | AL22: 26 | AM22: 614 | AN22: 413 | AO22: 188 | AP22: 162 | AQ22: 566 | AR22: 144 | AS22: 80 | AT22: 97 | AU22: 300 | AV22: 138 | AW22: 29 | AX22: 114 | AY22: 50 | AZ22: 7 | BA22: 94 | BB22: 101 | BC22: 103 | BD22: 103 | BE22: 71 | BF22: 66 | BG22: 52
A23: 2019-04-01 | J23: F84117 | L23: 10064 | M23: 438 | N23: 7331 | O23: 4 | P23: 120 | Q23: 54 | R23: 27 | S23: 11 | T23: 100 | U23: 125 | V23: 376 | W23: 262 | X23: 3001 | Y23: 377 | Z23: 330 | AA23: 131 | AB23: 338 | AC23: 87 | AD23: 5368 | AE23: 613 | AF23: 2203 | AG23: 8462 | AH23: 138 | AI23: 102 | AJ23: 40 | AK23: 1 | AL23: 36 | AM23: 866 | AN23: 626 | AO23: 303 | AP23: 272 | AQ23: 802 | AR23: 164 | AS23: 93 | AT23: 121 | AU23: 454 | AV23: 112 | AW23: 36 | AX23: 100 | AY23: 38 | AZ23: 3 | BA23: 81 | BB23: 70 | BC23: 75 | BD23: 136 | BE23: 121 | BF23: 112 | BG23: 103
A24: 2019-04-01 | J24: F84119 | L24: 12349 | M24: 541 | N24: 8961 | O24: 8 | P24: 179 | Q24: 109 | R24: 58 | S24: 18 | T24: 162 | U24: 185 | V24: 463 | W24: 388 | X24: 4856 | Y24: 498 | Z24: 385 | AA24: 242 | AB24: 607 | AC24: 152 | AD24: 7371 | AE24: 851 | AF24: 4079 | AG24: 10327 | AH24: 184 | AI24: 164 | AJ24: 79 | AK24: 12 | AL24: 41 | AM24: 1083 | AN24: 833 | AO24: 364 | AP24: 321 | AQ24: 967 | AR24: 171 | AS24: 113 | AT24: 154 | AU24: 561 | AV24: 145 | AW24: 23 | AX24: 135 | AY24: 59 | AZ24: 6 | BA24: 102 | BB24: 82 | BC24: 74 | BD24: 136 | BE24: 92 | BF24: 90 | BG24: 73
A25: 2019-04-01 | J25: F84601 | L25: 6849 | M25: 299 | N25: 4522 | O25: 5 | P25: 109 | Q25: 65 | R25: 53 | S25: 6 | T25: 91 | U25: 113 | V25: 232 | W25: 186 | X25: 3520 | Y25: 278 | Z25: 234 | AA25: 121 | AB25: 321 | AC25: 85 | AD25: 3134 | AE25: 430 | AF25: 1613 | AG25: 5525 | AH25: 113 | AI25: 93 | AJ25: 51 | AK25: 4 | AL25: 18 | AM25: 592 | AN25: 471 | AO25: 178 | AP25: 176 | AQ25: 533 | AR25: 92 | AS25: 64 | AT25: 78 | AU25: 311 | AV25: 73 | AW25: 17 | AX25: 70 | AY25: 37 | AZ25: 0 | BA25: 47 | BB25: 33 | BC25: 56 | BD25: 70 | BE25: 45 | BF25: 41 | BG25: 37
A26: 2019-04-01 | J26: F84619 | L26: 4450 | M26: 219 | N26: 2956 | O26: 0 | P26: 59 | Q26: 26 | R26: 19 | S26: 3 | T26: 41 | U26: 65 | V26: 183 | W26: 132 | X26: 1705 | Y26: 200 | Z26: 176 | AA26: 125 | AB26: 207 | AC26: 42 | AD26: 2452 | AE26: 400 | AF26: 1374 | AG26: 3513 | AH26: 56 | AI26: 43 | AJ26: 20 | AK26: 1 | AL26: 10 | AM26: 414 | AN26: 257 | AO26: 160 | AP26: 129 | AQ26: 371 | AR26: 67 | AS26: 40 | AT26: 49 | AU26: 235 | AV26: 33 | AW26: 13 | AX26: 31 | AY26: 7 | AZ26: 0 | BA26: 26 | BB26: 24 | BC26: 16 | BD26: 50 | BE26: 58 | BF26: 52 | BG26: 44
A27: 2019-04-01 | J27: F84620 | L27: 6358 | M27: 381 | N27: 4152 | O27: 4 | P27: 136 | Q27: 45 | R27: 37 | S27: 8 | T27: 108 | U27: 142 | V27: 291 | W27: 210 | X27: 2158 | Y27: 341 | Z27: 293 | AA27: 156 | AB27: 367 | AC27: 100 | AD27: 3363 | AE27: 491 | AF27: 1749 | AG27: 5127 | AH27: 109 | AI27: 90 | AJ27: 39 | AK27: 3 | AL27: 21 | AM27: 747 | AN27: 538 | AO27: 224 | AP27: 242 | AQ27: 690 | AR27: 128 | AS27: 68 | AT27: 85 | AU27: 395 | AV27: 77 | AW27: 35 | AX27: 72 | AY27: 29 | AZ27: 1 | BA27: 49 | BB27: 56 | BC27: 70 | BD27: 94 | BE27: 81 | BF27: 68 | BG27: 52
A28: 2019-04-01 | J28: F84621 | L28: 3732 | M28: 296 | N28: 2596 | O28: 4 | P28: 83 | Q28: 53 | R28: 39 | S28: 8 | T28: 64 | U28: 89 | V28: 207 | W28: 173 | X28: 1759 | Y28: 255 | Z28: 206 | AA28: 100 | AB28: 233 | AC28: 62 | AD28: 2101 | AE28: 301 | AF28: 1221 | AG28: 3109 | AH28: 86 | AI28: 68 | AJ28: 25 | AK28: 1 | AL28: 16 | AM28: 588 | AN28: 429 | AO28: 204 | AP28: 168 | AQ28: 555 | AR28: 70 | AS28: 47 | AT28: 55 | AU28: 301 | AV28: 51 | AW28: 17 | AX28: 45 | AY28: 20 | AZ28: 2 | BA28: 38 | BB28: 31 | BC28: 33 | BD28: 58 | BE28: 57 | BF28: 54 | BG28: 40
A29: 2019-04-01 | J29: F84624 | L29: 2717 | M29: 147 | N29: 2059 | O29: 1 | P29: 54 | Q29: 30 | R29: 15 | S29: 4 | T29: 43 | U29: 56 | V29: 79 | W29: 57 | X29: 994 | Y29: 131 | Z29: 105 | AA29: 42 | AB29: 89 | AC29: 24 | AD29: 1450 | AE29: 115 | AF29: 630 | AG29: 2352 | AH29: 48 | AI29: 31 | AJ29: 6 | AK29: 0 | AL29: 11 | AM29: 294 | AN29: 204 | AO29: 103 | AP29: 78 | AQ29: 261 | AR29: 70 | AS29: 39 | AT29: 48 | AU29: 156 | AV29: 46 | AW29: 25 | AX29: 41 | AY29: 11 | AZ29: 1 | BA29: 31 | BB29: 33 | BC29: 23 | BD29: 42 | BE29: 45 | BF29: 38 | BG29: 34
A30: 2019-04-01 | J30: F84632 | L30: 1065 | M30: 54 | N30: 983 | O30: 3 | P30: 14 | Q30: 39 | R30: 19 | S30: 2 | T30: 11 | U30: 15 | V30: 49 | W30: 36 | X30: 608 | Y30: 44 | Z30: 42 | AA30: 29 | AB30: 88 | AC30: 12 | AD30: 732 | AE30: 362 | AF30: 610 | AG30: 1065 | AH30: 89 | AI30: 83 | AJ30: 62 | AK30: 5 | AL30: 9 | AM30: 121 | AN30: 58 | AO30: 37 | AP30: 32 | AQ30: 103 | AR30: 23 | AS30: 14 | AT30: 18 | AU30: 59 | AV30: 38 | AW30: 14 | AX30: 36 | AY30: 23 | AZ30: 1 | BA30: 26 | BB30: 30 | BC30: 22 | BD30: 14 | BE30: 10 | BF30: 10 | BG30: 5
A31: 2019-04-01 | J31: F84635 | L31: 8849 | M31: 315 | N31: 6214 | O31: 5 | P31: 83 | Q31: 35 | R31: 21 | S31: 4 | T31: 55 | U31: 87 | V31: 276 | W31: 174 | X31: 2202 | Y31: 263 | Z31: 214 | AA31: 137 | AB31: 352 | AC31: 81 | AD31: 5214 | AE31: 747 | AF31: 2373 | AG31: 7512 | AH31: 122 | AI31: 77 | AJ31: 37 | AK31: 1 | AL31: 12 | AM31: 690 | AN31: 421 | AO31: 227 | AP31: 174 | AQ31: 631 | AR31: 100 | AS31: 58 | AT31: 67 | AU31: 330 | AV31: 98 | AW31: 19 | AX31: 78 | AY31: 31 | AZ31: 2 | BA31: 76 | BB31: 77 | BC31: 81 | BD31: 77 | BE31: 66 | BF31: 60 | BG31: 44
A32: 2019-04-01 | J32: F84636 | L32: 4929 | M32: 182 | N32: 3771 | O32: 5 | P32: 42 | Q32: 29 | R32: 17 | S32: 6 | T32: 33 | U32: 48 | V32: 140 | W32: 99 | X32: 1553 | Y32: 160 | Z32: 132 | AA32: 71 | AB32: 161 | AC32: 39 | AD32: 2880 | AE32: 402 | AF32: 1503 | AG32: 4328 | AH32: 68 | AI32: 53 | AJ32: 18 | AK32: 1 | AL32: 13 | AM32: 376 | AN32: 258 | AO32: 145 | AP32: 93 | AQ32: 337 | AR32: 43 | AS32: 23 | AT32: 28 | AU32: 197 | AV32: 22 | AW32: 8 | AX32: 20 | AY32: 4 | AZ32: 0 | BA32: 12 | BB32: 13 | BC32: 12 | BD32: 32 | BE32: 37 | BF32: 33 | BG32: 28
A33: 2019-04-01 | J33: F84640 | L33: 9272 | M33: 245 | N33: 7213 | O33: 35 | P33: 238 | Q33: 24 | R33: 9 | S33: 6 | T33: 204 | U33: 264 | V33: 412 | W33: 271 | X33: 3050 | Y33: 219 | Z33: 174 | AA33: 93 | AB33: 239 | AC33: 41 | AD33: 6143 | AE33: 325 | AF33: 2015 | AG33: 8517 | AH33: 85 | AI33: 64 | AJ33: 16 | AK33: 1 | AL33: 25 | AM33: 951 | AN33: 729 | AO33: 174 | AP33: 170 | AQ33: 882 | AR33: 181 | AS33: 92 | AT33: 117 | AU33: 255 | AV33: 65 | AW33: 9 | AX33: 64 | AY33: 19 | AZ33: 2 | BA33: 51 | BB33: 51 | BC33: 29 | BD33: 147 | BE33: 118 | BF33: 111 | BG33: 96
A34: 2019-04-01 | J34: F84668 | L34: 6589 | M34: 273 | N34: 3227 | O34: 2 | P34: 87 | Q34: 32 | R34: 29 | S34: 4 | T34: 65 | U34: 97 | V34: 217 | W34: 165 | X34: 1782 | Y34: 253 | Z34: 204 | AA34: 164 | AB34: 370 | AC34: 82 | AD34: 3139 | AE34: 278 | AF34: 1781 | AG34: 4360 | AH34: 65 | AI34: 58 | AJ34: 19 | AK34: 11 | AL34: 7 | AM34: 489 | AN34: 340 | AO34: 219 | AP34: 176 | AQ34: 454 | AR34: 56 | AS34: 36 | AT34: 41 | AU34: 297 | AV34: 27 | AW34: 7 | AX34: 24 | AY34: 9 | AZ34: 5 | BA34: 23 | BB34: 24 | BC34: 23 | BD34: 33 | BE34: 38 | BF34: 37 | BG34: 27
A35: 2019-04-01 | J35: F84685 | L35: 2965 | M35: 133 | N35: 1917 | O35: 1 | P35: 39 | Q35: 12 | R35: 10 | S35: 2 | T35: 36 | U35: 43 | V35: 138 | W35: 94 | X35: 895 | Y35: 129 | Z35: 90 | AA35: 52 | AB35: 106 | AC35: 18 | AD35: 1499 | AE35: 142 | AF35: 678 | AG35: 2270 | AH35: 38 | AI35: 24 | AJ35: 7 | AK35: 0 | AL35: 5 | AM35: 261 | AN35: 193 | AO35: 86 | AP35: 82 | AQ35: 238 | AR35: 39 | AS35: 22 | AT35: 32 | AU35: 138 | AV35: 26 | AW35: 8 | AX35: 21 | AY35: 8 | AZ35: 1 | BA35: 19 | BB35: 15 | BC35: 17 | BD35: 34 | BE35: 20 | BF35: 16 | BG35: 15
A36: 2019-04-01 | J36: F84686 | L36: 7820 | M36: 180 | N36: 2862 | O36: 0 | P36: 53 | Q36: 21 | R36: 19 | S36: 4 | T36: 46 | U36: 56 | V36: 167 | W36: 140 | X36: 1057 | Y36: 159 | Z36: 136 | AA36: 104 | AB36: 246 | AC36: 50 | AD36: 2709 | AE36: 128 | AF36: 1054 | AG36: 4258 | AH36: 50 | AI36: 39 | AJ36: 5 | AK36: 0 | AL36: 7 | AM36: 367 | AN36: 295 | AO36: 112 | AP36: 99 | AQ36: 355 | AR36: 74 | AS36: 54 | AT36: 62 | AU36: 183 | AV36: 8 | AW36: 1 | AX36: 7 | AY36: 4 | AZ36: 0 | BA36: 5 | BB36: 4 | BC36: 7 | BD36: 46 | BE36: 30 | BF36: 27 | BG36: 26
A37: 2019-04-01 | J37: F84692 | L37: 7157 | M37: 213 | N37: 4644 | O37: 3 | P37: 60 | Q37: 37 | R37: 8 | S37: 3 | T37: 47 | U37: 64 | V37: 224 | W37: 119 | X37: 1957 | Y37: 189 | Z37: 140 | AA37: 105 | AB37: 227 | AC37: 43 | AD37: 3730 | AE37: 447 | AF37: 1640 | AG37: 6215 | AH37: 69 | AI37: 50 | AJ37: 26 | AK37: 3 | AL37: 9 | AM37: 447 | AN37: 310 | AO37: 159 | AP37: 125 | AQ37: 393 | AR37: 76 | AS37: 32 | AT37: 39 | AU37: 230 | AV37: 78 | AW37: 18 | AX37: 69 | AY37: 31 | AZ37: 2 | BA37: 61 | BB37: 66 | BC37: 49 | BD37: 61 | BE37: 45 | BF37: 40 | BG37: 33
A38: 2019-04-01 | J38: F84694 | L38: 4578 | M38: 210 | N38: 3501 | O38: 1 | P38: 58 | Q38: 29 | R38: 24 | S38: 2 | T38: 45 | U38: 59 | V38: 172 | W38: 139 | X38: 1885 | Y38: 176 | Z38: 165 | AA38: 76 | AB38: 217 | AC38: 44 | AD38: 2849 | AE38: 476 | AF38: 1931 | AG38: 4042 | AH38: 50 | AI38: 41 | AJ38: 12 | AK38: 0 | AL38: 7 | AM38: 367 | AN38: 213 | AO38: 163 | AP38: 128 | AQ38: 328 | AR38: 58 | AS38: 43 | AT38: 45 | AU38: 221 | AV38: 32 | AW38: 7 | AX38: 28 | AY38: 12 | AZ38: 1 | BA38: 22 | BB38: 17 | BC38: 24 | BD38: 33 | BE38: 22 | BF38: 19 | BG38: 16
A39: 2019-04-01 | J39: F84711 | L39: 1928 | M39: 162 | N39: 1315 | O39: 1 | P39: 38 | Q39: 17 | R39: 14 | S39: 6 | T39: 29 | U39: 40 | V39: 116 | W39: 87 | X39: 757 | Y39: 141 | Z39: 121 | AA39: 56 | AB39: 116 | AC39: 37 | AD39: 1179 | AE39: 152 | AF39: 621 | AG39: 1611 | AH39: 26 | AI39: 23 | AJ39: 8 | AK39: 2 | AL39: 4 | AM39: 282 | AN39: 171 | AO39: 151 | AP39: 91 | AQ39: 269 | AR39: 31 | AS39: 13 | AT39: 18 | AU39: 166 | AV39: 27 | AW39: 8 | AX39: 26 | AY39: 13 | AZ39: 5 | BA39: 25 | BB39: 13 | BC39: 9 | BD39: 22 | BE39: 22 | BF39: 19 | BG39: 13
A40: 2019-04-01 | J40: F84716 | L40: 5608 | M40: 195 | N40: 3434 | O40: 2 | P40: 94 | Q40: 49 | R40: 22 | S40: 10 | T40: 74 | U40: 101 | V40: 191 | W40: 140 | X40: 1550 | Y40: 182 | Z40: 144 | AA40: 85 | AB40: 222 | AC40: 57 | AD40: 3022 | AE40: 276 | AF40: 1525 | AG40: 4199 | AH40: 91 | AI40: 77 | AJ40: 24 | AK40: 3 | AL40: 11 | AM40: 386 | AN40: 285 | AO40: 116 | AP40: 117 | AQ40: 364 | AR40: 70 | AS40: 41 | AT40: 50 | AU40: 202 | AV40: 43 | AW40: 10 | AX40: 42 | AY40: 14 | AZ40: 1 | BA40: 32 | BB40: 35 | BC40: 11 | BD40: 55 | BE40: 39 | BF40: 37 | BG40: 31
A41: 2019-04-01 | J41: F84719 | L41: 5170 | M41: 295 | N41: 3612 | O41: 9 | P41: 98 | Q41: 40 | R41: 31 | S41: 12 | T41: 82 | U41: 102 | V41: 222 | W41: 161 | X41: 1605 | Y41: 277 | Z41: 222 | AA41: 101 | AB41: 256 | AC41: 74 | AD41: 3348 | AE41: 352 | AF41: 1736 | AG41: 4388 | AH41: 81 | AI41: 73 | AJ41: 20 | AK41: 4 | AL41: 10 | AM41: 617 | AN41: 452 | AO41: 239 | AP41: 182 | AQ41: 563 | AR41: 138 | AS41: 86 | AT41: 103 | AU41: 313 | AV41: 83 | AW41: 25 | AX41: 77 | AY41: 25 | AZ41: 3 | BA41: 76 | BB41: 59 | BC41: 55 | BD41: 89 | BE41: 84 | BF41: 81 | BG41: 71
A42: 2019-04-01 | J42: F84720 | L42: 5475 | M42: 335 | N42: 3247 | O42: 5 | P42: 131 | Q42: 48 | R42: 36 | S42: 8 | T42: 106 | U42: 143 | V42: 313 | W42: 224 | X42: 2053 | Y42: 292 | Z42: 257 | AA42: 136 | AB42: 317 | AC42: 85 | AD42: 2826 | AE42: 390 | AF42: 1582 | AG42: 4161 | AH42: 88 | AI42: 66 | AJ42: 29 | AK42: 1 | AL42: 13 | AM42: 800 | AN42: 555 | AO42: 210 | AP42: 180 | AQ42: 743 | AR42: 152 | AS42: 97 | AT42: 125 | AU42: 370 | AV42: 81 | AW42: 15 | AX42: 75 | AY42: 21 | AZ42: 2 | BA42: 56 | BB42: 44 | BC42: 74 | BD42: 117 | BE42: 81 | BF42: 77 | BG42: 62
A43: 2019-04-01 | J43: Y00403 | L43: 6364 | M43: 188 | N43: 4712 | O43: 2 | P43: 46 | Q43: 45 | R43: 22 | S43: 8 | T43: 36 | U43: 50 | V43: 105 | W43: 69 | X43: 1521 | Y43: 176 | Z43: 149 | AA43: 95 | AB43: 193 | AC43: 63 | AD43: 3450 | AE43: 546 | AF43: 1684 | AG43: 5362 | AH43: 81 | AI43: 64 | AJ43: 27 | AK43: 2 | AL43: 13 | AM43: 400 | AN43: 276 | AO43: 143 | AP43: 116 | AQ43: 368 | AR43: 48 | AS43: 26 | AT43: 29 | AU43: 194 | AV43: 36 | AW43: 11 | AX43: 35 | AY43: 16 | AZ43: 2 | BA43: 33 | BB43: 24 | BC43: 24 | BD43: 38 | BE43: 28 | BF43: 28 | BG43: 22
A44: 2019-04-01 | J44: Y03049 | L44: 14372 | M44: 608 | N44: 8826 | O44: 7 | P44: 188 | Q44: 96 | R44: 56 | S44: 20 | T44: 132 | U44: 195 | V44: 492 | W44: 362 | X44: 4608 | Y44: 549 | Z44: 462 | AA44: 251 | AB44: 612 | AC44: 154 | AD44: 6897 | AE44: 811 | AF44: 3272 | AG44: 10559 | AH44: 190 | AI44: 160 | AJ44: 70 | AK44: 8 | AL44: 27 | AM44: 1122 | AN44: 766 | AO44: 405 | AP44: 347 | AQ44: 1076 | AR44: 179 | AS44: 103 | AT44: 123 | AU44: 620 | AV44: 96 | AW44: 22 | AX44: 87 | AY44: 44 | AZ44: 9 | BA44: 70 | BB44: 60 | BC44: 79 | BD44: 145 | BE44: 76 | BF44: 74 | BG44: 55
A45: 2019-04-01 | J45: Total | L45: 323614 | M45: 14557 | N45: 219322 | O45: 230 | P45: 4890 | Q45: 2268 | R45: 1369 | S45: 368 | T45: 3818 | U45: 5195 | V45: 12416 | W45: 8981 | X45: 109973 | Y45: 13007 | Z45: 10636 | AA45: 5908 | AB45: 13865 | AC45: 3597 | AD45: 173536 | AE45: 21782 | AF45: 85169 | AG45: 261008 | AH45: 4670 | AI45: 3699 | AJ45: 1586 | AK45: 115 | AL45: 797 | AM45: 29702 | AN45: 20621 | AO45: 10086 | AP45: 8562 | AQ45: 27339 | AR45: 4927 | AS45: 2902 | AT45: 3614 | AU45: 15290 | AV45: 3495 | AW45: 870 | AX45: 3153 | AY45: 1326 | AZ45: 116 | BA45: 2519 | BB45: 2338 | BC45: 2329 | BD45: 3763 | BE45: 2851 | BF45: 2644 | BG45: 2099

Sheet Data 17-18 (hidden)
A1: 2019-03-01 | C1: 01 LDP | E1: Last Run: | G1: Population Count | H1: 1465547 | K1: Search | L1: 01. Listsize | M1: LDP.04.15.01 Diabetes HbA1C <=7.5% OR <=59mmol (15m) *REMOVE* | N1: LDP.04.11: Diabetes and BP in last 12 months | O1: LDP.05: CVD 25-84yrs (excl CVD) | P1: LDP.08.02 CKD Diagnosed (Last 6m) | Q1: LDP.08.03 CKD and BP Recorded (last 12 m) | R1: CSPMH. 01.03 QRisk Recorded (12m) | S1: CSPMH. 01.03.01 BP recorded on same day as QRisk (12m) | T1: CSPMH. 01.03.02 Qrisk>=20 (12m) | U1: LDP.08.01 CKD and BP less than 140/90 (last 12 m) | V1: LDP.08 CKD Register | W1: LDP.05.01: CVD QRISK greater than or equal 20% | X1: LDP.05.01.01: CVD Proxy Annual Review (last 12m) | Y1: LDP.05.02: Cardiovascular Risk Score Done (5y) | Z1: LDP.04.09: Diabetes BP less than 145/85 (last 12m) | AA1: LDP.04.08: Diabetes Chol less than 5mmol (last 12m) | AB1: LDP.01.01.01: Obesity BMI more than or equal to 35 less than 40 (last 12m) | AC1: LDP.01.01.02: Obesity BMI between 30-35 (last 12m) | AD1: LDP.01.01.03: Obesity BMI equal to or over 40 (last 12m) | AE1: LDP.01.02: Smoking Status (last 12m) or Never Smoked (25yrs+) | AF1: LDP.01.03: Current Smoker (last 12m) | AG1: LDP.01.01: Obesity BMI recorded (last 12m) | AH1: LDP.01: Aged 16yrs+ | AI1: CSPMH.01 SMI Register | AJ1: CSPMH.01.02 Smoking Status Recorded (12m) | AK1: CSPMH.01.02.01 Current Smoker (15m) | AL1: CSPMH 01.02.01.01 Ref to clinic 15m | AM1: CSPMH.01.02.02 Ex-smoker Recorded (latest 15m) | AN1: LDP.02: Hypertension Register | AO1: LDP.02.01: Hypertension and BP < 140/90 (age under 80) < 150/90 (Age 80+) | AP1: LDP.04.03: Diabetes Digital retinal screening or Seen by retinal screener *REMOV | AQ1: LDP.04.07: Diabetes Influenza Vaccinations (last 12m) | AR1: LDP.04.01: Diabetes HbA1c <7.5% OR <59mmol (last 12m) | AS1: LDP.02.02: Hypertension BP recorded (last 12m) | AT1: LDP.03: CHD Register | AU1: LDP.03.01: CHD Chol less than 5mmol (last 12m) | AV1: LDP.03.04: CHD Cholesterol recorded (last 12m) | AW1: LDP.04: Diabetes Register | AX1: LDP.09 COPD Register | AY1: LDP.09.01 Patients with severe or very severe COPD (FEV1<50) | AZ1: LDP.09.02 Patients with smoking status recorded (last 12m) or never smoked | BA1: LDP.09.03 COPD patients recorded as a Smoker | BB1: LDP.09.04 COPD Patients who are current smokers & referred to the Stop Smoking C | BC1: LDP.09.05 No of COPD with flu vaccination (12m) | BD1: LDP.09.06 No of COPD with pneumococcal vaccination ever | BE1: LDP.09.07 No of COPD patients referred to pulmonary rehab ever | BF1: LDP.03.02: CHD BP less than or equal 150/90 (last 9m)
A2: 2019-03-01 | E2: 2019-04-02T10:56:00 | G2: Males | H2: 711969 | J2: Organisation Code
A3: 2019-03-01 | E3: Relative Date: | G3: Females | H3: 753578 | J3: F84003 | L3: 12716 | M3: 1 | N3: 693 | O3: 8617 | P3: 12 | Q3: 205 | R3: 125 | S3: 38 | T3: 16 | U3: 150 | V3: 215 | W3: 586 | X3: 391 | Y3: 4205 | Z3: 636 | AA3: 493 | AB3: 274 | AC3: 567 | AD3: 139 | AE3: 6594 | AF3: 1015 | AG3: 2979 | AH3: 10265 | AI3: 237 | AJ3: 174 | AK3: 86 | AL3: 2 | AM3: 35 | AN3: 1385 | AO3: 1005 | AP3: 473 | AQ3: 441 | AR3: 388 | AS3: 1317 | AT3: 274 | AU3: 156 | AV3: 192 | AW3: 711 | AX3: 171 | AY3: 39 | AZ3: 155 | BA3: 70 | BB3: 3 | BC3: 119 | BD3: 106 | BE3: 136 | BF3: 227
A4: 2019-03-01 | E4: 2019-04-01 | J4: F84008 | L4: 12659 | M4: 3 | N4: 568 | O4: 9008 | P4: 17 | Q4: 221 | R4: 123 | S4: 54 | T4: 17 | U4: 163 | V4: 229 | W4: 585 | X4: 396 | Y4: 5266 | Z4: 491 | AA4: 428 | AB4: 186 | AC4: 434 | AD4: 115 | AE4: 6227 | AF4: 702 | AG4: 3182 | AH4: 10408 | AI4: 245 | AJ4: 184 | AK4: 77 | AL4: 4 | AM4: 51 | AN4: 1286 | AO4: 863 | AP4: 355 | AQ4: 374 | AR4: 362 | AS4: 1191 | AT4: 224 | AU4: 138 | AV4: 162 | AW4: 584 | AX4: 160 | AY4: 47 | AZ4: 149 | BA4: 74 | BB4: 1 | BC4: 118 | BD4: 112 | BE4: 115 | BF4: 152
A5: 2019-03-01 | J5: F84013 | L5: 15006 | M5: 0 | N5: 496 | O5: 6496 | P5: 17 | Q5: 178 | R5: 63 | S5: 40 | T5: 10 | U5: 145 | V5: 185 | W5: 477 | X5: 366 | Y5: 2726 | Z5: 459 | AA5: 401 | AB5: 215 | AC5: 469 | AD5: 102 | AE5: 5545 | AF5: 356 | AG5: 2280 | AH5: 9000 | AI5: 162 | AJ5: 110 | AK5: 34 | AL5: 4 | AM5: 13 | AN5: 990 | AO5: 748 | AP5: 377 | AQ5: 295 | AR5: 296 | AS5: 908 | AT5: 181 | AU5: 118 | AV5: 137 | AW5: 520 | AX5: 88 | AY5: 22 | AZ5: 80 | BA5: 32 | BB5: 3 | BC5: 59 | BD5: 65 | BE5: 58 | BF5: 145
A6: 2019-03-01 | J6: F84015 | L6: 5403 | M6: 0 | N6: 413 | O6: 3387 | P6: 5 | Q6: 164 | R6: 52 | S6: 35 | T6: 10 | U6: 134 | V6: 171 | W6: 265 | X6: 238 | Y6: 2231 | Z6: 393 | AA6: 329 | AB6: 174 | AC6: 428 | AD6: 144 | AE6: 3116 | AF6: 479 | AG6: 1927 | AH6: 4269 | AI6: 87 | AJ6: 77 | AK6: 40 | AL6: 4 | AM6: 15 | AN6: 832 | AO6: 637 | AP6: 48 | AQ6: 303 | AR6: 259 | AS6: 798 | AT6: 106 | AU6: 79 | AV6: 98 | AW6: 420 | AX6: 87 | AY6: 14 | AZ6: 84 | BA6: 30 | BB6: 9 | BC6: 69 | BD6: 52 | BE6: 43 | BF6: 94
A7: 2019-03-01 | J7: F84018 | L7: 11693 | M7: 0 | N7: 606 | O7: 7954 | P7: 4 | Q7: 188 | R7: 101 | S7: 76 | T7: 17 | U7: 143 | V7: 190 | W7: 469 | X7: 394 | Y7: 5038 | Z7: 563 | AA7: 432 | AB7: 251 | AC7: 608 | AD7: 187 | AE7: 6319 | AF7: 911 | AG7: 3678 | AH7: 9368 | AI7: 200 | AJ7: 180 | AK7: 77 | AL7: 14 | AM7: 33 | AN7: 1100 | AO7: 823 | AP7: 416 | AQ7: 390 | AR7: 350 | AS7: 1051 | AT7: 188 | AU7: 123 | AV7: 174 | AW7: 619 | AX7: 119 | AY7: 34 | AZ7: 115 | BA7: 47 | BB7: 3 | BC7: 89 | BD7: 73 | BE7: 83 | BF7: 151
A8: 2019-03-01 | J8: F84021 | L8: 10392 | M8: 0 | N8: 452 | O8: 7692 | P8: 8 | Q8: 183 | R8: 70 | S8: 46 | T8: 10 | U8: 143 | V8: 192 | W8: 387 | X8: 312 | Y8: 3551 | Z8: 409 | AA8: 344 | AB8: 170 | AC8: 378 | AD8: 96 | AE8: 5717 | AF8: 757 | AG8: 2519 | AH8: 8705 | AI8: 154 | AJ8: 113 | AK8: 53 | AL8: 4 | AM8: 24 | AN8: 877 | AO8: 614 | AP8: 377 | AQ8: 315 | AR8: 284 | AS8: 826 | AT8: 146 | AU8: 88 | AV8: 108 | AW8: 467 | AX8: 110 | AY8: 32 | AZ8: 101 | BA8: 47 | BB8: 1 | BC8: 80 | BD8: 78 | BE8: 84 | BF8: 114
A9: 2019-03-01 | J9: F84033 | L9: 12046 | M9: 4 | N9: 599 | O9: 8614 | P9: 0 | Q9: 209 | R9: 79 | S9: 39 | T9: 9 | U9: 174 | V9: 219 | W9: 467 | X9: 366 | Y9: 4727 | Z9: 578 | AA9: 454 | AB9: 250 | AC9: 668 | AD9: 170 | AE9: 6711 | AF9: 1211 | AG9: 3599 | AH9: 10030 | AI9: 174 | AJ9: 152 | AK9: 76 | AL9: 3 | AM9: 36 | AN9: 1228 | AO9: 962 | AP9: 490 | AQ9: 445 | AR9: 354 | AS9: 1165 | AT9: 203 | AU9: 135 | AV9: 177 | AW9: 612 | AX9: 128 | AY9: 37 | AZ9: 125 | BA9: 65 | BB9: 1 | BC9: 99 | BD9: 91 | BE9: 94 | BF9: 162
A10: 2019-03-01 | J10: F84035 | L10: 7673 | M10: 2 | N10: 248 | O10: 6113 | P10: 3 | Q10: 64 | R10: 20 | S10: 16 | T10: 5 | U10: 55 | V10: 64 | W10: 185 | X10: 133 | Y10: 1792 | Z10: 235 | AA10: 198 | AB10: 103 | AC10: 227 | AD10: 78 | AE10: 5264 | AF10: 589 | AG10: 2819 | AH10: 6877 | AI10: 48 | AJ10: 40 | AK10: 8 | AL10: 1 | AM10: 8 | AN10: 473 | AO10: 321 | AP10: 202 | AQ10: 204 | AR10: 151 | AS10: 455 | AT10: 68 | AU10: 35 | AV10: 45 | AW10: 257 | AX10: 67 | AY10: 12 | AZ10: 66 | BA10: 31 | BB10: 3 | BC10: 57 | BD10: 59 | BE10: 28 | BF10: 51
A11: 2019-03-01 | J11: F84036 | L11: 7163 | M11: 2 | N11: 324 | O11: 5113 | P11: 1 | Q11: 103 | R11: 124 | S11: 59 | T11: 20 | U11: 76 | V11: 109 | W11: 313 | X11: 238 | Y11: 4819 | Z11: 298 | AA11: 253 | AB11: 138 | AC11: 368 | AD11: 84 | AE11: 4058 | AF11: 527 | AG11: 2176 | AH11: 6029 | AI11: 161 | AJ11: 138 | AK11: 72 | AL11: 2 | AM11: 33 | AN11: 728 | AO11: 485 | AP11: 235 | AQ11: 186 | AR11: 195 | AS11: 650 | AT11: 127 | AU11: 83 | AV11: 98 | AW11: 353 | AX11: 93 | AY11: 18 | AZ11: 87 | BA11: 32 | BB11: 2 | BC11: 58 | BD11: 62 | BE11: 72 | BF11: 101
A12: 2019-03-01 | J12: F84038 | L12: 4033 | M12: 0 | N12: 243 | O12: 2921 | P12: 0 | Q12: 62 | R12: 52 | S12: 42 | T12: 5 | U12: 57 | V12: 66 | W12: 188 | X12: 145 | Y12: 2081 | Z12: 234 | AA12: 165 | AB12: 114 | AC12: 282 | AD12: 68 | AE12: 2543 | AF12: 481 | AG12: 1717 | AH12: 3460 | AI12: 94 | AJ12: 86 | AK12: 51 | AL12: 3 | AM12: 12 | AN12: 490 | AO12: 393 | AP12: 178 | AQ12: 176 | AR12: 138 | AS12: 444 | AT12: 90 | AU12: 43 | AV12: 59 | AW12: 255 | AX12: 69 | AY12: 8 | AZ12: 66 | BA12: 29 | BB12: 5 | BC12: 47 | BD12: 39 | BE12: 32 | BF12: 50
A13: 2019-03-01 | J13: F84041 | L13: 7770 | M13: 0 | N13: 462 | O13: 5836 | P13: 6 | Q13: 176 | R13: 50 | S13: 37 | T13: 5 | U13: 132 | V13: 184 | W13: 383 | X13: 310 | Y13: 3545 | Z13: 439 | AA13: 372 | AB13: 224 | AC13: 447 | AD13: 114 | AE13: 4656 | AF13: 552 | AG13: 2592 | AH13: 6724 | AI13: 121 | AJ13: 87 | AK13: 36 | AL13: 4 | AM13: 21 | AN13: 908 | AO13: 629 | AP13: 336 | AQ13: 327 | AR13: 279 | AS13: 840 | AT13: 139 | AU13: 91 | AV13: 104 | AW13: 480 | AX13: 80 | AY13: 23 | AZ13: 76 | BA13: 25 | BB13: 2 | BC13: 57 | BD13: 41 | BE13: 59 | BF13: 119
A14: 2019-03-01 | J14: F84043 | L14: 3872 | M14: 0 | N14: 301 | O14: 2329 | P14: 2 | Q14: 80 | R14: 46 | S14: 12 | T14: 7 | U14: 57 | V14: 82 | W14: 210 | X14: 153 | Y14: 1281 | Z14: 282 | AA14: 222 | AB14: 94 | AC14: 194 | AD14: 59 | AE14: 1933 | AF14: 300 | AG14: 844 | AH14: 3032 | AI14: 91 | AJ14: 68 | AK14: 29 | AL14: 0 | AM14: 17 | AN14: 590 | AO14: 434 | AP14: 160 | AQ14: 187 | AR14: 181 | AS14: 577 | AT14: 99 | AU14: 58 | AV14: 73 | AW14: 306 | AX14: 65 | AY14: 16 | AZ14: 60 | BA14: 34 | BB14: 2 | BC14: 43 | BD14: 42 | BE14: 48 | BF14: 76
A15: 2019-03-01 | J15: F84060 | L15: 4699 | M15: 0 | N15: 284 | O15: 3311 | P15: 2 | Q15: 93 | R15: 35 | S15: 22 | T15: 5 | U15: 70 | V15: 97 | W15: 178 | X15: 144 | Y15: 1727 | Z15: 261 | AA15: 200 | AB15: 105 | AC15: 245 | AD15: 68 | AE15: 2663 | AF15: 313 | AG15: 1290 | AH15: 3910 | AI15: 65 | AJ15: 54 | AK15: 23 | AL15: 0 | AM15: 11 | AN15: 497 | AO15: 312 | AP15: 185 | AQ15: 185 | AR15: 170 | AS15: 468 | AT15: 58 | AU15: 34 | AV15: 41 | AW15: 287 | AX15: 23 | AY15: 9 | AZ15: 23 | BA15: 7 | BB15: 0 | BC15: 16 | BD15: 15 | BE15: 13 | BF15: 45
A16: 2019-03-01 | J16: F84063 | L16: 6029 | M16: 1 | N16: 423 | O16: 4376 | P16: 5 | Q16: 138 | R16: 52 | S16: 27 | T16: 8 | U16: 122 | V16: 143 | W16: 267 | X16: 228 | Y16: 2051 | Z16: 389 | AA16: 307 | AB16: 149 | AC16: 358 | AD16: 88 | AE16: 3695 | AF16: 705 | AG16: 2270 | AH16: 5166 | AI16: 86 | AJ16: 71 | AK16: 24 | AL16: 0 | AM16: 21 | AN16: 670 | AO16: 511 | AP16: 293 | AQ16: 306 | AR16: 266 | AS16: 628 | AT16: 122 | AU16: 89 | AV16: 111 | AW16: 433 | AX16: 70 | AY16: 17 | AZ16: 69 | BA16: 31 | BB16: 0 | BC16: 58 | BD16: 49 | BE16: 22 | BF16: 84
A17: 2019-03-01 | J17: F84069 | L17: 14475 | M17: 2 | N17: 664 | O17: 10226 | P17: 3 | Q17: 222 | R17: 129 | S17: 86 | T17: 23 | U17: 173 | V17: 229 | W17: 586 | X17: 434 | Y17: 4355 | Z17: 588 | AA17: 497 | AB17: 289 | AC17: 612 | AD17: 195 | AE17: 7199 | AF17: 1098 | AG17: 3525 | AH17: 11803 | AI17: 278 | AJ17: 233 | AK17: 97 | AL17: 2 | AM17: 54 | AN17: 1353 | AO17: 993 | AP17: 473 | AQ17: 445 | AR17: 396 | AS17: 1277 | AT17: 219 | AU17: 134 | AV17: 170 | AW17: 684 | AX17: 242 | AY17: 54 | AZ17: 223 | BA17: 108 | BB17: 4 | BC17: 162 | BD17: 174 | BE17: 195 | BF17: 181
A18: 2019-03-01 | J18: F84072 | L18: 10740 | M18: 3 | N18: 248 | O18: 8631 | P18: 8 | Q18: 70 | R18: 29 | S18: 20 | T18: 5 | U18: 52 | V18: 72 | W18: 193 | X18: 133 | Y18: 2401 | Z18: 235 | AA18: 168 | AB18: 87 | AC18: 224 | AD18: 69 | AE18: 6022 | AF18: 559 | AG18: 2332 | AH18: 9315 | AI18: 93 | AJ18: 84 | AK18: 31 | AL18: 1 | AM18: 19 | AN18: 505 | AO18: 299 | AP18: 33 | AQ18: 144 | AR18: 150 | AS18: 481 | AT18: 58 | AU18: 33 | AV18: 41 | AW18: 253 | AX18: 57 | AY18: 14 | AZ18: 56 | BA18: 32 | BB18: 1 | BC18: 35 | BD18: 26 | BE18: 35 | BF18: 46
A19: 2019-03-01 | J19: F84080 | L19: 4811 | M19: 1 | N19: 329 | O19: 2894 | P19: 13 | Q19: 96 | R19: 28 | S19: 20 | T19: 7 | U19: 79 | V19: 102 | W19: 303 | X19: 244 | Y19: 1437 | Z19: 308 | AA19: 244 | AB19: 98 | AC19: 264 | AD19: 67 | AE19: 2593 | AF19: 261 | AG19: 1317 | AH19: 3617 | AI19: 61 | AJ19: 39 | AK19: 17 | AL19: 2 | AM19: 3 | AN19: 687 | AO19: 477 | AP19: 244 | AQ19: 207 | AR19: 193 | AS19: 631 | AT19: 104 | AU19: 66 | AV19: 84 | AW19: 347 | AX19: 68 | AY19: 24 | AZ19: 63 | BA19: 27 | BB19: 4 | BC19: 43 | BD19: 41 | BE19: 30 | BF19: 89
A20: 2019-03-01 | J20: F84096 | L20: 13157 | M20: 4 | N20: 656 | O20: 9130 | P20: 10 | Q20: 279 | R20: 147 | S20: 59 | T20: 29 | U20: 235 | V20: 302 | W20: 609 | X20: 431 | Y20: 4366 | Z20: 614 | AA20: 480 | AB20: 228 | AC20: 583 | AD20: 157 | AE20: 7112 | AF20: 997 | AG20: 2968 | AH20: 10900 | AI20: 232 | AJ20: 180 | AK20: 84 | AL20: 6 | AM20: 40 | AN20: 1195 | AO20: 888 | AP20: 469 | AQ20: 482 | AR20: 373 | AS20: 1134 | AT20: 229 | AU20: 119 | AV20: 162 | AW20: 675 | AX20: 236 | AY20: 47 | AZ20: 222 | BA20: 95 | BB20: 10 | BC20: 174 | BD20: 191 | BE20: 174 | BF20: 188
A21: 2019-03-01 | J21: F84105 | L21: 11538 | M21: 0 | N21: 602 | O21: 7943 | P21: 12 | Q21: 158 | R21: 57 | S21: 49 | T21: 8 | U21: 126 | V21: 166 | W21: 419 | X21: 297 | Y21: 4486 | Z21: 572 | AA21: 478 | AB21: 222 | AC21: 558 | AD21: 146 | AE21: 6566 | AF21: 734 | AG21: 3287 | AH21: 9265 | AI21: 134 | AJ21: 116 | AK21: 46 | AL21: 5 | AM21: 24 | AN21: 1065 | AO21: 763 | AP21: 404 | AQ21: 435 | AR21: 386 | AS21: 1012 | AT21: 138 | AU21: 76 | AV21: 96 | AW21: 618 | AX21: 100 | AY21: 28 | AZ21: 95 | BA21: 30 | BB21: 4 | BC21: 80 | BD21: 57 | BE21: 47 | BF21: 91
A22: 2019-03-01 | J22: F84115 | L22: 8683 | M22: 0 | N22: 295 | O22: 6395 | P22: 8 | Q22: 107 | R22: 25 | S22: 14 | T22: 7 | U22: 93 | V22: 113 | W22: 278 | X22: 185 | Y22: 2657 | Z22: 269 | AA22: 213 | AB22: 70 | AC22: 187 | AD22: 68 | AE22: 4472 | AF22: 460 | AG22: 1569 | AH22: 7317 | AI22: 97 | AJ22: 74 | AK22: 30 | AL22: 2 | AM22: 28 | AN22: 624 | AO22: 449 | AP22: 165 | AQ22: 191 | AR22: 174 | AS22: 582 | AT22: 146 | AU22: 79 | AV22: 97 | AW22: 303 | AX22: 134 | AY22: 28 | AZ22: 115 | BA22: 54 | BB22: 7 | BC22: 92 | BD22: 100 | BE22: 102 | BF22: 109
A23: 2019-03-01 | J23: F84117 | L23: 10066 | M23: 2 | N23: 441 | O23: 7340 | P23: 4 | Q23: 144 | R23: 55 | S23: 26 | T23: 10 | U23: 125 | V23: 150 | W23: 376 | X23: 276 | Y23: 2984 | Z23: 400 | AA23: 338 | AB23: 136 | AC23: 332 | AD23: 86 | AE23: 5373 | AF23: 626 | AG23: 2200 | AH23: 8465 | AI23: 137 | AJ23: 106 | AK23: 39 | AL23: 2 | AM23: 39 | AN23: 864 | AO23: 666 | AP23: 346 | AQ23: 306 | AR23: 281 | AS23: 808 | AT23: 162 | AU23: 95 | AV23: 122 | AW23: 454 | AX23: 113 | AY23: 37 | AZ23: 105 | BA23: 44 | BB23: 3 | BC23: 81 | BD23: 71 | BE23: 77 | BF23: 140
A24: 2019-03-01 | J24: F84119 | L24: 12364 | M24: 0 | N24: 538 | O24: 8942 | P24: 5 | Q24: 190 | R24: 109 | S24: 62 | T24: 16 | U24: 175 | V24: 195 | W24: 465 | X24: 400 | Y24: 4862 | Z24: 507 | AA24: 407 | AB24: 243 | AC24: 606 | AD24: 152 | AE24: 7428 | AF24: 892 | AG24: 4176 | AH24: 10327 | AI24: 192 | AJ24: 168 | AK24: 78 | AL24: 16 | AM24: 43 | AN24: 1077 | AO24: 850 | AP24: 426 | AQ24: 364 | AR24: 325 | AS24: 964 | AT24: 172 | AU24: 123 | AV24: 162 | AW24: 554 | AX24: 140 | AY24: 22 | AZ24: 136 | BA24: 62 | BB24: 7 | BC24: 100 | BD24: 82 | BE24: 73 | BF24: 142
A25: 2019-03-01 | J25: F84601 | L25: 6847 | M25: 1 | N25: 298 | O25: 4508 | P25: 4 | Q25: 111 | R25: 65 | S25: 51 | T25: 6 | U25: 95 | V25: 113 | W25: 235 | X25: 190 | Y25: 3509 | Z25: 286 | AA25: 237 | AB25: 125 | AC25: 322 | AD25: 86 | AE25: 3152 | AF25: 450 | AG25: 1634 | AH25: 5509 | AI25: 115 | AJ25: 96 | AK25: 56 | AL25: 3 | AM25: 18 | AN25: 587 | AO25: 479 | AP25: 207 | AQ25: 175 | AR25: 167 | AS25: 538 | AT25: 92 | AU25: 66 | AV25: 81 | AW25: 311 | AX25: 72 | AY25: 19 | AZ25: 69 | BA25: 37 | BB25: 0 | BC25: 47 | BD25: 32 | BE25: 54 | BF25: 75
A26: 2019-03-01 | J26: F84619 | L26: 4424 | M26: 0 | N26: 226 | O26: 2941 | P26: 0 | Q26: 62 | R26: 30 | S26: 23 | T26: 6 | U26: 46 | V26: 65 | W26: 181 | X26: 133 | Y26: 1684 | Z26: 211 | AA26: 193 | AB26: 127 | AC26: 211 | AD26: 47 | AE26: 2452 | AF26: 404 | AG26: 1382 | AH26: 3492 | AI26: 55 | AJ26: 47 | AK26: 24 | AL26: 1 | AM26: 9 | AN26: 417 | AO26: 278 | AP26: 180 | AQ26: 159 | AR26: 139 | AS26: 381 | AT26: 66 | AU26: 45 | AV26: 53 | AW26: 234 | AX26: 33 | AY26: 13 | AZ26: 32 | BA26: 8 | BB26: 0 | BC26: 26 | BD26: 24 | BE26: 16 | BF26: 52
A27: 2019-03-01 | J27: F84620 | L27: 6323 | M27: 0 | N27: 388 | O27: 4122 | P27: 4 | Q27: 138 | R27: 44 | S27: 35 | T27: 9 | U27: 117 | V27: 142 | W27: 290 | X27: 209 | Y27: 2119 | Z27: 363 | AA27: 305 | AB27: 153 | AC27: 363 | AD27: 97 | AE27: 3326 | AF27: 478 | AG27: 1732 | AH27: 5093 | AI27: 110 | AJ27: 88 | AK27: 37 | AL27: 2 | AM27: 20 | AN27: 744 | AO27: 547 | AP27: 304 | AQ27: 224 | AR27: 244 | AS27: 695 | AT27: 126 | AU27: 76 | AV27: 92 | AW27: 396 | AX27: 72 | AY27: 33 | AZ27: 68 | BA27: 27 | BB27: 1 | BC27: 45 | BD27: 53 | BE27: 67 | BF27: 108
A28: 2019-03-01 | J28: F84621 | L28: 3737 | M28: 0 | N28: 300 | O28: 2592 | P28: 6 | Q28: 84 | R28: 52 | S28: 38 | T28: 7 | U28: 68 | V28: 92 | W28: 203 | X28: 174 | Y28: 1762 | Z28: 272 | AA28: 224 | AB28: 101 | AC28: 231 | AD28: 62 | AE28: 2118 | AF28: 315 | AG28: 1235 | AH28: 3111 | AI28: 85 | AJ28: 69 | AK28: 26 | AL28: 1 | AM28: 16 | AN28: 593 | AO28: 454 | AP28: 96 | AQ28: 207 | AR28: 179 | AS28: 563 | AT28: 73 | AU28: 49 | AV28: 59 | AW28: 303 | AX28: 48 | AY28: 17 | AZ28: 44 | BA28: 20 | BB28: 2 | BC28: 37 | BD28: 31 | BE28: 33 | BF28: 61
A29: 2019-03-01 | J29: F84624 | L29: 2720 | M29: 2 | N29: 155 | O29: 2061 | P29: 1 | Q29: 56 | R29: 29 | S29: 15 | T29: 4 | U29: 44 | V29: 56 | W29: 79 | X29: 55 | Y29: 992 | Z29: 145 | AA29: 114 | AB29: 47 | AC29: 101 | AD29: 23 | AE29: 1473 | AF29: 124 | AG29: 670 | AH29: 2353 | AI29: 48 | AJ29: 33 | AK29: 6 | AL29: 0 | AM29: 11 | AN29: 299 | AO29: 227 | AP29: 109 | AQ29: 102 | AR29: 88 | AS29: 276 | AT29: 69 | AU29: 40 | AV29: 50 | AW29: 160 | AX29: 44 | AY29: 24 | AZ29: 43 | BA29: 11 | BB29: 0 | BC29: 30 | BD29: 32 | BE29: 23 | BF29: 43
A30: 2019-03-01 | J30: F84632 | L30: 1051 | M30: 0 | N30: 50 | O30: 973 | P30: 3 | Q30: 14 | R30: 39 | S30: 17 | T30: 3 | U30: 11 | V30: 15 | W30: 48 | X30: 36 | Y30: 606 | Z30: 46 | AA30: 38 | AB30: 29 | AC30: 85 | AD30: 10 | AE30: 743 | AF30: 375 | AG30: 628 | AH30: 1051 | AI30: 87 | AJ30: 83 | AK30: 63 | AL30: 5 | AM30: 9 | AN30: 120 | AO30: 64 | AP30: 19 | AQ30: 36 | AR30: 29 | AS30: 106 | AT30: 22 | AU30: 14 | AV30: 18 | AW30: 53 | AX30: 38 | AY30: 14 | AZ30: 37 | BA30: 27 | BB30: 1 | BC30: 27 | BD30: 30 | BE30: 23 | BF30: 14
A31: 2019-03-01 | J31: F84635 | L31: 8830 | M31: 2 | N31: 325 | O31: 6210 | P31: 6 | Q31: 86 | R31: 36 | S31: 21 | T31: 3 | U31: 60 | V31: 88 | W31: 278 | X31: 172 | Y31: 2211 | Z31: 284 | AA31: 220 | AB31: 134 | AC31: 343 | AD31: 81 | AE31: 5301 | AF31: 797 | AG31: 2382 | AH31: 7495 | AI31: 124 | AJ31: 86 | AK31: 43 | AL31: 2 | AM31: 16 | AN31: 698 | AO31: 443 | AP31: 228 | AQ31: 230 | AR31: 178 | AS31: 651 | AT31: 103 | AU31: 61 | AV31: 69 | AW31: 337 | AX31: 99 | AY31: 19 | AZ31: 86 | BA31: 36 | BB31: 2 | BC31: 77 | BD31: 78 | BE31: 83 | BF31: 88
A32: 2019-03-01 | J32: F84636 | L32: 4847 | M32: 0 | N32: 185 | O32: 3695 | P32: 5 | Q32: 46 | R32: 29 | S32: 16 | T32: 6 | U32: 37 | V32: 48 | W32: 142 | X32: 107 | Y32: 1515 | Z32: 168 | AA32: 149 | AB32: 77 | AC32: 167 | AD32: 40 | AE32: 2852 | AF32: 409 | AG32: 1525 | AH32: 4255 | AI32: 67 | AJ32: 56 | AK32: 18 | AL32: 1 | AM32: 15 | AN32: 379 | AO32: 274 | AP32: 139 | AQ32: 145 | AR32: 105 | AS32: 344 | AT32: 45 | AU32: 30 | AV32: 36 | AW32: 197 | AX32: 22 | AY32: 9 | AZ32: 21 | BA32: 6 | BB32: 0 | BC32: 13 | BD32: 13 | BE32: 13 | BF32: 38
A33: 2019-03-01 | J33: F84640 | L33: 9312 | M33: 0 | N33: 250 | O33: 7237 | P33: 43 | Q33: 243 | R33: 23 | S33: 9 | T33: 6 | U33: 203 | V33: 266 | W33: 412 | X33: 274 | Y33: 3088 | Z33: 225 | AA33: 178 | AB33: 87 | AC33: 244 | AD33: 44 | AE33: 6188 | AF33: 343 | AG33: 2043 | AH33: 8557 | AI33: 80 | AJ33: 61 | AK33: 13 | AL33: 1 | AM33: 25 | AN33: 950 | AO33: 750 | AP33: 143 | AQ33: 173 | AR33: 175 | AS33: 896 | AT33: 178 | AU33: 95 | AV33: 120 | AW33: 255 | AX33: 65 | AY33: 10 | AZ33: 65 | BA33: 20 | BB33: 2 | BC33: 52 | BD33: 51 | BE33: 29 | BF33: 150
A34: 2019-03-01 | J34: F84668 | L34: 6565 | M34: 0 | N34: 288 | O34: 3216 | P34: 3 | Q34: 90 | R34: 36 | S34: 33 | T34: 5 | U34: 70 | V34: 98 | W34: 218 | X34: 185 | Y34: 1780 | Z34: 276 | AA34: 232 | AB34: 174 | AC34: 392 | AD34: 87 | AE34: 3183 | AF34: 298 | AG34: 1870 | AH34: 4343 | AI34: 68 | AJ34: 63 | AK34: 20 | AL34: 11 | AM34: 9 | AN34: 490 | AO34: 366 | AP34: 248 | AQ34: 221 | AR34: 196 | AS34: 474 | AT34: 57 | AU34: 42 | AV34: 48 | AW34: 300 | AX34: 25 | AY34: 7 | AZ34: 25 | BA34: 10 | BB34: 7 | BC34: 21 | BD34: 22 | BE34: 22 | BF34: 35
A35: 2019-03-01 | J35: F84685 | L35: 2972 | M35: 0 | N35: 133 | O35: 1928 | P35: 1 | Q35: 39 | R35: 11 | S35: 9 | T35: 2 | U35: 37 | V35: 43 | W35: 135 | X35: 96 | Y35: 900 | Z35: 129 | AA35: 98 | AB35: 51 | AC35: 106 | AD35: 21 | AE35: 1512 | AF35: 143 | AG35: 679 | AH35: 2274 | AI35: 38 | AJ35: 25 | AK35: 7 | AL35: 0 | AM35: 5 | AN35: 262 | AO35: 196 | AP35: 85 | AQ35: 85 | AR35: 86 | AS35: 241 | AT35: 39 | AU35: 21 | AV35: 32 | AW35: 136 | AX35: 22 | AY35: 7 | AZ35: 18 | BA35: 8 | BB35: 1 | BC35: 18 | BD35: 15 | BE35: 16 | BF35: 34
A36: 2019-03-01 | J36: F84686 | L36: 7784 | M36: 3 | N36: 184 | O36: 2845 | P36: 0 | Q36: 58 | R36: 20 | S36: 18 | T36: 4 | U36: 51 | V36: 60 | W36: 167 | X36: 138 | Y36: 1050 | Z36: 169 | AA36: 142 | AB36: 104 | AC36: 246 | AD36: 49 | AE36: 2691 | AF36: 130 | AG36: 1048 | AH36: 4241 | AI36: 48 | AJ36: 38 | AK36: 7 | AL36: 1 | AM36: 5 | AN36: 369 | AO36: 307 | AP36: 96 | AQ36: 112 | AR36: 106 | AS36: 360 | AT36: 73 | AU36: 54 | AV36: 61 | AW36: 188 | AX36: 8 | AY36: 1 | AZ36: 8 | BA36: 4 | BB36: 0 | BC36: 6 | BD36: 4 | BE36: 8 | BF36: 56
A37: 2019-03-01 | J37: F84692 | L37: 7150 | M37: 0 | N37: 223 | O37: 4629 | P37: 4 | Q37: 64 | R37: 38 | S37: 8 | T37: 3 | U37: 55 | V37: 65 | W37: 224 | X37: 134 | Y37: 1957 | Z37: 204 | AA37: 159 | AB37: 110 | AC37: 228 | AD37: 43 | AE37: 3748 | AF37: 466 | AG37: 1663 | AH37: 6215 | AI37: 69 | AJ37: 49 | AK37: 26 | AL37: 3 | AM37: 9 | AN37: 448 | AO37: 334 | AP37: 156 | AQ37: 160 | AR37: 138 | AS37: 409 | AT37: 74 | AU37: 36 | AV37: 42 | AW37: 229 | AX37: 77 | AY37: 18 | AZ37: 73 | BA37: 33 | BB37: 2 | BC37: 62 | BD37: 65 | BE37: 50 | BF37: 64
A38: 2019-03-01 | J38: F84694 | L38: 4533 | M38: 0 | N38: 209 | O38: 3455 | P38: 1 | Q38: 59 | R38: 30 | S38: 23 | T38: 3 | U38: 48 | V38: 60 | W38: 170 | X38: 141 | Y38: 1846 | Z38: 186 | AA38: 167 | AB38: 80 | AC38: 220 | AD38: 41 | AE38: 2841 | AF38: 480 | AG38: 1928 | AH38: 4001 | AI38: 51 | AJ38: 45 | AK38: 13 | AL38: 2 | AM38: 6 | AN38: 365 | AO38: 225 | AP38: 27 | AQ38: 163 | AR38: 130 | AS38: 331 | AT38: 59 | AU38: 44 | AV38: 47 | AW38: 219 | AX38: 31 | AY38: 6 | AZ38: 31 | BA38: 14 | BB38: 2 | BC38: 22 | BD38: 17 | BE38: 25 | BF38: 36
A39: 2019-03-01 | J39: F84711 | L39: 1929 | M39: 1 | N39: 169 | O39: 1316 | P39: 0 | Q39: 39 | R39: 17 | S39: 14 | T39: 6 | U39: 32 | V39: 40 | W39: 117 | X39: 98 | Y39: 751 | Z39: 153 | AA39: 137 | AB39: 62 | AC39: 115 | AD39: 38 | AE39: 1176 | AF39: 145 | AG39: 623 | AH39: 1608 | AI39: 26 | AJ39: 23 | AK39: 8 | AL39: 2 | AM39: 4 | AN39: 283 | AO39: 176 | AP39: 126 | AQ39: 153 | AR39: 103 | AS39: 274 | AT39: 31 | AU39: 20 | AV39: 23 | AW39: 169 | AX39: 26 | AY39: 8 | AZ39: 25 | BA39: 13 | BB39: 4 | BC39: 24 | BD39: 13 | BE39: 9 | BF39: 23
A40: 2019-03-01 | J40: F84716 | L40: 5586 | M40: 1 | N40: 200 | O40: 3425 | P40: 2 | Q40: 95 | R40: 52 | S40: 22 | T40: 11 | U40: 76 | V40: 99 | W40: 187 | X40: 143 | Y40: 1547 | Z40: 187 | AA40: 150 | AB40: 86 | AC40: 234 | AD40: 58 | AE40: 3049 | AF40: 303 | AG40: 1546 | AH40: 4182 | AI40: 100 | AJ40: 83 | AK40: 24 | AL40: 5 | AM40: 14 | AN40: 383 | AO40: 294 | AP40: 84 | AQ40: 119 | AR40: 118 | AS40: 367 | AT40: 69 | AU40: 41 | AV40: 51 | AW40: 204 | AX40: 41 | AY40: 11 | AZ40: 41 | BA40: 14 | BB40: 2 | BC40: 32 | BD40: 32 | BE40: 11 | BF40: 55
A41: 2019-03-01 | J41: F84719 | L41: 5144 | M41: 2 | N41: 303 | O41: 3592 | P41: 8 | Q41: 97 | R41: 43 | S41: 33 | T41: 15 | U41: 82 | V41: 98 | W41: 223 | X41: 177 | Y41: 1611 | Z41: 291 | AA41: 235 | AB41: 100 | AC41: 265 | AD41: 73 | AE41: 3353 | AF41: 370 | AG41: 1761 | AH41: 4361 | AI41: 80 | AJ41: 74 | AK41: 20 | AL41: 2 | AM41: 11 | AN41: 618 | AO41: 462 | AP41: 236 | AQ41: 243 | AR41: 185 | AS41: 585 | AT41: 136 | AU41: 91 | AV41: 106 | AW41: 313 | AX41: 81 | AY41: 26 | AZ41: 76 | BA41: 23 | BB41: 2 | BC41: 74 | BD41: 56 | BE41: 56 | BF41: 91
A42: 2019-03-01 | J42: F84720 | L42: 5443 | M42: 0 | N42: 367 | O42: 3238 | P42: 7 | Q42: 143 | R42: 56 | S42: 42 | T42: 12 | U42: 121 | V42: 148 | W42: 314 | X42: 250 | Y42: 2054 | Z42: 337 | AA42: 280 | AB42: 139 | AC42: 339 | AD42: 91 | AE42: 2885 | AF42: 424 | AG42: 1675 | AH42: 4140 | AI42: 91 | AJ42: 75 | AK42: 35 | AL42: 2 | AM42: 14 | AN42: 805 | AO42: 607 | AP42: 136 | AQ42: 213 | AR42: 204 | AS42: 773 | AT42: 152 | AU42: 102 | AV42: 127 | AW42: 372 | AX42: 80 | AY42: 14 | AZ42: 77 | BA42: 22 | BB42: 1 | BC42: 56 | BD42: 45 | BE42: 73 | BF42: 116
A43: 2019-03-01 | J43: Y00403 | L43: 6277 | M43: 0 | N43: 190 | O43: 4647 | P43: 0 | Q43: 43 | R43: 43 | S43: 19 | T43: 8 | U43: 38 | V43: 45 | W43: 105 | X43: 74 | Y43: 1527 | Z43: 182 | AA43: 161 | AB43: 98 | AC43: 194 | AD43: 59 | AE43: 3367 | AF43: 526 | AG43: 1638 | AH43: 5280 | AI43: 82 | AJ43: 62 | AK43: 28 | AL43: 1 | AM43: 12 | AN43: 392 | AO43: 287 | AP43: 56 | AQ43: 144 | AR43: 129 | AS43: 366 | AT43: 47 | AU43: 27 | AV43: 30 | AW43: 193 | AX43: 34 | AY43: 11 | AZ43: 33 | BA43: 13 | BB43: 1 | BC43: 32 | BD43: 24 | BE43: 22 | BF43: 39
A44: 2019-03-01 | J44: Y03049 | L44: 14427 | M44: 3 | N44: 618 | O44: 8866 | P44: 10 | Q44: 190 | R44: 95 | S44: 56 | T44: 20 | U44: 148 | V44: 196 | W44: 479 | X44: 339 | Y44: 4619 | Z44: 576 | AA44: 476 | AB44: 232 | AC44: 599 | AD44: 150 | AE44: 6927 | AF44: 818 | AG44: 3161 | AH44: 10610 | AI44: 194 | AJ44: 164 | AK44: 75 | AL44: 9 | AM44: 24 | AN44: 1138 | AO44: 813 | AP44: 322 | AQ44: 412 | AR44: 363 | AS44: 1104 | AT44: 179 | AU44: 106 | AV44: 126 | AW44: 624 | AX44: 97 | AY44: 23 | AZ44: 92 | BA44: 48 | BB44: 9 | BC44: 70 | BD44: 59 | BE44: 80 | BF44: 147
A45: 2019-03-01 | J45: Total | L45: 322889 | M45: 40 | N45: 14946 | O45: 218764 | P45: 253 | Q45: 5087 | R45: 2359 | S45: 1381 | T45: 388 | U45: 4118 | V45: 5312 | W45: 12396 | X45: 9339 | Y45: 109716 | Z45: 13850 | AA45: 11318 | AB45: 5936 | AC45: 14044 | AD45: 3652 | AE45: 174143 | AF45: 22323 | AG45: 86069 | AH45: 260423 | AI45: 4767 | AJ45: 3854 | AK45: 1657 | AL45: 135 | AM45: 832 | AN45: 29764 | AO45: 21705 | AP45: 9682 | AQ45: 10184 | AR45: 9013 | AS45: 27941 | AT45: 4943 | AU45: 3055 | AV45: 3784 | AW45: 15385 | AX45: 3435 | AY45: 872 | AZ45: 3235 | BA45: 1400 | BB45: 114 | BC45: 2507 | BD45: 2322 | BE45: 2333 | BF45: 3882

Sheet Control Panel (hidden)
B1: Control Panel | C1: 2018-06-30 | G1: Select Dates
B2: General Health | G2: 2023-04-01 | I2: - | J2: Select Practice | K2: DN Team | L2: Patch | M2: Network | O2: OrgID | P2: 4 | Q2: =$P$6&ADDRESS(1,P2)&":"&ADDRESS($P$7,P2) -> 'CH LDP TABLE'!$D$1:$D$100000 | T2: OrgID_A | U2: 10 | V2: =$U$6&ADDRESS(1,U2)&":"&ADDRESS($U$7,U2) -> 'Data 17-18'!$J$1:$J$1000
A3: List Size | B3: 01. Listsize | C3: List Size | G3: 2023-05-01 | H3: Bethnal Green Health Centre | I3: F84083 | J3: Bethnal Green Health Centre | M3: NW1 | O3: REL_D | P3: 2 | Q3: =$P$6&ADDRESS(1,P3)&":"&ADDRESS($P$7,P3) -> 'CH LDP TABLE'!$B$1:$B$100000 | T3: REL_DA | U3: 1 | V3: =$U$6&ADDRESS(1,U3)&":"&ADDRESS($U$7,U3) -> 'Data 17-18'!$A$1:$A$1000
A4: Age 16+ | B4: LDP.01: Aged 16yrs+ | C4: Age 16+ | D4: Age 16+ | G4: 2023-06-01 | H4: The Mission Practice | I4: F84016 | J4: The Mission Practice | M4: NW1 | O4: IND | P4: - | Q4: =$P$6&ADDRESS(P11,1)&":"&ADDRESS(P11,P8) -> 'CH LDP TABLE'!$A$1:$BU$1 | T4: IND_A | U4: - | V4: =$U$6&ADDRESS(U11,1)&":"&ADDRESS(U11,U8) -> 'Data 17-18'!$A$1:$BU$1
A5: % list size | B5: ="%"&B4 -> %LDP.01: Aged 16yrs+ | C5: % list size | D5: % list size | G5: 2023-07-01 | H5: Globe Town Surgery | I5: F84123 | J5: Globe Town Surgery | M5: NW1 | O5: NwID | P5: 2 | Q5: =$P$6&ADDRESS(1,P5)&":"&ADDRESS($P$7,P5) -> 'CH LDP TABLE'!$B$1:$B$100000 | T5: NwID_A | U5: 2 | V5: =$U$6&ADDRESS(1,U5)&":"&ADDRESS($U$7,U5) -> 'Data 17-18'!$B$1:$B$1000
A6: 16+ and BMI (last 12m) | B6: LDP.01.01: Obesity BMI recorded (last 12m) | C6: 16+ and BMI (last 12m) | D6: 16+ and BMI (last 12m) | G6: 2023-08-01 | H6: Pollard Row Surgery | I6: Y00212 | J6: Pollard Row Surgery | M6: NW1 | O6: Data | P6: =IF(P9="N","BLANK!","'"&P10&"'!") -> 'CH LDP TABLE'! | T6: Data | U6: =IF(U9="N","BLANK!","'"&U10&"'!") -> 'Data 17-18'!
A7: % 16+ | B7: ="%"&B6 -> %LDP.01.01: Obesity BMI recorded (last 12m) | C7: % 16+ | D7: % 16+ | G7: 2023-09-01 | H7: Strouts Place Medical Centre | I7: F84051 | J7: Strouts Place Medical Centre | M7: NW1 | O7: Rows | P7: 100000 | T7: Rows | U7: 1000
A8: BMI 25 to 29 | B8: LDP.01.01.02: Obesity BMI between 30-35 (last 12m) | C8: BMI 25 to 29 | D8: BMI ≥30 & <35 | G8: 2023-10-01 | H8: Spitalfields Practice | I8: F84081 | J8: Spitalfields Practice | M8: NW2 | O8: Columns | P8: 73 | T8: Columns | U8: 73
A9: % 16+ | B9: ="%"&B8 -> %LDP.01.01.02: Obesity BMI between 30-35 (last 12m) | C9: % 16+ | D9: % 16+ | G9: 2023-11-01 | H9: Blithehale Medical Centre | I9: F84718 | J9: Blithehale Medical Centre | M9: NW2 | O9: Data (Y/N) | P9: Y | T9: Data (Y/N) | U9: Y
A10: BMI ≥ 30 | B10: LDP.01.01.01: Obesity BMI more than or equal to 35 less than 40 (last 12m) | C10: BMI ≥ 30 | D10: BMI ≥ 35 & <40 | G10: 2023-12-01 | H10: Health E1 | I10: F84733 | J10: Health E1 | M10: NW2 | O10: Q Work Sheet | P10: CH LDP TABLE | Q10: =$P$6&ADDRESS(1,1)&":"&ADDRESS(P7,P8) -> 'CH LDP TABLE'!$A$1:$BU$100000 | T10: Q Work Sheet | U10: Data 17-18 | V10: =$U$6&ADDRESS(1,1)&":"&ADDRESS(U7,U8) -> 'Data 17-18'!$A$1:$BU$1000
A11: %16+ | B11: ="%"&B10 -> %LDP.01.01.01: Obesity BMI more than or equal to 35 less than 40 (last 12m) | C11: %16+ | D11: %16+ | G11: 2024-01-01 | H11: Albion Health Centre | I11: F84012 | J11: Albion Health Centre | M11: NW2 | O11: Header Row | P11: 1 | T11: Header Row | U11: 1
A12: BMI ≥ 40 | B12: LDP.01.01.03: Obesity BMI equal to or over 40 (last 12m) | C12: BMI ≥ 40 | D12: BMI ≥ 40 | G12: 2024-02-01 | H12: XX Place Surgery | I12: F84122 | J12: XX Place Surgery | M12: NW2 | O12: Header Row 2 | P12: 3 | T12: Header Row 2 | U12: 3
A13: %16+ | B13: ="%"&B12 -> %LDP.01.01.03: Obesity BMI equal to or over 40 (last 12m) | C13: %16+ | D13: %16+ | G13: 2024-03-01 | H13: Harford Health Centre | I13: F84087 | J13: Harford Health Centre | M13: NW3
A14: Smoking status (last 12m) incl. never smoked | B14: LDP.01.02: Smoking Status (last 12m) or Never Smoked (25yrs+) | C14: Smoking status (last 12m) incl. never smoked | D14: Smoking status (last 12m) incl. never smoked | H14: Brayford Square (Dr Varma) | I14: F84046 | J14: Brayford Square (Dr Varma) | M14: NW3
A15: % 16+ | B15: ="%"&B14 -> %LDP.01.02: Smoking Status (last 12m) or Never Smoked (25yrs+) | C15: % 16+ | D15: % 16+ | H15: Whitechapel Health (Shah Jalal) | I15: F84039 | J15: Whitechapel Health (Shah Jalal) | M15: NW3
A16: Age 16+ and current smoker (last 12m) | B16: LDP.01.03: Current Smoker (last 12m) | C16: Age 16+ and current smoker (last 12m) | D16: Age 16+ and current smoker (last 12m) | H16: City Wellbeing Practice (Tower Medical) | I16: F84114 | J16: City Wellbeing Practice (Tower Medical) | M16: NW3 | O16: April 2023 | P16: 2023-05-01
A17: % 16+ | B17: ="%"&B16 -> %LDP.01.03: Current Smoker (last 12m) | C17: % 16+ | D17: % 16+ | H17: Wapping Group Practice | I17: F84079 | J17: Wapping Group Practice | M17: NW4 | O17: May 2023 | P17: 2023-06-01
B18: Hypertension | H18: Jubilee Street Practice | I18: F84031 | J18: Jubilee Street Practice | M18: NW4 | O18: June 2023 | P18: 2023-07-01
A19: Hypertension Register | B19: LDP.02: Hypertension Register | C19: Hypertension Register | D19: Hypertension Register | H19: St Katharine Docks Practice | I19: F84731 | J19: St Katharine Docks Practice | M19: NW4 | O19: July 2023 | P19: 2023-08-01
A20: % list size | B20: ="%"&B19 -> %LDP.02: Hypertension Register | C20: % list size | D20: % list size | H20: East One Health | I20: F84682 | J20: East One Health | M20: NW4 | O20: August 2023 | P20: 2023-09-01
A21: Hypertension and BP (last 9m) | B21: LDP.02.02: Hypertension BP recorded (last 12m) | C21: Hypertension and BP (last 9m) | D21: Hypertension and BP (last 12m) | H21: Harley Grove Medical Centre | I21: F84044 | J21: Harley Grove Medical Centre | M21: NW5 | O21: September 2023 | P21: 2023-10-01
A22: % Hypertension Register | B22: ="%"&B21 -> %LDP.02.02: Hypertension BP recorded (last 12m) | C22: % Hypertension Register | D22: % Hypertension Register | H22: St Stephens Health Centre | I22: F84034 | J22: St Stephens Health Centre | M22: NW5 | O22: October 2023 | P22: 2023-11-01
A23: Hypertension and BP ≤ 150/90 (last 9m) | B23: LDP.02.01: Hypertension and BP < 140/90 (age under 80) < 150/90 (Age 80+) | C23: Hypertension and BP ≤ 150/90 (last 9m) | D23: Hypertension and BP < 140/90 (Patients aged under 80) < 150/90 ( Aged 80 and over) (last 12m) | H23: Ruston Street Clinic (Dr Amin) | I23: F84030 | J23: Ruston Street Clinic (Dr Amin) | M23: NW5 | O23: November 2023 | P23: 2023-12-01
A24: % Hypertension Register | B24: ="%"&B23 -> %LDP.02.01: Hypertension and BP < 140/90 (age under 80) < 150/90 (Age 80+) | C24: % Hypertension Register | D24: % Hypertension Register | H24: Grove Road Surgery (Dr Shah) | I24: F84055 | J24: Grove Road Surgery (Dr Shah) | M24: NW5 | O24: December 2023 | P24: 2024-01-01
B25: CHD | H25: The Tredegar Practice | I25: F84696 | J25: The Tredegar Practice | M25: NW5 | O25: January 2024 | P25: 2024-02-01
A26: CHD register | B26: LDP.03: CHD Register | C26: CHD register | D26: CHD register | H26: Stroudley Walk Centre | I26: F84676 | J26: Stroudley Walk Centre | M26: NW6 | O26: February 2024 | P26: 2024-03-01
A27: % list size | B27: ="%"&B26 -> %LDP.03: CHD Register | C27: % list size | D27: % list size | H27: St Andrews Health Centre | I27: Y03023 | J27: St Andrews Health Centre | M27: NW6 | O27: March 2024 | P27: 2024-04-01
A28: Cholesterol (last 12m) | B28: LDP.03.04: CHD Cholesterol recorded (last 12m) | C28: Cholesterol (last 12m) | D28: Cholesterol (last 12m) | H28: Merchant Street (Dr Rana) | I28: F84118 | J28: Merchant Street (Dr Rana) | M28: NW6
A29: % CHD register | B29: ="%"&B28 -> %LDP.03.04: CHD Cholesterol recorded (last 12m) | C29: % CHD register | D29: % CHD register | H29: St Pauls Way Medical Centre | I29: F84714 | J29: St Pauls Way Medical Centre | M29: NW6
A30: Cholesterol ≤ 5 (last 12m) | B30: LDP.03.01: CHD Chol less than 5mmol (last 12m) | C30: Cholesterol ≤ 5 (last 12m) | D30: Cholesterol < 5 (last 12m) | H30: Bromley-By-Bow Health Centre | I30: F84122 | J30: Bromley-By-Bow Health Centre | M30: NW6
A31: % CHD register | B31: ="%"&B30 -> %LDP.03.01: CHD Chol less than 5mmol (last 12m) | C31: % CHD register | D31: % CHD register | H31: Limehouse Practice (Gill Street) | I31: F84054 | J31: Limehouse Practice (Gill Street) | M31: NW7
A32: BP (last 9m) | B32: LDP.03.02: CHD BP less than or equal 150/90 (last 9m) | C32: BP (last 9m) | D32: BP ≤ 150/90 (last 12m) | H32: Chrisp Street Health Centre | I32: F84062 | J32: Chrisp Street Health Centre | M32: NW7
A33: % CHD register | B33: ="%"&B32 -> %LDP.03.02: CHD BP less than or equal 150/90 (last 9m) | C33: % CHD register | D33: % CHD register | H33: Aberfeldy Practice | I33: F84698 | J33: Aberfeldy Practice | M33: NW7
A34: BP ≤ 150/90 (last 9m) | B34: LDP.03.05: CHD BP recorded (last 9m) | C34: BP ≤ 150/90 (last 9m) | H34: All Saints Practice | I34: F84702 | J34: All Saints Practice | M34: NW7
A35: % CHD register | B35: ="%"&B34 -> %LDP.03.05: CHD BP recorded (last 9m) | C35: % CHD register | H35: Gough Walk (Dr Selvan) | I35: F84025 | J35: Gough Walk (Dr Selvan) | M35: NW7
A36: CHD annual review or proxy review | B36: LDP.03.03: CHD Annual Review & Proxy (last 12m) | C36: CHD annual review or proxy review | H36: Island Health | I36: F84710 | J36: Island Health | M36: NW8
A37: % CHD register | B37: ="%"&B36 -> %LDP.03.03: CHD Annual Review & Proxy (last 12m) | C37: % CHD register | H37: Docklands Medical Centre | I37: F84656 | J37: Docklands Medical Centre | M37: NW8
A38: CHD diagnosed in last 6 months | B38: LDP.03.06: CHD Diagnosed (Last 6 months) | C38: CHD diagnosed in last 6 months | H38: Island Medical Centre | I38: F84647 | J38: Island Medical Centre | M38: NW8
A39: % CHD register | B39: ="%"&B38 -> %LDP.03.06: CHD Diagnosed (Last 6 months) | C39: % CHD register | H39: Barkantine Practice | I39: F84747 | J39: Barkantine Practice | M39: NW8
H40: Tower Hamlets | I40: Total | J40: Tower Hamlets
B41: Stroke/TIA
B42: LDP.10 Stroke or TIA register | D42: Stroke/TIA register
B43: %LDP.10 Stroke or TIA register | D43: % list size
B44: LDP.10.01: Stroke/TIA BP recorded (last 12m) | D44: Patients on Stroke/TIA register with BP recorded
B45: %LDP.10.01: Stroke/TIA BP recorded (last 12m) | D45: % of stroke register
B46: LDP.10.02 Patients on Stroke/TIA register with BP <140/90 (12m) | D46: Patients on Stroke/TIA register with BP <140/90 (12m)
B47: %LDP.10.02 Patients on Stroke/TIA register with BP <140/90 (12m) | D47: % of stroke register
B48: CVD Risk | H48: The One Network | I48: NW1 | J48: The One Network | M48: NW1
A49: Aged 35 to 74 (exc CVD) | B49: LDP.05: CVD 25-84yrs (excl CVD) | C49: Aged 35 to 74 (exc CVD) | D49: Aged 25 to 84 (exc CVD) | H49: East End Health Network | I49: NW2 | J49: East End Health Network | M49: NW2
A50: CVD (QRISK or Framingham) risk score done | B50: LDP.05.02: Cardiovascular Risk Score Done (5y) | C50: CVD (QRISK or Framingham) risk score done | D50: QRISK recorded (5 years) | H50: Stepney and Whitechapel Network | I50: NW3 | J50: Stepney and Whitechapel Network | M50: NW3
A51: % of patients aged 35 to 74 (exc CVD) | B51: ="%"&B50 -> %LDP.05.02: Cardiovascular Risk Score Done (5y) | C51: % of patients aged 35 to 74 (exc CVD) | D51: % of patients aged 25 to 84 (exc CVD) | H51: The Highway Network | I51: NW4 | J51: The Highway Network | M51: NW4
A52: QRISK ≥ 20% | B52: LDP.05.01: CVD QRISK greater than or equal 20% | C52: QRISK ≥ 20% | D52: QRISK ≥ 20% | H52: Bow Health Network | I52: NW5 | J52: Bow Health Network | M52: NW5
A53: % QRISK Score recorded | B53: ="%"&B52 -> %LDP.05.01: CVD QRISK greater than or equal 20% | C53: % QRISK Score recorded | D53: % QRISK Score recorded | H53: Mile End East and Bromley by Bow Network | I53: NW6 | J53: Mile End East and Bromley by Bow Network | M53: NW6
A54: QRISK ≥ 20% and proxy review (BP and Chol last 12m) | B54: LDP.05.01.01: CVD Proxy Annual Review (last 12m) | C54: QRISK ≥ 20% and proxy review (BP and Chol last 12m) | D54: QRISK ≥ 20% and proxy review (BP and Chol last 12m) | H54: Poplar and Limehouse Network | I54: NW7 | J54: Poplar and Limehouse Network | M54: NW7
A55: % Patients with QRISK ≥ 20% | B55: ="%"&B54 -> %LDP.05.01.01: CVD Proxy Annual Review (last 12m) | C55: % Patients with QRISK ≥ 20% | D55: % Patients with QRISK ≥ 20% | H55: Healthy Island Network | I55: NW8 | J55: Healthy Island Network | M55: NW8
B56: Diabetes
A57: Diabetes register | B57: LDP.04: Diabetes Register | C57: Diabetes register | D57: Diabetes register
A58: % List size | B58: ="%"&B57 -> %LDP.04: Diabetes Register | C58: % List size | D58: % List size
A59: Annual review/ called or proxy (last 12m) | B59: LDP.04.02: Diabetes Called & Annual Review or Proxy (last 12m) | C59: Annual review/ called or proxy (last 12m) | D59: BP (last 12m)
A60: % Diabetes register | B60: ="%"&B59 -> %LDP.04.02: Diabetes Called & Annual Review or Proxy (last 12m) | C60: % Diabetes register | D60: % Diabetes Register
A61: BP (last 12m) | B61: LDP.04.11: Diabetes and BP in last 12 months | C61: BP (last 12m) | D61: BP < 145/85 (last 12m)
A62: % Diabetes Register | B62: ="%"&B61 -> %LDP.04.11: Diabetes and BP in last 12 months | C62: % Diabetes Register | D62: % Diabetes Register
A63: BP ≤ 145/85 (last 12m) | B63: LDP.04.09: Diabetes BP less than 145/85 (last 12m) | C63: BP ≤ 145/85 (last 12m) | D63: Cholesterol < 5mmols (last 12m) | H63: Cedar Practice, John Scott HC | I63: F84036
A64: % Diabetes Register | B64: ="%"&B63 -> %LDP.04.09: Diabetes BP less than 145/85 (last 12m) | C64: % Diabetes Register | D64: % Diabetes Register | H64: Clapton Surgery | I64: F84668
A65: Cholesterol (last 12m) | B65: LDP.04.12: Diabetes and cholesterol in last 15 mths | C65: Cholesterol (last 12m) | D65: HbA1c < 59 (last 12m) | H65: Cranwich Road (Spitzer & Partners) | I65: F84686
A66: % Diabetes Register | B66: ="%"&B65 -> %LDP.04.12: Diabetes and cholesterol in last 15 mths | C66: % Diabetes Register | D66: % Diabetes register | H66: Elsdale Street | I66: F84601
A67: Cholesterol < 5mmols (last 12m) | B67: LDP.04.08: Diabetes Chol less than 5mmol (last 12m) | C67: Cholesterol < 5mmols (last 12m) | D67: Flu jab (From August 2021) | H67: Nightingale Practice | I67: F84018
A68: % Diabetes Register | B68: ="%"&B67 -> %LDP.04.08: Diabetes Chol less than 5mmol (last 12m) | C68: % Diabetes Register | D68: % Diabetes Register | H68: Shoreditch Park Surgery | I68: F84635
A69: HbA1c ≤ 59(last 12m) | B69: LDP.04.01: Diabetes HbA1c <7.5% OR <59mmol (last 12m) | C69: HbA1c ≤ 59(last 12m) | H69: Southgate Rd & Whiston Rd MC | I69: F84041
A70: % Diabetes register | B70: ="%"&B69 -> %LDP.04.01: Diabetes HbA1c <7.5% OR <59mmol (last 12m) | C70: % Diabetes register | H70: The Dalston Practice | I70: F84063
A71: HbA1c ≤ 86 (last 12m) | B71: LDP.04.10: Diabetes HbA1c <=10% OR <=86mmol (last 12m) | C71: HbA1c ≤ 86 (last 12m) | H71: The Heron Practice, John Scott HC | I71: F84119
A72: % Diabetes Register | B72: ="%"&B71 -> %LDP.04.10: Diabetes HbA1c <=10% OR <=86mmol (last 12m) | C72: % Diabetes Register | H72: Wick Health Centre | I72: F84620
A73: Diabetes retinal screening (last 12m) | B73: LDP.04.03: Diabetes Digital retinal screening or Seen by retinal screener | C73: Diabetes retinal screening (last 12m) | H73: Athena Medical Centre | I73: F84060
A74: % Diabetes register | B74: ="%"&B73 -> %LDP.04.03: Diabetes Digital retinal screening or Seen by retinal screener | C74: % Diabetes register | H74: Kingsmead Healthcare | I74: F84015
A75: Retinal screening (last 12m) | B75: LDP.04.04: Diabetes Retinal Screening (QoF) (last 12m) | C75: Retinal screening (last 12m) | H75: Lea Surgery | I75: F84105
A76: % Diabetes register | B76: ="%"&B75 -> %LDP.04.04: Diabetes Retinal Screening (QoF) (last 12m) | C76: % Diabetes register | H76: London Fields Medical Centre | I76: F84021
A77: Neuropathy testing (last 12m) | B77: LDP.04.05: Diabetes Neuropathy Test (last 12m) | C77: Neuropathy testing (last 12m) | H77: Lower Clapton Health Centre | I77: F84003
A78: % Diabetes Register | B78: ="%"&B77 -> %LDP.04.05: Diabetes Neuropathy Test (last 12m) | C78: % Diabetes Register | H78: Queensbridge Group Practice | I78: F84117
A79: Microalbuminuria (last 12m) | B79: LDP.04.06: Diabetes Microalbuminuria Test (latest last 12m) | C79: Microalbuminuria (last 12m) | H79: Riverside Practice | I79: F84619
A80: % Diabetes Register | B80: ="%"&B79 -> %LDP.04.06: Diabetes Microalbuminuria Test (latest last 12m) | C80: % Diabetes Register | H80: Stamford Hill Group Practice | I80: F84013
A81: Flu jab (last 12m) | B81: LDP.04.07: Diabetes Influenza Vaccinations (From August 2018) | C81: Flu jab (last 12m) | H81: Statham Grove Surgery | I81: F84115
A82: % Diabetes Register | B82: ="%"&B81 -> %LDP.04.07: Diabetes Influenza Vaccinations (From August 2018) | C82: % Diabetes Register | H82: The Lawson Practice | I82: F84096
A83: Type 1 Diabetes | B83: LDP.04.13. Type 1 Diabetes | C83: Type 1 Diabetes | H83: Allerton Road Surgery | I83: F84716
A84: % Diabetes Register | B84: ="%"&B83 -> %LDP.04.13. Type 1 Diabetes | C84: % Diabetes Register | H84: Brooke Road (Dr SN Prasad) | I84: F84694
A85: Type 2 Diabetes | B85: LDP.04.14. Type 2 Diabetes | C85: Type 2 Diabetes | H85: Greenhouse Health Centre | I85: F84632
A86: % Diabetes Register | B86: ="%"&B85 -> %LDP.04.14. Type 2 Diabetes | C86: % Diabetes Register | H86: Neaman Practice (Long Lane) | I86: F84640
A87: No Type Recorded | B87: No Type Recorded | C87: No Type Recorded | H87: Barton House Health Centre | I87: F84008
A88: % Diabetes Register | B88: ="%"&B87 -> %No Type Recorded | C88: % Diabetes Register | H88: Elm Practice | I88: F84685
A89: Type 2 diabetes excluding insulin prescriptions (last 15 m) | B89: LDP 04.14.01 Excl Insulin Prescription (12m) | C89: Type 2 diabetes excluding insulin prescriptions (last 15 m) | H89: Hoxton Surgery | I89: F84692
A90: % Type 2 Diabetes | B90: ="%"&B89 -> %LDP 04.14.01 Excl Insulin Prescription (12m) | C90: % Type 2 Diabetes | H90: Rosewood Practice | I90: F84711
A91: Newly Diagnosed Diabetes (Last 1m) | B91: LDP.04.19 Newly Diagnosed Diabetes (last 1m) | C91: Newly Diagnosed Diabetes (Last 1m) | H91: Sandringham Road | I91: F84621
A92: Newly Diagnosed Diabetes - Type 1 | B92: LDP.04.19.01 Newly Diagnosed Type 1 | C92: Newly Diagnosed Diabetes - Type 1 | H92: Somerford Grove Health Centre | I92: F84033
A93: Newly Diagnosed Diabetes - Type 2 | B93: LDP.04.19.02 Newly Diagnosed Type 2 | C93: Newly Diagnosed Diabetes - Type 2 | H93: Trowbridge Practice | I93: Y00403
A94: Newly Diagnosed Diabetes - Type Not Recorded | B94: ="%"&B93 -> %LDP.04.19.02 Newly Diagnosed Type 2 | C94: Newly Diagnosed Diabetes - Type Not Recorded | H94: Barretts Grove (Dr Gangola) | I94: F84636
A95: Diabetics under 18 years old | B95: LDP.04.15 Diabetes (under 18) | C95: Diabetics under 18 years old | H95: Healy Medical Centre | I95: F84720
A96: Diabetics Under 18 with HbA1c ≤ 59 (last 12m) | B96: LDP.04.15.01 Diabetes HbA1C <=7.5% OR <=59mmol (12m) | C96: Diabetics Under 18 with HbA1c ≤ 59 (last 12m) | H96: Latimer Health Centre | I96: F84719
A97: % of Diabetics under 18 | B97: ="%"&B96 -> %LDP.04.15.01 Diabetes HbA1C <=7.5% OR <=59mmol (12m) | C97: % of Diabetics under 18 | H97: Beechwood Medical Centre | I97: F84038
A98: No. of patients with diabetes diagnosed with CKD in the last 12m | B98: LDP.04.16 Diabetes and CKD Diagnosed (12m) | C98: No. of patients with diabetes diagnosed with CKD in the last 12m | H98: De Beauvoir Surgery | I98: F84072
A99: % Diabetes Register | B99: ="%"&B98 -> %LDP.04.16 Diabetes and CKD Diagnosed (12m) | C99: % Diabetes Register | H99: Drs Gadhvi & Pathan | I99: F84080
A100: No. of patients with diabetes diagnosed with CHD and/or Stroke/TIA in the last 12 months | B100: LDP.04.17 Diabetes and Stroke or CHD Diagnosed (12m) | C100: No. of patients with diabetes diagnosed with CHD and/or Stroke/TIA in the last 12 months | H100: Richmond Road MC | I100: F84035
A101: % Diabetes Register | B101: ="%"&B100 -> %LDP.04.17 Diabetes and Stroke or CHD Diagnosed (12m) | C101: % Diabetes Register | H101: Spring Hill Practice | I101: Y03049
A102: No. of patients with diabetes diagnosed with Depression in the last 12 months | B102: LDP.04.18 Diabetes and Depression (last 12m) | C102: No. of patients with diabetes diagnosed with Depression in the last 12 months | H102: Well Street Surgery | I102: F84069
A103: %Diabetes Register | B103: ="%"&B102 -> %LDP.04.18 Diabetes and Depression (last 12m) | C103: %Diabetes Register | H103: City and Hackney | I103: Total
A104: No. of patients who have ever had gestational diabetes | B104: LDP.07 Gestational Diabetes | C104: No. of patients who have ever had gestational diabetes
A105: No. of patients who have ever had gestational diabetes who are also on diabetes register | B105: LDP.07.01 Diabetes dx after Gestational Diabetes | C105: No. of patients who have ever had gestational diabetes who are also on diabetes register
A106: % of patients with gestational diabetes | B106: ="%"&B105 -> %LDP.07.01 Diabetes dx after Gestational Diabetes | C106: % of patients with gestational diabetes
B107: Mental Health
A108: SMI register (QOF) | B108: CSPMH.01 SMI Register | C108: SMI register (QOF) | D108: Mental Health register
A109: % list size | B109: ="%"&B108 -> %CSPMH.01 SMI Register | C109: % list size | D109: % list size
A110: No. of SMI Patients with smoking status recorded (last 12m) or never smoked | B110: CSPMH.01.02 Smoking Status Recorded (12m) | C110: No. of SMI Patients with smoking status recorded (last 12m) or never smoked | D110: No. of Mental Health Patients with smoking status recorded (last 12m) or never smoked
A111: % SMI Register | B111: ="%"&B110 -> %CSPMH.01.02 Smoking Status Recorded (12m) | C111: % SMI Register | D111: % Mental Health Register
A112: No. of SMI patients recorded as a Smoker | B112: CSPMH.01.02.01 Current Smoker (12m) | C112: No. of SMI patients recorded as a Smoker | D112: No. of Mental Health patients recorded as a Smoker
A113: % SMI Register | B113: ="%"&B112 -> %CSPMH.01.02.01 Current Smoker (12m) | C113: % SMI Register | D113: % Mental Health Register
A114: No. of SMI Patients who are current smokers & referred to the Stop Smoking Clinic | B114: CSPMH 01.02.01.01 Ref to clinic 12m | C114: No. of SMI Patients who are current smokers & referred to the Stop Smoking Clinic | D114: No. of Mental Health Patients who are current smokers & referred to the Stop Smoking Clinic
A115: % SMI Register | B115: ="%"&B114 -> %CSPMH 01.02.01.01 Ref to clinic 12m | C115: % SMI Register | D115: % Mental Health Register
A116: No. Of SMI Patients who are recorded as quitters | B116: CSPMH.01.02.02 Ex-smoker Recorded (latest 12m) | C116: No. Of SMI Patients who are recorded as quitters | D116: No. Of Mental Health Patients who are recorded as quitters
A117: % SMI Register | B117: ="%"&B116 -> %CSPMH.01.02.02 Ex-smoker Recorded (latest 12m) | C117: % SMI Register | D117: % Mental Health Register
A118: Patients with SMI with QRISK recorded in the last 12m | B118: CSPMH. 01.03 QRisk Recorded (12m) | C118: Patients with SMI with QRISK recorded in the last 12m | D118: Patients with Mental Health with QRISK recorded in the last 12m
A119: % SMI Register | B119: ="%"&B118 -> %CSPMH. 01.03 QRisk Recorded (12m) | C119: % SMI Register | D119: % Mental Health Register
A120: Patients with SMI with QRISK 20% or higher in the last 12m | B120: CSPMH. 01.03.02 Qrisk>=20 (12m) | C120: Patients with SMI with QRISK 20% or higher in the last 12m | D120: Patients with Mental Health with QRISK 20% or higher in the last 12m
A121: % patients with QRISK recorded 20% or higher | B121: ="%"&B120 -> %CSPMH. 01.03.02 Qrisk>=20 (12m) | C121: % patients with QRISK recorded 20% or higher | D121: % patients with QRISK recorded
A122: Patients with SMI with BP & QRisk on the same day in the last 12m | B122: CSPMH. 01.03.01 BP recorded on same day as QRisk (12m) | C122: Patients with SMI with BP & QRisk on the same day in the last 12m | D122: Patients with Mental Health with BP & QRisk on the same day in the last 12m
A123: % Patients with SMI with BP & QRisk on the same day in the last 12m | B123: ="%"&B122 -> %CSPMH. 01.03.01 BP recorded on same day as QRisk (12m) | C123: % Patients with SMI with BP & QRisk on the same day in the last 12m | D123: % Mental Health Register
B124: CKD
A125: No. of patients on CKD register | B125: LDP.08 CKD Register | C125: No. of patients on CKD register | D125: No. of patients on CKD register
A126: % List Size | B126: ="%"&B125 -> %LDP.08 CKD Register | C126: % List Size | D126: % List Size
A127: BP Recorded (last 12m) | B127: LDP.08.03 CKD and BP Recorded (last 12 m) | C127: BP Recorded (last 12m) | D127: BP Recorded (last 12m)
A128: % CKD register | B128: ="%"&B127 -> %LDP.08.03 CKD and BP Recorded (last 12 m) | C128: % CKD register | D128: % CKD register
A129: BP ≤ 140/90 | B129: LDP.08.01 CKD and BP less than 140/90 (last 12 m) | C129: BP ≤ 140/90 | D129: BP < 140/90
A130: % CKD register | B130: ="%"&B129 -> %LDP.08.01 CKD and BP less than 140/90 (last 12 m) | C130: % CKD register | D130: % CKD register
A131: No of patients with new diagnosis of CKD (last 6m) | B131: LDP.08.02 CKD Diagnosed (Last 6m) | C131: No of patients with new diagnosis of CKD (last 6m) | D131: No of patients with new diagnosis of CKD (last 6m)
A132: % CKD register | B132: ="%"&B131 -> %LDP.08.02 CKD Diagnosed (Last 6m) | C132: % CKD register | D132: % CKD register
B133: COPD
B134: LDP.09 COPD Register | C134: No. of patients on COPD register
B135: ="%"&B134 -> %LDP.09 COPD Register | C135: % List Size
B136: LDP.09.01 Patients with severe or very severe COPD (FEV1<50) | C136: No of patients with severe or very severe COPD (FEV1<50)
B137: ="%"&B136 -> %LDP.09.01 Patients with severe or very severe COPD (FEV1<50) | C137: % COPD register
B138: LDP.09.02 Patients with smoking status recorded (last 12m) or never smoked | C138: No. of COPD Patients with smoking status recorded (last 12m) or never smoked
B139: ="%"&B138 -> %LDP.09.02 Patients with smoking status recorded (last 12m) or never smoked | C139: % COPD
B140: LDP.09.03 COPD patients recorded as a Smoker | C140: No. of COPD patients recorded as a Smoker
B141: ="%"&B140 -> %LDP.09.03 COPD patients recorded as a Smoker | C141: % COPD
B142: LDP.09.04 COPD Patients who are current smokers & referred to the Stop Smoking C | C142: No. of COPD Patients who are current smokers & referred to the Stop Smoking Clinic (12m)
B143: ="%"&B142 -> %LDP.09.04 COPD Patients who are current smokers & referred to the Stop Smoking C | C143: % of current COPD smokers
B144: LDP.09.05 No of COPD with flu vaccination (From August 2018) | C144: No of COPD with flu vaccination (From August 2021)
B145: ="%"&B144 -> %LDP.09.05 No of COPD with flu vaccination (From August 2018) | C145: % of COPD register
B146: LDP.09.06 No of COPD with pneumococcal vaccination ever | C146: No of COPD with pneumococcal vaccination ever
B147: ="%"&B146 -> %LDP.09.06 No of COPD with pneumococcal vaccination ever | C147: % of COPD register
B148: LDP.09.07 No of COPD patients referred to pulmonary rehab ever | C148: No of COPD patients referred to pulmonary rehab ever
B149: ="%"&B148 -> %LDP.09.07 No of COPD patients referred to pulmonary rehab ever | C149: % of COPD register

Sheet Month by month
C2: City and Hackney | H2: Practice Clinical Trends (LDP) Report Summary 2023 / 2024
D3: 2022-04-01 | E3: 2023-04-01 | F3: 2023-05-01 | G3: 2023-06-01 | H3: 2023-07-01 | I3: 2023-08-01 | J3: 2023-09-01 | K3: 2023-10-01 | L3: 2023-11-01 | M3: 2023-12-01 | N3: 2024-01-01 | O3: 2024-02-01 | P3: 2024-03-01 | Q3: 2024-04-01 | R3: 2019-05-01
C4: =VLOOKUP(C2,'Control Panel'!H62:I113,2,FALSE) -> Total | D4: 2022-03-01 | E4: 2023-03-01 | F4: 2023-04-01 | G4: 2023-05-01 | H4: 2023-06-01 | I4: 2023-07-01 | J4: 2023-08-01 | K4: 2023-09-01 | L4: 2023-10-01 | M4: 2023-11-01 | N4: 2023-12-01 | O4: 2024-01-01 | P4: 2024-02-01 | Q4: 2024-03-01 | R4: 2019-04-01
C6: ='Control Panel'!B2 -> General Health
A7: ='Control Panel'!B3 -> 01. Listsize | B7: 01. Listsize | C7: ='Control Panel'!C3 -> List Size | D7: =SUMIFS(OFFSET(REL_D,,MATCH($A7,IND,0)-2),REL_D,D$3,OrgID,$C$4) -> 335803 | E7: 342422 | F7: 343348 | G7: 343743 | H7: 343945 | I7: 344340 | J7: 344768 | K7: 345341 | L7: 346339 | M7: 347262 | N7: 347985 | O7: 348279 | P7: 348304 | Q7: 347970 | R7: =SUMIFS(OFFSET(REL_D,,MATCH($A7,IND,0)-1),REL_D,R$3,IF(LEFT($C$4,1)="N",NwID,OrgID),$C$4) -> 14557
A8: ='Control Panel'!B4 -> LDP.01: Aged 16yrs+ | B8: LDP.01: Aged 16yrs+ | C8: ='Control Panel'!D4 -> Age 16+ | D8: 274540 | E8: 281329 | F8: 282295 | G8: 282605 | H8: 282867 | I8: 283294 | J8: 283758 | K8: 284446 | L8: 285439 | M8: 286295 | N8: 287023 | O8: 287390 | P8: 287372 | Q8: 287116 | R8: =SUMIFS(OFFSET(REL_D,,MATCH($A8,IND,0)-1),REL_D,R$3,IF(LEFT($C$4,1)="N",NwID,OrgID),$C$4) -> 4670
A9: ='Control Panel'!B5 -> %LDP.01: Aged 16yrs+ | B9: %LDP.01: Aged 16yrs+ | C9: ='Control Panel'!D5 -> % list size | D9: =IFERROR(D8/D7,"N/A") -> 0.818 | E9: 0.822 | F9: =IFERROR(F8/F7,"N/A") -> 0.822 | G9: =IFERROR(G8/G7,"N/A") -> 0.822 | H9: 0.822 | I9: 0.823 | J9: 0.823 | K9: 0.824 | L9: 0.824 | M9: 0.824 | N9: 0.825 | O9: 0.825 | P9: 0.825 | Q9: 0.825 | R9: =IFERROR(R8/R7,"N/A") -> 0.321
A10: ='Control Panel'!B6 -> LDP.01.01: Obesity BMI recorded (last 12m) | B10: LDP.01.01: Obesity BMI recorded (last 12m) | C10: ='Control Panel'!D6 -> 16+ and BMI (last 12m) | D10: =SUMIFS(OFFSET(REL_D,,MATCH($A10,IND,0)-2),REL_D,D$3,OrgID,$C$4) -> 69759 | E10: 77955 | F10: 77360 | G10: 79445 | H10: 80139 | I10: 81000 | J10: 81603 | K10: 82841 | L10: 83940 | M10: 84810 | N10: 85502 | O10: 86348 | P10: 87509 | Q10: 88140 | R10: =SUMIFS(OFFSET(REL_D,,MATCH($A10,IND,0)-1),REL_D,R$3,IF(LEFT($C$4,1)="N",NwID,OrgID),$C$4) -> 261008
A11: ='Control Panel'!B7 -> %LDP.01.01: Obesity BMI recorded (last 12m) | B11: %LDP.01.01: Obesity BMI recorded (last 12m) | C11: ='Control Panel'!D7 -> % 16+ | D11: =IFERROR(D10/D8,"N/A") -> 0.254 | E11: 0.277 | F11: =IFERROR(F10/F8,"N/A") -> 0.274 | G11: =IFERROR(G10/G8,"N/A") -> 0.281 | H11: 0.283 | I11: 0.286 | J11: 0.288 | K11: 0.291 | L11: 0.294 | M11: 0.296 | N11: 0.298 | O11: 0.3 | P11: 0.305 | Q11: 0.307 | R11: =IFERROR(R10/R8,"N/A") -> 55.89
A12: ='Control Panel'!B8 -> LDP.01.01.02: Obesity BMI between 30-35 (last 12m) | B12: LDP.01.01.02: Obesity BMI between 30-35 (last 12m) | C12: ='Control Panel'!D8 -> BMI ≥30 & <35 | D12: =SUMIFS(OFFSET(REL_D,,MATCH($A12,IND,0)-2),REL_D,D$3,OrgID,$C$4) -> 12067 | E12: 13793 | F12: 13659 | G12: 13829 | H12: 13979 | I12: 14043 | J12: 14150 | K12: 14333 | L12: 14471 | M12: 14612 | N12: 14686 | O12: 14804 | P12: 15065 | Q12: 15129 | R12: =SUMIFS(OFFSET(REL_D,,MATCH($A12,IND,0)-1),REL_D,R$3,IF(LEFT($C$4,1)="N",NwID,OrgID),$C$4) -> 3597
A13: ='Control Panel'!B9 -> %LDP.01.01.02: Obesity BMI between 30-35 (last 12m) | B13: %LDP.01.01.02: Obesity BMI between 30-35 (last 12m) | C13: ='Control Panel'!D9 -> % 16+ | D13: =IFERROR(D12/D8,"N/A") -> 0.044 | E13: 0.049 | F13: =IFERROR(F12/F8,"N/A") -> 0.048 | G13: =IFERROR(G12/G8,"N/A") -> 0.049 | H13: 0.049 | I13: 0.05 | J13: 0.05 | K13: 0.05 | L13: 0.051 | M13: 0.051 | N13: 0.051 | O13: 0.052 | P13: 0.052 | Q13: 0.053 | R13: =IFERROR(R12/R8,"N/A") -> 0.77
A14: ='Control Panel'!B10 -> LDP.01.01.01: Obesity BMI more than or equal to 35 less than 40 (last 12m) | B14: LDP.01.01.01: Obesity BMI more than or equal to 35 less than 40 (last 12m) | C14: ='Control Panel'!D10 -> BMI ≥ 35 & <40 | D14: =SUMIFS(OFFSET(REL_D,,MATCH($A14,IND,0)-2),REL_D,D$3,OrgID,$C$4) -> 5544 | E14: 6209 | F14: 6142 | G14: 6135 | H14: 6206 | I14: 6246 | J14: 6249 | K14: 6411 | L14: 6489 | M14: 6570 | N14: 6626 | O14: 6718 | P14: 6803 | Q14: 6852 | R14: =SUMIFS(OFFSET(REL_D,,MATCH($A14,IND,0)-1),REL_D,R$3,IF(LEFT($C$4,1)="N",NwID,OrgID),$C$4) -> 13865
A15: ='Control Panel'!B11 -> %LDP.01.01.01: Obesity BMI more than or equal to 35 less than 40 (last 12m) | B15: %LDP.01.01.01: Obesity BMI more than or equal to 35 less than 40 (last 12m) | C15: ='Control Panel'!D11 -> %16+ | D15: =IFERROR(D14/D8,"N/A") -> 0.02 | E15: 0.022 | F15: =IFERROR(F14/F8,"N/A") -> 0.022 | G15: =IFERROR(G14/G8,"N/A") -> 0.022 | H15: 0.022 | I15: 0.022 | J15: 0.022 | K15: 0.023 | L15: 0.023 | M15: 0.023 | N15: 0.023 | O15: 0.023 | P15: 0.024 | Q15: 0.024 | R15: =IFERROR(R14/R8,"N/A") -> 2.969
A16: ='Control Panel'!B12 -> LDP.01.01.03: Obesity BMI equal to or over 40 (last 12m) | B16: LDP.01.01.03: Obesity BMI equal to or over 40 (last 12m) | C16: ='Control Panel'!D12 -> BMI ≥ 40 | D16: =SUMIFS(OFFSET(REL_D,,MATCH($A16,IND,0)-2),REL_D,D$3,OrgID,$C$4) -> 3568 | E16: 3881 | F16: 3868 | G16: 3899 | H16: 3920 | I16: 3978 | J16: 4022 | K16: 4054 | L16: 4170 | M16: 4233 | N16: 4262 | O16: 4306 | P16: 4342 | Q16: 4421 | R16: =SUMIFS(OFFSET(REL_D,,MATCH($A16,IND,0)-1),REL_D,R$3,IF(LEFT($C$4,1)="N",NwID,OrgID),$C$4) -> 173536
A17: ='Control Panel'!B13 -> %LDP.01.01.03: Obesity BMI equal to or over 40 (last 12m) | B17: %LDP.01.01.03: Obesity BMI equal to or over 40 (last 12m) | C17: ='Control Panel'!D13 -> %16+ | D17: =IFERROR(D16/D8,"N/A") -> 0.013 | E17: 0.014 | F17: =IFERROR(F16/F8,"N/A") -> 0.014 | G17: =IFERROR(G16/G8,"N/A") -> 0.014 | H17: 0.014 | I17: 0.014 | J17: 0.014 | K17: 0.014 | L17: 0.015 | M17: 0.015 | N17: 0.015 | O17: 0.015 | P17: 0.015 | Q17: 0.015 | R17: =IFERROR(R16/R8,"N/A") -> 37.16
A18: ='Control Panel'!B14 -> LDP.01.02: Smoking Status (last 12m) or Never Smoked (25yrs+) | B18: LDP.01.02: Smoking Status (last 12m) or Never Smoked (25yrs+) | C18: ='Control Panel'!D14 -> Smoking status (last 12m) incl. never smoked | D18: =SUMIFS(OFFSET(REL_D,,MATCH($A18,IND,0)-2),REL_D,D$3,OrgID,$C$4) -> 175008 | E18: 181536 | F18: 181458 | G18: 181082 | H18: 181900 | I18: 181689 | J18: 181566 | K18: 182416 | L18: 183364 | M18: 184384 | N18: 185188 | O18: 185685 | P18: 186457 | Q18: 187068 | R18: =SUMIFS(OFFSET(REL_D,,MATCH($A18,IND,0)-1),REL_D,R$3,IF(LEFT($C$4,1)="N",NwID,OrgID),$C$4) -> 21782
A19: ='Control Panel'!B15 -> %LDP.01.02: Smoking Status (last 12m) or Never Smoked (25yrs+) | B19: %LDP.01.02: Smoking Status (last 12m) or Never Smoked (25yrs+) | C19: ='Control Panel'!D15 -> % 16+ | D19: =IFERROR(D18/D8,"N/A") -> 0.637 | E19: 0.645 | F19: =IFERROR(F18/F8,"N/A") -> 0.643 | G19: =IFERROR(G18/G8,"N/A") -> 0.641 | H19: 0.643 | I19: 0.641 | J19: 0.64 | K19: 0.641 | L19: 0.642 | M19: 0.644 | N19: 0.645 | O19: 0.646 | P19: 0.649 | Q19: 0.652 | R19: =IFERROR(R18/R8,"N/A") -> 4.664
A20: ='Control Panel'!B16 -> LDP.01.03: Current Smoker (last 12m) | B20: LDP.01.03: Current Smoker (last 12m) | C20: ='Control Panel'!D16 -> Age 16+ and current smoker (last 12m) | D20: =SUMIFS(OFFSET(REL_D,,MATCH($A20,IND,0)-2),REL_D,D$3,OrgID,$C$4) -> 17915 | E20: 18880 | F20: 18654 | G20: 18347 | H20: 18126 | I20: 18047 | J20: 17942 | K20: 18108 | L20: 18270 | M20: 18400 | N20: 18637 | O20: 18607 | P20: 18788 | Q20: 18986 | R20: =SUMIFS(OFFSET(REL_D,,MATCH($A20,IND,0)-1),REL_D,R$3,IF(LEFT($C$4,1)="N",NwID,OrgID),$C$4) -> 85169
A21: ='Control Panel'!B17 -> %LDP.01.03: Current Smoker (last 12m) | B21: %LDP.01.03: Current Smoker (last 12m) | C21: ='Control Panel'!D17 -> % 16+ | D21: =IFERROR(D20/D8,"N/A") -> 0.065 | E21: 0.067 | F21: =IFERROR(F20/F8,"N/A") -> 0.066 | G21: =IFERROR(G20/G8,"N/A") -> 0.065 | H21: 0.064 | I21: 0.064 | J21: 0.063 | K21: 0.064 | L21: 0.064 | M21: 0.064 | N21: 0.065 | O21: 0.065 | P21: 0.065 | Q21: 0.066 | R21: =IFERROR(R20/R8,"N/A") -> 18.237
A22: ='Control Panel'!B18 -> Hypertension | B22: Hypertension | C22: ='Control Panel'!B18 -> Hypertension
A23: ='Control Panel'!B19 -> LDP.02: Hypertension Register | B23: LDP.02: Hypertension Register | C23: ='Control Panel'!D19 -> Hypertension Register | D23: =SUMIFS(OFFSET(REL_D,,MATCH($A23,IND,0)-2),REL_D,D$3,OrgID,$C$4) -> 29423 | E23: 30688 | F23: 30799 | G23: 30899 | H23: 30949 | I23: 31023 | J23: 31092 | K23: 31157 | L23: 31234 | M23: 31340 | N23: 31387 | O23: 31463 | P23: 31515 | Q23: 31553 | R23: =SUMIFS(OFFSET(REL_D,,MATCH($A23,IND,0)-1),REL_D,R$3,IF(LEFT($C$4,1)="N",NwID,OrgID),$C$4) -> 20621
A24: ='Control Panel'!B20 -> %LDP.02: Hypertension Register | B24: %LDP.02: Hypertension Register | C24: ='Control Panel'!D20 -> % list size | D24: =IFERROR(D23/D7,"N/A") -> 0.088 | E24: 0.09 | F24: =IFERROR(F23/F7,"N/A") -> 0.09 | G24: =IFERROR(G23/G7,"N/A") -> 0.09 | H24: 0.09 | I24: 0.09 | J24: 0.09 | K24: 0.09 | L24: 0.09 | M24: 0.09 | N24: 0.09 | O24: 0.09 | P24: 0.09 | Q24: 0.091 | R24: =IFERROR(R23/R7,"N/A") -> 1.417
A25: ='Control Panel'!B21 -> LDP.02.02: Hypertension BP recorded (last 12m) | B25: LDP.02.02: Hypertension BP recorded (last 12m) | C25: ='Control Panel'!D21 -> Hypertension and BP (last 12m) | D25: =SUMIFS(OFFSET(REL_D,,MATCH($A25,IND,0)-2),REL_D,D$3,OrgID,$C$4) -> 24261 | E25: 27625 | F25: 27230 | G25: 26743 | H25: 26572 | I25: 26592 | J25: 26722 | K25: 26951 | L25: 27195 | M25: 27520 | N25: 27767 | O25: 28078 | P25: 28564 | Q25: 28735 | R25: =SUMIFS(OFFSET(REL_D,,MATCH($A25,IND,0)-1),REL_D,R$3,IF(LEFT($C$4,1)="N",NwID,OrgID),$C$4) -> 4927
A26: ='Control Panel'!B22 -> %LDP.02.02: Hypertension BP recorded (last 12m) | B26: %LDP.02.02: Hypertension BP recorded (last 12m) | C26: ='Control Panel'!D22 -> % Hypertension Register | D26: =IFERROR(D25/D23,"N/A") -> 0.825 | E26: 0.9 | F26: =IFERROR(F25/F23,"N/A") -> 0.884 | G26: =IFERROR(G25/G23,"N/A") -> 0.865 | H26: 0.859 | I26: 0.857 | J26: 0.859 | K26: 0.865 | L26: 0.871 | M26: 0.878 | N26: 0.885 | O26: 0.892 | P26: 0.906 | Q26: 0.911 | R26: =IFERROR(R25/R23,"N/A") -> 0.239
A27: ='Control Panel'!B23 -> LDP.02.01: Hypertension and BP < 140/90 (age under 80) < 150/90 (Age 80+) | B27: LDP.02.01: Hypertension and BP < 140/90 (age under 80) < 150/90 (Age 80+) | C27: ='Control Panel'!D23 -> Hypertension and BP < 140/90 (Patients aged under 80) < 150/90 ( Aged 80 and over) (last 12m) | D27: =SUMIFS(OFFSET(REL_D,,MATCH($A27,IND,0)-2),REL_D,D$3,OrgID,$C$4) -> 17029 | E27: 20398 | F27: 19761 | G27: 19192 | H27: 18987 | I27: 18987 | J27: 19144 | K27: 19292 | L27: 19387 | M27: 19620 | N27: 19865 | O27: 20359 | P27: 21053 | Q27: 21458 | R27: =SUMIFS(OFFSET(REL_D,,MATCH($A27,IND,0)-1),REL_D,R$3,IF(LEFT($C$4,1)="N",NwID,OrgID),$C$4) -> 10086
A28: ='Control Panel'!B24 -> %LDP.02.01: Hypertension and BP < 140/90 (age under 80) < 150/90 (Age 80+) | B28: %LDP.02.01: Hypertension and BP < 140/90 (age under 80) < 150/90 (Age 80+) | C28: ='Control Panel'!D24 -> % Hypertension Register | D28: =IFERROR(D27/D23,"N/A") -> 0.579 | E28: 0.665 | F28: =IFERROR(F27/F23,"N/A") -> 0.642 | G28: =IFERROR(G27/G23,"N/A") -> 0.621 | H28: 0.613 | I28: 0.612 | J28: 0.616 | K28: 0.619 | L28: 0.621 | M28: 0.626 | N28: 0.633 | O28: 0.647 | P28: 0.668 | Q28: 0.68 | R28: =IFERROR(R27/R23,"N/A") -> 0.489
A29: ='Control Panel'!B25 -> CHD | B29: CHD | C29: ='Control Panel'!B25 -> CHD
A30: ='Control Panel'!B26 -> LDP.03: CHD Register | B30: LDP.03: CHD Register | C30: ='Control Panel'!D26 -> CHD register | D30: =SUMIFS(OFFSET(REL_D,,MATCH($A30,IND,0)-2),REL_D,D$3,OrgID,$C$4) -> 5038 | E30: 5340 | F30: 5374 | G30: 5393 | H30: 5408 | I30: 5438 | J30: 5482 | K30: 5497 | L30: 5531 | M30: 5570 | N30: 5581 | O30: 5583 | P30: 5605 | Q30: 5602 | R30: =SUMIFS(OFFSET(REL_D,,MATCH($A30,IND,0)-1),REL_D,R$3,IF(LEFT($C$4,1)="N",NwID,OrgID),$C$4) -> 2902
A31: ='Control Panel'!B27 -> %LDP.03: CHD Register | B31: %LDP.03: CHD Register | C31: ='Control Panel'!D27 -> % list size | D31: =IFERROR(D30/D7,"N/A") -> 0.015 | E31: 0.016 | F31: =IFERROR(F30/F7,"N/A") -> 0.016 | G31: =IFERROR(G30/G7,"N/A") -> 0.016 | H31: 0.016 | I31: 0.016 | J31: 0.016 | K31: 0.016 | L31: 0.016 | M31: 0.016 | N31: 0.016 | O31: 0.016 | P31: 0.016 | Q31: 0.016 | R31: =IFERROR(R30/R7,"N/A") -> 0.199
A32: ='Control Panel'!B28 -> LDP.03.04: CHD Cholesterol recorded (last 12m) | B32: LDP.03.04: CHD Cholesterol recorded (last 12m) | C32: ='Control Panel'!D28 -> Cholesterol (last 12m) | D32: =SUMIFS(OFFSET(REL_D,,MATCH($A32,IND,0)-2),REL_D,D$3,OrgID,$C$4) -> 3411 | E32: 3956 | F32: 3879 | G32: 3787 | H32: 3752 | I32: 3827 | J32: 3921 | K32: 3993 | L32: 4158 | M32: 4329 | N32: 4432 | O32: 4523 | P32: 4652 | Q32: 4748 | R32: =SUMIFS(OFFSET(REL_D,,MATCH($A32,IND,0)-1),REL_D,R$3,IF(LEFT($C$4,1)="N",NwID,OrgID),$C$4) -> 15290
A33: ='Control Panel'!B29 -> %LDP.03.04: CHD Cholesterol recorded (last 12m) | B33: %LDP.03.04: CHD Cholesterol recorded (last 12m) | C33: ='Control Panel'!D29 -> % CHD register | D33: =IFERROR(D32/D30,"N/A") -> 0.677 | E33: 0.741 | F33: =IFERROR(F32/F30,"N/A") -> 0.722 | G33: =IFERROR(G32/G30,"N/A") -> 0.702 | H33: 0.694 | I33: 0.704 | J33: 0.715 | K33: 0.726 | L33: 0.752 | M33: 0.777 | N33: 0.794 | O33: 0.81 | P33: 0.83 | Q33: 0.848 | R33: =IFERROR(R32/R30,"N/A") -> 5.269
A34: ='Control Panel'!B30 -> LDP.03.01: CHD Chol less than 5mmol (last 12m) | B34: LDP.03.01: CHD Chol less than 5mmol (last 12m) | C34: ='Control Panel'!D30 -> Cholesterol < 5 (last 12m) | D34: =SUMIFS(OFFSET(REL_D,,MATCH($A34,IND,0)-2),REL_D,D$3,OrgID,$C$4) -> 2730 | E34: 3160 | F34: 3096 | G34: 3025 | H34: 3006 | I34: 3081 | J34: 3165 | K34: 3227 | L34: 3354 | M34: 3489 | N34: 3569 | O34: 3644 | P34: 3742 | Q34: 3820 | R34: =SUMIFS(OFFSET(REL_D,,MATCH($A34,IND,0)-1),REL_D,R$3,IF(LEFT($C$4,1)="N",NwID,OrgID),$C$4) -> 3614
A35: ='Control Panel'!B31 -> %LDP.03.01: CHD Chol less than 5mmol (last 12m) | B35: %LDP.03.01: CHD Chol less than 5mmol (last 12m) | C35: ='Control Panel'!D31 -> % CHD register | D35: =IFERROR(D34/D30,"N/A") -> 0.542 | E35: 0.592 | F35: =IFERROR(F34/F30,"N/A") -> 0.576 | G35: =IFERROR(G34/G30,"N/A") -> 0.561 | H35: 0.556 | I35: 0.567 | J35: 0.577 | K35: 0.587 | L35: 0.606 | M35: 0.626 | N35: 0.639 | O35: 0.653 | P35: 0.668 | Q35: 0.682 | R35: =IFERROR(R34/R30,"N/A") -> 1.245
A36: ='Control Panel'!B32 -> LDP.03.02: CHD BP less than or equal 150/90 (last 9m) | B36: LDP.03.02: CHD BP less than or equal 150/90 (last 9m) | C36: ='Control Panel'!D32 -> BP ≤ 150/90 (last 12m) | D36: =SUMIFS(OFFSET(REL_D,,MATCH($A36,IND,0)-2),REL_D,D$3,OrgID,$C$4) -> 3251 | E36: 3875 | F36: 3813 | G36: 3723 | H36: 3666 | I36: 3673 | J36: 3707 | K36: 3737 | L36: 3754 | M36: 3820 | N36: 3885 | O36: 3965 | P36: 4104 | Q36: 4166 | R36: =SUMIFS(OFFSET(REL_D,,MATCH($A36,IND,0)-1),REL_D,R$3,IF(LEFT($C$4,1)="N",NwID,OrgID),$C$4) -> 2851
A37: ='Control Panel'!B33 -> %LDP.03.02: CHD BP less than or equal 150/90 (last 9m) | B37: %LDP.03.02: CHD BP less than or equal 150/90 (last 9m) | C37: ='Control Panel'!D33 -> % CHD register | D37: =IFERROR(D36/D30,"N/A") -> 0.645 | E37: 0.726 | F37: =IFERROR(F36/F30,"N/A") -> 0.71 | G37: =IFERROR(G36/G30,"N/A") -> 0.69 | H37: 0.678 | I37: 0.675 | J37: 0.676 | K37: 0.68 | L37: 0.679 | M37: 0.686 | N37: 0.696 | O37: 0.71 | P37: 0.732 | Q37: 0.744 | R37: 0.982
A38: Stroke/TIA | C38: Stroke/TIA
A39: LDP.10 Stroke or TIA register | C39: Stroke/TIA register | D39: =SUMIFS(OFFSET(REL_D,,MATCH($A39,IND,0)-2),REL_D,D$3,OrgID,$C$4) -> 2919 | E39: 3021 | F39: 3039 | G39: 3054 | H39: 3067 | I39: 3085 | J39: 3187 | K39: 3197 | L39: 3200 | M39: 3194 | N39: 3201 | O39: 3208 | P39: 3190 | Q39: 3179 | R39: -
A40: %LDP.10 Stroke or TIA register | C40: % list size | D40: =IFERROR(D39/D7,"N/A") -> 0.009 | E40: 0.009 | F40: =IFERROR(F39/F7,"N/A") -> 0.009 | G40: =IFERROR(G39/G7,"N/A") -> 0.009 | H40: 0.009 | I40: 0.009 | J40: 0.009 | K40: 0.009 | L40: 0.009 | M40: 0.009 | N40: 0.009 | O40: 0.009 | P40: 0.009 | Q40: 0.009 | R40: -
A41: LDP.10.01: Stroke/TIA BP recorded (last 12m) | C41: Patients on Stroke/TIA register with BP recorded | D41: =SUMIFS(OFFSET(REL_D,,MATCH($A41,IND,0)-2),REL_D,D$3,OrgID,$C$4) -> 2486 | E41: 2769 | F41: 2736 | G41: 2685 | H41: 2681 | I41: 2690 | J41: 2761 | K41: 2792 | L41: 2801 | M41: 2837 | N41: 2848 | O41: 2881 | P41: 2913 | Q41: 2930 | R41: -
A42: %LDP.10.01: Stroke/TIA BP recorded (last 12m) | C42: % of stroke register | D42: =IFERROR(D41/D39,"N/A") -> 0.852 | E42: 0.917 | F42: =IFERROR(F41/F39,"N/A") -> 0.9 | G42: =IFERROR(G41/G39,"N/A") -> 0.879 | H42: 0.874 | I42: 0.872 | J42: 0.866 | K42: 0.873 | L42: 0.875 | M42: 0.888 | N42: 0.89 | O42: 0.898 | P42: 0.913 | Q42: 0.922 | R42: -
A43: LDP.10.02 Patients on Stroke/TIA register with BP <140/90 (12m) | C43: Patients on Stroke/TIA register with BP <140/90 (12m) | D43: =SUMIFS(OFFSET(REL_D,,MATCH($A43,IND,0)-2),REL_D,D$3,OrgID,$C$4) -> 1900 | E43: 2236 | F43: 2174 | G43: 2093 | H43: 2103 | I43: 2102 | J43: 2159 | K43: 2212 | L43: 2228 | M43: 2253 | N43: 2253 | O43: 2307 | P43: 2373 | Q43: 2422 | R43: -
A44: %LDP.10.02 Patients on Stroke/TIA register with BP <140/90 (12m) | C44: % of stroke register | D44: =IFERROR(D43/D39,"N/A") -> 0.651 | E44: 0.74 | F44: =IFERROR(F43/F39,"N/A") -> 0.715 | G44: =IFERROR(G43/G39,"N/A") -> 0.685 | H44: 0.686 | I44: 0.681 | J44: 0.677 | K44: 0.692 | L44: 0.696 | M44: 0.705 | N44: 0.704 | O44: 0.719 | P44: 0.744 | Q44: 0.762 | R44: -
A45: ='Control Panel'!B48 -> CVD Risk | B45: CVD Risk | C45: ='Control Panel'!B48 -> CVD Risk
A46: ='Control Panel'!B49 -> LDP.05: CVD 25-84yrs (excl CVD) | B46: LDP.05: CVD 25-84yrs (excl CVD) | C46: Aged 25 to 84 (exc CVD) | D46: =SUMIFS(OFFSET(REL_D,,MATCH($A46,IND,0)-2),REL_D,D$3,OrgID,$C$4) -> 230106 | E46: 235868 | F46: 236689 | G46: 237047 | H46: 237313 | I46: 237682 | J46: 238146 | K46: 238702 | L46: 239510 | M46: 240194 | N46: 240891 | O46: 241232 | P46: 241199 | Q46: 241080 | R46: =SUMIFS(OFFSET(REL_D,,MATCH($A46,IND,0)-1),REL_D,R$3,IF(LEFT($C$4,1)="N",NwID,OrgID),$C$4) -> 230
A47: ='Control Panel'!B50 -> LDP.05.02: Cardiovascular Risk Score Done (5y) | B47: LDP.05.02: Cardiovascular Risk Score Done (5y) | C47: QRISK recorded (5 years) | D47: 117095 | E47: 119116 | F47: 118964 | G47: 118654 | H47: 118406 | I47: 117821 | J47: 117224 | K47: 117100 | L47: 116973 | M47: 116756 | N47: 116745 | O47: 116683 | P47: 116573 | Q47: 116541 | R47: =SUMIFS(OFFSET(REL_D,,MATCH($A47,IND,0)-1),REL_D,R$3,IF(LEFT($C$4,1)="N",NwID,OrgID),$C$4) -> 13007
A48: ='Control Panel'!B51 -> %LDP.05.02: Cardiovascular Risk Score Done (5y) | B48: %LDP.05.02: Cardiovascular Risk Score Done (5y) | C48: % of patients aged 25 to 84 (exc CVD) | D48: =IFERROR(D46/D7,"N/A") -> 0.685 | E48: 0.689 | F48: =IFERROR(F46/F7,"N/A") -> 0.689 | G48: =IFERROR(G46/G7,"N/A") -> 0.69 | H48: 0.69 | I48: 0.69 | J48: 0.691 | K48: 0.691 | L48: 0.692 | M48: 0.692 | N48: 0.692 | O48: 0.693 | P48: 0.692 | Q48: 0.693 | R48: =IFERROR(R47/R7,"N/A") -> 0.894
A49: ='Control Panel'!B52 -> LDP.05.01: CVD QRISK greater than or equal 20% | B49: LDP.05.01: CVD QRISK greater than or equal 20% | C49: QRISK ≥ 20% | D49: =SUMIFS(OFFSET(REL_D,,MATCH($A49,IND,0)-2),REL_D,D$3,OrgID,$C$4) -> 12334 | E49: 12702 | F49: 12735 | G49: 12749 | H49: 12776 | I49: 12814 | J49: 12826 | K49: 12860 | L49: 12913 | M49: 12958 | N49: 12983 | O49: 12996 | P49: 13049 | Q49: 13015 | R49: =SUMIFS(OFFSET(REL_D,,MATCH($A49,IND,0)-1),REL_D,R$3,IF(LEFT($C$4,1)="N",NwID,OrgID),$C$4) -> 8981
A50: ='Control Panel'!B53 -> %LDP.05.01: CVD QRISK greater than or equal 20% | B50: %LDP.05.01: CVD QRISK greater than or equal 20% | C50: % QRISK Score recorded | D50: =IFERROR(D49/D47,"N/A") -> 0.105 | E50: 0.107 | F50: =IFERROR(F49/F47,"N/A") -> 0.107 | G50: =IFERROR(G49/G47,"N/A") -> 0.107 | H50: 0.108 | I50: 0.109 | J50: 0.109 | K50: 0.11 | L50: 0.11 | M50: 0.111 | N50: 0.111 | O50: 0.111 | P50: 0.112 | Q50: 0.112 | R50: =IFERROR(R49/R47,"N/A") -> 0.69
A51: ='Control Panel'!B54 -> LDP.05.01.01: CVD Proxy Annual Review (last 12m) | B51: LDP.05.01.01: CVD Proxy Annual Review (last 12m) | C51: QRISK ≥ 20% and proxy review (BP and Chol last 12m) | D51: =SUMIFS(OFFSET(REL_D,,MATCH($A51,IND,0)-2),REL_D,D$3,OrgID,$C$4) -> 7471 | E51: 8853 | F51: 8610 | G51: 8384 | H51: 8360 | I51: 8509 | J51: 8619 | K51: 8776 | L51: 8979 | M51: 9112 | N51: 9225 | O51: 9354 | P51: 9572 | Q51: 9646 | R51: =SUMIFS(OFFSET(REL_D,,MATCH($A51,IND,0)-1),REL_D,R$3,IF(LEFT($C$4,1)="N",NwID,OrgID),$C$4) -> 109973
A52: ='Control Panel'!B55 -> %LDP.05.01.01: CVD Proxy Annual Review (last 12m) | B52: %LDP.05.01.01: CVD Proxy Annual Review (last 12m) | C52: % Patients with QRISK ≥ 20% | D52: =IFERROR(D51/D47,"N/A") -> 0.064 | E52: 0.074 | F52: =IFERROR(F51/F47,"N/A") -> 0.072 | G52: =IFERROR(G51/G47,"N/A") -> 0.071 | H52: 0.071 | I52: 0.072 | J52: 0.074 | K52: 0.075 | L52: 0.077 | M52: 0.078 | N52: 0.079 | O52: 0.08 | P52: 0.082 | Q52: 0.083 | R52: =IFERROR(R51/R47,"N/A") -> 8.455
A53: LDP.05.03: CVD QRISK >=10 & <20 | B53: LDP.05.03: CVD QRISK >=10 & <20 | C53: QRISK >=10 & <20 | D53: 0 | E53: 0 | F53: 0 | G53: 0 | H53: 0 | I53: 0 | J53: 21121 | K53: 21136 | L53: 21183 | M53: 21249 | N53: 21308 | O53: 21362 | P53: 21338 | Q53: 21334
C54: % QRISK >=10 & <20 | D54: =IFERROR(D53/D47,"N/A") -> 0 | E54: 0 | F54: 0 | G54: 0 | H54: 0 | I54: 0 | J54: =IFERROR(J53/J47,"N/A") -> 0.18 | K54: =IFERROR(K53/K47,"N/A") -> 0.18 | L54: 0.181 | M54: 0.182 | N54: 0.183 | O54: 0.183 | P54: 0.183 | Q54: 0.183
A55: ='Control Panel'!B56 -> Diabetes | B55: Diabetes | C55: ='Control Panel'!B56 -> Diabetes
A56: ='Control Panel'!B57 -> LDP.04: Diabetes Register | B56: LDP.04: Diabetes Register | C56: Diabetes register | D56: =SUMIFS(OFFSET(REL_D,,MATCH($A56,IND,0)-2),REL_D,D$3,OrgID,$C$4) -> 16200 | E56: 16531 | F56: 16574 | G56: 16613 | H56: 16609 | I56: 16640 | J56: 16721 | K56: 16753 | L56: 16767 | M56: 16786 | N56: 16780 | O56: 16771 | P56: 16784 | Q56: 16740 | R56: =SUMIFS(OFFSET(REL_D,,MATCH($A56,IND,0)-1),REL_D,R$3,IF(LEFT($C$4,1)="N",NwID,OrgID),$C$4) -> 3495
A57: ='Control Panel'!B58 -> %LDP.04: Diabetes Register | B57: %LDP.04: Diabetes Register | C57: % List size | D57: =IFERROR(D56/D7,"N/A") -> 0.048 | E57: 0.048 | F57: =IFERROR(F56/F7,"N/A") -> 0.048 | G57: =IFERROR(G56/G7,"N/A") -> 0.048 | H57: 0.048 | I57: 0.048 | J57: 0.048 | K57: 0.049 | L57: 0.048 | M57: 0.048 | N57: 0.048 | O57: 0.048 | P57: 0.048 | Q57: 0.048 | R57: 0.24
A58: ='Control Panel'!B61 -> LDP.04.11: Diabetes and BP in last 12 months | B58: LDP.04.11: Diabetes and BP in last 12 months | C58: BP (last 12m) | D58: =SUMIFS(OFFSET(REL_D,,MATCH($A58,IND,0)-2),REL_D,D$3,OrgID,$C$4) -> 14370 | E58: 15435 | F58: 15133 | G58: 14812 | H58: 14771 | I58: 14849 | J58: 14933 | K58: 15049 | L58: 15179 | M58: 15327 | N58: 15425 | O58: 15567 | P58: 15762 | Q58: 15880 | R58: =SUMIFS(OFFSET(REL_D,,MATCH($A58,IND,0)-1),REL_D,R$3,IF(LEFT($C$4,1)="N",NwID,OrgID),$C$4) -> 219322
A59: ='Control Panel'!B62 -> %LDP.04.11: Diabetes and BP in last 12 months | B59: %LDP.04.11: Diabetes and BP in last 12 months | C59: % Diabetes Register | D59: =IFERROR(D58/D56,"N/A") -> 0.887 | E59: 0.934 | F59: =IFERROR(F58/F56,"N/A") -> 0.913 | G59: =IFERROR(G58/G56,"N/A") -> 0.892 | H59: 0.889 | I59: 0.892 | J59: 0.893 | K59: 0.898 | L59: 0.905 | M59: 0.913 | N59: 0.919 | O59: 0.928 | P59: 0.939 | Q59: 0.949 | R59: =IFERROR(R58/R56,"N/A") -> 62.753
A60: ='Control Panel'!B63 -> LDP.04.09: Diabetes BP less than 145/85 (last 12m) | B60: LDP.04.09: Diabetes BP less than 145/85 (last 12m) | C60: BP < 145/85 (last 12m) | D60: =SUMIFS(OFFSET(REL_D,,MATCH($A60,IND,0)-2),REL_D,D$3,OrgID,$C$4) -> 11536 | E60: 13081 | F60: 12489 | G60: 12004 | H60: 11898 | I60: 11888 | J60: 11931 | K60: 11924 | L60: 11967 | M60: 12034 | N60: 12077 | O60: 12214 | P60: 12600 | Q60: 12880 | R60: =SUMIFS(OFFSET(REL_D,,MATCH($A60,IND,0)-1),REL_D,R$3,IF(LEFT($C$4,1)="N",NwID,OrgID),$C$4) -> 10636
A61: ='Control Panel'!B64 -> %LDP.04.09: Diabetes BP less than 145/85 (last 12m) | B61: %LDP.04.09: Diabetes BP less than 145/85 (last 12m) | C61: % Diabetes Register | D61: =IFERROR(D60/D56,"N/A") -> 0.712 | E61: 0.791 | F61: =IFERROR(F60/F56,"N/A") -> 0.754 | G61: =IFERROR(G60/G56,"N/A") -> 0.723 | H61: 0.716 | I61: 0.714 | J61: 0.714 | K61: 0.712 | L61: 0.714 | M61: 0.717 | N61: 0.72 | O61: 0.728 | P61: 0.751 | Q61: 0.769 | R61: =IFERROR(R60/R56,"N/A") -> 3.043
A62: ='Control Panel'!B67 -> LDP.04.08: Diabetes Chol less than 5mmol (last 12m) | B62: LDP.04.08: Diabetes Chol less than 5mmol (last 12m) | C62: Cholesterol < 5mmols (last 12m) | D62: =SUMIFS(OFFSET(REL_D,,MATCH($A62,IND,0)-2),REL_D,D$3,OrgID,$C$4) -> 9755 | E62: 10395 | F62: 10051 | G62: 9786 | H62: 9778 | I62: 9948 | J62: 10106 | K62: 10270 | L62: 10461 | M62: 10669 | N62: 10782 | O62: 10939 | P62: 11100 | Q62: 11204 | R62: =SUMIFS(OFFSET(REL_D,,MATCH($A62,IND,0)-1),REL_D,R$3,IF(LEFT($C$4,1)="N",NwID,OrgID),$C$4) -> 5908
A63: ='Control Panel'!B68 -> %LDP.04.08: Diabetes Chol less than 5mmol (last 12m) | B63: %LDP.04.08: Diabetes Chol less than 5mmol (last 12m) | C63: % Diabetes Register | D63: =IFERROR(D62/D56,"N/A") -> 0.602 | E63: 0.629 | F63: =IFERROR(F62/F56,"N/A") -> 0.606 | G63: =IFERROR(G62/G56,"N/A") -> 0.589 | H63: 0.589 | I63: 0.598 | J63: 0.604 | K63: 0.613 | L63: 0.624 | M63: 0.636 | N63: 0.643 | O63: 0.652 | P63: 0.661 | Q63: 0.669 | R63: =IFERROR(R62/R56,"N/A") -> 1.69
A64: ='Control Panel'!B69 -> LDP.04.01: Diabetes HbA1c <7.5% OR <59mmol (last 12m) | B64: LDP.04.01: Diabetes HbA1c <7.5% OR <59mmol (last 12m) | C64: HbA1c < 59 (last 12m) | D64: =SUMIFS(OFFSET(REL_D,,MATCH($A64,IND,0)-2),REL_D,D$3,OrgID,$C$4) -> 8465 | E64: 9339 | F64: 8941 | G64: 8586 | H64: 8436 | I64: 8532 | J64: 8610 | K64: 8774 | L64: 9012 | M64: 9170 | N64: 9294 | O64: 9444 | P64: 9649 | Q64: 9732 | R64: =SUMIFS(OFFSET(REL_D,,MATCH($A64,IND,0)-1),REL_D,R$3,IF(LEFT($C$4,1)="N",NwID,OrgID),$C$4) -> 27339
A65: ='Control Panel'!B70 -> %LDP.04.01: Diabetes HbA1c <7.5% OR <59mmol (last 12m) | B65: %LDP.04.01: Diabetes HbA1c <7.5% OR <59mmol (last 12m) | C65: % Diabetes register | D65: =IFERROR(D64/D56,"N/A") -> 0.523 | E65: 0.565 | F65: =IFERROR(F64/F56,"N/A") -> 0.539 | G65: =IFERROR(G64/G56,"N/A") -> 0.517 | H65: 0.508 | I65: 0.513 | J65: 0.515 | K65: 0.524 | L65: 0.537 | M65: 0.546 | N65: 0.554 | O65: 0.563 | P65: 0.575 | Q65: 0.581 | R65: =IFERROR(R64/R56,"N/A") -> 7.822
A66: ='Control Panel'!B81 -> LDP.04.07: Diabetes Influenza Vaccinations (From August 2018) | B66: LDP.04.07: Diabetes Influenza Vaccinations (last 12m) | C66: Flu jab (From August 2023) | D66: =SUMIFS(OFFSET(REL_D,,MATCH($A66,IND,0)-2),REL_D,D$3,OrgID,$C$4) -> 9497 | E66: 9486 | F66: 0 | G66: 0 | H66: 0 | I66: 0 | J66: 1 | K66: 3209 | L66: 7068 | M66: 8222 | N66: 8574 | O66: 8806 | P66: 8886 | Q66: 8907 | R66: =SUMIFS(OFFSET(REL_D,,MATCH($A66,IND,0)-1),REL_D,R$3,IF(LEFT($C$4,1)="N",NwID,OrgID),$C$4) -> 8562
A67: ='Control Panel'!B82 -> %LDP.04.07: Diabetes Influenza Vaccinations (From August 2018) | B67: %LDP.04.07: Diabetes Influenza Vaccinations (last 12m) | C67: % Diabetes Register | D67: =IFERROR(D66/D56,"N/A") -> 0.586 | E67: 0.574 | F67: =IFERROR(F66/F56,"N/A") -> 0 | G67: =IFERROR(G66/G56,"N/A") -> 0 | H67: 0 | I67: 0 | J67: 0 | K67: 0.192 | L67: 0.422 | M67: 0.49 | N67: 0.511 | O67: 0.525 | P67: 0.529 | Q67: 0.532 | R67: =IFERROR(R66/R56,"N/A") -> 2.45
C68: ='Control Panel'!B107 -> Mental Health
A69: ='Control Panel'!B108 -> CSPMH.01 SMI Register | B69: CSPMH.01 SMI Register | C69: ='Control Panel'!D108 -> Mental Health register | D69: =SUMIFS(OFFSET(REL_D,,MATCH($A69,IND,0)-2),REL_D,D$3,OrgID,$C$4) -> 4773 | E69: 4803 | F69: 4827 | G69: 4835 | H69: 4843 | I69: 4875 | J69: 4936 | K69: 4939 | L69: 4945 | M69: 4951 | N69: 4957 | O69: 4945 | P69: 4928 | Q69: 4914 | R69: =SUMIFS(OFFSET(REL_D,,MATCH($A69,IND,0)-1),REL_D,R$3,IF(LEFT($C$4,1)="N",NwID,OrgID),$C$4) -> 3699
A70: ='Control Panel'!B109 -> %CSPMH.01 SMI Register | B70: %CSPMH.01 SMI Register | C70: ='Control Panel'!D109 -> % list size | D70: =IFERROR(D69/D7,"N/A") -> 0.014 | E70: 0.014 | F70: =IFERROR(F69/F7,"N/A") -> 0.014 | G70: =IFERROR(G69/G7,"N/A") -> 0.014 | H70: 0.014 | I70: 0.014 | J70: 0.014 | K70: 0.014 | L70: 0.014 | M70: 0.014 | N70: 0.014 | O70: 0.014 | P70: 0.014 | Q70: 0.014 | R70: 0.254
A71: ='Control Panel'!B110 -> CSPMH.01.02 Smoking Status Recorded (12m) | B71: CSPMH.01.02 Smoking Status Recorded (12m) | C71: ='Control Panel'!D110 -> No. of Mental Health Patients with smoking status recorded (last 12m) or never smoked | D71: =SUMIFS(OFFSET(REL_D,,MATCH($A71,IND,0)-2),REL_D,D$3,OrgID,$C$4) -> 3940 | E71: 3983 | F71: 3958 | G71: 3917 | H71: 3931 | I71: 3970 | J71: 4029 | K71: 4031 | L71: 4020 | M71: 4043 | N71: 4059 | O71: 4059 | P71: 4084 | Q71: 4094 | R71: =SUMIFS(OFFSET(REL_D,,MATCH($A71,IND,0)-1),REL_D,R$3,IF(LEFT($C$4,1)="N",NwID,OrgID),$C$4) -> 1586
A72: ='Control Panel'!B111 -> %CSPMH.01.02 Smoking Status Recorded (12m) | B72: %CSPMH.01.02 Smoking Status Recorded (12m) | C72: ='Control Panel'!D111 -> % Mental Health Register | D72: =IFERROR(D71/D69,"N/A") -> 0.825 | E72: 0.829 | F72: =IFERROR(F71/F69,"N/A") -> 0.82 | G72: =IFERROR(G71/G69,"N/A") -> 0.81 | H72: 0.812 | I72: 0.814 | J72: 0.816 | K72: 0.816 | L72: 0.813 | M72: 0.817 | N72: 0.819 | O72: 0.821 | P72: 0.829 | Q72: 0.833 | R72: =IFERROR(R71/R69,"N/A") -> 0.429
A73: ='Control Panel'!B112 -> CSPMH.01.02.01 Current Smoker (12m) | B73: CSPMH.01.02.01 Current Smoker (15m) | C73: ='Control Panel'!D112 -> No. of Mental Health patients recorded as a Smoker | D73: =SUMIFS(OFFSET(REL_D,,MATCH($A73,IND,0)-2),REL_D,D$3,OrgID,$C$4) -> 1510 | E73: 1455 | F73: 1416 | G73: 1359 | H73: 1366 | I73: 1394 | J73: 1404 | K73: 1411 | L73: 1403 | M73: 1425 | N73: 1442 | O73: 1443 | P73: 1473 | Q73: 1496 | R73: =SUMIFS(OFFSET(REL_D,,MATCH($A73,IND,0)-1),REL_D,R$3,IF(LEFT($C$4,1)="N",NwID,OrgID),$C$4) -> 115
A74: ='Control Panel'!B113 -> %CSPMH.01.02.01 Current Smoker (12m) | B74: %CSPMH.01.02.01 Current Smoker (15m) | C74: ='Control Panel'!D113 -> % Mental Health Register | D74: =IFERROR(D73/D69,"N/A") -> 0.316 | E74: 0.303 | F74: =IFERROR(F73/F69,"N/A") -> 0.293 | G74: =IFERROR(G73/G69,"N/A") -> 0.281 | H74: 0.282 | I74: 0.286 | J74: 0.284 | K74: 0.286 | L74: 0.284 | M74: 0.288 | N74: 0.291 | O74: 0.292 | P74: 0.299 | Q74: 0.304 | R74: =IFERROR(R73/R69,"N/A") -> 0.031
A75: ='Control Panel'!B114 -> CSPMH 01.02.01.01 Ref to clinic 12m | B75: CSPMH 01.02.01.01 Ref to clinic 15m | C75: ='Control Panel'!D114 -> No. of Mental Health Patients who are current smokers & referred to the Stop Smoking Clinic | D75: =SUMIFS(OFFSET(REL_D,,MATCH($A75,IND,0)-2),REL_D,D$3,OrgID,$C$4) -> 94 | E75: 119 | F75: 123 | G75: 118 | H75: 128 | I75: 138 | J75: 143 | K75: 151 | L75: 149 | M75: 159 | N75: 168 | O75: 174 | P75: 172 | Q75: 161 | R75: =SUMIFS(OFFSET(REL_D,,MATCH($A75,IND,0)-1),REL_D,R$3,IF(LEFT($C$4,1)="N",NwID,OrgID),$C$4) -> 797
A76: ='Control Panel'!B115 -> %CSPMH 01.02.01.01 Ref to clinic 12m | B76: %CSPMH 01.02.01.01 Ref to clinic 15m | C76: ='Control Panel'!D115 -> % Mental Health Register | D76: =IFERROR(D75/D69,"N/A") -> 0.02 | E76: 0.025 | F76: =IFERROR(F75/F69,"N/A") -> 0.025 | G76: =IFERROR(G75/G69,"N/A") -> 0.024 | H76: 0.026 | I76: 0.028 | J76: 0.029 | K76: 0.031 | L76: 0.03 | M76: 0.032 | N76: 0.034 | O76: 0.035 | P76: 0.035 | Q76: 0.033 | R76: =IFERROR(R75/R69,"N/A") -> 0.215
A77: ='Control Panel'!B116 -> CSPMH.01.02.02 Ex-smoker Recorded (latest 12m) | B77: CSPMH.01.02.02 Ex-smoker Recorded (latest 15m) | C77: ='Control Panel'!D116 -> No. Of Mental Health Patients who are recorded as quitters | D77: =SUMIFS(OFFSET(REL_D,,MATCH($A77,IND,0)-2),REL_D,D$3,OrgID,$C$4) -> 322 | E77: 428 | F77: 423 | G77: 405 | H77: 394 | I77: 413 | J77: 427 | K77: 422 | L77: 433 | M77: 444 | N77: 450 | O77: 461 | P77: 466 | Q77: 482 | R77: =SUMIFS(OFFSET(REL_D,,MATCH($A77,IND,0)-1),REL_D,R$3,IF(LEFT($C$4,1)="N",NwID,OrgID),$C$4) -> 29702
A78: ='Control Panel'!B117 -> %CSPMH.01.02.02 Ex-smoker Recorded (latest 12m) | B78: %CSPMH.01.02.02 Ex-smoker Recorded (latest 15m) | C78: ='Control Panel'!D117 -> % Mental Health Register | D78: =IFERROR(D77/D69,"N/A") -> 0.067 | E78: 0.089 | F78: =IFERROR(F77/F69,"N/A") -> 0.088 | G78: =IFERROR(G77/G69,"N/A") -> 0.084 | H78: 0.081 | I78: 0.085 | J78: 0.087 | K78: 0.085 | L78: 0.088 | M78: 0.09 | N78: 0.091 | O78: 0.093 | P78: 0.095 | Q78: 0.098 | R78: =IFERROR(R77/R69,"N/A") -> 8.03
A79: ='Control Panel'!B118 -> CSPMH. 01.03 QRisk Recorded (12m) | B79: CSPMH. 01.03 QRisk Recorded (12m) | C79: ='Control Panel'!D118 -> Patients with Mental Health with QRISK recorded in the last 12m | D79: =SUMIFS(OFFSET(REL_D,,MATCH($A79,IND,0)-2),REL_D,D$3,OrgID,$C$4) -> 2325 | E79: 2543 | F79: 2475 | G79: 2389 | H79: 2378 | I79: 2434 | J79: 2451 | K79: 2447 | L79: 2429 | M79: 2456 | N79: 2487 | O79: 2512 | P79: 2555 | Q79: 2593 | R79: =SUMIFS(OFFSET(REL_D,,MATCH($A79,IND,0)-1),REL_D,R$3,IF(LEFT($C$4,1)="N",NwID,OrgID),$C$4) -> 1369
A80: ='Control Panel'!B119 -> %CSPMH. 01.03 QRisk Recorded (12m) | B80: %CSPMH. 01.03 QRisk Recorded (12m) | C80: ='Control Panel'!D119 -> % Mental Health Register | D80: =IFERROR(D79/D69,"N/A") -> 0.487 | E80: 0.529 | F80: =IFERROR(F79/F69,"N/A") -> 0.513 | G80: =IFERROR(G79/G69,"N/A") -> 0.494 | H80: 0.491 | I80: 0.499 | J80: 0.497 | K80: 0.495 | L80: 0.491 | M80: 0.496 | N80: 0.502 | O80: 0.508 | P80: 0.518 | Q80: 0.528 | R80: =IFERROR(R79/R69,"N/A") -> 0.37
A81: ='Control Panel'!B120 -> CSPMH. 01.03.02 Qrisk>=20 (12m) | B81: CSPMH. 01.03.02 Qrisk>=20 (12m) | C81: ='Control Panel'!D120 -> Patients with Mental Health with QRISK 20% or higher in the last 12m | D81: =SUMIFS(OFFSET(REL_D,,MATCH($A81,IND,0)-2),REL_D,D$3,OrgID,$C$4) -> 375 | E81: 455 | F81: 451 | G81: 439 | H81: 435 | I81: 444 | J81: 428 | K81: 431 | L81: 444 | M81: 459 | N81: 468 | O81: 469 | P81: 484 | Q81: 480 | R81: =SUMIFS(OFFSET(REL_D,,MATCH($A81,IND,0)-1),REL_D,R$3,IF(LEFT($C$4,1)="N",NwID,OrgID),$C$4) -> 3818
A82: ='Control Panel'!B121 -> %CSPMH. 01.03.02 Qrisk>=20 (12m) | B82: %CSPMH. 01.03.02 Qrisk>=20 (12m) | C82: ='Control Panel'!D121 -> % patients with QRISK recorded | D82: =IFERROR(D81/D69,"N/A") -> 0.079 | E82: 0.095 | F82: =IFERROR(F81/F69,"N/A") -> 0.093 | G82: =IFERROR(G81/G69,"N/A") -> 0.091 | H82: 0.09 | I82: 0.091 | J82: 0.087 | K82: 0.087 | L82: 0.09 | M82: 0.093 | N82: 0.094 | O82: 0.095 | P82: 0.098 | Q82: 0.098 | R82: =IFERROR(R81/R69,"N/A") -> 1.032
A83: ='Control Panel'!B122 -> CSPMH. 01.03.01 BP recorded on same day as QRisk (12m) | B83: CSPMH. 01.03.01 BP recorded on same day as QRisk (12m) | C83: ='Control Panel'!D122 -> Patients with Mental Health with BP & QRisk on the same day in the last 12m | D83: =SUMIFS(OFFSET(REL_D,,MATCH($A83,IND,0)-2),REL_D,D$3,OrgID,$C$4) -> 1326 | E83: 1494 | F83: 1512 | G83: 1450 | H83: 1461 | I83: 1534 | J83: 1542 | K83: 1540 | L83: 1573 | M83: 1591 | N83: 1628 | O83: 1666 | P83: 1673 | Q83: 1683 | R83: =SUMIFS(OFFSET(REL_D,,MATCH($A83,IND,0)-1),REL_D,R$3,IF(LEFT($C$4,1)="N",NwID,OrgID),$C$4) -> 368
A84: ='Control Panel'!B123 -> %CSPMH. 01.03.01 BP recorded on same day as QRisk (12m) | B84: %CSPMH. 01.03.01 BP recorded on same day as QRisk (12m) | C84: ='Control Panel'!D123 -> % Mental Health Register | D84: =IFERROR(D83/D69,"N/A") -> 0.278 | E84: 0.311 | F84: =IFERROR(F83/F69,"N/A") -> 0.313 | G84: =IFERROR(G83/G69,"N/A") -> 0.3 | H84: 0.302 | I84: 0.315 | J84: 0.312 | K84: 0.312 | L84: 0.318 | M84: 0.321 | N84: 0.328 | O84: 0.337 | P84: 0.339 | Q84: 0.342 | R84: =IFERROR(R83/R69,"N/A") -> 0.099
C85: ='Control Panel'!B124 -> CKD
A86: =VLOOKUP(C86,'Control Panel'!A124:B250,2,FALSE) -> LDP.08 CKD Register | B86: LDP.08 CKD Register | C86: ='Control Panel'!D125 -> No. of patients on CKD register | D86: =SUMIFS(OFFSET(REL_D,,MATCH($A86,IND,0)-2),REL_D,D$3,OrgID,$C$4) -> 4885 | E86: 5370 | F86: 5395 | G86: 5412 | H86: 5456 | I86: 5635 | J86: 6148 | K86: 6200 | L86: 6302 | M86: 6356 | N86: 6379 | O86: 6577 | P86: 6606 | Q86: 6652 | R86: =SUMIFS(OFFSET(REL_D,,MATCH($A86,IND,0)-1),REL_D,R$3,IF(LEFT($C$4,1)="N",NwID,OrgID),$C$4) -> 12416
A87: =VLOOKUP(C87,'Control Panel'!A125:B251,2,FALSE) -> %LDP.08 CKD Register | B87: %LDP.08 CKD Register | C87: ='Control Panel'!D126 -> % List Size | D87: =IFERROR(D86/D7,"N/A") -> 0.015 | E87: 0.016 | F87: =IFERROR(F86/F7,"N/A") -> 0.016 | G87: =IFERROR(G86/G7,"N/A") -> 0.016 | H87: 0.016 | I87: 0.016 | J87: 0.018 | K87: 0.018 | L87: 0.018 | M87: 0.018 | N87: 0.018 | O87: 0.019 | P87: 0.019 | Q87: 0.019 | R87: 0.853
A88: =VLOOKUP(C88,'Control Panel'!A126:B252,2,FALSE) -> LDP.08.03 CKD and BP Recorded (last 12 m) | B88: LDP.08.03 CKD and BP Recorded (last 12 m) | C88: ='Control Panel'!D127 -> BP Recorded (last 12m) | D88: =SUMIFS(OFFSET(REL_D,,MATCH($A88,IND,0)-2),REL_D,D$3,OrgID,$C$4) -> 4168 | E88: 4913 | F88: 4867 | G88: 4805 | H88: 4815 | I88: 4956 | J88: 5386 | K88: 5470 | L88: 5616 | M88: 5727 | N88: 5778 | O88: 5990 | P88: 6078 | Q88: 6157 | R88: =SUMIFS(OFFSET(REL_D,,MATCH($A88,IND,0)-1),REL_D,R$3,IF(LEFT($C$4,1)="N",NwID,OrgID),$C$4) -> 2268
A89: =VLOOKUP(C89,'Control Panel'!A127:B253,2,FALSE) -> %LDP.08.03 CKD and BP Recorded (last 12 m) | B89: %LDP.08.03 CKD and BP Recorded (last 12 m) | C89: ='Control Panel'!D128 -> % CKD register | D89: =IFERROR(D88/D86,"N/A") -> 0.853 | E89: 0.915 | F89: =IFERROR(F88/F86,"N/A") -> 0.902 | G89: =IFERROR(G88/G86,"N/A") -> 0.888 | H89: 0.883 | I89: 0.88 | J89: 0.876 | K89: 0.882 | L89: 0.891 | M89: 0.901 | N89: 0.906 | O89: 0.911 | P89: 0.92 | Q89: 0.926 | R89: =IFERROR(R88/R86,"N/A") -> 0.183
A90: LDP.08.01 CKD and BP less than 140/90 (last 12 m) | B90: LDP.08.01 CKD and BP less than 140/90 (last 12 m) | C90: ='Control Panel'!D129 -> BP < 140/90 | D90: =SUMIFS(OFFSET(REL_D,,MATCH($A90,IND,0)-2),REL_D,D$3,OrgID,$C$4) -> 2983 | E90: 3778 | F90: 3697 | G90: 3579 | H90: 3631 | I90: 3710 | J90: 4061 | K90: 4107 | L90: 4206 | M90: 4284 | N90: 4329 | O90: 4511 | P90: 4679 | Q90: 4831 | R90: =SUMIFS(OFFSET(REL_D,,MATCH($A90,IND,0)-1),REL_D,R$3,IF(LEFT($C$4,1)="N",NwID,OrgID),$C$4) -> 5195
A91: =VLOOKUP(C91,'Control Panel'!A129:B255,2,FALSE) -> %LDP.08.01 CKD and BP less than 140/90 (last 12 m) | B91: %LDP.08.01 CKD and BP less than 140/90 (last 12 m) | C91: ='Control Panel'!D130 -> % CKD register | D91: =IFERROR(D90/D86,"N/A") -> 0.611 | E91: 0.704 | F91: =IFERROR(F90/F86,"N/A") -> 0.685 | G91: =IFERROR(G90/G86,"N/A") -> 0.661 | H91: 0.666 | I91: 0.658 | J91: 0.661 | K91: 0.662 | L91: 0.667 | M91: 0.674 | N91: 0.679 | O91: 0.686 | P91: 0.708 | Q91: 0.726 | R91: =IFERROR(R90/R86,"N/A") -> 0.418
A92: =VLOOKUP(C92,'Control Panel'!A130:B256,2,FALSE) -> LDP.08.02 CKD Diagnosed (Last 6m) | B92: LDP.08.02 CKD Diagnosed (Last 6m) | C92: ='Control Panel'!D131 -> No of patients with new diagnosis of CKD (last 6m) | D92: =SUMIFS(OFFSET(REL_D,,MATCH($A92,IND,0)-2),REL_D,D$3,OrgID,$C$4) -> 196 | E92: 321 | F92: 295 | G92: 298 | H92: 317 | I92: 437 | J92: 881 | K92: 890 | L92: 966 | M92: 955 | N92: 942 | O92: 947 | P92: 655 | Q92: 687 | R92: =SUMIFS(OFFSET(REL_D,,MATCH($A92,IND,0)-1),REL_D,R$3,IF(LEFT($C$4,1)="N",NwID,OrgID),$C$4) -> 4890
A93: =VLOOKUP(C93,'Control Panel'!A131:B257,2,FALSE) -> %LDP.08.02 CKD Diagnosed (Last 6m) | B93: %LDP.08.02 CKD Diagnosed (Last 6m) | C93: ='Control Panel'!D132 -> % CKD register | D93: =IFERROR(D92/D86,"N/A") -> 0.04 | E93: 0.06 | F93: =IFERROR(F92/F86,"N/A") -> 0.055 | G93: =IFERROR(G92/G86,"N/A") -> 0.055 | H93: 0.058 | I93: 0.078 | J93: 0.143 | K93: 0.144 | L93: 0.153 | M93: 0.15 | N93: 0.148 | O93: 0.144 | P93: 0.099 | Q93: 0.103 | R93: =IFERROR(R92/R86,"N/A") -> 0.394
C94: ='Control Panel'!B133 -> COPD
A95: LDP.09 COPD Register | B95: LDP.09 COPD Register | C95: ='Control Panel'!C134 -> No. of patients on COPD register | D95: =SUMIFS(OFFSET(REL_D,,MATCH($A95,IND,0)-2),REL_D,D$3,OrgID,$C$4) -> 3364 | E95: 3381 | F95: 3395 | G95: 3388 | H95: 3389 | I95: 3392 | J95: 3475 | K95: 3472 | L95: 3476 | M95: 3484 | N95: 3490 | O95: 3477 | P95: 3482 | Q95: 3467 | R95: =SUMIFS(OFFSET(REL_D,,MATCH($A95,IND,0)-1),REL_D,R$3,IF(LEFT($C$4,1)="N",NwID,OrgID),$C$4) -> 870
A96: ="%"&A95 -> %LDP.09 COPD Register | B96: %LDP.09 COPD Register | C96: ='Control Panel'!C135 -> % List Size | D96: =IFERROR(D95/D7,"N/A") -> 0.01 | E96: 0.01 | F96: =IFERROR(F95/F7,"N/A") -> 0.01 | G96: =IFERROR(G95/G7,"N/A") -> 0.01 | H96: 0.01 | I96: 0.01 | J96: 0.01 | K96: 0.01 | L96: 0.01 | M96: 0.01 | N96: 0.01 | O96: 0.01 | P96: 0.01 | Q96: 0.01 | R96: 0.06
A97: LDP.09.01 Patients with severe or very severe COPD (FEV1<50) | B97: LDP.09.01 Patients with severe or very severe COPD (FEV1<50) | C97: ='Control Panel'!C136 -> No of patients with severe or very severe COPD (FEV1<50) | D97: =SUMIFS(OFFSET(REL_D,,MATCH($A97,IND,0)-2),REL_D,D$3,OrgID,$C$4) -> 718 | E97: 661 | F97: 660 | G97: 655 | H97: 652 | I97: 650 | J97: 643 | K97: 649 | L97: 641 | M97: 643 | N97: 639 | O97: 632 | P97: 635 | Q97: 623 | R97: =SUMIFS(OFFSET(REL_D,,MATCH($A97,IND,0)-1),REL_D,R$3,IF(LEFT($C$4,1)="N",NwID,OrgID),$C$4) -> 3153
A98: ="%"&A97 -> %LDP.09.01 Patients with severe or very severe COPD (FEV1<50) | B98: %LDP.09.01 Patients with severe or very severe COPD (FEV1<50) | C98: ='Control Panel'!C137 -> % COPD register | D98: =IFERROR(D97/D95,"N/A") -> 0.213 | E98: 0.196 | F98: =IFERROR(F97/F95,"N/A") -> 0.194 | G98: =IFERROR(G97/G95,"N/A") -> 0.193 | H98: 0.192 | I98: 0.192 | J98: 0.185 | K98: 0.187 | L98: 0.184 | M98: 0.185 | N98: 0.183 | O98: 0.182 | P98: 0.182 | Q98: 0.18 | R98: =IFERROR(R97/R95,"N/A") -> 3.624
A99: LDP.09.02 Patients with smoking status recorded (last 12m) or never smoked | B99: LDP.09.02 Patients with smoking status recorded (last 12m) or never smoked | C99: ='Control Panel'!C138 -> No. of COPD Patients with smoking status recorded (last 12m) or never smoked | D99: =SUMIFS(OFFSET(REL_D,,MATCH($A99,IND,0)-2),REL_D,D$3,OrgID,$C$4) -> 2944 | E99: 3125 | F99: 3066 | G99: 3010 | H99: 2973 | I99: 2986 | J99: 3087 | K99: 3111 | L99: 3142 | M99: 3172 | N99: 3175 | O99: 3183 | P99: 3219 | Q99: 3215 | R99: =SUMIFS(OFFSET(REL_D,,MATCH($A99,IND,0)-1),REL_D,R$3,IF(LEFT($C$4,1)="N",NwID,OrgID),$C$4) -> 1326
A100: ="%"&A99 -> %LDP.09.02 Patients with smoking status recorded (last 12m) or never smoked | B100: %LDP.09.02 Patients with smoking status recorded (last 12m) or never smoked | C100: ='Control Panel'!C139 -> % COPD | D100: =IFERROR(D99/D95,"N/A") -> 0.875 | E100: 0.924 | F100: =IFERROR(F99/F95,"N/A") -> 0.903 | G100: =IFERROR(G99/G95,"N/A") -> 0.888 | H100: 0.877 | I100: 0.88 | J100: 0.888 | K100: 0.896 | L100: 0.904 | M100: 0.91 | N100: 0.91 | O100: 0.915 | P100: 0.924 | Q100: 0.927 | R100: =IFERROR(R99/R95,"N/A") -> 1.524
A101: LDP.09.03 COPD patients recorded as a Smoker | B101: LDP.09.03 COPD patients recorded as a Smoker | C101: ='Control Panel'!C140 -> No. of COPD patients recorded as a Smoker | D101: =SUMIFS(OFFSET(REL_D,,MATCH($A101,IND,0)-2),REL_D,D$3,OrgID,$C$4) -> 1292 | E101: 1324 | F101: 1290 | G101: 1248 | H101: 1239 | I101: 1242 | J101: 1271 | K101: 1285 | L101: 1302 | M101: 1314 | N101: 1317 | O101: 1330 | P101: 1347 | Q101: 1345 | R101: =SUMIFS(OFFSET(REL_D,,MATCH($A101,IND,0)-1),REL_D,R$3,IF(LEFT($C$4,1)="N",NwID,OrgID),$C$4) -> 116
A102: ="%"&A101 -> %LDP.09.03 COPD patients recorded as a Smoker | B102: %LDP.09.03 COPD patients recorded as a Smoker | C102: ='Control Panel'!C141 -> % COPD | D102: =IFERROR(D101/D95,"N/A") -> 0.384 | E102: 0.392 | F102: =IFERROR(F101/F95,"N/A") -> 0.38 | G102: =IFERROR(G101/G95,"N/A") -> 0.368 | H102: 0.366 | I102: 0.366 | J102: 0.366 | K102: 0.37 | L102: 0.375 | M102: 0.377 | N102: 0.377 | O102: 0.383 | P102: 0.387 | Q102: 0.388 | R102: =IFERROR(R101/R95,"N/A") -> 0.133
A103: LDP.09.04 COPD Patients who are current smokers & referred to the Stop Smoking C | B103: LDP.09.04 COPD Patients who are current smokers & referred to the Stop Smoking C | C103: ='Control Panel'!C142 -> No. of COPD Patients who are current smokers & referred to the Stop Smoking Clinic (12m) | D103: =SUMIFS(OFFSET(REL_D,,MATCH($A103,IND,0)-2),REL_D,D$3,OrgID,$C$4) -> 117 | E103: 111 | F103: 123 | G103: 135 | H103: 146 | I103: 154 | J103: 163 | K103: 176 | L103: 173 | M103: 178 | N103: 174 | O103: 177 | P103: 192 | Q103: 198 | R103: =SUMIFS(OFFSET(REL_D,,MATCH($A103,IND,0)-1),REL_D,R$3,IF(LEFT($C$4,1)="N",NwID,OrgID),$C$4) -> 2519
A104: ="%"&A103 -> %LDP.09.04 COPD Patients who are current smokers & referred to the Stop Smoking C | B104: %LDP.09.04 COPD Patients who are current smokers & referred to the Stop Smoking C | C104: ='Control Panel'!C143 -> % of current COPD smokers | D104: =IFERROR(D103/D101,"N/A") -> 0.091 | E104: 0.084 | F104: =IFERROR(F103/F101,"N/A") -> 0.095 | G104: =IFERROR(G103/G101,"N/A") -> 0.108 | H104: 0.118 | I104: 0.124 | J104: 0.128 | K104: 0.137 | L104: 0.133 | M104: 0.135 | N104: 0.132 | O104: 0.133 | P104: 0.143 | Q104: 0.147 | R104: =IFERROR(R103/R101,"N/A") -> 21.716
A105: LDP.09.05 No of COPD with flu vaccination (From August 2018) | B105: LDP.09.05 No of COPD with flu vaccination (12m) | C105: No of COPD with flu vaccination (From August 2023) | D105: =SUMIFS(OFFSET(REL_D,,MATCH($A105,IND,0)-2),REL_D,D$3,OrgID,$C$4) -> 2328 | E105: 2315 | F105: 0 | G105: 0 | H105: 0 | I105: 0 | J105: 0 | K105: 884 | L105: 1794 | M105: 2071 | N105: 2132 | O105: 2166 | P105: 2187 | Q105: 2184 | R105: =SUMIFS(OFFSET(REL_D,,MATCH($A105,IND,0)-1),REL_D,R$3,IF(LEFT($C$4,1)="N",NwID,OrgID),$C$4) -> 2338
A106: ="%"&A105 -> %LDP.09.05 No of COPD with flu vaccination (From August 2018) | B106: %LDP.09.05 No of COPD with flu vaccination (12m) | C106: ='Control Panel'!C145 -> % of COPD register | D106: =IFERROR(D105/D95,"N/A") -> 0.692 | E106: 0.685 | F106: =IFERROR(F105/F95,"N/A") -> 0 | G106: =IFERROR(G105/G95,"N/A") -> 0 | H106: 0 | I106: 0 | J106: 0 | K106: 0.255 | L106: 0.516 | M106: 0.594 | N106: 0.611 | O106: 0.623 | P106: 0.628 | Q106: 0.63 | R106: =IFERROR(R105/R95,"N/A") -> 2.687
A107: LDP.09.06 No of COPD with pneumococcal vaccination ever | B107: LDP.09.06 No of COPD with pneumococcal vaccination ever | C107: ='Control Panel'!C146 -> No of COPD with pneumococcal vaccination ever | D107: =SUMIFS(OFFSET(REL_D,,MATCH($A107,IND,0)-2),REL_D,D$3,OrgID,$C$4) -> 2435 | E107: 2429 | F107: 2447 | G107: 2439 | H107: 2442 | I107: 2445 | J107: 2500 | K107: 2487 | L107: 2492 | M107: 2502 | N107: 2499 | O107: 2491 | P107: 2506 | Q107: 2497 | R107: =SUMIFS(OFFSET(REL_D,,MATCH($A107,IND,0)-1),REL_D,R$3,IF(LEFT($C$4,1)="N",NwID,OrgID),$C$4) -> 2329
A108: ="%"&A107 -> %LDP.09.06 No of COPD with pneumococcal vaccination ever | B108: %LDP.09.06 No of COPD with pneumococcal vaccination ever | C108: ='Control Panel'!C147 -> % of COPD register | D108: =IFERROR(D107/D95,"N/A") -> 0.724 | E108: 0.718 | F108: =IFERROR(F107/F95,"N/A") -> 0.721 | G108: =IFERROR(G107/G95,"N/A") -> 0.72 | H108: 0.721 | I108: 0.721 | J108: 0.719 | K108: 0.716 | L108: 0.717 | M108: 0.718 | N108: 0.716 | O108: 0.716 | P108: 0.72 | Q108: 0.72 | R108: =IFERROR(R107/R95,"N/A") -> 2.677
A109: LDP.09.07 No of COPD patients referred to pulmonary rehab ever | B109: LDP.09.07 No of COPD patients referred to pulmonary rehab ever | C109: ='Control Panel'!C148 -> No of COPD patients referred to pulmonary rehab ever | D109: =SUMIFS(OFFSET(REL_D,,MATCH($A109,IND,0)-2),REL_D,D$3,OrgID,$C$4) -> 2551 | E109: 2660 | F109: 2672 | G109: 2671 | H109: 2689 | I109: 2701 | J109: 2744 | K109: 2749 | L109: 2756 | M109: 2772 | N109: 2775 | O109: 2783 | P109: 2802 | Q109: 2817 | R109: =SUMIFS(OFFSET(REL_D,,MATCH($A109,IND,0)-1),REL_D,R$3,IF(LEFT($C$4,1)="N",NwID,OrgID),$C$4) -> 3763
A110: ="%"&A109 -> %LDP.09.07 No of COPD patients referred to pulmonary rehab ever | B110: %LDP.09.07 No of COPD patients referred to pulmonary rehab ever | C110: ='Control Panel'!C149 -> % of COPD register | D110: =IFERROR(D109/D95,"N/A") -> 0.758 | E110: 0.787 | F110: =IFERROR(F109/F95,"N/A") -> 0.787 | G110: =IFERROR(G109/G95,"N/A") -> 0.788 | H110: 0.793 | I110: 0.796 | J110: 0.79 | K110: 0.792 | L110: 0.793 | M110: 0.796 | N110: 0.795 | O110: 0.8 | P110: 0.805 | Q110: 0.813 | R110: =IFERROR(R109/R95,"N/A") -> 4.325

Sheet General Health
C1: 01. Listsize | D1: =INDEX('Control Panel'!$B$3:$B$17,COLUMN(D1)-COLUMN($C$1)+1) -> LDP.01: Aged 16yrs+ | E1: =INDEX('Control Panel'!$B$3:$B$17,COLUMN(E1)-COLUMN($C$1)+1) -> %LDP.01: Aged 16yrs+ | F1: =INDEX('Control Panel'!$B$3:$B$17,COLUMN(F1)-COLUMN($C$1)+1) -> LDP.01.01: Obesity BMI recorded (last 12m) | G1: =INDEX('Control Panel'!$B$3:$B$17,COLUMN(G1)-COLUMN($C$1)+1) -> %LDP.01.01: Obesity BMI recorded (last 12m) | H1: =INDEX('Control Panel'!$B$3:$B$17,COLUMN(H1)-COLUMN($C$1)+1) -> LDP.01.01.02: Obesity BMI between 30-35 (last 12m) | I1: =INDEX('Control Panel'!$B$3:$B$17,COLUMN(I1)-COLUMN($C$1)+1) -> %LDP.01.01.02: Obesity BMI between 30-35 (last 12m) | J1: =INDEX('Control Panel'!$B$3:$B$17,COLUMN(J1)-COLUMN($C$1)+1) -> LDP.01.01.01: Obesity BMI more than or equal to 35 less than 40 (last 12m) | K1: =INDEX('Control Panel'!$B$3:$B$17,COLUMN(K1)-COLUMN($C$1)+1) -> %LDP.01.01.01: Obesity BMI more than or equal to 35 less than 40 (last 12m) | L1: =INDEX('Control Panel'!$B$3:$B$17,COLUMN(L1)-COLUMN($C$1)+1) -> LDP.01.01.03: Obesity BMI equal to or over 40 (last 12m) | M1: =INDEX('Control Panel'!$B$3:$B$17,COLUMN(M1)-COLUMN($C$1)+1) -> %LDP.01.01.03: Obesity BMI equal to or over 40 (last 12m) | N1: =INDEX('Control Panel'!$B$3:$B$17,COLUMN(N1)-COLUMN($C$1)+1) -> LDP.01.02: Smoking Status (last 12m) or Never Smoked (25yrs+) | O1: =INDEX('Control Panel'!$B$3:$B$17,COLUMN(O1)-COLUMN($C$1)+1) -> %LDP.01.02: Smoking Status (last 12m) or Never Smoked (25yrs+) | P1: =INDEX('Control Panel'!$B$3:$B$17,COLUMN(P1)-COLUMN($C$1)+1) -> LDP.01.03: Current Smoker (last 12m) | Q1: =INDEX('Control Panel'!$B$3:$B$17,COLUMN(Q1)-COLUMN($C$1)+1) -> %LDP.01.03: Current Smoker (last 12m)
C2: City and Hackney - Practice Clinical Trends (LDP) Report
B3: =VLOOKUP(C3,'Control Panel'!O16:P27,2,FALSE) -> 2024-04-01 | C3: March 2024 | D3: =VLOOKUP(C3,'Control Panel'!O16:P27,2,FALSE) -> 2024-04-01
B4: 2019-07-01 | C4: ='Control Panel'!B2 -> General Health
A5: Home | B5: 2019-10-01 | C5: =VLOOKUP(C1,'Control Panel'!$B$3:$C$132,2,FALSE) -> List Size | D5: =VLOOKUP(D1,'Control Panel'!$B$3:$D$132,3,FALSE) -> Age 16+ | E5: =VLOOKUP(E1,'Control Panel'!$B$3:$D$132,3,FALSE) -> % list size | F5: =VLOOKUP(F1,'Control Panel'!$B$3:$D$132,3,FALSE) -> 16+ and BMI (last 12m) | G5: =VLOOKUP(G1,'Control Panel'!$B$3:$D$132,3,FALSE) -> % 16+ | H5: =VLOOKUP(H1,'Control Panel'!$B$3:$D$132,3,FALSE) -> BMI ≥30 & <35 | I5: =VLOOKUP(I1,'Control Panel'!$B$3:$D$132,3,FALSE) -> % 16+ | J5: =VLOOKUP(J1,'Control Panel'!$B$3:$D$132,3,FALSE) -> BMI ≥ 35 & <40 | K5: =VLOOKUP(K1,'Control Panel'!$B$3:$D$132,3,FALSE) -> %16+ | L5: =VLOOKUP(L1,'Control Panel'!$B$3:$D$132,3,FALSE) -> BMI ≥ 40 | M5: =VLOOKUP(M1,'Control Panel'!$B$3:$D$132,3,FALSE) -> %16+ | N5: =VLOOKUP(N1,'Control Panel'!$B$3:$D$132,3,FALSE) -> Smoking status (last 12m) incl. never smoked | O5: =VLOOKUP(O1,'Control Panel'!$B$3:$D$132,3,FALSE) -> % 16+ | P5: =VLOOKUP(P1,'Control Panel'!$B$3:$D$132,3,FALSE) -> Age 16+ and current smoker (last 12m) | Q5: =VLOOKUP(Q1,'Control Panel'!$B$3:$D$132,3,FALSE) -> % 16+
A6: Practice Name | B6: Total | C6: =SUM(C7:C45) -> 347970 | D6: =SUM(D7:D45) -> 287116 | E6: =IFERROR(D6/C6,"N/A") -> 0.825 | F6: =SUM(F7:F45) -> 88140 | G6: =IFERROR(F6/D6,"N/A") -> 0.307 | H6: =SUM(H7:H45) -> 15129 | I6: =IFERROR(H6/D6,"N/A") -> 0.053 | J6: =SUM(J7:J45) -> 6852 | K6: =IFERROR(J6/D6,"N/A") -> 0.024 | L6: =SUM(L7:L45) -> 4421 | M6: =IFERROR(L6/D6,"N/A") -> 0.015 | N6: =SUM(N7:N45) -> 187068 | O6: =IFERROR(N6/D6,"N/A") -> 0.652 | P6: =SUM(P7:P45) -> 18986 | Q6: =IFERROR(P6/D6,"N/A") -> 0.066
A7: ='Practice list'!C2 -> Stamford Hill Surgery | B7: ='Practice list'!B2 -> F84013 | C7: =SUMIFS(OFFSET(REL_D,,MATCH(C$1,IND,0)-2),REL_D,$D$3,OrgID,$B7) -> 17922 | D7: 10734 | E7: =IFERROR(D7/$C7,"N/A") -> 0.599 | F7: =SUMIFS(OFFSET(REL_D,,MATCH(F$1,IND,0)-2),REL_D,$D$3,OrgID,$B7) -> 2999 | G7: =IFERROR(F7/$D7,"N/A") -> 0.279 | H7: =SUMIFS(OFFSET(REL_D,,MATCH(H$1,IND,0)-2),REL_D,$D$3,OrgID,$B7) -> 634 | I7: =IFERROR(H7/$D7,"N/A") -> 0.059 | J7: =SUMIFS(OFFSET(REL_D,,MATCH(J$1,IND,0)-2),REL_D,$D$3,OrgID,$B7) -> 285 | K7: =IFERROR(J7/$D7,"N/A") -> 0.027 | L7: =SUMIFS(OFFSET(REL_D,,MATCH(L$1,IND,0)-2),REL_D,$D$3,OrgID,$B7) -> 131 | M7: =IFERROR(L7/$D7,"N/A") -> 0.012 | N7: =SUMIFS(OFFSET(REL_D,,MATCH(N$1,IND,0)-2),REL_D,$D$3,OrgID,$B7) -> 6687 | O7: =IFERROR(N7/$D7,"N/A") -> 0.623 | P7: =SUMIFS(OFFSET(REL_D,,MATCH(P$1,IND,0)-2),REL_D,$D$3,OrgID,$B7) -> 437 | Q7: =IFERROR(P7/$D7,"N/A") -> 0.041
A8: ='Practice list'!C3 -> Cranwich Road Surgery | B8: ='Practice list'!B3 -> F84686 | C8: 8923 | D8: 4890 | E8: 0.548 | F8: 1371 | G8: 0.28 | H8: 309 | I8: 0.063 | J8: 136 | K8: 0.028 | L8: 87 | M8: 0.018 | N8: 3004 | O8: 0.614 | P8: 74 | Q8: 0.015
A9: ='Practice list'!C4 -> Spring Hill Practice | B9: ='Practice list'!B4 -> Y03049 | C9: 16327 | D9: 12187 | E9: 0.746 | F9: 3988 | G9: 0.327 | H9: 746 | I9: 0.061 | J9: 311 | K9: 0.026 | L9: 204 | M9: 0.017 | N9: 7882 | O9: 0.647 | P9: 795 | Q9: 0.065
A10: ='Practice list'!C5 -> The Nightingale Practice | B10: ='Practice list'!B5 -> F84018 | C10: 12242 | D10: 10028 | E10: 0.819 | F10: 3632 | G10: 0.362 | H10: 629 | I10: 0.063 | J10: 298 | K10: 0.03 | L10: 203 | M10: 0.02 | N10: 6881 | O10: 0.686 | P10: 830 | Q10: 0.083
A11: ='Practice list'!C6 -> The Gadvhi Practice | B11: ='Practice list'!B6 -> F84080 | C11: 5118 | D11: 3867 | E11: 0.756 | F11: 1467 | G11: 0.379 | H11: 304 | I11: 0.079 | J11: 137 | K11: 0.035 | L11: 64 | M11: 0.017 | N11: 2763 | O11: 0.715 | P11: 292 | Q11: 0.076
A12: ='Practice list'!C7 -> The Riverside Practice | B12: ='Practice list'!B7 -> F84619 | C12: 5145 | D12: 4258 | E12: 0.828 | F12: 1363 | G12: 0.32 | H12: 236 | I12: 0.055 | J12: 105 | K12: 0.025 | L12: 75 | M12: 0.018 | N12: 2833 | O12: 0.665 | P12: 292 | Q12: 0.069
A13: ='Practice list'!C8 -> Clapton Surgery | B13: ='Practice list'!B8 -> F84668 | C13: 6068 | D13: 4175 | E13: 0.688 | F13: 1542 | G13: 0.369 | H13: 316 | I13: 0.076 | J13: 178 | K13: 0.043 | L13: 94 | M13: 0.023 | N13: 2774 | O13: 0.664 | P13: 174 | Q13: 0.042
A14: ='Practice list'!C9 -> Elm Practice | B14: ='Practice list'!B9 -> F84685 | C14: 3003 | D14: 2366 | E14: 0.788 | F14: 869 | G14: 0.367 | H14: 113 | I14: 0.048 | J14: 70 | K14: 0.03 | L14: 32 | M14: 0.014 | N14: 1657 | O14: 0.7 | P14: 156 | Q14: 0.066
A15: ='Practice list'!C10 -> Rosewood Practice | B15: ='Practice list'!B10 -> F84711 | C15: 1788 | D15: 1491 | E15: 0.834 | F15: 535 | G15: 0.359 | H15: 113 | I15: 0.076 | J15: 57 | K15: 0.038 | L15: 30 | M15: 0.02 | N15: 1024 | O15: 0.687 | P15: 79 | Q15: 0.053
A16: ='Practice list'!C11 -> Healy Medical Centre | B16: ='Practice list'!B11 -> F84720 | C16: 5773 | D16: 4538 | E16: 0.786 | F16: 1047 | G16: 0.231 | H16: 230 | I16: 0.051 | J16: 118 | K16: 0.026 | L16: 85 | M16: 0.019 | N16: 2772 | O16: 0.611 | P16: 282 | Q16: 0.062
A17: ='Practice list'!C12 -> Cedar Practice | B17: ='Practice list'!B12 -> F84036 | C17: 8379 | D17: 7265 | E17: 0.867 | F17: 2449 | G17: 0.337 | H17: 390 | I17: 0.054 | J17: 169 | K17: 0.023 | L17: 113 | M17: 0.016 | N17: 4936 | O17: 0.679 | P17: 499 | Q17: 0.069
A18: ='Practice list'!C13 -> Statham Grove Surgery | B18: ='Practice list'!B13 -> F84115 | C18: 8706 | D18: 7471 | E18: 0.858 | F18: 2192 | G18: 0.293 | H18: 279 | I18: 0.037 | J18: 107 | K18: 0.014 | L18: 72 | M18: 0.01 | N18: 4868 | O18: 0.652 | P18: 514 | Q18: 0.069
A19: ='Practice list'!C14 -> The Heron Practice | B19: ='Practice list'!B14 -> F84119 | C19: 12450 | D19: 10410 | E19: 0.836 | F19: 3762 | G19: 0.361 | H19: 599 | I19: 0.058 | J19: 262 | K19: 0.025 | L19: 163 | M19: 0.016 | N19: 7513 | O19: 0.722 | P19: 765 | Q19: 0.073
A20: ='Practice list'!C15 -> Allerton Road Medical Centre | B20: ='Practice list'!B15 -> F84716 | C20: 5861 | D20: 4432 | E20: 0.756 | F20: 1397 | G20: 0.315 | H20: 233 | I20: 0.053 | J20: 91 | K20: 0.021 | L20: 46 | M20: 0.01 | N20: 3040 | O20: 0.686 | P20: 211 | Q20: 0.048
A21: ='Practice list'!C16 -> Barton House Health Centre | B21: ='Practice list'!B16 -> F84008 | C21: 12161 | D21: 10166 | E21: 0.836 | F21: 3482 | G21: 0.343 | H21: 519 | I21: 0.051 | J21: 222 | K21: 0.022 | L21: 138 | M21: 0.014 | N21: 6662 | O21: 0.655 | P21: 760 | Q21: 0.075
A22: ='Practice list'!C17 -> Somerford Grove Practice | B22: ='Practice list'!B17 -> F84033 | C22: 11999 | D22: 10258 | E22: 0.855 | F22: 3912 | G22: 0.381 | H22: 728 | I22: 0.071 | J22: 336 | K22: 0.033 | L22: 207 | M22: 0.02 | N22: 7963 | O22: 0.776 | P22: 865 | Q22: 0.084
A23: ='Practice list'!C18 -> Barretts Grove Surgery | B23: ='Practice list'!B18 -> F84636 | C23: 6826 | D23: 6078 | E23: 0.89 | F23: 1962 | G23: 0.323 | H23: 240 | I23: 0.039 | J23: 128 | K23: 0.021 | L23: 79 | M23: 0.013 | N23: 4085 | O23: 0.672 | P23: 362 | Q23: 0.06
A24: ='Practice list'!C19 -> Brooke Road Surgery | B24: ='Practice list'!B19 -> F84694 | C24: 4681 | D24: 4132 | E24: 0.883 | F24: 1439 | G24: 0.348 | H24: 197 | I24: 0.048 | J24: 74 | K24: 0.018 | L24: 40 | M24: 0.01 | N24: 2789 | O24: 0.675 | P24: 325 | Q24: 0.079
A25: ='Practice list'!C20 -> Lower Clapton Group Practice | B25: ='Practice list'!B20 -> F84003 | C25: =SUMIFS(OFFSET(REL_D,,MATCH(C$1,IND,0)-2),REL_D,$D$3,OrgID,$B25) -> 14879 | D25: 12503 | E25: 0.84 | F25: 4126 | G25: 0.33 | H25: 743 | I25: 0.059 | J25: 317 | K25: 0.025 | L25: 228 | M25: 0.018 | N25: 8044 | O25: 0.643 | P25: 1008 | Q25: 0.081
A26: ='Practice list'!C21 -> Kingsmead Healthcare | B26: ='Practice list'!B21 -> F84015 | C26: 5314 | D26: 4336 | E26: 0.816 | F26: 1970 | G26: 0.454 | H26: 452 | I26: 0.104 | J26: 222 | K26: 0.051 | L26: 153 | M26: 0.035 | N26: 3161 | O26: 0.729 | P26: 401 | Q26: 0.092
A27: ='Practice list'!C22 -> Athena Medical Centre | B27: ='Practice list'!B22 -> F84060 | C27: 4999 | D27: 4338 | E27: 0.868 | F27: 1202 | G27: 0.277 | H27: 240 | I27: 0.055 | J27: 97 | K27: 0.022 | L27: 60 | M27: 0.014 | N27: 2728 | O27: 0.629 | P27: 284 | Q27: 0.065
A28: ='Practice list'!C23 -> The Lea Surgery | B28: ='Practice list'!B23 -> F84105 | C28: 11621 | D28: 9631 | E28: 0.829 | F28: 3136 | G28: 0.326 | H28: 643 | I28: 0.067 | J28: 282 | K28: 0.029 | L28: 212 | M28: 0.022 | N28: 6599 | O28: 0.685 | P28: 689 | Q28: 0.072
A29: ='Practice list'!C24 -> Latimer Health Centre | B29: ='Practice list'!B24 -> F84719 | C29: 5196 | D29: 4512 | E29: 0.868 | F29: 3385 | G29: 0.75 | H29: 437 | I29: 0.097 | J29: 197 | K29: 0.044 | L29: 125 | M29: 0.028 | N29: 3182 | O29: 0.705 | P29: 254 | Q29: 0.056
A30: ='Practice list'!C25 -> The Well Street Surgery | B30: ='Practice list'!B25 -> F84069 | C30: 14239 | D30: 11897 | E30: 0.836 | F30: 3332 | G30: 0.28 | H30: 649 | I30: 0.055 | J30: 318 | K30: 0.027 | L30: 232 | M30: 0.02 | N30: 7156 | O30: 0.601 | P30: 848 | Q30: 0.071
A31: ='Practice list'!C26 -> Elsdale Street Surgery | B31: ='Practice list'!B26 -> F84601 | C31: 7625 | D31: 6372 | E31: 0.836 | F31: 1739 | G31: 0.273 | H31: 338 | I31: 0.053 | J31: 144 | K31: 0.023 | L31: 109 | M31: 0.017 | N31: 3982 | O31: 0.625 | P31: 495 | Q31: 0.078
A32: ='Practice list'!C27 -> The Wick Health Centre | B32: ='Practice list'!B27 -> F84620 | C32: 8127 | D32: 6815 | E32: 0.839 | F32: 2407 | G32: 0.353 | H32: 552 | I32: 0.081 | J32: 294 | K32: 0.043 | L32: 175 | M32: 0.026 | N32: 4086 | O32: 0.6 | P32: 524 | Q32: 0.077
A33: ='Practice list'!C28 -> The Greenhouse | B33: ='Practice list'!B28 -> F84632 | C33: 1240 | D33: 1240 | E33: 1 | F33: 561 | G33: 0.452 | H33: 66 | I33: 0.053 | J33: 27 | K33: 0.022 | L33: 16 | M33: 0.013 | N33: 805 | O33: 0.649 | P33: 420 | Q33: 0.339
A34: ='Practice list'!C29 -> Trowbridge Surgery | B34: ='Practice list'!B29 -> Y00403 | C34: 7997 | D34: 6945 | E34: 0.868 | F34: 1389 | G34: 0.2 | H34: 209 | I34: 0.03 | J34: 100 | K34: 0.014 | L34: 69 | M34: 0.01 | N34: 3838 | O34: 0.553 | P34: 355 | Q34: 0.051
A35: ='Practice list'!C30 -> London Fields Medical Centre | B35: ='Practice list'!B30 -> F84021 | C35: 11106 | D35: 9571 | E35: 0.862 | F35: 2559 | G35: 0.267 | H35: 406 | I35: 0.042 | J35: 203 | K35: 0.021 | L35: 128 | M35: 0.013 | N35: 6332 | O35: 0.662 | P35: 661 | Q35: 0.069
A36: ='Practice list'!C31 -> Richmond Road Medical Centre | B36: ='Practice list'!B31 -> F84035 | C36: 21019 | D36: 19102 | E36: =IFERROR(D36/$C36,"N/A") -> 0.909 | F36: 4390 | G36: =IFERROR(F36/$D36,"N/A") -> 0.23 | H36: 424 | I36: =IFERROR(H36/$D36,"N/A") -> 0.022 | J36: 161 | K36: =IFERROR(J36/$D36,"N/A") -> 0.008 | L36: 111 | M36: =IFERROR(L36/$D36,"N/A") -> 0.006 | N36: 12106 | O36: =IFERROR(N36/$D36,"N/A") -> 0.634 | P36: 1040 | Q36: =IFERROR(P36/$D36,"N/A") -> 0.054
A37: ='Practice list'!C32 -> Beechwood Medical Centre | B37: ='Practice list'!B32 -> F84038 | C37: 3844 | D37: 3382 | E37: 0.88 | F37: 1432 | G37: 0.423 | H37: 266 | I37: 0.079 | J37: 139 | K37: 0.041 | L37: 85 | M37: 0.025 | N37: 2316 | O37: 0.685 | P37: 329 | Q37: 0.097
A38: ='Practice list'!C33 -> Dalston Practice | B38: ='Practice list'!B33 -> F84063 | C38: 6378 | D38: 5615 | E38: 0.88 | F38: 1437 | G38: 0.256 | H38: 258 | I38: 0.046 | J38: 130 | K38: 0.023 | L38: 75 | M38: 0.013 | N38: 3312 | O38: 0.59 | P38: 433 | Q38: 0.077
A39: ='Practice list'!C34 -> Queensbridge Group Practice | B39: ='Practice list'!B34 -> F84117 | C39: 10106 | D39: 8764 | E39: =IFERROR(D39/$C39,"N/A") -> 0.867 | F39: 1797 | G39: =IFERROR(F39/$D39,"N/A") -> 0.205 | H39: 290 | I39: =IFERROR(H39/$D39,"N/A") -> 0.033 | J39: 121 | K39: =IFERROR(J39/$D39,"N/A") -> 0.014 | L39: 88 | M39: =IFERROR(L39/$D39,"N/A") -> 0.01 | N39: 5093 | O39: =IFERROR(N39/$D39,"N/A") -> 0.581 | P39: 471 | Q39: =IFERROR(P39/$D39,"N/A") -> 0.054
A40: ='Practice list'!C35 -> The Sandringham Practice | B40: ='Practice list'!B35 -> F84621 | C40: 4565 | D40: 3969 | E40: =IFERROR(D40/$C40,"N/A") -> 0.869 | F40: 1456 | G40: =IFERROR(F40/$D40,"N/A") -> 0.367 | H40: 277 | I40: =IFERROR(H40/$D40,"N/A") -> 0.07 | J40: 124 | K40: =IFERROR(J40/$D40,"N/A") -> 0.031 | L40: 64 | M40: =IFERROR(L40/$D40,"N/A") -> 0.016 | N40: 2604 | O40: =IFERROR(N40/$D40,"N/A") -> 0.656 | P40: 306 | Q40: =IFERROR(P40/$D40,"N/A") -> 0.077
A41: ='Practice list'!C36 -> The Neaman Practice | B41: ='Practice list'!B36 -> F84640 | C41: 9150 | D41: 8434 | E41: 0.922 | F41: 1618 | G41: 0.192 | H41: 216 | I41: 0.026 | J41: 81 | K41: 0.01 | L41: 54 | M41: 0.006 | N41: 5487 | O41: 0.651 | P41: 235 | Q41: 0.028
A42: ='Practice list'!C37 -> De Beauvoir Surgery | B42: ='Practice list'!B37 -> F84072 | C42: 12595 | D42: 10866 | E42: 0.863 | F42: 2789 | G42: 0.257 | H42: 335 | I42: 0.031 | J42: 155 | K42: 0.014 | L42: 111 | M42: 0.01 | N42: 7300 | O42: 0.672 | P42: 554 | Q42: 0.051
A43: ='Practice list'!C38 -> The Lawson Practice | B43: ='Practice list'!B38 -> F84096 | C43: 16293 | D43: 13977 | E43: 0.858 | F43: 4015 | G43: 0.287 | H43: 839 | I43: 0.06 | J43: 350 | K43: 0.025 | L43: 270 | M43: 0.019 | N43: 8361 | O43: 0.598 | P43: 896 | Q43: 0.064
A44: ='Practice list'!C39 -> Shoreditch Park Surgery | B44: ='Practice list'!B39 -> F84635 | C44: 9198 | D44: 7969 | E44: 0.866 | F44: 2062 | G44: 0.259 | H44: 367 | I44: 0.046 | J44: 176 | K44: 0.022 | L44: 107 | M44: 0.013 | N44: 5414 | O44: 0.679 | P44: 596 | Q44: 0.075
A45: ='Practice list'!C40 -> The Hoxton Surgery | B45: ='Practice list'!B40 -> F84692 | C45: 9107 | D45: 8132 | E45: =IFERROR(D45/$C45,"N/A") -> 0.893 | F45: 1930 | G45: =IFERROR(F45/$D45,"N/A") -> 0.237 | H45: 307 | I45: =IFERROR(H45/$D45,"N/A") -> 0.038 | J45: 130 | K45: =IFERROR(J45/$D45,"N/A") -> 0.016 | L45: 86 | M45: =IFERROR(L45/$D45,"N/A") -> 0.011 | N45: 5029 | O45: =IFERROR(N45/$D45,"N/A") -> 0.618 | P45: 475 | Q45: =IFERROR(P45/$D45,"N/A") -> 0.058
B46: ='Practice list'!A43 -> 0
B47: ='Practice list'!A44 -> 0
B48: ='Practice list'!A45 -> 0
B49: ='Practice list'!A46 -> 0
B50: ='Practice list'!A47 -> 0
B51: ='Practice list'!A48 -> 0
B52: ='Practice list'!A49 -> 0
B53: ='Practice list'!A50 -> 0
B54: ='Practice list'!A51 -> 0
B55: ='Practice list'!A52 -> 0
B56: ='Practice list'!A53 -> 0
B57: ='Practice list'!A54 -> 0
B58: ='Practice list'!A55 -> 0
B59: ='Practice list'!A56 -> 0
B60: ='Practice list'!A57 -> 0
B61: ='Practice list'!A58 -> 0

Sheet Hypertension
C1: 01. Listsize | D1: =INDEX('Control Panel'!$B$19:$B$24,COLUMN(D1)-COLUMN($D$1)+1) -> LDP.02: Hypertension Register | E1: =INDEX('Control Panel'!$B$19:$B$24,COLUMN(E1)-COLUMN($D$1)+1) -> %LDP.02: Hypertension Register | F1: =INDEX('Control Panel'!$B$19:$B$24,COLUMN(F1)-COLUMN($D$1)+1) -> LDP.02.02: Hypertension BP recorded (last 12m) | G1: =INDEX('Control Panel'!$B$19:$B$24,COLUMN(G1)-COLUMN($D$1)+1) -> %LDP.02.02: Hypertension BP recorded (last 12m) | H1: =INDEX('Control Panel'!$B$19:$B$24,COLUMN(H1)-COLUMN($D$1)+1) -> LDP.02.01: Hypertension and BP < 140/90 (age under 80) < 150/90 (Age 80+) | I1: =INDEX('Control Panel'!$B$19:$B$24,COLUMN(I1)-COLUMN($D$1)+1) -> %LDP.02.01: Hypertension and BP < 140/90 (age under 80) < 150/90 (Age 80+)
C2: City and Hackney - Practice Clinical Trends (LDP) Report
B3: =VLOOKUP(C3,'Control Panel'!O16:P27,2,FALSE) -> 2024-04-01 | C3: March 2024 | D3: =VLOOKUP(C3,'Control Panel'!O16:P27,2,FALSE) -> 2024-04-01
B4: 2019-07-01 | C4: ='Control Panel'!B18 -> Hypertension
A5: Home | B5: 2019-10-01 | C5: =VLOOKUP(C1,'Control Panel'!$B$3:$C$132,2,FALSE) -> List Size | D5: =VLOOKUP(D1,'Control Panel'!$B$3:$D$132,3,FALSE) -> Hypertension Register | E5: =VLOOKUP(E1,'Control Panel'!$B$3:$D$132,3,FALSE) -> % list size | F5: =VLOOKUP(F1,'Control Panel'!$B$3:$D$132,3,FALSE) -> Hypertension and BP (last 12m) | G5: =VLOOKUP(G1,'Control Panel'!$B$3:$D$132,3,FALSE) -> % Hypertension Register | H5: =VLOOKUP(H1,'Control Panel'!$B$3:$D$132,3,FALSE) -> Hypertension and BP < 140/90 (Patients aged under 80) < 150/90 ( Aged 80 and over) (last 12m) | I5: =VLOOKUP(I1,'Control Panel'!$B$3:$D$132,3,FALSE) -> % Hypertension Register
A6: Practice Name | B6: Total | C6: =SUM(C7:C45) -> 347970 | D6: =SUM(D7:D45) -> 31553 | E6: =IFERROR(D6/C6,"N/A") -> 0.091 | F6: =SUM(F7:F45) -> 28735 | G6: =IFERROR(F6/D6,"N/A") -> 0.911 | H6: =SUM(H7:H45) -> 21458 | I6: =IFERROR(H6/D6,"N/A") -> 0.68
A7: ='Practice list'!C2 -> Stamford Hill Surgery | B7: ='Practice list'!B2 -> F84013 | C7: =SUMIFS(OFFSET(REL_D,,MATCH(C$1,IND,0)-2),REL_D,$D$3,OrgID,$B7) -> 17922 | D7: 1051 | E7: =IFERROR(D7/C7,"N/A") -> 0.059 | F7: =SUMIFS(OFFSET(REL_D,,MATCH(F$1,IND,0)-2),REL_D,$D$3,OrgID,$B7) -> 988 | G7: =IFERROR(F7/D7,"N/A") -> 0.94 | H7: =SUMIFS(OFFSET(REL_D,,MATCH(H$1,IND,0)-2),REL_D,$D$3,OrgID,$B7) -> 741 | I7: =IFERROR(H7/D7,"N/A") -> 0.705
A8: ='Practice list'!C3 -> Cranwich Road Surgery | B8: ='Practice list'!B3 -> F84686 | C8: 8923 | D8: 377 | E8: 0.042 | F8: 353 | G8: 0.936 | H8: 284 | I8: 0.753
A9: ='Practice list'!C4 -> Spring Hill Practice | B9: ='Practice list'!B4 -> Y03049 | C9: 16327 | D9: 1303 | E9: 0.08 | F9: 1183 | G9: 0.908 | H9: 875 | I9: 0.672
A10: ='Practice list'!C5 -> The Nightingale Practice | B10: ='Practice list'!B5 -> F84018 | C10: 12242 | D10: 1252 | E10: 0.102 | F10: 1184 | G10: 0.946 | H10: 826 | I10: 0.66
A11: ='Practice list'!C6 -> The Gadvhi Practice | B11: ='Practice list'!B6 -> F84080 | C11: 5118 | D11: 690 | E11: 0.135 | F11: 635 | G11: 0.92 | H11: 492 | I11: 0.713
A12: ='Practice list'!C7 -> The Riverside Practice | B12: ='Practice list'!B7 -> F84619 | C12: 5145 | D12: 502 | E12: 0.098 | F12: 468 | G12: 0.932 | H12: 359 | I12: 0.715
A13: ='Practice list'!C8 -> Clapton Surgery | B13: ='Practice list'!B8 -> F84668 | C13: 6068 | D13: 555 | E13: 0.091 | F13: 500 | G13: 0.901 | H13: 392 | I13: 0.706
A14: ='Practice list'!C9 -> Elm Practice | B14: ='Practice list'!B9 -> F84685 | C14: 3003 | D14: 337 | E14: 0.112 | F14: 309 | G14: 0.917 | H14: 250 | I14: 0.742
A15: ='Practice list'!C10 -> Rosewood Practice | B15: ='Practice list'!B10 -> F84711 | C15: 1788 | D15: 290 | E15: 0.162 | F15: 267 | G15: 0.921 | H15: 195 | I15: 0.672
A16: ='Practice list'!C11 -> Healy Medical Centre | B16: ='Practice list'!B11 -> F84720 | C16: 5773 | D16: 746 | E16: 0.129 | F16: 629 | G16: 0.843 | H16: 457 | I16: 0.613
A17: ='Practice list'!C12 -> Cedar Practice | B17: ='Practice list'!B12 -> F84036 | C17: 8379 | D17: 808 | E17: 0.096 | F17: 730 | G17: 0.903 | H17: 548 | I17: 0.678
A18: ='Practice list'!C13 -> Statham Grove Surgery | B18: ='Practice list'!B13 -> F84115 | C18: 8706 | D18: 652 | E18: 0.075 | F18: 581 | G18: 0.891 | H18: 441 | I18: 0.676
A19: ='Practice list'!C14 -> The Heron Practice | B19: ='Practice list'!B14 -> F84119 | C19: 12450 | D19: 1218 | E19: 0.098 | F19: 1102 | G19: 0.905 | H19: 829 | I19: 0.681
A20: ='Practice list'!C15 -> Allerton Road Medical Centre | B20: ='Practice list'!B15 -> F84716 | C20: 5861 | D20: 396 | E20: 0.068 | F20: 376 | G20: 0.949 | H20: 278 | I20: 0.702
A21: ='Practice list'!C16 -> Barton House Health Centre | B21: ='Practice list'!B16 -> F84008 | C21: 12161 | D21: 1416 | E21: 0.116 | F21: 1297 | G21: 0.916 | H21: 895 | I21: 0.632
A22: ='Practice list'!C17 -> Somerford Grove Practice | B22: ='Practice list'!B17 -> F84033 | C22: 11999 | D22: 1344 | E22: 0.112 | F22: 1213 | G22: 0.903 | H22: 981 | I22: 0.73
A23: ='Practice list'!C18 -> Barretts Grove Surgery | B23: ='Practice list'!B18 -> F84636 | C23: 6826 | D23: 441 | E23: 0.065 | F23: 415 | G23: 0.941 | H23: 311 | I23: 0.705
A24: ='Practice list'!C19 -> Brooke Road Surgery | B24: ='Practice list'!B19 -> F84694 | C24: 4681 | D24: 343 | E24: 0.073 | F24: 316 | G24: 0.921 | H24: 239 | I24: 0.697
A25: ='Practice list'!C20 -> Lower Clapton Group Practice | B25: ='Practice list'!B20 -> F84003 | C25: =SUMIFS(OFFSET(REL_D,,MATCH(C$1,IND,0)-2),REL_D,$D$3,OrgID,$B25) -> 14879 | D25: 2030 | E25: 0.136 | F25: 1865 | G25: 0.919 | H25: 1435 | I25: 0.707
A26: ='Practice list'!C21 -> Kingsmead Healthcare | B26: ='Practice list'!B21 -> F84015 | C26: 5314 | D26: 885 | E26: 0.167 | F26: 830 | G26: 0.938 | H26: 696 | I26: 0.786
A27: ='Practice list'!C22 -> Athena Medical Centre | B27: ='Practice list'!B22 -> F84060 | C27: 4999 | D27: 604 | E27: 0.121 | F27: 529 | G27: 0.876 | H27: 337 | I27: 0.558
A28: ='Practice list'!C23 -> The Lea Surgery | B28: ='Practice list'!B23 -> F84105 | C28: 11621 | D28: 1104 | E28: 0.095 | F28: 1058 | G28: 0.958 | H28: 773 | I28: 0.7
A29: ='Practice list'!C24 -> Latimer Health Centre | B29: ='Practice list'!B24 -> F84719 | C29: 5196 | D29: 648 | E29: 0.125 | F29: 569 | G29: 0.878 | H29: 437 | I29: 0.674
A30: ='Practice list'!C25 -> The Well Street Surgery | B30: ='Practice list'!B25 -> F84069 | C30: 14239 | D30: 1402 | E30: 0.098 | F30: 1297 | G30: 0.925 | H30: 935 | I30: 0.667
A31: ='Practice list'!C26 -> Elsdale Street Surgery | B31: ='Practice list'!B26 -> F84601 | C31: 7625 | D31: 730 | E31: 0.096 | F31: 638 | G31: 0.874 | H31: 491 | I31: 0.673
A32: ='Practice list'!C27 -> The Wick Health Centre | B32: ='Practice list'!B27 -> F84620 | C32: 8127 | D32: 955 | E32: 0.118 | F32: 908 | G32: 0.951 | H32: 690 | I32: 0.723
A33: ='Practice list'!C28 -> The Greenhouse | B33: ='Practice list'!B28 -> F84632 | C33: 1240 | D33: 126 | E33: 0.102 | F33: 111 | G33: 0.881 | H33: 62 | I33: 0.492
A34: ='Practice list'!C29 -> Trowbridge Surgery | B34: ='Practice list'!B29 -> Y00403 | C34: 7997 | D34: 436 | E34: 0.055 | F34: 402 | G34: 0.922 | H34: 312 | I34: 0.716
A35: ='Practice list'!C30 -> London Fields Medical Centre | B35: ='Practice list'!B30 -> F84021 | C35: 11106 | D35: 1033 | E35: 0.093 | F35: 898 | G35: 0.869 | H35: 661 | I35: 0.64
A36: ='Practice list'!C31 -> Richmond Road Medical Centre | B36: ='Practice list'!B31 -> F84035 | C36: 21019 | D36: 707 | E36: 0.034 | F36: 652 | G36: 0.922 | H36: 482 | I36: 0.682
A37: ='Practice list'!C32 -> Beechwood Medical Centre | B37: ='Practice list'!B32 -> F84038 | C37: 3844 | D37: 432 | E37: 0.112 | F37: 383 | G37: 0.887 | H37: 306 | I37: 0.708
A38: ='Practice list'!C33 -> Dalston Practice | B38: ='Practice list'!B33 -> F84063 | C38: 6378 | D38: 668 | E38: 0.105 | F38: 620 | G38: 0.928 | H38: 485 | I38: 0.726
A39: ='Practice list'!C34 -> Queensbridge Group Practice | B39: ='Practice list'!B34 -> F84117 | C39: 10106 | D39: 886 | E39: 0.088 | F39: 768 | G39: 0.867 | H39: 520 | I39: 0.587
A40: ='Practice list'!C35 -> The Sandringham Practice | B40: ='Practice list'!B35 -> F84621 | C40: 4565 | D40: 530 | E40: =IFERROR(D40/C40,"N/A") -> 0.116 | F40: 486 | G40: =IFERROR(F40/D40,"N/A") -> 0.917 | H40: 379 | I40: =IFERROR(H40/D40,"N/A") -> 0.715
A41: ='Practice list'!C36 -> The Neaman Practice | B41: ='Practice list'!B36 -> F84640 | C41: 9150 | D41: 916 | E41: 0.1 | F41: 814 | G41: 0.889 | H41: 579 | I41: 0.632
A42: ='Practice list'!C37 -> De Beauvoir Surgery | B42: ='Practice list'!B37 -> F84072 | C42: 12595 | D42: 764 | E42: 0.061 | F42: 679 | G42: 0.889 | H42: 498 | I42: 0.652
A43: ='Practice list'!C38 -> The Lawson Practice | B43: ='Practice list'!B38 -> F84096 | C43: 16293 | D43: 1558 | E43: 0.096 | F43: 1418 | G43: 0.91 | H43: 1074 | I43: 0.689
A44: ='Practice list'!C39 -> Shoreditch Park Surgery | B44: ='Practice list'!B39 -> F84635 | C44: 9198 | D44: 803 | E44: 0.087 | F44: 702 | G44: 0.874 | H44: 489 | I44: 0.609
A45: ='Practice list'!C40 -> The Hoxton Surgery | B45: ='Practice list'!B40 -> F84692 | C45: 9107 | D45: 615 | E45: =IFERROR(D45/C45,"N/A") -> 0.068 | F45: 562 | G45: =IFERROR(F45/D45,"N/A") -> 0.914 | H45: 424 | I45: =IFERROR(H45/D45,"N/A") -> 0.689

Sheet CHD
C1: 01. Listsize | D1: =INDEX('Control Panel'!$B$26:$B$39,COLUMN(D1)-COLUMN($D$1)+1) -> LDP.03: CHD Register | E1: =INDEX('Control Panel'!$B$26:$B$39,COLUMN(E1)-COLUMN($D$1)+1) -> %LDP.03: CHD Register | F1: =INDEX('Control Panel'!$B$26:$B$39,COLUMN(F1)-COLUMN($D$1)+1) -> LDP.03.04: CHD Cholesterol recorded (last 12m) | G1: =INDEX('Control Panel'!$B$26:$B$39,COLUMN(G1)-COLUMN($D$1)+1) -> %LDP.03.04: CHD Cholesterol recorded (last 12m) | H1: =INDEX('Control Panel'!$B$26:$B$39,COLUMN(H1)-COLUMN($D$1)+1) -> LDP.03.01: CHD Chol less than 5mmol (last 12m) | I1: =INDEX('Control Panel'!$B$26:$B$39,COLUMN(I1)-COLUMN($D$1)+1) -> %LDP.03.01: CHD Chol less than 5mmol (last 12m) | J1: =INDEX('Control Panel'!$B$26:$B$39,COLUMN(J1)-COLUMN($D$1)+1) -> LDP.03.02: CHD BP less than or equal 150/90 (last 9m) | K1: =INDEX('Control Panel'!$B$26:$B$39,COLUMN(K1)-COLUMN($D$1)+1) -> %LDP.03.02: CHD BP less than or equal 150/90 (last 9m)
C2: City and Hackney - Practice Clinical Trends (LDP) Report
B3: =VLOOKUP(C3,'Control Panel'!O16:P27,2,FALSE) -> 2024-04-01 | C3: March 2024 | D3: =VLOOKUP(C3,'Control Panel'!O16:P27,2,FALSE) -> 2024-04-01
B4: 2019-07-01 | C4: ='Control Panel'!B25 -> CHD
A5: Home | B5: 2019-10-01 | C5: =VLOOKUP(C1,'Control Panel'!$B$3:$C$132,2,FALSE) -> List Size | D5: =VLOOKUP(D1,'Control Panel'!$B$3:$D$132,3,FALSE) -> CHD register | E5: =VLOOKUP(E1,'Control Panel'!$B$3:$D$132,3,FALSE) -> % list size | F5: =VLOOKUP(F1,'Control Panel'!$B$3:$D$132,3,FALSE) -> Cholesterol (last 12m) | G5: =VLOOKUP(G1,'Control Panel'!$B$3:$D$132,3,FALSE) -> % CHD register | H5: =VLOOKUP(H1,'Control Panel'!$B$3:$D$132,3,FALSE) -> Cholesterol < 5 (last 12m) | I5: =VLOOKUP(I1,'Control Panel'!$B$3:$D$132,3,FALSE) -> % CHD register | J5: =VLOOKUP(J1,'Control Panel'!$B$3:$D$132,3,FALSE) -> BP ≤ 150/90 (last 12m) | K5: =VLOOKUP(K1,'Control Panel'!$B$3:$D$132,3,FALSE) -> % CHD register
A6: Practice Name | B6: Total | C6: =SUM(C7:C45) -> 347970 | D6: =SUM(D7:D45) -> 5602 | E6: =IFERROR(D6/C6,"N/A") -> 0.016 | F6: =SUM(F7:F45) -> 4748 | G6: =IFERROR(F6/D6,"N/A") -> 0.848 | H6: =SUM(H7:H45) -> 3820 | I6: =IFERROR(H6/D6,"N/A") -> 0.682 | J6: =SUM(J7:J45) -> 4166 | K6: =IFERROR(J6/D6,"N/A") -> 0.744
A7: ='Practice list'!C2 -> Stamford Hill Surgery | B7: ='Practice list'!B2 -> F84013 | C7: =SUMIFS(OFFSET(REL_D,,MATCH(C$1,IND,0)-2),REL_D,$D$3,OrgID,$B7) -> 17922 | D7: 231 | E7: =IFERROR(D7/C7,"N/A") -> 0.013 | F7: =SUMIFS(OFFSET(REL_D,,MATCH(F$1,IND,0)-2),REL_D,$D$3,OrgID,$B7) -> 196 | G7: =IFERROR(F7/$D7,"N/A") -> 0.848 | H7: =SUMIFS(OFFSET(REL_D,,MATCH(H$1,IND,0)-2),REL_D,$D$3,OrgID,$B7) -> 156 | I7: =IFERROR(H7/$D7,"N/A") -> 0.675 | J7: =SUMIFS(OFFSET(REL_D,,MATCH(J$1,IND,0)-2),REL_D,$D$3,OrgID,$B7) -> 161 | K7: =IFERROR(J7/$D7,"N/A") -> 0.697
A8: ='Practice list'!C3 -> Cranwich Road Surgery | B8: ='Practice list'!B3 -> F84686 | C8: 8923 | D8: 72 | E8: 0.008 | F8: 63 | G8: 0.875 | H8: 58 | I8: 0.806 | J8: 50 | K8: 0.694
A9: ='Practice list'!C4 -> Spring Hill Practice | B9: ='Practice list'!B4 -> Y03049 | C9: 16327 | D9: 265 | E9: 0.016 | F9: 225 | G9: 0.849 | H9: 179 | I9: 0.675 | J9: 207 | K9: 0.781
A10: ='Practice list'!C5 -> The Nightingale Practice | B10: ='Practice list'!B5 -> F84018 | C10: 12242 | D10: 229 | E10: 0.019 | F10: 206 | G10: 0.9 | H10: 149 | I10: 0.651 | J10: 170 | K10: 0.742
A11: ='Practice list'!C6 -> The Gadvhi Practice | B11: ='Practice list'!B6 -> F84080 | C11: 5118 | D11: 102 | E11: 0.02 | F11: 95 | G11: 0.931 | H11: 73 | I11: 0.716 | J11: 83 | K11: 0.814
A12: ='Practice list'!C7 -> The Riverside Practice | B12: ='Practice list'!B7 -> F84619 | C12: 5145 | D12: 98 | E12: 0.019 | F12: 88 | G12: 0.898 | H12: 68 | I12: 0.694 | J12: 70 | K12: 0.714
A13: ='Practice list'!C8 -> Clapton Surgery | B13: ='Practice list'!B8 -> F84668 | C13: 6068 | D13: 58 | E13: 0.01 | F13: 51 | G13: 0.879 | H13: 43 | I13: 0.741 | J13: 43 | K13: 0.741
A14: ='Practice list'!C9 -> Elm Practice | B14: ='Practice list'!B9 -> F84685 | C14: 3003 | D14: 52 | E14: 0.017 | F14: 47 | G14: 0.904 | H14: 38 | I14: 0.731 | J14: 46 | K14: 0.885
A15: ='Practice list'!C10 -> Rosewood Practice | B15: ='Practice list'!B10 -> F84711 | C15: 1788 | D15: 30 | E15: 0.017 | F15: 28 | G15: 0.933 | H15: 24 | I15: 0.8 | J15: 23 | K15: 0.767
A16: ='Practice list'!C11 -> Healy Medical Centre | B16: ='Practice list'!B11 -> F84720 | C16: 5773 | D16: 161 | E16: 0.028 | F16: 127 | G16: 0.789 | H16: 102 | I16: 0.634 | J16: 118 | K16: 0.733
A17: ='Practice list'!C12 -> Cedar Practice | B17: ='Practice list'!B12 -> F84036 | C17: 8379 | D17: 142 | E17: 0.017 | F17: 126 | G17: 0.887 | H17: 103 | I17: 0.725 | J17: 108 | K17: 0.761
A18: ='Practice list'!C13 -> Statham Grove Surgery | B18: ='Practice list'!B13 -> F84115 | C18: 8706 | D18: 166 | E18: 0.019 | F18: 140 | G18: 0.843 | H18: 117 | I18: 0.705 | J18: 129 | K18: 0.777
A19: ='Practice list'!C14 -> The Heron Practice | B19: ='Practice list'!B14 -> F84119 | C19: 12450 | D19: 205 | E19: 0.016 | F19: 179 | G19: 0.873 | H19: 143 | I19: 0.698 | J19: 156 | K19: 0.761
A20: ='Practice list'!C15 -> Allerton Road Medical Centre | B20: ='Practice list'!B15 -> F84716 | C20: 5861 | D20: 79 | E20: 0.013 | F20: 75 | G20: 0.949 | H20: 65 | I20: 0.823 | J20: 56 | K20: 0.709
A21: ='Practice list'!C16 -> Barton House Health Centre | B21: ='Practice list'!B16 -> F84008 | C21: 12161 | D21: 262 | E21: 0.022 | F21: 217 | G21: 0.828 | H21: 161 | I21: 0.615 | J21: 181 | K21: 0.691
A22: ='Practice list'!C17 -> Somerford Grove Practice | B22: ='Practice list'!B17 -> F84033 | C22: 11999 | D22: 268 | E22: 0.022 | F22: 227 | G22: 0.847 | H22: 190 | I22: 0.709 | J22: 209 | K22: 0.78
A23: ='Practice list'!C18 -> Barretts Grove Surgery | B23: ='Practice list'!B18 -> F84636 | C23: 6826 | D23: 65 | E23: 0.01 | F23: 54 | G23: 0.831 | H23: 43 | I23: 0.662 | J23: 54 | K23: 0.831
A24: ='Practice list'!C19 -> Brooke Road Surgery | B24: ='Practice list'!B19 -> F84694 | C24: 4681 | D24: 59 | E24: 0.013 | F24: 52 | G24: 0.881 | H24: 44 | I24: 0.746 | J24: 47 | K24: 0.797
A25: ='Practice list'!C20 -> Lower Clapton Group Practice | B25: ='Practice list'!B20 -> F84003 | C25: =SUMIFS(OFFSET(REL_D,,MATCH(C$1,IND,0)-2),REL_D,$D$3,OrgID,$B25) -> 14879 | D25: 402 | E25: 0.027 | F25: 349 | G25: 0.868 | H25: 270 | I25: 0.672 | J25: 309 | K25: 0.769
A26: ='Practice list'!C21 -> Kingsmead Healthcare | B26: ='Practice list'!B21 -> F84015 | C26: 5314 | D26: 132 | E26: 0.025 | F26: 129 | G26: 0.977 | H26: 98 | I26: 0.742 | J26: 112 | K26: 0.848
A27: ='Practice list'!C22 -> Athena Medical Centre | B27: ='Practice list'!B22 -> F84060 | C27: 4999 | D27: 77 | E27: 0.015 | F27: 51 | G27: 0.662 | H27: 44 | I27: 0.571 | J27: 48 | K27: 0.623
A28: ='Practice list'!C23 -> The Lea Surgery | B28: ='Practice list'!B23 -> F84105 | C28: 11621 | D28: 146 | E28: 0.013 | F28: 131 | G28: 0.897 | H28: 109 | I28: 0.747 | J28: 110 | K28: 0.753
A29: ='Practice list'!C24 -> Latimer Health Centre | B29: ='Practice list'!B24 -> F84719 | C29: 5196 | D29: 104 | E29: 0.02 | F29: 97 | G29: 0.933 | H29: 81 | I29: 0.779 | J29: 66 | K29: 0.635
A30: ='Practice list'!C25 -> The Well Street Surgery | B30: ='Practice list'!B25 -> F84069 | C30: 14239 | D30: 232 | E30: 0.016 | F30: 205 | G30: 0.884 | H30: 172 | I30: 0.741 | J30: 181 | K30: 0.78
A31: ='Practice list'!C26 -> Elsdale Street Surgery | B31: ='Practice list'!B26 -> F84601 | C31: 7625 | D31: 121 | E31: 0.016 | F31: 97 | G31: 0.802 | H31: 86 | I31: 0.711 | J31: 87 | K31: 0.719
A32: ='Practice list'!C27 -> The Wick Health Centre | B32: ='Practice list'!B27 -> F84620 | C32: 8127 | D32: 175 | E32: 0.022 | F32: 149 | G32: 0.851 | H32: 119 | I32: 0.68 | J32: 130 | K32: 0.743
A33: ='Practice list'!C28 -> The Greenhouse | B33: ='Practice list'!B28 -> F84632 | C33: 1240 | D33: 24 | E33: 0.019 | F33: 15 | G33: 0.625 | H33: 12 | I33: 0.5 | J33: 19 | K33: 0.792
A34: ='Practice list'!C29 -> Trowbridge Surgery | B34: ='Practice list'!B29 -> Y00403 | C34: 7997 | D34: 57 | E34: 0.007 | F34: 49 | G34: 0.86 | H34: 39 | I34: 0.684 | J34: 44 | K34: 0.772
A35: ='Practice list'!C30 -> London Fields Medical Centre | B35: ='Practice list'!B30 -> F84021 | C35: 11106 | D35: 195 | E35: 0.018 | F35: 147 | G35: 0.754 | H35: 113 | I35: 0.579 | J35: 141 | K35: 0.723
A36: ='Practice list'!C31 -> Richmond Road Medical Centre | B36: ='Practice list'!B31 -> F84035 | C36: 21019 | D36: 117 | E36: 0.006 | F36: 92 | G36: 0.786 | H36: 70 | I36: 0.598 | J36: 89 | K36: 0.761
A37: ='Practice list'!C32 -> Beechwood Medical Centre | B37: ='Practice list'!B32 -> F84038 | C37: 3844 | D37: 68 | E37: 0.018 | F37: 61 | G37: 0.897 | H37: 55 | I37: 0.809 | J37: 55 | K37: 0.809
A38: ='Practice list'!C33 -> Dalston Practice | B38: ='Practice list'!B33 -> F84063 | C38: 6378 | D38: 128 | E38: 0.02 | F38: 120 | G38: 0.938 | H38: 92 | I38: 0.719 | J38: 98 | K38: 0.766
A39: ='Practice list'!C34 -> Queensbridge Group Practice | B39: ='Practice list'!B34 -> F84117 | C39: 10106 | D39: 196 | E39: =IFERROR(D39/C39,"N/A") -> 0.019 | F39: 145 | G39: =IFERROR(F39/$D39,"N/A") -> 0.74 | H39: 113 | I39: =IFERROR(H39/$D39,"N/A") -> 0.577 | J39: 126 | K39: 0.643
A40: ='Practice list'!C35 -> The Sandringham Practice | B40: ='Practice list'!B35 -> F84621 | C40: 4565 | D40: 76 | E40: 0.017 | F40: 65 | G40: 0.855 | H40: 49 | I40: 0.645 | J40: 51 | K40: 0.671
A41: ='Practice list'!C36 -> The Neaman Practice | B41: ='Practice list'!B36 -> F84640 | C41: 9150 | D41: 185 | E41: 0.02 | F41: 123 | G41: 0.665 | H41: 108 | I41: 0.584 | J41: 111 | K41: 0.6
A42: ='Practice list'!C37 -> De Beauvoir Surgery | B42: ='Practice list'!B37 -> F84072 | C42: 12595 | D42: 95 | E42: 0.008 | F42: 89 | G42: 0.937 | H42: 78 | I42: 0.821 | J42: 78 | K42: 0.821
A43: ='Practice list'!C38 -> The Lawson Practice | B43: ='Practice list'!B38 -> F84096 | C43: 16293 | D43: 309 | E43: 0.019 | F43: 257 | G43: 0.832 | H43: 205 | I43: 0.663 | J43: 232 | K43: 0.751
A44: ='Practice list'!C39 -> Shoreditch Park Surgery | B44: ='Practice list'!B39 -> F84635 | C44: 9198 | D44: 115 | E44: 0.013 | F44: 85 | G44: 0.739 | H44: 70 | I44: 0.609 | J44: 88 | K44: 0.765
A45: ='Practice list'!C40 -> The Hoxton Surgery | B45: ='Practice list'!B40 -> F84692 | C45: 9107 | D45: 104 | E45: =IFERROR(D45/C45,"N/A") -> 0.011 | F45: 96 | G45: =IFERROR(F45/$D45,"N/A") -> 0.923 | H45: 81 | I45: =IFERROR(H45/$D45,"N/A") -> 0.779 | J45: 80 | K45: =IFERROR(J45/$D45,"N/A") -> 0.769

Sheet Stroke
C1: 01. Listsize | D1: LDP.10 Stroke or TIA register | E1: %LDP.10 Stroke or TIA register | F1: LDP.10.01: Stroke/TIA BP recorded (last 12m) | G1: %LDP.10.01: Stroke/TIA BP recorded (last 12m) | H1: LDP.10.02 Patients on Stroke/TIA register with BP <140/90 (12m) | I1: %LDP.10.02 Patients on Stroke/TIA register with BP <140/90 (12m)
C2: City and Hackney - Practice Clinical Trends (LDP) Report
B3: =VLOOKUP(C3,'Control Panel'!O16:P27,2,FALSE) -> 2024-04-01 | C3: March 2024 | D3: =VLOOKUP(C3,'Control Panel'!O16:P27,2,FALSE) -> 2024-04-01
B4: 2019-07-01 | C4: ='Control Panel'!B41 -> Stroke/TIA
A5: Home | B5: 2019-10-01 | C5: =VLOOKUP(C1,'Control Panel'!$B$3:$C$132,2,FALSE) -> List Size | D5: =VLOOKUP(D1,'Control Panel'!$B$3:$D$132,3,FALSE) -> Stroke/TIA register | E5: =VLOOKUP(E1,'Control Panel'!$B$3:$D$132,3,FALSE) -> % list size | F5: =VLOOKUP(F1,'Control Panel'!$B$3:$D$132,3,FALSE) -> Patients on Stroke/TIA register with BP recorded | G5: =VLOOKUP(G1,'Control Panel'!$B$3:$D$132,3,FALSE) -> % of stroke register | H5: =VLOOKUP(H1,'Control Panel'!$B$3:$D$132,3,FALSE) -> Patients on Stroke/TIA register with BP <140/90 (12m) | I5: =VLOOKUP(I1,'Control Panel'!$B$3:$D$132,3,FALSE) -> % of stroke register
A6: Practice Name | B6: Total | C6: =SUM(C7:C45) -> 347970 | D6: =SUM(D7:D45) -> 3179 | E6: =IFERROR(D6/C6,"N/A") -> 0.009 | F6: =SUM(F7:F45) -> 2930 | G6: =IFERROR(F6/D6,"N/A") -> 0.922 | H6: =SUM(H7:H45) -> 2422 | I6: =IFERROR(H6/D6,"N/A") -> 0.762
A7: ='Practice list'!C2 -> Stamford Hill Surgery | B7: ='Practice list'!B2 -> F84013 | C7: =SUMIFS(OFFSET(REL_D,,MATCH(C$1,IND,0)-2),REL_D,$D$3,OrgID,$B7) -> 17922 | D7: 105 | E7: =IFERROR(D7/C7,"N/A") -> 0.006 | F7: =SUMIFS(OFFSET(REL_D,,MATCH(F$1,IND,0)-2),REL_D,$D$3,OrgID,$B7) -> 100 | G7: =IFERROR(F7/D7,"N/A") -> 0.952 | H7: =SUMIFS(OFFSET(REL_D,,MATCH(H$1,IND,0)-2),REL_D,$D$3,OrgID,$B7) -> 75 | I7: =IFERROR(H7/D7,"N/A") -> 0.714
A8: ='Practice list'!C3 -> Cranwich Road Surgery | B8: ='Practice list'!B3 -> F84686 | C8: 8923 | D8: 28 | E8: 0.003 | F8: 28 | G8: 1 | H8: 23 | I8: 0.821
A9: ='Practice list'!C4 -> Spring Hill Practice | B9: ='Practice list'!B4 -> Y03049 | C9: 16327 | D9: 125 | E9: 0.008 | F9: 109 | G9: 0.872 | H9: 87 | I9: 0.696
A10: ='Practice list'!C5 -> The Nightingale Practice | B10: ='Practice list'!B5 -> F84018 | C10: 12242 | D10: 134 | E10: 0.011 | F10: 126 | G10: 0.94 | H10: 102 | I10: 0.761
A11: ='Practice list'!C6 -> The Gadvhi Practice | B11: ='Practice list'!B6 -> F84080 | C11: 5118 | D11: 42 | E11: 0.008 | F11: 40 | G11: 0.952 | H11: 34 | I11: 0.81
A12: ='Practice list'!C7 -> The Riverside Practice | B12: ='Practice list'!B7 -> F84619 | C12: 5145 | D12: 57 | E12: 0.011 | F12: 53 | G12: 0.93 | H12: 46 | I12: 0.807
A13: ='Practice list'!C8 -> Clapton Surgery | B13: ='Practice list'!B8 -> F84668 | C13: 6068 | D13: 33 | E13: 0.005 | F13: 28 | G13: 0.848 | H13: 23 | I13: 0.697
A14: ='Practice list'!C9 -> Elm Practice | B14: ='Practice list'!B9 -> F84685 | C14: 3003 | D14: 30 | E14: 0.01 | F14: 27 | G14: 0.9 | H14: 23 | I14: 0.767
A15: ='Practice list'!C10 -> Rosewood Practice | B15: ='Practice list'!B10 -> F84711 | C15: 1788 | D15: 22 | E15: 0.012 | F15: 22 | G15: 1 | H15: 19 | I15: 0.864
A16: ='Practice list'!C11 -> Healy Medical Centre | B16: ='Practice list'!B11 -> F84720 | C16: 5773 | D16: 87 | E16: 0.015 | F16: 73 | G16: 0.839 | H16: 65 | I16: 0.747
A17: ='Practice list'!C12 -> Cedar Practice | B17: ='Practice list'!B12 -> F84036 | C17: 8379 | D17: 77 | E17: 0.009 | F17: 72 | G17: 0.935 | H17: 59 | I17: 0.766
A18: ='Practice list'!C13 -> Statham Grove Surgery | B18: ='Practice list'!B13 -> F84115 | C18: 8706 | D18: 86 | E18: 0.01 | F18: 75 | G18: 0.872 | H18: 61 | I18: 0.709
A19: ='Practice list'!C14 -> The Heron Practice | B19: ='Practice list'!B14 -> F84119 | C19: 12450 | D19: 118 | E19: 0.009 | F19: 111 | G19: 0.941 | H19: 90 | I19: 0.763
A20: ='Practice list'!C15 -> Allerton Road Medical Centre | B20: ='Practice list'!B15 -> F84716 | C20: 5861 | D20: 47 | E20: 0.008 | F20: 46 | G20: 0.979 | H20: 41 | I20: 0.872
A21: ='Practice list'!C16 -> Barton House Health Centre | B21: ='Practice list'!B16 -> F84008 | C21: 12161 | D21: 161 | E21: 0.013 | F21: 154 | G21: 0.957 | H21: 128 | I21: 0.795
A22: ='Practice list'!C17 -> Somerford Grove Practice | B22: ='Practice list'!B17 -> F84033 | C22: 11999 | D22: 137 | E22: 0.011 | F22: 131 | G22: 0.956 | H22: 115 | I22: 0.839
A23: ='Practice list'!C18 -> Barretts Grove Surgery | B23: ='Practice list'!B18 -> F84636 | C23: 6826 | D23: 43 | E23: 0.006 | F23: 38 | G23: 0.884 | H23: 34 | I23: 0.791
A24: ='Practice list'!C19 -> Brooke Road Surgery | B24: ='Practice list'!B19 -> F84694 | C24: 4681 | D24: 13 | E24: 0.003 | F24: 12 | G24: 0.923 | H24: 7 | I24: 0.538
A25: ='Practice list'!C20 -> Lower Clapton Group Practice | B25: ='Practice list'!B20 -> F84003 | C25: =SUMIFS(OFFSET(REL_D,,MATCH(C$1,IND,0)-2),REL_D,$D$3,OrgID,$B25) -> 14879 | D25: 248 | E25: 0.017 | F25: 236 | G25: 0.952 | H25: 197 | I25: 0.794
A26: ='Practice list'!C21 -> Kingsmead Healthcare | B26: ='Practice list'!B21 -> F84015 | C26: 5314 | D26: 78 | E26: 0.015 | F26: 76 | G26: 0.974 | H26: 60 | I26: 0.769
A27: ='Practice list'!C22 -> Athena Medical Centre | B27: ='Practice list'!B22 -> F84060 | C27: 4999 | D27: 59 | E27: 0.012 | F27: 51 | G27: 0.864 | H27: 35 | I27: 0.593
A28: ='Practice list'!C23 -> The Lea Surgery | B28: ='Practice list'!B23 -> F84105 | C28: 11621 | D28: 95 | E28: 0.008 | F28: 90 | G28: 0.947 | H28: 72 | I28: 0.758
A29: ='Practice list'!C24 -> Latimer Health Centre | B29: ='Practice list'!B24 -> F84719 | C29: 5196 | D29: 79 | E29: 0.015 | F29: 74 | G29: 0.937 | H29: 66 | I29: 0.835
A30: ='Practice list'!C25 -> The Well Street Surgery | B30: ='Practice list'!B25 -> F84069 | C30: 14239 | D30: 136 | E30: 0.01 | F30: 132 | G30: 0.971 | H30: 103 | I30: 0.757
A31: ='Practice list'!C26 -> Elsdale Street Surgery | B31: ='Practice list'!B26 -> F84601 | C31: 7625 | D31: 70 | E31: 0.009 | F31: 68 | G31: 0.971 | H31: 57 | I31: 0.814
A32: ='Practice list'!C27 -> The Wick Health Centre | B32: ='Practice list'!B27 -> F84620 | C32: 8127 | D32: 90 | E32: 0.011 | F32: 82 | G32: 0.911 | H32: 70 | I32: 0.778
A33: ='Practice list'!C28 -> The Greenhouse | B33: ='Practice list'!B28 -> F84632 | C33: 1240 | D33: 10 | E33: 0.008 | F33: 9 | G33: 0.9 | H33: 7 | I33: 0.7
A34: ='Practice list'!C29 -> Trowbridge Surgery | B34: ='Practice list'!B29 -> Y00403 | C34: 7997 | D34: 28 | E34: 0.004 | F34: 27 | G34: 0.964 | H34: 21 | I34: 0.75
A35: ='Practice list'!C30 -> London Fields Medical Centre | B35: ='Practice list'!B30 -> F84021 | C35: 11106 | D35: 106 | E35: 0.01 | F35: 88 | G35: 0.83 | H35: 77 | I35: 0.726
A36: ='Practice list'!C31 -> Richmond Road Medical Centre | B36: ='Practice list'!B31 -> F84035 | C36: 21019 | D36: 71 | E36: 0.003 | F36: 66 | G36: 0.93 | H36: 53 | I36: 0.746
A37: ='Practice list'!C32 -> Beechwood Medical Centre | B37: ='Practice list'!B32 -> F84038 | C37: 3844 | D37: 38 | E37: 0.01 | F37: 37 | G37: 0.974 | H37: 30 | I37: 0.789
A38: ='Practice list'!C33 -> Dalston Practice | B38: ='Practice list'!B33 -> F84063 | C38: 6378 | D38: 46 | E38: 0.007 | F38: 43 | G38: 0.935 | H38: 35 | I38: 0.761
A39: ='Practice list'!C34 -> Queensbridge Group Practice | B39: ='Practice list'!B34 -> F84117 | C39: 10106 | D39: 120 | E39: 0.012 | F39: 108 | G39: 0.9 | H39: 84 | I39: 0.7
A40: ='Practice list'!C35 -> The Sandringham Practice | B40: ='Practice list'!B35 -> F84621 | C40: 4565 | D40: 61 | E40: 0.013 | F40: 58 | G40: 0.951 | H40: 47 | I40: 0.77
A41: ='Practice list'!C36 -> The Neaman Practice | B41: ='Practice list'!B36 -> F84640 | C41: 9150 | D41: 102 | E41: 0.011 | F41: 92 | G41: 0.902 | H41: 84 | I41: 0.824
A42: ='Practice list'!C37 -> De Beauvoir Surgery | B42: ='Practice list'!B37 -> F84072 | C42: 12595 | D42: 81 | E42: 0.006 | F42: 71 | G42: 0.877 | H42: 56 | I42: 0.691
A43: ='Practice list'!C38 -> The Lawson Practice | B43: ='Practice list'!B38 -> F84096 | C43: 16293 | D43: 189 | E43: 0.012 | F43: 165 | G43: 0.873 | H43: 139 | I43: 0.735
A44: ='Practice list'!C39 -> Shoreditch Park Surgery | B44: ='Practice list'!B39 -> F84635 | C44: 9198 | D44: 68 | E44: 0.007 | F44: 61 | G44: 0.897 | H44: 53 | I44: 0.779
A45: ='Practice list'!C40 -> The Hoxton Surgery | B45: ='Practice list'!B40 -> F84692 | C45: 9107 | D45: 59 | E45: =IFERROR(D45/C45,"N/A") -> 0.006 | F45: 51 | G45: =IFERROR(F45/D45,"N/A") -> 0.864 | H45: 44 | I45: =IFERROR(H45/D45,"N/A") -> 0.746

Sheet CVD Risk
C1: 01. Listsize | D1: =INDEX('Control Panel'!$B$49:$B$55,COLUMN(D1)-COLUMN($D$1)+1) -> LDP.05: CVD 25-84yrs (excl CVD) | E1: =INDEX('Control Panel'!$B$49:$B$55,COLUMN(E1)-COLUMN($D$1)+1) -> LDP.05.02: Cardiovascular Risk Score Done (5y) | F1: =INDEX('Control Panel'!$B$49:$B$55,COLUMN(F1)-COLUMN($D$1)+1) -> %LDP.05.02: Cardiovascular Risk Score Done (5y) | G1: =INDEX('Control Panel'!$B$49:$B$55,COLUMN(G1)-COLUMN($D$1)+1) -> LDP.05.01: CVD QRISK greater than or equal 20% | H1: =INDEX('Control Panel'!$B$49:$B$55,COLUMN(H1)-COLUMN($D$1)+1) -> %LDP.05.01: CVD QRISK greater than or equal 20% | I1: =INDEX('Control Panel'!$B$49:$B$55,COLUMN(I1)-COLUMN($D$1)+1) -> LDP.05.01.01: CVD Proxy Annual Review (last 12m) | J1: =INDEX('Control Panel'!$B$49:$B$55,COLUMN(J1)-COLUMN($D$1)+1) -> %LDP.05.01.01: CVD Proxy Annual Review (last 12m) | K1: LDP.05.03: CVD QRISK >=10 & <20 | L1: =INDEX('Control Panel'!$B$49:$B$55,COLUMN(L1)-COLUMN($D$1)+1) -> 
C2: City and Hackney - Practice Clinical Trends (LDP) Report
B3: =VLOOKUP(C3,'Control Panel'!O16:P27,2,FALSE) -> 2024-04-01 | C3: March 2024 | D3: =VLOOKUP(C3,'Control Panel'!O16:P27,2,FALSE) -> 2024-04-01
B4: 2019-07-01 | C4: ='Control Panel'!B48 -> CVD Risk
A5: Home | B5: 2019-10-01 | C5: =VLOOKUP(C1,'Control Panel'!$B$3:$C$132,2,FALSE) -> List Size | D5: =VLOOKUP(D1,'Control Panel'!$B$3:$D$132,3,FALSE) -> Aged 25 to 84 (exc CVD) | E5: =VLOOKUP(E1,'Control Panel'!$B$3:$D$132,3,FALSE) -> QRISK recorded (5 years) | F5: =VLOOKUP(F1,'Control Panel'!$B$3:$D$132,3,FALSE) -> % of patients aged 25 to 84 (exc CVD) | G5: =VLOOKUP(G1,'Control Panel'!$B$3:$D$132,3,FALSE) -> QRISK ≥ 20% | H5: =VLOOKUP(H1,'Control Panel'!$B$3:$D$132,3,FALSE) -> % QRISK Score recorded | I5: =VLOOKUP(I1,'Control Panel'!$B$3:$D$132,3,FALSE) -> QRISK ≥ 20% and proxy review (BP and Chol last 12m) | J5: =VLOOKUP(J1,'Control Panel'!$B$3:$D$132,3,FALSE) -> % Patients with QRISK ≥ 20% | K5: QRISK >=10 & <20 | L5: % QRISK >=10 & <20
A6: Practice Name | B6: Total | C6: =SUM(C7:C45) -> 347970 | D6: =SUM(D7:D45) -> 241080 | E6: =SUM(E7:E45) -> 116541 | F6: =IFERROR(E6/D6,"N/A") -> 0.483 | G6: =SUM(G7:G45) -> 13015 | H6: =IFERROR(G6/E6,"N/A") -> 0.112 | I6: =SUM(I7:I45) -> 9646 | J6: =IFERROR(I6/G6,"N/A") -> 0.741 | K6: =SUM(K7:K45) -> 21334 | L6: =IFERROR(K6/E6,"N/A") -> 0.183
A7: ='Practice list'!C2 -> Stamford Hill Surgery | B7: ='Practice list'!B2 -> F84013 | C7: =SUMIFS(OFFSET(REL_D,,MATCH(C$1,IND,0)-2),REL_D,$D$3,OrgID,$B7) -> 17922 | D7: 7555 | E7: 3324 | F7: =IFERROR(E7/$D7,"N/A") -> 0.44 | G7: =SUMIFS(OFFSET(REL_D,,MATCH(G$1,IND,0)-2),REL_D,$D$3,OrgID,$B7) -> 502 | H7: =IFERROR(G7/$E7,"N/A") -> 0.151 | I7: =SUMIFS(OFFSET(REL_D,,MATCH(I$1,IND,0)-2),REL_D,$D$3,OrgID,$B7) -> 397 | J7: =IFERROR(I7/$G7,"N/A") -> 0.791 | K7: 736 | L7: =IFERROR(K7/$E7,"N/A") -> 0.221
A8: ='Practice list'!C3 -> Cranwich Road Surgery | B8: ='Practice list'!B3 -> F84686 | C8: 8923 | D8: 3270 | E8: 1326 | F8: 0.406 | G8: 196 | H8: 0.148 | I8: 161 | J8: 0.821 | K8: 254 | L8: =IFERROR(K8/$E8,"N/A") -> 0.192
A9: ='Practice list'!C4 -> Spring Hill Practice | B9: ='Practice list'!B4 -> Y03049 | C9: 16327 | D9: 9901 | E9: 4959 | F9: 0.501 | G9: 552 | H9: 0.111 | I9: 417 | J9: 0.755 | K9: 847 | L9: 0.171
A10: ='Practice list'!C5 -> The Nightingale Practice | B10: ='Practice list'!B5 -> F84018 | C10: 12242 | D10: 8430 | E10: 4922 | F10: 0.584 | G10: 539 | H10: 0.11 | I10: 457 | J10: 0.848 | K10: 737 | L10: 0.15
A11: ='Practice list'!C6 -> The Gadvhi Practice | B11: ='Practice list'!B6 -> F84080 | C11: 5118 | D11: 3005 | E11: 1745 | F11: 0.581 | G11: 332 | H11: 0.19 | I11: 240 | J11: 0.723 | K11: 453 | L11: 0.26
A12: ='Practice list'!C7 -> The Riverside Practice | B12: ='Practice list'!B7 -> F84619 | C12: 5145 | D12: 3557 | E12: 1950 | F12: 0.548 | G12: 182 | H12: 0.093 | I12: 150 | J12: 0.824 | K12: 304 | L12: 0.156
A13: ='Practice list'!C8 -> Clapton Surgery | B13: ='Practice list'!B8 -> F84668 | C13: 6068 | D13: 3051 | E13: 1558 | F13: 0.511 | G13: 231 | H13: 0.148 | I13: 191 | J13: 0.827 | K13: 332 | L13: 0.213
A14: ='Practice list'!C9 -> Elm Practice | B14: ='Practice list'!B9 -> F84685 | C14: 3003 | D14: 1921 | E14: 1026 | F14: 0.534 | G14: 149 | H14: 0.145 | I14: 113 | J14: 0.758 | K14: 244 | L14: 0.238
A15: ='Practice list'!C10 -> Rosewood Practice | B15: ='Practice list'!B10 -> F84711 | C15: 1788 | D15: 1250 | E15: 763 | F15: 0.61 | G15: 112 | H15: 0.147 | I15: 96 | J15: 0.857 | K15: 159 | L15: 0.208
A16: ='Practice list'!C11 -> Healy Medical Centre | B16: ='Practice list'!B11 -> F84720 | C16: 5773 | D16: 3604 | E16: 1786 | F16: 0.496 | G16: 291 | H16: 0.163 | I16: 204 | J16: 0.701 | K16: 417 | L16: 0.233
A17: ='Practice list'!C12 -> Cedar Practice | B17: ='Practice list'!B12 -> F84036 | C17: 8379 | D17: 6180 | E17: 5072 | F17: 0.821 | G17: 336 | H17: 0.066 | I17: 259 | J17: 0.771 | K17: 610 | L17: 0.12
A18: ='Practice list'!C13 -> Statham Grove Surgery | B18: ='Practice list'!B13 -> F84115 | C18: 8706 | D18: 6510 | E18: 2634 | F18: 0.405 | G18: 302 | H18: 0.115 | I18: 178 | J18: 0.589 | K18: 566 | L18: 0.215
A19: ='Practice list'!C14 -> The Heron Practice | B19: ='Practice list'!B14 -> F84119 | C19: 12450 | D19: 9005 | E19: 4774 | F19: 0.53 | G19: 541 | H19: 0.113 | I19: 434 | J19: 0.802 | K19: 836 | L19: 0.175
A20: ='Practice list'!C15 -> Allerton Road Medical Centre | B20: ='Practice list'!B15 -> F84716 | C20: 5861 | D20: 3614 | E20: 1301 | F20: 0.36 | G20: 185 | H20: 0.142 | I20: 148 | J20: 0.8 | K20: 264 | L20: 0.203
A21: ='Practice list'!C16 -> Barton House Health Centre | B21: ='Practice list'!B16 -> F84008 | C21: 12161 | D21: 8654 | E21: 5257 | F21: 0.607 | G21: 674 | H21: 0.128 | I21: 420 | J21: 0.623 | K21: 1130 | L21: 0.215
A22: ='Practice list'!C17 -> Somerford Grove Practice | B22: ='Practice list'!B17 -> F84033 | C22: 11999 | D22: 8608 | E22: 7408 | F22: 0.861 | G22: 575 | H22: 0.078 | I22: 451 | J22: 0.784 | K22: 974 | L22: 0.131
A23: ='Practice list'!C18 -> Barretts Grove Surgery | B23: ='Practice list'!B18 -> F84636 | C23: 6826 | D23: 5405 | E23: 2135 | F23: 0.395 | G23: 142 | H23: 0.067 | I23: 117 | J23: 0.824 | K23: 291 | L23: 0.136
A24: ='Practice list'!C19 -> Brooke Road Surgery | B24: ='Practice list'!B19 -> F84694 | C24: 4681 | D24: 3772 | E24: 2533 | F24: 0.672 | G24: 137 | H24: 0.054 | I24: 111 | J24: 0.81 | K24: 201 | L24: 0.079
A25: ='Practice list'!C20 -> Lower Clapton Group Practice | B25: ='Practice list'!B20 -> F84003 | C25: =SUMIFS(OFFSET(REL_D,,MATCH(C$1,IND,0)-2),REL_D,$D$3,OrgID,$B25) -> 14879 | D25: 10223 | E25: 4653 | F25: 0.455 | G25: 651 | H25: 0.14 | I25: 451 | J25: 0.693 | K25: 1156 | L25: 0.248
A26: ='Practice list'!C21 -> Kingsmead Healthcare | B26: ='Practice list'!B21 -> F84015 | C26: 5314 | D26: 3410 | E26: 2225 | F26: 0.652 | G26: 302 | H26: 0.136 | I26: 266 | J26: 0.881 | K26: 462 | L26: 0.208
A27: ='Practice list'!C22 -> Athena Medical Centre | B27: ='Practice list'!B22 -> F84060 | C27: 4999 | D27: 3623 | E27: 1718 | F27: 0.474 | G27: 182 | H27: 0.106 | I27: 130 | J27: 0.714 | K27: 382 | L27: 0.222
A28: ='Practice list'!C23 -> The Lea Surgery | B28: ='Practice list'!B23 -> F84105 | C28: 11621 | D28: 8181 | E28: 3975 | F28: 0.486 | G28: 470 | H28: 0.118 | I28: 392 | J28: 0.834 | K28: 717 | L28: 0.18
A29: ='Practice list'!C24 -> Latimer Health Centre | B29: ='Practice list'!B24 -> F84719 | C29: 5196 | D29: 3767 | E29: 2234 | F29: 0.593 | G29: 229 | H29: 0.103 | I29: 175 | J29: 0.764 | K29: 437 | L29: 0.196
A30: ='Practice list'!C25 -> The Well Street Surgery | B30: ='Practice list'!B25 -> F84069 | C30: 14239 | D30: 10154 | E30: 4537 | F30: 0.447 | G30: 680 | H30: 0.15 | I30: 504 | J30: 0.741 | K30: 996 | L30: 0.22
A31: ='Practice list'!C26 -> Elsdale Street Surgery | B31: ='Practice list'!B26 -> F84601 | C31: 7625 | D31: 5287 | E31: 2106 | F31: 0.398 | G31: 257 | H31: 0.122 | I31: 195 | J31: 0.759 | K31: 454 | L31: 0.216
A32: ='Practice list'!C27 -> The Wick Health Centre | B32: ='Practice list'!B27 -> F84620 | C32: 8127 | D32: 5587 | E32: 2731 | F32: 0.489 | G32: 360 | H32: 0.132 | I32: 294 | J32: 0.817 | K32: 591 | L32: 0.216
A33: ='Practice list'!C28 -> The Greenhouse | B33: ='Practice list'!B28 -> F84632 | C33: 1240 | D33: 1111 | E33: 644 | F33: 0.58 | G33: 55 | H33: 0.085 | I33: 43 | J33: 0.782 | K33: 133 | L33: 0.207
A34: ='Practice list'!C29 -> Trowbridge Surgery | B34: ='Practice list'!B29 -> Y00403 | C34: 7997 | D34: 6230 | E34: 1843 | F34: 0.296 | G34: 117 | H34: 0.063 | I34: 83 | J34: 0.709 | K34: 285 | L34: 0.155
A35: ='Practice list'!C30 -> London Fields Medical Centre | B35: ='Practice list'!B30 -> F84021 | C35: 11106 | D35: 8303 | E35: 3771 | F35: 0.454 | G35: 386 | H35: 0.102 | I35: 308 | J35: 0.798 | K35: 680 | L35: 0.18
A36: ='Practice list'!C31 -> Richmond Road Medical Centre | B36: ='Practice list'!B31 -> F84035 | C36: 21019 | D36: 17698 | E36: 5189 | F36: 0.293 | G36: 285 | H36: 0.055 | I36: 202 | J36: 0.709 | K36: 513 | L36: 0.099
A37: ='Practice list'!C32 -> Beechwood Medical Centre | B37: ='Practice list'!B32 -> F84038 | C37: 3844 | D37: 2863 | E37: 1973 | F37: 0.689 | G37: 199 | H37: 0.101 | I37: 158 | J37: 0.794 | K37: 302 | L37: 0.153
A38: ='Practice list'!C33 -> Dalston Practice | B38: ='Practice list'!B33 -> F84063 | C38: 6378 | D38: 4789 | E38: 2248 | F38: 0.469 | G38: 311 | H38: 0.138 | I38: 244 | J38: 0.785 | K38: 451 | L38: 0.201
A39: ='Practice list'!C34 -> Queensbridge Group Practice | B39: ='Practice list'!B34 -> F84117 | C39: 10106 | D39: 7511 | E39: 3099 | F39: =IFERROR(E39/$D39,"N/A") -> 0.413 | G39: 388 | H39: =IFERROR(G39/$E39,"N/A") -> 0.125 | I39: 234 | J39: =IFERROR(I39/$G39,"N/A") -> 0.603 | K39: 669 | L39: 0.216
A40: ='Practice list'!C35 -> The Sandringham Practice | B40: ='Practice list'!B35 -> F84621 | C40: 4565 | D40: 3344 | E40: 2180 | F40: 0.652 | G40: 195 | H40: 0.089 | I40: 156 | J40: 0.8 | K40: 361 | L40: 0.166
A41: ='Practice list'!C36 -> The Neaman Practice | B41: ='Practice list'!B36 -> F84640 | C41: 9150 | D41: 7185 | E41: 3071 | F41: 0.427 | G41: 459 | H41: 0.149 | I41: 263 | J41: 0.573 | K41: 862 | L41: 0.281
A42: ='Practice list'!C37 -> De Beauvoir Surgery | B42: ='Practice list'!B37 -> F84072 | C42: 12595 | D42: 9874 | E42: 3898 | F42: 0.395 | G42: 267 | H42: 0.068 | I42: 213 | J42: 0.798 | K42: 489 | L42: 0.125
A43: ='Practice list'!C38 -> The Lawson Practice | B43: ='Practice list'!B38 -> F84096 | C43: 16293 | D43: 11274 | E43: 5184 | F43: 0.46 | G43: 693 | H43: 0.134 | I43: 430 | J43: 0.62 | K43: 1109 | L43: 0.214
A44: ='Practice list'!C39 -> Shoreditch Park Surgery | B44: ='Practice list'!B39 -> F84635 | C44: 9198 | D44: 6738 | E44: 2578 | F44: 0.383 | G44: 337 | H44: 0.131 | I44: 217 | J44: 0.644 | K44: 514 | L44: 0.199
A45: ='Practice list'!C40 -> The Hoxton Surgery | B45: ='Practice list'!B40 -> F84692 | C45: 9107 | D45: 6636 | E45: 2211 | F45: =IFERROR(E45/$D45,"N/A") -> 0.333 | G45: 214 | H45: =IFERROR(G45/$E45,"N/A") -> 0.097 | I45: 144 | J45: =IFERROR(I45/$G45,"N/A") -> 0.673 | K45: 416 | L45: 0.188

Sheet Diabetes
C1: 01. Listsize | D1: ='Control Panel'!B57 -> LDP.04: Diabetes Register | E1: =INDEX('Control Panel'!$B$57:$B$106,COLUMN(E1)-COLUMN($D$1)+1) -> %LDP.04: Diabetes Register | F1: ='Control Panel'!B61 -> LDP.04.11: Diabetes and BP in last 12 months | G1: ='Control Panel'!B62 -> %LDP.04.11: Diabetes and BP in last 12 months | H1: ='Control Panel'!B63 -> LDP.04.09: Diabetes BP less than 145/85 (last 12m) | I1: ='Control Panel'!B64 -> %LDP.04.09: Diabetes BP less than 145/85 (last 12m) | J1: ='Control Panel'!B67 -> LDP.04.08: Diabetes Chol less than 5mmol (last 12m) | K1: ='Control Panel'!B68 -> %LDP.04.08: Diabetes Chol less than 5mmol (last 12m) | L1: ='Control Panel'!B69 -> LDP.04.01: Diabetes HbA1c <7.5% OR <59mmol (last 12m) | M1: ='Control Panel'!B70 -> %LDP.04.01: Diabetes HbA1c <7.5% OR <59mmol (last 12m) | N1: ='Control Panel'!B81 -> LDP.04.07: Diabetes Influenza Vaccinations (From August 2018) | O1: ='Control Panel'!B82 -> %LDP.04.07: Diabetes Influenza Vaccinations (From August 2018)
C2: City and Hackney - Practice Clinical Trends (LDP) Report
B3: =VLOOKUP(C3,'Control Panel'!O16:P27,2,FALSE) -> 2024-04-01 | C3: March 2024 | D3: =VLOOKUP(C3,'Control Panel'!O16:P27,2,FALSE) -> 2024-04-01
B4: 2019-07-01 | C4: ='Control Panel'!B56 -> Diabetes
A5: Home | B5: 2019-10-01 | C5: =VLOOKUP(C1,'Control Panel'!$B$3:$C$132,2,FALSE) -> List Size | D5: Diabetes register | E5: % List size | F5: BP (last 12m) | G5: % Diabetes Register | H5: BP < 145/85 (last 12m) | I5: % Diabetes Register | J5: Cholesterol < 5mmols (last 12m) | K5: % Diabetes Register | L5: HbA1c < 59 (last 12m) | M5: % Diabetes register | N5: Flu jab (From August 2023) | O5: % Diabetes Register
A6: Practice Name | B6: Total | C6: =SUM(C7:C45) -> 347970 | D6: =SUM(D7:D45) -> 16740 | E6: =IFERROR(D6/C6,"N/A") -> 0.048 | F6: =SUM(F7:F45) -> 15880 | G6: =IFERROR(F6/D6,"N/A") -> 0.949 | H6: =SUM(H7:H45) -> 12880 | I6: =IFERROR(H6/D6,"N/A") -> 0.769 | J6: =SUM(J7:J45) -> 11204 | K6: =IFERROR(J6/D6,"N/A") -> 0.669 | L6: =SUM(L7:L45) -> 9732 | M6: =IFERROR(L6/D6,"N/A") -> 0.581 | N6: =SUM(N7:N45) -> 8907 | O6: =IFERROR(N6/D6,"N/A") -> 0.532
A7: ='Practice list'!C2 -> Stamford Hill Surgery | B7: ='Practice list'!B2 -> F84013 | C7: =SUMIFS(OFFSET(REL_D,,MATCH(C$1,IND,0)-2),REL_D,$D$3,OrgID,$B7) -> 17922 | D7: 587 | E7: =IFERROR(D7/C7,"N/A") -> 0.033 | F7: =SUMIFS(OFFSET(REL_D,,MATCH(F$1,IND,0)-2),REL_D,$D$3,OrgID,$B7) -> 569 | G7: =IFERROR(F7/$D7,"N/A") -> 0.969 | H7: =SUMIFS(OFFSET(REL_D,,MATCH(H$1,IND,0)-2),REL_D,$D$3,OrgID,$B7) -> 462 | I7: =IFERROR(H7/$D7,"N/A") -> 0.787 | J7: =SUMIFS(OFFSET(REL_D,,MATCH(J$1,IND,0)-2),REL_D,$D$3,OrgID,$B7) -> 402 | K7: =IFERROR(J7/$D7,"N/A") -> 0.685 | L7: =SUMIFS(OFFSET(REL_D,,MATCH(L$1,IND,0)-2),REL_D,$D$3,OrgID,$B7) -> 371 | M7: =IFERROR(L7/$D7,"N/A") -> 0.632 | N7: =SUMIFS(OFFSET(REL_D,,MATCH(N$1,IND,0)-2),REL_D,$D$3,OrgID,$B7) -> 248 | O7: =IFERROR(N7/$D7,"N/A") -> 0.422
A8: ='Practice list'!C3 -> Cranwich Road Surgery | B8: ='Practice list'!B3 -> F84686 | C8: 8923 | D8: 211 | E8: 0.024 | F8: 203 | G8: 0.962 | H8: 161 | I8: 0.763 | J8: 155 | K8: 0.735 | L8: 123 | M8: 0.583 | N8: 96 | O8: 0.455
A9: ='Practice list'!C4 -> Spring Hill Practice | B9: ='Practice list'!B4 -> Y03049 | C9: 16327 | D9: 742 | E9: 0.045 | F9: 704 | G9: 0.949 | H9: 551 | I9: 0.743 | J9: 484 | K9: 0.652 | L9: 438 | M9: 0.59 | N9: 334 | O9: 0.45
A10: ='Practice list'!C5 -> The Nightingale Practice | B10: ='Practice list'!B5 -> F84018 | C10: 12242 | D10: 657 | E10: 0.054 | F10: 641 | G10: 0.976 | H10: 490 | I10: 0.746 | J10: 460 | K10: 0.7 | L10: 369 | M10: 0.562 | N10: 353 | O10: 0.537
A11: ='Practice list'!C6 -> The Gadvhi Practice | B11: ='Practice list'!B6 -> F84080 | C11: 5118 | D11: 348 | E11: 0.068 | F11: 325 | G11: 0.934 | H11: 289 | I11: 0.83 | J11: 228 | K11: 0.655 | L11: 194 | M11: 0.557 | N11: 169 | O11: 0.486
A12: ='Practice list'!C7 -> The Riverside Practice | B12: ='Practice list'!B7 -> F84619 | C12: 5145 | D12: 270 | E12: 0.052 | F12: 257 | G12: 0.952 | H12: 231 | I12: 0.856 | J12: 199 | K12: 0.737 | L12: 168 | M12: 0.622 | N12: 169 | O12: 0.626
A13: ='Practice list'!C8 -> Clapton Surgery | B13: ='Practice list'!B8 -> F84668 | C13: 6068 | D13: 326 | E13: 0.054 | F13: 312 | G13: 0.957 | H13: 262 | I13: 0.804 | J13: 224 | K13: 0.687 | L13: 184 | M13: 0.564 | N13: 177 | O13: 0.543
A14: ='Practice list'!C9 -> Elm Practice | B14: ='Practice list'!B9 -> F84685 | C14: 3003 | D14: 153 | E14: 0.051 | F14: 148 | G14: 0.967 | H14: 130 | I14: 0.85 | J14: 102 | K14: 0.667 | L14: 94 | M14: 0.614 | N14: 78 | O14: 0.51
A15: ='Practice list'!C10 -> Rosewood Practice | B15: ='Practice list'!B10 -> F84711 | C15: 1788 | D15: 165 | E15: 0.092 | F15: 157 | G15: 0.952 | H15: 126 | I15: 0.764 | J15: 110 | K15: 0.667 | L15: 100 | M15: 0.606 | N15: 130 | O15: 0.788
A16: ='Practice list'!C11 -> Healy Medical Centre | B16: ='Practice list'!B11 -> F84720 | C16: 5773 | D16: 432 | E16: 0.075 | F16: 408 | G16: 0.944 | H16: 316 | I16: 0.731 | J16: 275 | K16: 0.637 | L16: 225 | M16: 0.521 | N16: 184 | O16: 0.426
A17: ='Practice list'!C12 -> Cedar Practice | B17: ='Practice list'!B12 -> F84036 | C17: 8379 | D17: 410 | E17: 0.049 | F17: 381 | G17: 0.929 | H17: 303 | I17: 0.739 | J17: 285 | K17: 0.695 | L17: 224 | M17: 0.546 | N17: 211 | O17: 0.515
A18: ='Practice list'!C13 -> Statham Grove Surgery | B18: ='Practice list'!B13 -> F84115 | C18: 8706 | D18: 326 | E18: 0.037 | F18: 300 | G18: 0.92 | H18: 238 | I18: 0.73 | J18: 217 | K18: 0.666 | L18: 182 | M18: 0.558 | N18: 182 | O18: 0.558
A19: ='Practice list'!C14 -> The Heron Practice | B19: ='Practice list'!B14 -> F84119 | C19: 12450 | D19: 633 | E19: 0.051 | F19: 591 | G19: 0.934 | H19: 449 | I19: 0.709 | J19: 432 | K19: 0.682 | L19: 367 | M19: 0.58 | N19: 351 | O19: 0.555
A20: ='Practice list'!C15 -> Allerton Road Medical Centre | B20: ='Practice list'!B15 -> F84716 | C20: 5861 | D20: 220 | E20: 0.038 | F20: 209 | G20: 0.95 | H20: 167 | I20: 0.759 | J20: 158 | K20: 0.718 | L20: 137 | M20: 0.623 | N20: 119 | O20: 0.541
A21: ='Practice list'!C16 -> Barton House Health Centre | B21: ='Practice list'!B16 -> F84008 | C21: 12161 | D21: 644 | E21: 0.053 | F21: 623 | G21: 0.967 | H21: 475 | I21: 0.738 | J21: 417 | K21: 0.648 | L21: 373 | M21: 0.579 | N21: 365 | O21: 0.567
A22: ='Practice list'!C17 -> Somerford Grove Practice | B22: ='Practice list'!B17 -> F84033 | C22: 11999 | D22: 708 | E22: 0.059 | F22: 667 | G22: 0.942 | H22: 585 | I22: 0.826 | J22: 494 | K22: 0.698 | L22: 424 | M22: 0.599 | N22: 382 | O22: 0.54
A23: ='Practice list'!C18 -> Barretts Grove Surgery | B23: ='Practice list'!B18 -> F84636 | C23: 6826 | D23: 247 | E23: 0.036 | F23: 236 | G23: 0.955 | H23: 199 | I23: 0.806 | J23: 173 | K23: 0.7 | L23: 156 | M23: 0.632 | N23: 141 | O23: 0.571
A24: ='Practice list'!C19 -> Brooke Road Surgery | B24: ='Practice list'!B19 -> F84694 | C24: 4681 | D24: 204 | E24: 0.044 | F24: 200 | G24: 0.98 | H24: 172 | I24: 0.843 | J24: 155 | K24: 0.76 | L24: 130 | M24: 0.637 | N24: 116 | O24: 0.569
A25: ='Practice list'!C20 -> Lower Clapton Group Practice | B25: ='Practice list'!B20 -> F84003 | C25: =SUMIFS(OFFSET(REL_D,,MATCH(C$1,IND,0)-2),REL_D,$D$3,OrgID,$B25) -> 14879 | D25: 968 | E25: 0.065 | F25: 921 | G25: 0.951 | H25: 735 | I25: 0.759 | J25: 656 | K25: 0.678 | L25: 503 | M25: 0.52 | N25: 479 | O25: 0.495
A26: ='Practice list'!C21 -> Kingsmead Healthcare | B26: ='Practice list'!B21 -> F84015 | C26: 5314 | D26: 485 | E26: 0.091 | F26: 470 | G26: 0.969 | H26: 431 | I26: 0.889 | J26: 348 | K26: 0.718 | L26: 318 | M26: 0.656 | N26: 262 | O26: 0.54
A27: ='Practice list'!C22 -> Athena Medical Centre | B27: ='Practice list'!B22 -> F84060 | C27: 4999 | D27: 333 | E27: 0.067 | F27: 313 | G27: 0.94 | H27: 231 | I27: 0.694 | J27: 191 | K27: 0.574 | L27: 184 | M27: 0.553 | N27: 177 | O27: 0.532
A28: ='Practice list'!C23 -> The Lea Surgery | B28: ='Practice list'!B23 -> F84105 | C28: 11621 | D28: 699 | E28: 0.06 | F28: 689 | G28: 0.986 | H28: 593 | I28: 0.848 | J28: 509 | K28: 0.728 | L28: 464 | M28: 0.664 | N28: 399 | O28: 0.571
A29: ='Practice list'!C24 -> Latimer Health Centre | B29: ='Practice list'!B24 -> F84719 | C29: 5196 | D29: 353 | E29: 0.068 | F29: 321 | G29: 0.909 | H29: 265 | I29: 0.751 | J29: 254 | K29: 0.72 | L29: 209 | M29: 0.592 | N29: 234 | O29: 0.663
A30: ='Practice list'!C25 -> The Well Street Surgery | B30: ='Practice list'!B25 -> F84069 | C30: 14239 | D30: 728 | E30: 0.051 | F30: 689 | G30: 0.946 | H30: 529 | I30: 0.727 | J30: 458 | K30: 0.629 | L30: 411 | M30: 0.565 | N30: 359 | O30: 0.493
A31: ='Practice list'!C26 -> Elsdale Street Surgery | B31: ='Practice list'!B26 -> F84601 | C31: 7625 | D31: 370 | E31: 0.049 | F31: 342 | G31: 0.924 | H31: 269 | I31: 0.727 | J31: 243 | K31: 0.657 | L31: 210 | M31: 0.568 | N31: 177 | O31: 0.478
A32: ='Practice list'!C27 -> The Wick Health Centre | B32: ='Practice list'!B27 -> F84620 | C32: 8127 | D32: 517 | E32: 0.064 | F32: 505 | G32: 0.977 | H32: 407 | I32: 0.787 | J32: 384 | K32: 0.743 | L32: 326 | M32: 0.631 | N32: 244 | O32: 0.472
A33: ='Practice list'!C28 -> The Greenhouse | B33: ='Practice list'!B28 -> F84632 | C33: 1240 | D33: 69 | E33: 0.056 | F33: 62 | G33: 0.899 | H33: 33 | I33: 0.478 | J33: 40 | K33: 0.58 | L33: 35 | M33: 0.507 | N33: 36 | O33: 0.522
A34: ='Practice list'!C29 -> Trowbridge Surgery | B34: ='Practice list'!B29 -> Y00403 | C34: 7997 | D34: 212 | E34: 0.027 | F34: 205 | G34: 0.967 | H34: 155 | I34: 0.731 | J34: 148 | K34: 0.698 | L34: 119 | M34: 0.561 | N34: 110 | O34: 0.519
A35: ='Practice list'!C30 -> London Fields Medical Centre | B35: ='Practice list'!B30 -> F84021 | C35: 11106 | D35: 533 | E35: 0.048 | F35: 505 | G35: 0.947 | H35: 399 | I35: 0.749 | J35: 349 | K35: 0.655 | L35: 287 | M35: 0.538 | N35: 271 | O35: 0.508
A36: ='Practice list'!C31 -> Richmond Road Medical Centre | B36: ='Practice list'!B31 -> F84035 | C36: 21019 | D36: 419 | E36: 0.02 | F36: 397 | G36: 0.947 | H36: 338 | I36: 0.807 | J36: 269 | K36: 0.642 | L36: 247 | M36: 0.589 | N36: 237 | O36: 0.566
A37: ='Practice list'!C32 -> Beechwood Medical Centre | B37: ='Practice list'!B32 -> F84038 | C37: 3844 | D37: 296 | E37: 0.077 | F37: 277 | G37: 0.936 | H37: 248 | I37: 0.838 | J37: 197 | K37: 0.666 | L37: 156 | M37: 0.527 | N37: 188 | O37: 0.635
A38: ='Practice list'!C33 -> Dalston Practice | B38: ='Practice list'!B33 -> F84063 | C38: 6378 | D38: 438 | E38: 0.069 | F38: 411 | G38: 0.938 | H38: 340 | I38: 0.776 | J38: 319 | K38: 0.728 | L38: 269 | M38: 0.614 | N38: 237 | O38: 0.541
A39: ='Practice list'!C34 -> Queensbridge Group Practice | B39: ='Practice list'!B34 -> F84117 | C39: 10106 | D39: 498 | E39: 0.049 | F39: 462 | G39: 0.928 | H39: 351 | I39: 0.705 | J39: 296 | K39: 0.594 | L39: 289 | M39: 0.58 | N39: 247 | O39: 0.496
A40: ='Practice list'!C35 -> The Sandringham Practice | B40: ='Practice list'!B35 -> F84621 | C40: 4565 | D40: 288 | E40: =IFERROR(D40/C40,"N/A") -> 0.063 | F40: 277 | G40: =IFERROR(F40/$D40,"N/A") -> 0.962 | H40: 233 | I40: =IFERROR(H40/$D40,"N/A") -> 0.809 | J40: 198 | K40: =IFERROR(J40/$D40,"N/A") -> 0.688 | L40: 169 | M40: =IFERROR(L40/$D40,"N/A") -> 0.587 | N40: 167 | O40: =IFERROR(N40/$D40,"N/A") -> 0.58
A41: ='Practice list'!C36 -> The Neaman Practice | B41: ='Practice list'!B36 -> F84640 | C41: 9150 | D41: 240 | E41: 0.026 | F41: 223 | G41: 0.929 | H41: 191 | I41: 0.796 | J41: 165 | K41: 0.688 | L41: 155 | M41: 0.646 | N41: 163 | O41: 0.679
A42: ='Practice list'!C37 -> De Beauvoir Surgery | B42: ='Practice list'!B37 -> F84072 | C42: 12595 | D42: 357 | E42: 0.028 | F42: 336 | G42: 0.941 | H42: 255 | I42: 0.714 | J42: 225 | K42: 0.63 | L42: 224 | M42: 0.627 | N42: 173 | O42: 0.485
A43: ='Practice list'!C38 -> The Lawson Practice | B43: ='Practice list'!B38 -> F84096 | C43: 16293 | D43: 924 | E43: 0.057 | F43: 870 | G43: 0.942 | H43: 727 | I43: 0.787 | J43: 551 | K43: 0.596 | L43: 488 | M43: 0.528 | N43: 489 | O43: 0.529
A44: ='Practice list'!C39 -> Shoreditch Park Surgery | B44: ='Practice list'!B39 -> F84635 | C44: 9198 | D44: 395 | E44: 0.043 | F44: 358 | G44: 0.906 | H44: 280 | I44: 0.709 | J44: 227 | K44: 0.575 | L44: 221 | M44: 0.559 | N44: 228 | O44: 0.577
A45: ='Practice list'!C40 -> The Hoxton Surgery | B45: ='Practice list'!B40 -> F84692 | C45: 9107 | D45: 335 | E45: =IFERROR(D45/C45,"N/A") -> 0.037 | F45: 316 | G45: =IFERROR(F45/$D45,"N/A") -> 0.943 | H45: 264 | I45: =IFERROR(H45/$D45,"N/A") -> 0.788 | J45: 207 | K45: =IFERROR(J45/$D45,"N/A") -> 0.618 | L45: 189 | M45: =IFERROR(L45/$D45,"N/A") -> 0.564 | N45: 225 | O45: =IFERROR(N45/$D45,"N/A") -> 0.672

Sheet Mental Health
C1: 01. Listsize | D1: =INDEX('Control Panel'!$B$108:$B$123,COLUMN(D1)-COLUMN($D$1)+1) -> CSPMH.01 SMI Register | E1: =INDEX('Control Panel'!$B$108:$B$123,COLUMN(E1)-COLUMN($D$1)+1) -> %CSPMH.01 SMI Register | F1: =INDEX('Control Panel'!$B$108:$B$123,COLUMN(F1)-COLUMN($D$1)+1) -> CSPMH.01.02 Smoking Status Recorded (12m) | G1: =INDEX('Control Panel'!$B$108:$B$123,COLUMN(G1)-COLUMN($D$1)+1) -> %CSPMH.01.02 Smoking Status Recorded (12m) | H1: =INDEX('Control Panel'!$B$108:$B$123,COLUMN(H1)-COLUMN($D$1)+1) -> CSPMH.01.02.01 Current Smoker (12m) | I1: =INDEX('Control Panel'!$B$108:$B$123,COLUMN(I1)-COLUMN($D$1)+1) -> %CSPMH.01.02.01 Current Smoker (12m) | J1: =INDEX('Control Panel'!$B$108:$B$123,COLUMN(J1)-COLUMN($D$1)+1) -> CSPMH 01.02.01.01 Ref to clinic 12m | K1: =INDEX('Control Panel'!$B$108:$B$123,COLUMN(K1)-COLUMN($D$1)+1) -> %CSPMH 01.02.01.01 Ref to clinic 12m | L1: =INDEX('Control Panel'!$B$108:$B$123,COLUMN(L1)-COLUMN($D$1)+1) -> CSPMH.01.02.02 Ex-smoker Recorded (latest 12m) | M1: =INDEX('Control Panel'!$B$108:$B$123,COLUMN(M1)-COLUMN($D$1)+1) -> %CSPMH.01.02.02 Ex-smoker Recorded (latest 12m) | N1: =INDEX('Control Panel'!$B$108:$B$123,COLUMN(N1)-COLUMN($D$1)+1) -> CSPMH. 01.03 QRisk Recorded (12m) | O1: =INDEX('Control Panel'!$B$108:$B$123,COLUMN(O1)-COLUMN($D$1)+1) -> %CSPMH. 01.03 QRisk Recorded (12m) | P1: =INDEX('Control Panel'!$B$108:$B$123,COLUMN(P1)-COLUMN($D$1)+1) -> CSPMH. 01.03.02 Qrisk>=20 (12m) | Q1: =INDEX('Control Panel'!$B$108:$B$123,COLUMN(Q1)-COLUMN($D$1)+1) -> %CSPMH. 01.03.02 Qrisk>=20 (12m) | R1: =INDEX('Control Panel'!$B$108:$B$123,COLUMN(R1)-COLUMN($D$1)+1) -> CSPMH. 01.03.01 BP recorded on same day as QRisk (12m) | S1: =INDEX('Control Panel'!$B$108:$B$123,COLUMN(S1)-COLUMN($D$1)+1) -> %CSPMH. 01.03.01 BP recorded on same day as QRisk (12m)
C2: City and Hackney - Practice Clinical Trends (LDP) Report
B3: =VLOOKUP(C3,'Control Panel'!O16:P27,2,FALSE) -> 2024-04-01 | C3: March 2024 | D3: =VLOOKUP(C3,'Control Panel'!O16:P27,2,FALSE) -> 2024-04-01
B4: 2019-07-01 | C4: ='Control Panel'!B107 -> Mental Health
A5: Home | B5: 2019-10-01 | C5: =VLOOKUP(C1,'Control Panel'!$B$3:$C$132,2,FALSE) -> List Size | D5: =VLOOKUP(D1,'Control Panel'!$B$3:$D$132,3,FALSE) -> Mental Health register | E5: =VLOOKUP(E1,'Control Panel'!$B$3:$D$132,3,FALSE) -> % list size | F5: =VLOOKUP(F1,'Control Panel'!$B$3:$D$132,3,FALSE) -> No. of Mental Health Patients with smoking status recorded (last 12m) or never smoked | G5: =VLOOKUP(G1,'Control Panel'!$B$3:$D$132,3,FALSE) -> % Mental Health Register | H5: =VLOOKUP(H1,'Control Panel'!$B$3:$D$132,3,FALSE) -> No. of Mental Health patients recorded as a Smoker | I5: =VLOOKUP(I1,'Control Panel'!$B$3:$D$132,3,FALSE) -> % Mental Health Register | J5: =VLOOKUP(J1,'Control Panel'!$B$3:$D$132,3,FALSE) -> No. of Mental Health Patients who are current smokers & referred to the Stop Smoking Clinic | K5: =VLOOKUP(K1,'Control Panel'!$B$3:$D$132,3,FALSE) -> % Mental Health Register | L5: =VLOOKUP(L1,'Control Panel'!$B$3:$D$132,3,FALSE) -> No. Of Mental Health Patients who are recorded as quitters | M5: =VLOOKUP(M1,'Control Panel'!$B$3:$D$132,3,FALSE) -> % Mental Health Register | N5: =VLOOKUP(N1,'Control Panel'!$B$3:$D$132,3,FALSE) -> Patients with Mental Health with QRISK recorded in the last 12m | O5: =VLOOKUP(O1,'Control Panel'!$B$3:$D$132,3,FALSE) -> % Mental Health Register | P5: =VLOOKUP(P1,'Control Panel'!$B$3:$D$132,3,FALSE) -> Patients with Mental Health with QRISK 20% or higher in the last 12m | Q5: =VLOOKUP(Q1,'Control Panel'!$B$3:$D$132,3,FALSE) -> % patients with QRISK recorded | R5: =VLOOKUP(R1,'Control Panel'!$B$3:$D$132,3,FALSE) -> Patients with Mental Health with BP & QRisk on the same day in the last 12m | S5: =VLOOKUP(S1,'Control Panel'!$B$3:$D$132,3,FALSE) -> % Mental Health Register
A6: Practice Name | B6: Total | C6: =SUM(C7:C45) -> 347970 | D6: =SUM(D7:D45) -> 4914 | E6: =IFERROR(D6/C6,"N/A") -> 0.014 | F6: =SUM(F7:F45) -> 4094 | G6: =IFERROR(F6/D6,"N/A") -> 0.833 | H6: =SUM(H7:H45) -> 1496 | I6: =IFERROR(H6/D6,"N/A") -> 0.304 | J6: =SUM(J7:J45) -> 161 | K6: =IFERROR(J6/D6,"N/A") -> 0.033 | L6: =SUM(L7:L45) -> 482 | M6: =IFERROR(L6/D6,"N/A") -> 0.098 | N6: =SUM(N7:N45) -> 2593 | O6: =IFERROR(N6/D6,"N/A") -> 0.528 | P6: =SUM(P7:P45) -> 480 | Q6: =IFERROR(P6/N6,"N/A") -> 0.185 | R6: =SUM(R7:R45) -> 1683 | S6: =IFERROR(R6/D6,"N/A") -> 0.342
A7: ='Practice list'!C2 -> Stamford Hill Surgery | B7: ='Practice list'!B2 -> F84013 | C7: =SUMIFS(OFFSET(REL_D,,MATCH(C$1,IND,0)-2),REL_D,$D$3,OrgID,$B7) -> 17922 | D7: 148 | E7: =IFERROR(D7/C7,"N/A") -> 0.008 | F7: =SUMIFS(OFFSET(REL_D,,MATCH(F$1,IND,0)-2),REL_D,$D$3,OrgID,$B7) -> 133 | G7: =IFERROR(F7/$D7,"N/A") -> 0.899 | H7: =SUMIFS(OFFSET(REL_D,,MATCH(H$1,IND,0)-2),REL_D,$D$3,OrgID,$B7) -> 34 | I7: =IFERROR(H7/$D7,"N/A") -> 0.23 | J7: =SUMIFS(OFFSET(REL_D,,MATCH(J$1,IND,0)-2),REL_D,$D$3,OrgID,$B7) -> 3 | K7: =IFERROR(J7/$D7,"N/A") -> 0.02 | L7: =SUMIFS(OFFSET(REL_D,,MATCH(L$1,IND,0)-2),REL_D,$D$3,OrgID,$B7) -> 10 | M7: =IFERROR(L7/$D7,"N/A") -> 0.068 | N7: =SUMIFS(OFFSET(REL_D,,MATCH(N$1,IND,0)-2),REL_D,$D$3,OrgID,$B7) -> 70 | O7: =IFERROR(N7/$D7,"N/A") -> 0.473 | P7: =SUMIFS(OFFSET(REL_D,,MATCH(P$1,IND,0)-2),REL_D,$D$3,OrgID,$B7) -> 14 | Q7: =IFERROR(P7/$N7,"N/A") -> 0.2 | R7: =SUMIFS(OFFSET(REL_D,,MATCH(R$1,IND,0)-2),REL_D,$D$3,OrgID,$B7) -> 41 | S7: =IFERROR(R7/$D7,"N/A") -> 0.277
A8: ='Practice list'!C3 -> Cranwich Road Surgery | B8: ='Practice list'!B3 -> F84686 | C8: 8923 | D8: 52 | E8: 0.006 | F8: 50 | G8: 0.962 | H8: 5 | I8: 0.096 | J8: 0 | K8: 0 | L8: 5 | M8: 0.096 | N8: 23 | O8: 0.442 | P8: 4 | Q8: 0.174 | R8: 20 | S8: 0.385
A9: ='Practice list'!C4 -> Spring Hill Practice | B9: ='Practice list'!B4 -> Y03049 | C9: 16327 | D9: 230 | E9: 0.014 | F9: 188 | G9: 0.817 | H9: 62 | I9: 0.27 | J9: 13 | K9: 0.057 | L9: 22 | M9: 0.096 | N9: 128 | O9: 0.557 | P9: 22 | Q9: 0.172 | R9: 91 | S9: 0.396
A10: ='Practice list'!C5 -> The Nightingale Practice | B10: ='Practice list'!B5 -> F84018 | C10: 12242 | D10: 222 | E10: 0.018 | F10: 195 | G10: 0.878 | H10: 83 | I10: 0.374 | J10: 4 | K10: 0.018 | L10: 25 | M10: 0.113 | N10: 131 | O10: 0.59 | P10: 24 | Q10: 0.183 | R10: 91 | S10: 0.41
A11: ='Practice list'!C6 -> The Gadvhi Practice | B11: ='Practice list'!B6 -> F84080 | C11: 5118 | D11: 56 | E11: 0.011 | F11: 55 | G11: 0.982 | H11: 17 | I11: 0.304 | J11: 2 | K11: 0.036 | L11: 5 | M11: 0.089 | N11: 39 | O11: 0.696 | P11: 5 | Q11: 0.128 | R11: 21 | S11: 0.375
A12: ='Practice list'!C7 -> The Riverside Practice | B12: ='Practice list'!B7 -> F84619 | C12: 5145 | D12: 68 | E12: 0.013 | F12: 63 | G12: 0.926 | H12: 19 | I12: 0.279 | J12: 4 | K12: 0.059 | L12: 7 | M12: 0.103 | N12: 38 | O12: 0.559 | P12: 10 | Q12: 0.263 | R12: 21 | S12: 0.309
A13: ='Practice list'!C8 -> Clapton Surgery | B13: ='Practice list'!B8 -> F84668 | C13: 6068 | D13: 61 | E13: 0.01 | F13: 57 | G13: 0.934 | H13: 17 | I13: 0.279 | J13: 0 | K13: 0 | L13: 6 | M13: 0.098 | N13: 42 | O13: 0.689 | P13: 8 | Q13: 0.19 | R13: 40 | S13: 0.656
A14: ='Practice list'!C9 -> Elm Practice | B14: ='Practice list'!B9 -> F84685 | C14: 3003 | D14: 34 | E14: 0.011 | F14: 26 | G14: 0.765 | H14: 9 | I14: 0.265 | J14: 1 | K14: 0.029 | L14: 1 | M14: 0.029 | N14: 23 | O14: 0.676 | P14: 1 | Q14: 0.043 | R14: 20 | S14: 0.588
A15: ='Practice list'!C10 -> Rosewood Practice | B15: ='Practice list'!B10 -> F84711 | C15: 1788 | D15: 18 | E15: 0.01 | F15: 17 | G15: 0.944 | H15: 3 | I15: 0.167 | J15: 0 | K15: 0 | L15: 3 | M15: 0.167 | N15: 12 | O15: 0.667 | P15: 6 | Q15: 0.5 | R15: 11 | S15: 0.611
A16: ='Practice list'!C11 -> Healy Medical Centre | B16: ='Practice list'!B11 -> F84720 | C16: 5773 | D16: 107 | E16: 0.019 | F16: 81 | G16: 0.757 | H16: 25 | I16: 0.234 | J16: 1 | K16: 0.009 | L16: 7 | M16: 0.065 | N16: 32 | O16: 0.299 | P16: 8 | Q16: 0.25 | R16: 26 | S16: 0.243
A17: ='Practice list'!C12 -> Cedar Practice | B17: ='Practice list'!B12 -> F84036 | C17: 8379 | D17: 168 | E17: 0.02 | F17: 136 | G17: 0.81 | H17: 67 | I17: 0.399 | J17: 3 | K17: 0.018 | L17: 17 | M17: 0.101 | N17: 100 | O17: 0.595 | P17: 13 | Q17: 0.13 | R17: 58 | S17: 0.345
A18: ='Practice list'!C13 -> Statham Grove Surgery | B18: ='Practice list'!B13 -> F84115 | C18: 8706 | D18: 97 | E18: 0.011 | F18: 70 | G18: 0.722 | H18: 21 | I18: 0.216 | J18: 5 | K18: 0.052 | L18: 5 | M18: 0.052 | N18: 35 | O18: 0.361 | P18: 6 | Q18: 0.171 | R18: 16 | S18: 0.165
A19: ='Practice list'!C14 -> The Heron Practice | B19: ='Practice list'!B14 -> F84119 | C19: 12450 | D19: 191 | E19: 0.015 | F19: 158 | G19: 0.827 | H19: 57 | I19: 0.298 | J19: 4 | K19: 0.021 | L19: 21 | M19: 0.11 | N19: 104 | O19: 0.545 | P19: 21 | Q19: 0.202 | R19: 71 | S19: 0.372
A20: ='Practice list'!C15 -> Allerton Road Medical Centre | B20: ='Practice list'!B15 -> F84716 | C20: 5861 | D20: 79 | E20: 0.013 | F20: 67 | G20: 0.848 | H20: 14 | I20: 0.177 | J20: 2 | K20: 0.025 | L20: 1 | M20: 0.013 | N20: 37 | O20: 0.468 | P20: 13 | Q20: 0.351 | R20: 20 | S20: 0.253
A21: ='Practice list'!C16 -> Barton House Health Centre | B21: ='Practice list'!B16 -> F84008 | C21: 12161 | D21: 234 | E21: 0.019 | F21: 193 | G21: 0.825 | H21: 83 | I21: 0.355 | J21: 8 | K21: 0.034 | L21: 33 | M21: 0.141 | N21: 137 | O21: 0.585 | P21: 32 | Q21: 0.234 | R21: 79 | S21: 0.338
A22: ='Practice list'!C17 -> Somerford Grove Practice | B22: ='Practice list'!B17 -> F84033 | C22: 11999 | D22: 171 | E22: 0.014 | F22: 144 | G22: 0.842 | H22: 52 | I22: 0.304 | J22: 8 | K22: 0.047 | L22: 7 | M22: 0.041 | N22: 98 | O22: 0.573 | P22: 24 | Q22: 0.245 | R22: 43 | S22: 0.251
A23: ='Practice list'!C18 -> Barretts Grove Surgery | B23: ='Practice list'!B18 -> F84636 | C23: 6826 | D23: 80 | E23: 0.012 | F23: 64 | G23: 0.8 | H23: 19 | I23: 0.238 | J23: 2 | K23: 0.025 | L23: 8 | M23: 0.1 | N23: 32 | O23: 0.4 | P23: 3 | Q23: 0.094 | R23: 7 | S23: 0.088
A24: ='Practice list'!C19 -> Brooke Road Surgery | B24: ='Practice list'!B19 -> F84694 | C24: 4681 | D24: 59 | E24: 0.013 | F24: 51 | G24: 0.864 | H24: 14 | I24: 0.237 | J24: 3 | K24: 0.051 | L24: 9 | M24: 0.153 | N24: 34 | O24: 0.576 | P24: 2 | Q24: 0.059 | R24: 20 | S24: 0.339
A25: ='Practice list'!C20 -> Lower Clapton Group Practice | B25: ='Practice list'!B20 -> F84003 | C25: =SUMIFS(OFFSET(REL_D,,MATCH(C$1,IND,0)-2),REL_D,$D$3,OrgID,$B25) -> 14879 | D25: 300 | E25: 0.02 | F25: 249 | G25: 0.83 | H25: 91 | I25: 0.303 | J25: 11 | K25: 0.037 | L25: 21 | M25: 0.07 | N25: 146 | O25: 0.487 | P25: 25 | Q25: 0.171 | R25: 80 | S25: 0.267
A26: ='Practice list'!C21 -> Kingsmead Healthcare | B26: ='Practice list'!B21 -> F84015 | C26: 5314 | D26: 86 | E26: 0.016 | F26: 83 | G26: 0.965 | H26: 33 | I26: 0.384 | J26: 3 | K26: 0.035 | L26: 13 | M26: 0.151 | N26: 57 | O26: 0.663 | P26: 11 | Q26: 0.193 | R26: 43 | S26: 0.5
A27: ='Practice list'!C22 -> Athena Medical Centre | B27: ='Practice list'!B22 -> F84060 | C27: 4999 | D27: 66 | E27: 0.013 | F27: 59 | G27: 0.894 | H27: 18 | I27: 0.273 | J27: 3 | K27: 0.045 | L27: 8 | M27: 0.121 | N27: 39 | O27: 0.591 | P27: 5 | Q27: 0.128 | R27: 26 | S27: 0.394
A28: ='Practice list'!C23 -> The Lea Surgery | B28: ='Practice list'!B23 -> F84105 | C28: 11621 | D28: 123 | E28: 0.011 | F28: 102 | G28: 0.829 | H28: 38 | I28: 0.309 | J28: 4 | K28: 0.033 | L28: 16 | M28: 0.13 | N28: 78 | O28: 0.634 | P28: 20 | Q28: 0.256 | R28: 60 | S28: 0.488
A29: ='Practice list'!C24 -> Latimer Health Centre | B29: ='Practice list'!B24 -> F84719 | C29: 5196 | D29: 76 | E29: 0.015 | F29: 70 | G29: 0.921 | H29: 13 | I29: 0.171 | J29: 1 | K29: 0.013 | L29: 9 | M29: 0.118 | N29: 44 | O29: 0.579 | P29: 11 | Q29: 0.25 | R29: 31 | S29: 0.408
A30: ='Practice list'!C25 -> The Well Street Surgery | B30: ='Practice list'!B25 -> F84069 | C30: 14239 | D30: 276 | E30: 0.019 | F30: 218 | G30: 0.79 | H30: 93 | I30: 0.337 | J30: 5 | K30: 0.018 | L30: 25 | M30: 0.091 | N30: 150 | O30: 0.543 | P30: 25 | Q30: 0.167 | R30: 97 | S30: 0.351
A31: ='Practice list'!C26 -> Elsdale Street Surgery | B31: ='Practice list'!B26 -> F84601 | C31: 7625 | D31: 127 | E31: 0.017 | F31: 100 | G31: 0.787 | H31: 39 | I31: 0.307 | J31: 3 | K31: 0.024 | L31: 12 | M31: 0.094 | N31: 71 | O31: 0.559 | P31: 21 | Q31: 0.296 | R31: 44 | S31: 0.346
A32: ='Practice list'!C27 -> The Wick Health Centre | B32: ='Practice list'!B27 -> F84620 | C32: 8127 | D32: 157 | E32: 0.019 | F32: 113 | G32: 0.72 | H32: 37 | I32: 0.236 | J32: 4 | K32: 0.025 | L32: 15 | M32: 0.096 | N32: 78 | O32: 0.497 | P32: 10 | Q32: 0.128 | R32: 71 | S32: 0.452
A33: ='Practice list'!C28 -> The Greenhouse | B33: ='Practice list'!B28 -> F84632 | C33: 1240 | D33: 101 | E33: 0.081 | F33: 78 | G33: 0.772 | H33: 66 | I33: 0.653 | J33: 9 | K33: 0.089 | L33: 2 | M33: 0.02 | N33: 50 | O33: 0.495 | P33: 6 | Q33: 0.12 | R33: 38 | S33: 0.376
A34: ='Practice list'!C29 -> Trowbridge Surgery | B34: ='Practice list'!B29 -> Y00403 | C34: 7997 | D34: 94 | E34: 0.012 | F34: 82 | G34: 0.872 | H34: 28 | I34: 0.298 | J34: 3 | K34: 0.032 | L34: 14 | M34: 0.149 | N34: 37 | O34: 0.394 | P34: 7 | Q34: 0.189 | R34: 14 | S34: 0.149
A35: ='Practice list'!C30 -> London Fields Medical Centre | B35: ='Practice list'!B30 -> F84021 | C35: 11106 | D35: 179 | E35: 0.016 | F35: 146 | G35: 0.816 | H35: 60 | I35: 0.335 | J35: 9 | K35: 0.05 | L35: 21 | M35: 0.117 | N35: 102 | O35: 0.57 | P35: 17 | Q35: 0.167 | R35: 67 | S35: 0.374
A36: ='Practice list'!C31 -> Richmond Road Medical Centre | B36: ='Practice list'!B31 -> F84035 | C36: 21019 | D36: 157 | E36: 0.007 | F36: 135 | G36: 0.86 | H36: 33 | I36: 0.21 | J36: 3 | K36: 0.019 | L36: 23 | M36: 0.146 | N36: 49 | O36: 0.312 | P36: 7 | Q36: 0.143 | R36: 38 | S36: 0.242
A37: ='Practice list'!C32 -> Beechwood Medical Centre | B37: ='Practice list'!B32 -> F84038 | C37: 3844 | D37: 78 | E37: 0.02 | F37: 68 | G37: 0.872 | H37: 36 | I37: 0.462 | J37: 2 | K37: 0.026 | L37: 8 | M37: 0.103 | N37: 53 | O37: 0.679 | P37: 3 | Q37: 0.057 | R37: 35 | S37: 0.449
A38: ='Practice list'!C33 -> Dalston Practice | B38: ='Practice list'!B33 -> F84063 | C38: 6378 | D38: 96 | E38: 0.015 | F38: 80 | G38: 0.833 | H38: 30 | I38: 0.313 | J38: 4 | K38: 0.042 | L38: 9 | M38: 0.094 | N38: 51 | O38: 0.531 | P38: 14 | Q38: 0.275 | R38: 37 | S38: 0.385
A39: ='Practice list'!C34 -> Queensbridge Group Practice | B39: ='Practice list'!B34 -> F84117 | C39: 10106 | D39: 136 | E39: =IFERROR(D39/C39,"N/A") -> 0.013 | F39: 106 | G39: =IFERROR(F39/$D39,"N/A") -> 0.779 | H39: 45 | I39: =IFERROR(H39/$D39,"N/A") -> 0.331 | J39: 6 | K39: =IFERROR(J39/$D39,"N/A") -> 0.044 | L39: 16 | M39: =IFERROR(L39/$D39,"N/A") -> 0.118 | N39: 64 | O39: =IFERROR(N39/$D39,"N/A") -> 0.471 | P39: 11 | Q39: 0.172 | R39: 41 | S39: =IFERROR(R39/$D39,"N/A") -> 0.301
A40: ='Practice list'!C35 -> The Sandringham Practice | B40: ='Practice list'!B35 -> F84621 | C40: 4565 | D40: 91 | E40: 0.02 | F40: 78 | G40: 0.857 | H40: 37 | I40: 0.407 | J40: 3 | K40: 0.033 | L40: 9 | M40: 0.099 | N40: 62 | O40: 0.681 | P40: 12 | Q40: 0.194 | R40: 44 | S40: 0.484
A41: ='Practice list'!C36 -> The Neaman Practice | B41: ='Practice list'!B36 -> F84640 | C41: 9150 | D41: 86 | E41: 0.009 | F41: 73 | G41: 0.849 | H41: 16 | I41: 0.186 | J41: 0 | K41: 0 | L41: 11 | M41: 0.128 | N41: 42 | O41: 0.488 | P41: 6 | Q41: 0.143 | R41: 18 | S41: 0.209
A42: ='Practice list'!C37 -> De Beauvoir Surgery | B42: ='Practice list'!B37 -> F84072 | C42: 12595 | D42: 110 | E42: 0.009 | F42: 92 | G42: 0.836 | H42: 21 | I42: 0.191 | J42: 2 | K42: 0.018 | L42: 6 | M42: 0.055 | N42: 53 | O42: 0.482 | P42: 5 | Q42: 0.094 | R42: 29 | S42: 0.264
A43: ='Practice list'!C38 -> The Lawson Practice | B43: ='Practice list'!B38 -> F84096 | C43: 16293 | D43: 280 | E43: 0.017 | F43: 230 | G43: 0.821 | H43: 85 | I43: 0.304 | J43: 11 | K43: 0.039 | L43: 31 | M43: 0.111 | N43: 149 | O43: 0.532 | P43: 29 | Q43: 0.195 | R43: 97 | S43: 0.346
A44: ='Practice list'!C39 -> Shoreditch Park Surgery | B44: ='Practice list'!B39 -> F84635 | C44: 9198 | D44: 130 | E44: 0.014 | F44: 109 | G44: 0.838 | H44: 42 | I44: 0.323 | J44: 9 | K44: 0.069 | L44: 16 | M44: 0.123 | N44: 60 | O44: 0.462 | P44: 11 | Q44: 0.183 | R44: 42 | S44: 0.323
A45: ='Practice list'!C40 -> The Hoxton Surgery | B45: ='Practice list'!B40 -> F84692 | C45: 9107 | D45: 90 | E45: =IFERROR(D45/C45,"N/A") -> 0.01 | F45: 75 | G45: =IFERROR(F45/$D45,"N/A") -> 0.833 | H45: 34 | I45: =IFERROR(H45/$D45,"N/A") -> 0.378 | J45: 3 | K45: =IFERROR(J45/$D45,"N/A") -> 0.033 | L45: 5 | M45: =IFERROR(L45/$D45,"N/A") -> 0.056 | N45: 43 | O45: =IFERROR(N45/$D45,"N/A") -> 0.478 | P45: 8 | Q45: =IFERROR(P45/$N45,"N/A") -> 0.186 | R45: 35 | S45: =IFERROR(R45/$D45,"N/A") -> 0.389

Sheet CKD
C1: 01. Listsize | D1: =INDEX('Control Panel'!$B$125:$B$136,COLUMN(D1)-COLUMN($D$1)+1) -> LDP.08 CKD Register | E1: =INDEX('Control Panel'!$B$125:$B$136,COLUMN(E1)-COLUMN($D$1)+1) -> %LDP.08 CKD Register | F1: =INDEX('Control Panel'!$B$125:$B$136,COLUMN(F1)-COLUMN($D$1)+1) -> LDP.08.03 CKD and BP Recorded (last 12 m) | G1: =INDEX('Control Panel'!$B$125:$B$136,COLUMN(G1)-COLUMN($D$1)+1) -> %LDP.08.03 CKD and BP Recorded (last 12 m) | H1: =INDEX('Control Panel'!$B$125:$B$136,COLUMN(H1)-COLUMN($D$1)+1) -> LDP.08.01 CKD and BP less than 140/90 (last 12 m) | I1: =INDEX('Control Panel'!$B$125:$B$136,COLUMN(I1)-COLUMN($D$1)+1) -> %LDP.08.01 CKD and BP less than 140/90 (last 12 m) | J1: =INDEX('Control Panel'!$B$125:$B$136,COLUMN(J1)-COLUMN($D$1)+1) -> LDP.08.02 CKD Diagnosed (Last 6m) | K1: =INDEX('Control Panel'!$B$125:$B$136,COLUMN(K1)-COLUMN($D$1)+1) -> %LDP.08.02 CKD Diagnosed (Last 6m)
C2: City and Hackney - Practice Clinical Trends (LDP) Report
B3: =VLOOKUP(C3,'Control Panel'!O16:P27,2,FALSE) -> 2024-04-01 | C3: March 2024 | D3: =VLOOKUP(C3,'Control Panel'!O16:P27,2,FALSE) -> 2024-04-01
B4: 2019-07-01 | C4: ='Control Panel'!B124 -> CKD
A5: Home | B5: 2019-10-01 | C5: =VLOOKUP(C1,'Control Panel'!$B$3:$C$132,2,FALSE) -> List Size | D5: =VLOOKUP(D1,'Control Panel'!$B$3:$D$132,3,FALSE) -> No. of patients on CKD register | E5: =VLOOKUP(E1,'Control Panel'!$B$3:$D$132,3,FALSE) -> % List Size | F5: =VLOOKUP(F1,'Control Panel'!$B$3:$D$132,3,FALSE) -> BP Recorded (last 12m) | G5: =VLOOKUP(G1,'Control Panel'!$B$3:$D$132,3,FALSE) -> % CKD register | H5: =VLOOKUP(H1,'Control Panel'!$B$3:$D$132,3,FALSE) -> BP < 140/90 | I5: =VLOOKUP(I1,'Control Panel'!$B$3:$D$132,3,FALSE) -> % CKD register | J5: =VLOOKUP(J1,'Control Panel'!$B$3:$D$132,3,FALSE) -> No of patients with new diagnosis of CKD (last 6m) | K5: =VLOOKUP(K1,'Control Panel'!$B$3:$D$132,3,FALSE) -> % CKD register
A6: Practice Name | B6: Total | C6: =SUM(C7:C45) -> 347970 | D6: =SUM(D7:D45) -> 6652 | E6: =IFERROR(D6/C6,"N/A") -> 0.019 | F6: =SUM(F7:F45) -> 6157 | G6: =IFERROR(F6/D6,"N/A") -> 0.926 | H6: =SUM(H7:H45) -> 4831 | I6: =IFERROR(H6/D6,"N/A") -> 0.726 | J6: =SUM(J7:J45) -> 687 | K6: =IFERROR(J6/D6,"N/A") -> 0.103
A7: ='Practice list'!C2 -> Stamford Hill Surgery | B7: ='Practice list'!B2 -> F84013 | C7: =SUMIFS(OFFSET(REL_D,,MATCH(C$1,IND,0)-2),REL_D,$D$3,OrgID,$B7) -> 17922 | D7: 176 | E7: =IFERROR(D7/C7,"N/A") -> 0.01 | F7: =SUMIFS(OFFSET(REL_D,,MATCH(F$1,IND,0)-2),REL_D,$D$3,OrgID,$B7) -> 170 | G7: =IFERROR(F7/$D7,"N/A") -> 0.966 | H7: =SUMIFS(OFFSET(REL_D,,MATCH(H$1,IND,0)-2),REL_D,$D$3,OrgID,$B7) -> 132 | I7: =IFERROR(H7/$D7,"N/A") -> 0.75 | J7: =SUMIFS(OFFSET(REL_D,,MATCH(J$1,IND,0)-2),REL_D,$D$3,OrgID,$B7) -> 19 | K7: =IFERROR(J7/$D7,"N/A") -> 0.108
A8: ='Practice list'!C3 -> Cranwich Road Surgery | B8: ='Practice list'!B3 -> F84686 | C8: 8923 | D8: 47 | E8: 0.005 | F8: 44 | G8: 0.936 | H8: 35 | I8: 0.745 | J8: 12 | K8: 0.255
A9: ='Practice list'!C4 -> Spring Hill Practice | B9: ='Practice list'!B4 -> Y03049 | C9: 16327 | D9: 272 | E9: 0.017 | F9: 255 | G9: 0.938 | H9: 194 | I9: 0.713 | J9: 17 | K9: 0.063
A10: ='Practice list'!C5 -> The Nightingale Practice | B10: ='Practice list'!B5 -> F84018 | C10: 12242 | D10: 250 | E10: 0.02 | F10: 238 | G10: 0.952 | H10: 200 | I10: 0.8 | J10: 26 | K10: 0.104
A11: ='Practice list'!C6 -> The Gadvhi Practice | B11: ='Practice list'!B6 -> F84080 | C11: 5118 | D11: 105 | E11: 0.021 | F11: 98 | G11: 0.933 | H11: 76 | I11: 0.724 | J11: 18 | K11: 0.171
A12: ='Practice list'!C7 -> The Riverside Practice | B12: ='Practice list'!B7 -> F84619 | C12: 5145 | D12: 122 | E12: 0.024 | F12: 118 | G12: 0.967 | H12: 99 | I12: 0.811 | J12: 9 | K12: 0.074
A13: ='Practice list'!C8 -> Clapton Surgery | B13: ='Practice list'!B8 -> F84668 | C13: 6068 | D13: 87 | E13: 0.014 | F13: 84 | G13: 0.966 | H13: 70 | I13: 0.805 | J13: 5 | K13: 0.057
A14: ='Practice list'!C9 -> Elm Practice | B14: ='Practice list'!B9 -> F84685 | C14: 3003 | D14: 44 | E14: 0.015 | F14: 42 | G14: 0.955 | H14: 37 | I14: 0.841 | J14: 3 | K14: 0.068
A15: ='Practice list'!C10 -> Rosewood Practice | B15: ='Practice list'!B10 -> F84711 | C15: 1788 | D15: 36 | E15: 0.02 | F15: 34 | G15: 0.944 | H15: 29 | I15: 0.806 | J15: 5 | K15: 0.139
A16: ='Practice list'!C11 -> Healy Medical Centre | B16: ='Practice list'!B11 -> F84720 | C16: 5773 | D16: 244 | E16: 0.042 | F16: 206 | G16: 0.844 | H16: 160 | I16: 0.656 | J16: 10 | K16: 0.041
A17: ='Practice list'!C12 -> Cedar Practice | B17: ='Practice list'!B12 -> F84036 | C17: 8379 | D17: 136 | E17: 0.016 | F17: 126 | G17: 0.926 | H17: 101 | I17: 0.743 | J17: 9 | K17: 0.066
A18: ='Practice list'!C13 -> Statham Grove Surgery | B18: ='Practice list'!B13 -> F84115 | C18: 8706 | D18: 131 | E18: 0.015 | F18: 115 | G18: 0.878 | H18: 91 | I18: 0.695 | J18: 23 | K18: 0.176
A19: ='Practice list'!C14 -> The Heron Practice | B19: ='Practice list'!B14 -> F84119 | C19: 12450 | D19: 258 | E19: 0.021 | F19: 245 | G19: 0.95 | H19: 197 | I19: 0.764 | J19: 32 | K19: 0.124
A20: ='Practice list'!C15 -> Allerton Road Medical Centre | B20: ='Practice list'!B15 -> F84716 | C20: 5861 | D20: 114 | E20: 0.019 | F20: 106 | G20: 0.93 | H20: 84 | I20: 0.737 | J20: 2 | K20: 0.018
A21: ='Practice list'!C16 -> Barton House Health Centre | B21: ='Practice list'!B16 -> F84008 | C21: 12161 | D21: 262 | E21: 0.022 | F21: 250 | G21: 0.954 | H21: 187 | I21: 0.714 | J21: 21 | K21: 0.08
A22: ='Practice list'!C17 -> Somerford Grove Practice | B22: ='Practice list'!B17 -> F84033 | C22: 11999 | D22: 253 | E22: 0.021 | F22: 240 | G22: 0.949 | H22: 206 | I22: 0.814 | J22: 14 | K22: 0.055
A23: ='Practice list'!C18 -> Barretts Grove Surgery | B23: ='Practice list'!B18 -> F84636 | C23: 6826 | D23: 95 | E23: 0.014 | F23: 89 | G23: 0.937 | H23: 70 | I23: 0.737 | J23: 12 | K23: 0.126
A24: ='Practice list'!C19 -> Brooke Road Surgery | B24: ='Practice list'!B19 -> F84694 | C24: 4681 | D24: 54 | E24: 0.012 | F24: 51 | G24: 0.944 | H24: 39 | I24: 0.722 | J24: 1 | K24: 0.019
A25: ='Practice list'!C20 -> Lower Clapton Group Practice | B25: ='Practice list'!B20 -> F84003 | C25: =SUMIFS(OFFSET(REL_D,,MATCH(C$1,IND,0)-2),REL_D,$D$3,OrgID,$B25) -> 14879 | D25: 378 | E25: 0.025 | F25: 360 | G25: 0.952 | H25: 284 | I25: 0.751 | J25: 125 | K25: 0.331
A26: ='Practice list'!C21 -> Kingsmead Healthcare | B26: ='Practice list'!B21 -> F84015 | C26: 5314 | D26: 228 | E26: 0.043 | F26: 219 | G26: 0.961 | H26: 168 | I26: 0.737 | J26: 1 | K26: 0.004
A27: ='Practice list'!C22 -> Athena Medical Centre | B27: ='Practice list'!B22 -> F84060 | C27: 4999 | D27: 122 | E27: 0.024 | F27: 110 | G27: 0.902 | H27: 76 | I27: 0.623 | J27: 6 | K27: 0.049
A28: ='Practice list'!C23 -> The Lea Surgery | B28: ='Practice list'!B23 -> F84105 | C28: 11621 | D28: 307 | E28: 0.026 | F28: 285 | G28: 0.928 | H28: 218 | I28: 0.71 | J28: 76 | K28: 0.248
A29: ='Practice list'!C24 -> Latimer Health Centre | B29: ='Practice list'!B24 -> F84719 | C29: 5196 | D29: 91 | E29: 0.018 | F29: 86 | G29: 0.945 | H29: 70 | I29: 0.769 | J29: 9 | K29: 0.099
A30: ='Practice list'!C25 -> The Well Street Surgery | B30: ='Practice list'!B25 -> F84069 | C30: 14239 | D30: 363 | E30: 0.025 | F30: 331 | G30: 0.912 | H30: 246 | I30: 0.678 | J30: 14 | K30: 0.039
A31: ='Practice list'!C26 -> Elsdale Street Surgery | B31: ='Practice list'!B26 -> F84601 | C31: 7625 | D31: 158 | E31: 0.021 | F31: 147 | G31: 0.93 | H31: 108 | I31: 0.684 | J31: 11 | K31: 0.07
A32: ='Practice list'!C27 -> The Wick Health Centre | B32: ='Practice list'!B27 -> F84620 | C32: 8127 | D32: 260 | E32: 0.032 | F32: 240 | G32: 0.923 | H32: 198 | I32: 0.762 | J32: 12 | K32: 0.046
A33: ='Practice list'!C28 -> The Greenhouse | B33: ='Practice list'!B28 -> F84632 | C33: 1240 | D33: 22 | E33: 0.018 | F33: 19 | G33: 0.864 | H33: 12 | I33: 0.545 | J33: 4 | K33: 0.182
A34: ='Practice list'!C29 -> Trowbridge Surgery | B34: ='Practice list'!B29 -> Y00403 | C34: 7997 | D34: 76 | E34: 0.01 | F34: 73 | G34: 0.961 | H34: 56 | I34: 0.737 | J34: 6 | K34: 0.079
A35: ='Practice list'!C30 -> London Fields Medical Centre | B35: ='Practice list'!B30 -> F84021 | C35: 11106 | D35: 221 | E35: 0.02 | F35: 205 | G35: 0.928 | H35: 171 | I35: 0.774 | J35: 11 | K35: 0.05
A36: ='Practice list'!C31 -> Richmond Road Medical Centre | B36: ='Practice list'!B31 -> F84035 | C36: 21019 | D36: 167 | E36: 0.008 | F36: 148 | G36: 0.886 | H36: 107 | I36: 0.641 | J36: 11 | K36: 0.066
A37: ='Practice list'!C32 -> Beechwood Medical Centre | B37: ='Practice list'!B32 -> F84038 | C37: 3844 | D37: 120 | E37: 0.031 | F37: 109 | G37: 0.908 | H37: 94 | I37: 0.783 | J37: 8 | K37: 0.067
A38: ='Practice list'!C33 -> Dalston Practice | B38: ='Practice list'!B33 -> F84063 | C38: 6378 | D38: 205 | E38: 0.032 | F38: 189 | G38: 0.922 | H38: 150 | I38: 0.732 | J38: 44 | K38: 0.215
A39: ='Practice list'!C34 -> Queensbridge Group Practice | B39: ='Practice list'!B34 -> F84117 | C39: 10106 | D39: 169 | E39: =IFERROR(D39/C39,"N/A") -> 0.017 | F39: 156 | G39: =IFERROR(F39/$D39,"N/A") -> 0.923 | H39: 104 | I39: =IFERROR(H39/$D39,"N/A") -> 0.615 | J39: 22 | K39: =IFERROR(J39/$D39,"N/A") -> 0.13
A40: ='Practice list'!C35 -> The Sandringham Practice | B40: ='Practice list'!B35 -> F84621 | C40: 4565 | D40: 122 | E40: 0.027 | F40: 106 | G40: 0.869 | H40: 88 | I40: 0.721 | J40: 6 | K40: 0.049
A41: ='Practice list'!C36 -> The Neaman Practice | B41: ='Practice list'!B36 -> F84640 | C41: 9150 | D41: 229 | E41: 0.025 | F41: 187 | G41: 0.817 | H41: 159 | I41: 0.694 | J41: 8 | K41: 0.035
A42: ='Practice list'!C37 -> De Beauvoir Surgery | B42: ='Practice list'!B37 -> F84072 | C42: 12595 | D42: 144 | E42: 0.011 | F42: 136 | G42: 0.944 | H42: 101 | I42: 0.701 | J42: 40 | K42: 0.278
A43: ='Practice list'!C38 -> The Lawson Practice | B43: ='Practice list'!B38 -> F84096 | C43: 16293 | D43: 400 | E43: 0.025 | F43: 366 | G43: 0.915 | H43: 286 | I43: 0.715 | J43: 16 | K43: 0.04
A44: ='Practice list'!C39 -> Shoreditch Park Surgery | B44: ='Practice list'!B39 -> F84635 | C44: 9198 | D44: 116 | E44: 0.013 | F44: 109 | G44: 0.94 | H44: 75 | I44: 0.647 | J44: 13 | K44: 0.112
A45: ='Practice list'!C40 -> The Hoxton Surgery | B45: ='Practice list'!B40 -> F84692 | C45: 9107 | D45: 68 | E45: =IFERROR(D45/C45,"N/A") -> 0.007 | F45: 65 | G45: =IFERROR(F45/$D45,"N/A") -> 0.956 | H45: 53 | I45: =IFERROR(H45/$D45,"N/A") -> 0.779 | J45: 6 | K45: =IFERROR(J45/$D45,"N/A") -> 0.088

Sheet COPD
C1: 01. Listsize | D1: LDP.09 COPD Register | E1: ="%"&D1 -> %LDP.09 COPD Register | F1: LDP.09.01 Patients with severe or very severe COPD (FEV1<50) | G1: ="%"&F1 -> %LDP.09.01 Patients with severe or very severe COPD (FEV1<50) | H1: LDP.09.02 Patients with smoking status recorded (last 12m) or never smoked | I1: ="%"&H1 -> %LDP.09.02 Patients with smoking status recorded (last 12m) or never smoked | J1: LDP.09.03 COPD patients recorded as a Smoker | K1: ="%"&J1 -> %LDP.09.03 COPD patients recorded as a Smoker | L1: LDP.09.04 COPD Patients who are current smokers & referred to the Stop Smoking C | M1: ="%"&L1 -> %LDP.09.04 COPD Patients who are current smokers & referred to the Stop Smoking C | N1: LDP.09.05 No of COPD with flu vaccination (From August 2018) | O1: ="%"&N1 -> %LDP.09.05 No of COPD with flu vaccination (From August 2018) | P1: LDP.09.06 No of COPD with pneumococcal vaccination ever | Q1: ="%"&P1 -> %LDP.09.06 No of COPD with pneumococcal vaccination ever | R1: LDP.09.07 No of COPD patients referred to pulmonary rehab ever | S1: ="%"&R1 -> %LDP.09.07 No of COPD patients referred to pulmonary rehab ever
C2: City and Hackney - Practice Clinical Trends (LDP) Report
B3: =VLOOKUP(C3,'Control Panel'!O16:P27,2,FALSE) -> 2024-04-01 | C3: March 2024 | D3: =VLOOKUP(C3,'Control Panel'!O16:P27,2,FALSE) -> 2024-04-01
B4: 2019-07-01 | C4: ='Control Panel'!B133 -> COPD | D4: 1 | E4: 2 | F4: 3 | G4: 4 | H4: 5 | I4: 6 | J4: 7 | K4: 8 | L4: 9 | M4: 10 | N4: 11 | O4: 12 | P4: 13 | Q4: 14 | R4: 15 | S4: 16
A5: Home | B5: 2019-10-01 | C5: List Size | D5: No. of patients on COPD register | E5: % List Size | F5: No of patients with severe or very severe COPD (FEV1<50) | G5: % COPD register | H5: No. of COPD Patients with smoking status recorded (last 12m) or never smoked | I5: % COPD | J5: No. of COPD patients recorded as a Smoker | K5: % COPD | L5: No. of COPD Patients who are current smokers & referred to the Stop Smoking Clinic (12m) | M5: % of current COPD smokers | N5: No of COPD with flu vaccination (From August 2023) | O5: % of COPD register | P5: No of COPD with pneumococcal vaccination ever | Q5: % of COPD register | R5: No of COPD patients referred to pulmonary rehab ever | S5: % of COPD register
A6: Practice Name | B6: Total | C6: =SUM(C7:C45) -> 347970 | D6: =SUM(D7:D45) -> 3467 | E6: =IFERROR(D6/C6,"N/A") -> 0.01 | F6: =SUM(F7:F45) -> 623 | G6: =IFERROR(F6/D6,"N/A") -> 0.18 | H6: =SUM(H7:H45) -> 3215 | I6: =IFERROR(H6/D6,"N/A") -> 0.927 | J6: =SUM(J7:J45) -> 1345 | K6: =IFERROR(J6/D6,"N/A") -> 0.388 | L6: =SUM(L7:L45) -> 198 | M6: =IFERROR(L6/J6,"N/A") -> 0.147 | N6: =SUM(N7:N45) -> 2184 | O6: =IFERROR(N6/D6,"N/A") -> 0.63 | P6: =SUM(P7:P45) -> 2497 | Q6: =IFERROR(P6/D6,"N/A") -> 0.72 | R6: =SUM(R7:R45) -> 2817 | S6: =IFERROR(R6/D6,"N/A") -> 0.813
A7: ='Practice list'!C2 -> Stamford Hill Surgery | B7: ='Practice list'!B2 -> F84013 | C7: =SUMIFS(OFFSET(REL_D,,MATCH(C$1,IND,0)-2),REL_D,$D$3,OrgID,$B7) -> 17922 | D7: 82 | E7: =IFERROR(D7/C7,"N/A") -> 0.005 | F7: =SUMIFS(OFFSET(REL_D,,MATCH(F$1,IND,0)-2),REL_D,$D$3,OrgID,$B7) -> 14 | G7: =IFERROR(F7/$D7,"N/A") -> 0.171 | H7: =SUMIFS(OFFSET(REL_D,,MATCH(H$1,IND,0)-2),REL_D,$D$3,OrgID,$B7) -> 79 | I7: =IFERROR(H7/$D7,"N/A") -> 0.963 | J7: =SUMIFS(OFFSET(REL_D,,MATCH(J$1,IND,0)-2),REL_D,$D$3,OrgID,$B7) -> 31 | K7: =IFERROR(J7/$D7,"N/A") -> 0.378 | L7: =SUMIFS(OFFSET(REL_D,,MATCH(L$1,IND,0)-2),REL_D,$D$3,OrgID,$B7) -> 2 | M7: =IFERROR(L7/$J7,"N/A") -> 0.065 | N7: =SUMIFS(OFFSET(REL_D,,MATCH(N$1,IND,0)-2),REL_D,$D$3,OrgID,$B7) -> 52 | O7: =IFERROR(N7/$D7,"N/A") -> 0.634 | P7: =SUMIFS(OFFSET(REL_D,,MATCH(P$1,IND,0)-2),REL_D,$D$3,OrgID,$B7) -> 62 | Q7: =IFERROR(P7/$D7,"N/A") -> 0.756 | R7: =SUMIFS(OFFSET(REL_D,,MATCH(R$1,IND,0)-2),REL_D,$D$3,OrgID,$B7) -> 58 | S7: =IFERROR(R7/$D7,"N/A") -> 0.707
A8: ='Practice list'!C3 -> Cranwich Road Surgery | B8: ='Practice list'!B3 -> F84686 | C8: 8923 | D8: 7 | E8: 0.001 | F8: 1 | G8: 0.143 | H8: 7 | I8: 1 | J8: 3 | K8: 0.429 | L8: 1 | M8: 0.333 | N8: 4 | O8: =IFERROR(N8/$D8,"N/A") -> 0.571 | P8: 6 | Q8: =IFERROR(P8/$D8,"N/A") -> 0.857 | R8: 7 | S8: =IFERROR(R8/$D8,"N/A") -> 1
A9: ='Practice list'!C4 -> Spring Hill Practice | B9: ='Practice list'!B4 -> Y03049 | C9: 16327 | D9: 118 | E9: 0.007 | F9: 20 | G9: 0.169 | H9: 113 | I9: 0.958 | J9: 57 | K9: 0.483 | L9: 14 | M9: 0.246 | N9: 64 | O9: =IFERROR(N9/$D9,"N/A") -> 0.542 | P9: 74 | Q9: =IFERROR(P9/$D9,"N/A") -> 0.627 | R9: 91 | S9: =IFERROR(R9/$D9,"N/A") -> 0.771
A10: ='Practice list'!C5 -> The Nightingale Practice | B10: ='Practice list'!B5 -> F84018 | C10: 12242 | D10: 124 | E10: 0.01 | F10: 26 | G10: 0.21 | H10: 119 | I10: 0.96 | J10: 58 | K10: 0.468 | L10: 5 | M10: 0.086 | N10: 84 | O10: =IFERROR(N10/$D10,"N/A") -> 0.677 | P10: 88 | Q10: =IFERROR(P10/$D10,"N/A") -> 0.71 | R10: 102 | S10: =IFERROR(R10/$D10,"N/A") -> 0.823
A11: ='Practice list'!C6 -> The Gadvhi Practice | B11: ='Practice list'!B6 -> F84080 | C11: 5118 | D11: 65 | E11: 0.013 | F11: 17 | G11: 0.262 | H11: 60 | I11: 0.923 | J11: 18 | K11: 0.277 | L11: 2 | M11: 0.111 | N11: 37 | O11: =IFERROR(N11/$D11,"N/A") -> 0.569 | P11: 47 | Q11: =IFERROR(P11/$D11,"N/A") -> 0.723 | R11: 57 | S11: =IFERROR(R11/$D11,"N/A") -> 0.877
A12: ='Practice list'!C7 -> The Riverside Practice | B12: ='Practice list'!B7 -> F84619 | C12: 5145 | D12: 26 | E12: 0.005 | F12: 5 | G12: 0.192 | H12: 26 | I12: 1 | J12: 7 | K12: 0.269 | L12: 3 | M12: 0.429 | N12: 21 | O12: =IFERROR(N12/$D12,"N/A") -> 0.808 | P12: 20 | Q12: =IFERROR(P12/$D12,"N/A") -> 0.769 | R12: 26 | S12: =IFERROR(R12/$D12,"N/A") -> 1
A13: ='Practice list'!C8 -> Clapton Surgery | B13: ='Practice list'!B8 -> F84668 | C13: 6068 | D13: 22 | E13: 0.004 | F13: 3 | G13: 0.136 | H13: 20 | I13: 0.909 | J13: 6 | K13: 0.273 | L13: 0 | M13: 0 | N13: 11 | O13: =IFERROR(N13/$D13,"N/A") -> 0.5 | P13: 20 | Q13: =IFERROR(P13/$D13,"N/A") -> 0.909 | R13: 19 | S13: =IFERROR(R13/$D13,"N/A") -> 0.864
A14: ='Practice list'!C9 -> Elm Practice | B14: ='Practice list'!B9 -> F84685 | C14: 3003 | D14: 36 | E14: 0.012 | F14: 6 | G14: 0.167 | H14: 34 | I14: 0.944 | J14: 14 | K14: 0.389 | L14: 1 | M14: 0.071 | N14: 28 | O14: =IFERROR(N14/$D14,"N/A") -> 0.778 | P14: 19 | Q14: =IFERROR(P14/$D14,"N/A") -> 0.528 | R14: 31 | S14: =IFERROR(R14/$D14,"N/A") -> 0.861
A15: ='Practice list'!C10 -> Rosewood Practice | B15: ='Practice list'!B10 -> F84711 | C15: 1788 | D15: 21 | E15: 0.012 | F15: 5 | G15: 0.238 | H15: 21 | I15: 1 | J15: 9 | K15: 0.429 | L15: 0 | M15: 0 | N15: 17 | O15: =IFERROR(N15/$D15,"N/A") -> 0.81 | P15: 20 | Q15: =IFERROR(P15/$D15,"N/A") -> 0.952 | R15: 14 | S15: =IFERROR(R15/$D15,"N/A") -> 0.667
A16: ='Practice list'!C11 -> Healy Medical Centre | B16: ='Practice list'!B11 -> F84720 | C16: 5773 | D16: 79 | E16: 0.014 | F16: 12 | G16: 0.152 | H16: 67 | I16: 0.848 | J16: 27 | K16: 0.342 | L16: 1 | M16: 0.037 | N16: 50 | O16: =IFERROR(N16/$D16,"N/A") -> 0.633 | P16: 56 | Q16: =IFERROR(P16/$D16,"N/A") -> 0.709 | R16: 63 | S16: =IFERROR(R16/$D16,"N/A") -> 0.797
A17: ='Practice list'!C12 -> Cedar Practice | B17: ='Practice list'!B12 -> F84036 | C17: 8379 | D17: 99 | E17: 0.012 | F17: 23 | G17: 0.232 | H17: 95 | I17: 0.96 | J17: 33 | K17: 0.333 | L17: 5 | M17: 0.152 | N17: 58 | O17: =IFERROR(N17/$D17,"N/A") -> 0.586 | P17: 76 | Q17: =IFERROR(P17/$D17,"N/A") -> 0.768 | R17: 80 | S17: =IFERROR(R17/$D17,"N/A") -> 0.808
A18: ='Practice list'!C13 -> Statham Grove Surgery | B18: ='Practice list'!B13 -> F84115 | C18: 8706 | D18: 117 | E18: 0.013 | F18: 20 | G18: 0.171 | H18: 104 | I18: 0.889 | J18: 41 | K18: 0.35 | L18: 10 | M18: 0.244 | N18: 77 | O18: =IFERROR(N18/$D18,"N/A") -> 0.658 | P18: 88 | Q18: =IFERROR(P18/$D18,"N/A") -> 0.752 | R18: 98 | S18: =IFERROR(R18/$D18,"N/A") -> 0.838
A19: ='Practice list'!C14 -> The Heron Practice | B19: ='Practice list'!B14 -> F84119 | C19: 12450 | D19: 139 | E19: 0.011 | F19: 27 | G19: 0.194 | H19: 131 | I19: 0.942 | J19: 53 | K19: 0.381 | L19: 3 | M19: 0.057 | N19: 91 | O19: =IFERROR(N19/$D19,"N/A") -> 0.655 | P19: 102 | Q19: =IFERROR(P19/$D19,"N/A") -> 0.734 | R19: 125 | S19: =IFERROR(R19/$D19,"N/A") -> 0.899
A20: ='Practice list'!C15 -> Allerton Road Medical Centre | B20: ='Practice list'!B15 -> F84716 | C20: 5861 | D20: 49 | E20: 0.008 | F20: 11 | G20: 0.224 | H20: 46 | I20: 0.939 | J20: 13 | K20: 0.265 | L20: 2 | M20: 0.154 | N20: 30 | O20: =IFERROR(N20/$D20,"N/A") -> 0.612 | P20: 43 | Q20: =IFERROR(P20/$D20,"N/A") -> 0.878 | R20: 39 | S20: =IFERROR(R20/$D20,"N/A") -> 0.796
A21: ='Practice list'!C16 -> Barton House Health Centre | B21: ='Practice list'!B16 -> F84008 | C21: 12161 | D21: 188 | E21: 0.015 | F21: 39 | G21: 0.207 | H21: 176 | I21: 0.936 | J21: 73 | K21: 0.388 | L21: 12 | M21: 0.164 | N21: 123 | O21: =IFERROR(N21/$D21,"N/A") -> 0.654 | P21: 142 | Q21: =IFERROR(P21/$D21,"N/A") -> 0.755 | R21: 168 | S21: =IFERROR(R21/$D21,"N/A") -> 0.894
A22: ='Practice list'!C17 -> Somerford Grove Practice | B22: ='Practice list'!B17 -> F84033 | C22: 11999 | D22: 131 | E22: 0.011 | F22: 23 | G22: 0.176 | H22: 125 | I22: 0.954 | J22: 59 | K22: 0.45 | L22: 8 | M22: 0.136 | N22: 86 | O22: =IFERROR(N22/$D22,"N/A") -> 0.656 | P22: 105 | Q22: =IFERROR(P22/$D22,"N/A") -> 0.802 | R22: 116 | S22: =IFERROR(R22/$D22,"N/A") -> 0.885
A23: ='Practice list'!C18 -> Barretts Grove Surgery | B23: ='Practice list'!B18 -> F84636 | C23: 6826 | D23: 32 | E23: 0.005 | F23: 5 | G23: 0.156 | H23: 30 | I23: 0.938 | J23: 14 | K23: 0.438 | L23: 3 | M23: 0.214 | N23: 21 | O23: =IFERROR(N23/$D23,"N/A") -> 0.656 | P23: 24 | Q23: =IFERROR(P23/$D23,"N/A") -> 0.75 | R23: 24 | S23: =IFERROR(R23/$D23,"N/A") -> 0.75
A24: ='Practice list'!C19 -> Brooke Road Surgery | B24: ='Practice list'!B19 -> F84694 | C24: 4681 | D24: 27 | E24: 0.006 | F24: 2 | G24: 0.074 | H24: 26 | I24: 0.963 | J24: 15 | K24: 0.556 | L24: 5 | M24: 0.333 | N24: 14 | O24: =IFERROR(N24/$D24,"N/A") -> 0.519 | P24: 18 | Q24: =IFERROR(P24/$D24,"N/A") -> 0.667 | R24: 23 | S24: =IFERROR(R24/$D24,"N/A") -> 0.852
A25: ='Practice list'!C20 -> Lower Clapton Group Practice | B25: ='Practice list'!B20 -> F84003 | C25: =SUMIFS(OFFSET(REL_D,,MATCH(C$1,IND,0)-2),REL_D,$D$3,OrgID,$B25) -> 14879 | D25: 219 | E25: 0.015 | F25: 41 | G25: 0.187 | H25: 207 | I25: 0.945 | J25: 82 | K25: 0.374 | L25: 8 | M25: 0.098 | N25: 133 | O25: =IFERROR(N25/$D25,"N/A") -> 0.607 | P25: 143 | Q25: =IFERROR(P25/$D25,"N/A") -> 0.653 | R25: 200 | S25: =IFERROR(R25/$D25,"N/A") -> 0.913
A26: ='Practice list'!C21 -> Kingsmead Healthcare | B26: ='Practice list'!B21 -> F84015 | C26: 5314 | D26: 79 | E26: 0.015 | F26: 14 | G26: 0.177 | H26: 77 | I26: 0.975 | J26: 26 | K26: 0.329 | L26: 1 | M26: 0.038 | N26: 44 | O26: =IFERROR(N26/$D26,"N/A") -> 0.557 | P26: 56 | Q26: =IFERROR(P26/$D26,"N/A") -> 0.709 | R26: 62 | S26: =IFERROR(R26/$D26,"N/A") -> 0.785
A27: ='Practice list'!C22 -> Athena Medical Centre | B27: ='Practice list'!B22 -> F84060 | C27: 4999 | D27: 35 | E27: 0.007 | F27: 6 | G27: 0.171 | H27: 30 | I27: 0.857 | J27: 12 | K27: 0.343 | L27: 3 | M27: 0.25 | N27: 22 | O27: =IFERROR(N27/$D27,"N/A") -> 0.629 | P27: 25 | Q27: =IFERROR(P27/$D27,"N/A") -> 0.714 | R27: 30 | S27: =IFERROR(R27/$D27,"N/A") -> 0.857
A28: ='Practice list'!C23 -> The Lea Surgery | B28: ='Practice list'!B23 -> F84105 | C28: 11621 | D28: 99 | E28: 0.009 | F28: 19 | G28: 0.192 | H28: 96 | I28: 0.97 | J28: 33 | K28: 0.333 | L28: 6 | M28: 0.182 | N28: 65 | O28: =IFERROR(N28/$D28,"N/A") -> 0.657 | P28: 62 | Q28: =IFERROR(P28/$D28,"N/A") -> 0.626 | R28: 94 | S28: =IFERROR(R28/$D28,"N/A") -> 0.949
A29: ='Practice list'!C24 -> Latimer Health Centre | B29: ='Practice list'!B24 -> F84719 | C29: 5196 | D29: 92 | E29: 0.018 | F29: 13 | G29: 0.141 | H29: 90 | I29: 0.978 | J29: 26 | K29: 0.283 | L29: 8 | M29: 0.308 | N29: 74 | O29: =IFERROR(N29/$D29,"N/A") -> 0.804 | P29: 79 | Q29: =IFERROR(P29/$D29,"N/A") -> 0.859 | R29: 86 | S29: =IFERROR(R29/$D29,"N/A") -> 0.935
A30: ='Practice list'!C25 -> The Well Street Surgery | B30: ='Practice list'!B25 -> F84069 | C30: 14239 | D30: 220 | E30: 0.015 | F30: 33 | G30: 0.15 | H30: 196 | I30: 0.891 | J30: 97 | K30: 0.441 | L30: 8 | M30: 0.082 | N30: 137 | O30: =IFERROR(N30/$D30,"N/A") -> 0.623 | P30: 163 | Q30: =IFERROR(P30/$D30,"N/A") -> 0.741 | R30: 180 | S30: =IFERROR(R30/$D30,"N/A") -> 0.818
A31: ='Practice list'!C26 -> Elsdale Street Surgery | B31: ='Practice list'!B26 -> F84601 | C31: 7625 | D31: 88 | E31: 0.012 | F31: 19 | G31: 0.216 | H31: 79 | I31: 0.898 | J31: 30 | K31: 0.341 | L31: 6 | M31: 0.2 | N31: 49 | O31: =IFERROR(N31/$D31,"N/A") -> 0.557 | P31: 52 | Q31: =IFERROR(P31/$D31,"N/A") -> 0.591 | R31: 76 | S31: =IFERROR(R31/$D31,"N/A") -> 0.864
A32: ='Practice list'!C27 -> The Wick Health Centre | B32: ='Practice list'!B27 -> F84620 | C32: 8127 | D32: 93 | E32: 0.011 | F32: 26 | G32: 0.28 | H32: 89 | I32: 0.957 | J32: 44 | K32: 0.473 | L32: 8 | M32: 0.182 | N32: 47 | O32: =IFERROR(N32/$D32,"N/A") -> 0.505 | P32: 55 | Q32: =IFERROR(P32/$D32,"N/A") -> 0.591 | R32: 67 | S32: =IFERROR(R32/$D32,"N/A") -> 0.72
A33: ='Practice list'!C28 -> The Greenhouse | B33: ='Practice list'!B28 -> F84632 | C33: 1240 | D33: 45 | E33: 0.036 | F33: 7 | G33: 0.156 | H33: 40 | I33: 0.889 | J33: 30 | K33: 0.667 | L33: 6 | M33: 0.2 | N33: 15 | O33: =IFERROR(N33/$D33,"N/A") -> 0.333 | P33: 32 | Q33: =IFERROR(P33/$D33,"N/A") -> 0.711 | R33: 27 | S33: =IFERROR(R33/$D33,"N/A") -> 0.6
A34: ='Practice list'!C29 -> Trowbridge Surgery | B34: ='Practice list'!B29 -> Y00403 | C34: 7997 | D34: 47 | E34: 0.006 | F34: 12 | G34: 0.255 | H34: 45 | I34: 0.957 | J34: 20 | K34: 0.426 | L34: 2 | M34: 0.1 | N34: 30 | O34: =IFERROR(N34/$D34,"N/A") -> 0.638 | P34: 27 | Q34: =IFERROR(P34/$D34,"N/A") -> 0.574 | R34: 46 | S34: =IFERROR(R34/$D34,"N/A") -> 0.979
A35: ='Practice list'!C30 -> London Fields Medical Centre | B35: ='Practice list'!B30 -> F84021 | C35: 11106 | D35: 125 | E35: 0.011 | F35: 15 | G35: 0.12 | H35: 108 | I35: 0.864 | J35: 55 | K35: 0.44 | L35: 3 | M35: 0.055 | N35: 77 | O35: =IFERROR(N35/$D35,"N/A") -> 0.616 | P35: 90 | Q35: =IFERROR(P35/$D35,"N/A") -> 0.72 | R35: 79 | S35: =IFERROR(R35/$D35,"N/A") -> 0.632
A36: ='Practice list'!C31 -> Richmond Road Medical Centre | B36: ='Practice list'!B31 -> F84035 | C36: 21019 | D36: 80 | E36: 0.004 | F36: 16 | G36: 0.2 | H36: 75 | I36: 0.938 | J36: 30 | K36: 0.375 | L36: 8 | M36: 0.267 | N36: 54 | O36: =IFERROR(N36/$D36,"N/A") -> 0.675 | P36: 67 | Q36: =IFERROR(P36/$D36,"N/A") -> 0.838 | R36: 76 | S36: =IFERROR(R36/$D36,"N/A") -> 0.95
A37: ='Practice list'!C32 -> Beechwood Medical Centre | B37: ='Practice list'!B32 -> F84038 | C37: 3844 | D37: 53 | E37: 0.014 | F37: 6 | G37: 0.113 | H37: 51 | I37: 0.962 | J37: 20 | K37: 0.377 | L37: 3 | M37: 0.15 | N37: 32 | O37: =IFERROR(N37/$D37,"N/A") -> 0.604 | P37: 32 | Q37: =IFERROR(P37/$D37,"N/A") -> 0.604 | R37: 23 | S37: =IFERROR(R37/$D37,"N/A") -> 0.434
A38: ='Practice list'!C33 -> Dalston Practice | B38: ='Practice list'!B33 -> F84063 | C38: 6378 | D38: 49 | E38: 0.008 | F38: 10 | G38: 0.204 | H38: 46 | I38: 0.939 | J38: 24 | K38: 0.49 | L38: 5 | M38: 0.208 | N38: 33 | O38: =IFERROR(N38/$D38,"N/A") -> 0.673 | P38: 39 | Q38: =IFERROR(P38/$D38,"N/A") -> 0.796 | R38: 36 | S38: =IFERROR(R38/$D38,"N/A") -> 0.735
A39: ='Practice list'!C34 -> Queensbridge Group Practice | B39: ='Practice list'!B34 -> F84117 | C39: 10106 | D39: 125 | E39: 0.012 | F39: 18 | G39: 0.144 | H39: 107 | I39: 0.856 | J39: 40 | K39: 0.32 | L39: 4 | M39: 0.1 | N39: 65 | O39: =IFERROR(N39/$D39,"N/A") -> 0.52 | P39: 89 | Q39: =IFERROR(P39/$D39,"N/A") -> 0.712 | R39: 95 | S39: =IFERROR(R39/$D39,"N/A") -> 0.76
A40: ='Practice list'!C35 -> The Sandringham Practice | B40: ='Practice list'!B35 -> F84621 | C40: 4565 | D40: 44 | E40: =IFERROR(D40/C40,"N/A") -> 0.01 | F40: 13 | G40: =IFERROR(F40/$D40,"N/A") -> 0.295 | H40: 44 | I40: =IFERROR(H40/$D40,"N/A") -> 1 | J40: 18 | K40: =IFERROR(J40/$D40,"N/A") -> 0.409 | L40: 5 | M40: =IFERROR(L40/$J40,"N/A") -> 0.278 | N40: 34 | O40: =IFERROR(N40/$D40,"N/A") -> 0.773 | P40: 33 | Q40: =IFERROR(P40/$D40,"N/A") -> 0.75 | R40: 30 | S40: =IFERROR(R40/$D40,"N/A") -> 0.682
A41: ='Practice list'!C36 -> The Neaman Practice | B41: ='Practice list'!B36 -> F84640 | C41: 9150 | D41: 50 | E41: 0.005 | F41: 3 | G41: 0.06 | H41: 44 | I41: 0.88 | J41: 15 | K41: 0.3 | L41: 2 | M41: 0.133 | N41: 32 | O41: 0.64 | P41: 31 | Q41: 0.62 | R41: 42 | S41: 0.84
A42: ='Practice list'!C37 -> De Beauvoir Surgery | B42: ='Practice list'!B37 -> F84072 | C42: 12595 | D42: 103 | E42: 0.008 | F42: 15 | G42: 0.146 | H42: 97 | I42: 0.942 | J42: 43 | K42: 0.417 | L42: 7 | M42: 0.163 | N42: 67 | O42: 0.65 | P42: 70 | Q42: 0.68 | R42: 86 | S42: 0.835
A43: ='Practice list'!C38 -> The Lawson Practice | B43: ='Practice list'!B38 -> F84096 | C43: 16293 | D43: 279 | E43: 0.017 | F43: 35 | G43: 0.125 | H43: 253 | I43: 0.907 | J43: 98 | K43: 0.351 | L43: 14 | M43: 0.143 | N43: 172 | O43: 0.616 | P43: 208 | Q43: 0.746 | R43: 200 | S43: 0.717
A44: ='Practice list'!C39 -> Shoreditch Park Surgery | B44: ='Practice list'!B39 -> F84635 | C44: 9198 | D44: 90 | E44: 0.01 | F44: 19 | G44: 0.211 | H44: 85 | I44: 0.944 | J44: 39 | K44: 0.433 | L44: 9 | M44: 0.231 | N44: 68 | O44: 0.756 | P44: 73 | Q44: 0.811 | R44: 82 | S44: 0.911
A45: ='Practice list'!C40 -> The Hoxton Surgery | B45: ='Practice list'!B40 -> F84692 | C45: 9107 | D45: 90 | E45: =IFERROR(D45/C45,"N/A") -> 0.01 | F45: 24 | G45: =IFERROR(F45/$D45,"N/A") -> 0.267 | H45: 77 | I45: =IFERROR(H45/$D45,"N/A") -> 0.856 | J45: 32 | K45: =IFERROR(J45/$D45,"N/A") -> 0.356 | L45: 5 | M45: =IFERROR(L45/$J45,"N/A") -> 0.156 | N45: 66 | O45: =IFERROR(N45/$D45,"N/A") -> 0.733 | P45: 61 | Q45: =IFERROR(P45/$D45,"N/A") -> 0.678 | R45: 59 | S45: =IFERROR(R45/$D45,"N/A") -> 0.656

Sheet Practice list (hidden)
A1: Status | B1: Practice ID | C1: Practice | D1: Locality ID | E1: Locality | F1: SubLocality ID | G1: SubLocality | H1: PCN/Network | I1: PCN code | J1: Clinical System | K1: Address 1 | L1: Address 2 | M1: Postcode | N1: Grid Reference | O1: X (easting) | P1: Y (northing) | Q1: Latitude | R1: Longitude
A2: Active | B2: F84013 | C2: Stamford Hill Surgery | D2: CH | E2: City & Hackney | F2: CH-NE1 | G2: Springfield Park (NE1) | H2: Springfield Park (NE1) | I2: U89154 | J2: EMISweb | K2: 2 Egerton Road | L2: Stamford Hill | M2: N16 6UA | N2: TQ 33741 87885 | O2: 533741 | P2: 187885 | Q2: 51.573976 | R2: -0.071492952
A3: Active | B3: F84686 | C3: Cranwich Road Surgery | D3: CH | E3: City & Hackney | F3: CH-NE1 | G3: Springfield Park (NE1) | H3: Springfield Park (NE1) | I3: U89154 | J3: EMISweb | K3: 62 Cranwich Road | M3: N16 5JF | N3: TQ 33045 87827 | O3: 533045 | P3: 187827 | Q3: 51.573619 | R3: -0.081552204
A4: Active | B4: Y03049 | C4: Spring Hill Practice | D4: CH | E4: City & Hackney | F4: CH-NE1 | G4: Springfield Park (NE1) | H4: Springfield Park (NE1) | I4: U89154 | J4: EMISweb | K4: 19-21 Oldhill Street | M4: N16 6LU | N4: TQ 34202 87381 | O4: 534202 | P4: 187381 | Q4: 51.569337 | R4: -0.065037069
A5: Active | B5: F84018 | C5: The Nightingale Practice | D5: CH | E5: City & Hackney | F5: CH-NE2 | G5: Hackney Downs (NE2) | H5: Hackney Downs (NE2) | I5: U21268 | J5: EMISweb | K5: 10 Kenninghall Rd | L5: Clapton | M5: E5 8BY | N5: TQ 34412 86145 | O5: 534412 | P5: 186145 | Q5: 51.55818 | R5: -0.062481117
A6: Active | B6: F84080 | C6: The Gadvhi Practice | D6: CH | E6: City & Hackney | F6: CH-NE2 | G6: Hackney Downs (NE2) | H6: Hackney Downs (NE2) | I6: U21268 | J6: EMISweb | K6: 1a Fountayne Road | M6: N16 7EA | N6: TQ 34209 86834 | O6: 534209 | P6: 186834 | Q6: 51.56442 | R6: -0.06514483
A7: Active | B7: F84619 | C7: The Riverside Practice | D7: CH | E7: City & Hackney | F7: CH-NE2 | G7: Hackney Downs (NE2) | H7: Hackney Downs (NE2) | I7: U21268 | J7: EMISweb | K7: 14 Urban Hive, Theydon Rd | M7: E5 9BQ | N7: TQ 35164 86953 | O7: 535164 | P7: 186953 | Q7: 51.565262 | R7: -0.051329752
A8: Active | B8: F84668 | C8: Clapton Surgery | D8: CH | E8: City & Hackney | F8: CH-NE2 | G8: Hackney Downs (NE2) | H8: Hackney Downs (NE2) | I8: U21268 | J8: EMISweb | K8: 14 Theydon Road | M8: E5 9BQ | N8: TQ 35164 86953 | O8: 535164 | P8: 186953 | Q8: 51.565262 | R8: -0.051329752
A9: Active | B9: F84685 | C9: Elm Practice | D9: CH | E9: City & Hackney | F9: CH-NE2 | G9: Hackney Downs (NE2) | H9: Hackney Downs (NE2) | I9: U21268 | J9: EMISweb | K9: 1a Fountayne Road | M9: N16 7EA | N9: TQ 34209 86834 | O9: 534209 | P9: 186834 | Q9: 51.56442 | R9: -0.06514483
A10: Active | B10: F84711 | C10: Rosewood Practice | D10: CH | E10: City & Hackney | F10: CH-NE2 | G10: Hackney Downs (NE2) | H10: Hackney Downs (NE2) | I10: U21268 | J10: EMISweb | K10: 1a Fountayne Road | M10: N16 7EA | N10: TQ 34209 86834 | O10: 534209 | P10: 186834 | Q10: 51.56442 | R10: -0.06514483
A11: Active | B11: F84720 | C11: Healy Medical Centre | D11: CH | E11: City & Hackney | F11: CH-NE2 | G11: Hackney Downs (NE2) | H11: Hackney Downs (NE2) | I11: U21268 | J11: EMISweb | K11: 200 Upper Clapton Road | M11: E5 9HD | N11: TQ 35028 87268 | O11: 535028 | P11: 187268 | Q11: 51.568125 | R11: -0.053169742
A12: Active | B12: F84036 | C12: Cedar Practice | D12: CH | E12: City & Hackney | F12: CH-NW1 | G12: Woodberry Wetlands (NW1) | H12: Woodberry Wetlands (NW1) | I12: U46293 | J12: EMISweb | K12: John Scott Health Centre | L12: Green Lanes | M12: N4 2NU | N12: TQ 32221 87203 | O12: 532221 | P12: 187203 | Q12: 51.568205 | R12: -0.093670043
A13: Active | B13: F84115 | C13: Statham Grove Surgery | D13: CH | E13: City & Hackney | F13: CH-NW1 | G13: Woodberry Wetlands (NW1) | H13: Woodberry Wetlands (NW1) | I13: U46293 | J13: EMISweb | K13: Statham Grove | M13: N16 9DP | N13: TQ 32544 86016 | O13: 532544 | P13: 186016 | Q13: 51.557463 | R13: -0.089459644
A14: Active | B14: F84119 | C14: The Heron Practice | D14: CH | E14: City & Hackney | F14: CH-NW1 | G14: Woodberry Wetlands (NW1) | H14: Woodberry Wetlands (NW1) | I14: U46293 | J14: EMISweb | K14: John Scott Health Centre | L14: Green Lanes | M14: N4 2NU | N14: TQ 32221 87203 | O14: 532221 | P14: 187203 | Q14: 51.568205 | R14: -0.093670043
A15: Active | B15: F84716 | C15: Allerton Road Medical Centre | D15: CH | E15: City & Hackney | F15: CH-NW1 | G15: Woodberry Wetlands (NW1) | H15: Woodberry Wetlands (NW1) | I15: U46293 | J15: EMISweb | K15: 34a Allerton Road | M15: N16 5UF | N15: TQ 32456 86933 | O15: 532456 | P15: 186933 | Q15: 51.565724 | R15: -0.090383086
A16: Active | B16: F84008 | C16: Barton House Health Centre | D16: CH | E16: City & Hackney | F16: CH-NW2 | G16: Clissold Park (NW2) | H16: Clissold Park (NW2) | I16: U51492 | J16: EMISweb | K16: 233 Albion Road | L16: Stoke Newington | M16: N16 9JT | N16: TQ 32926 86369 | O16: 532926 | P16: 186369 | Q16: 51.560545 | R16: -0.083819308
A17: Active | B17: F84033 | C17: Somerford Grove Practice | D17: CH | E17: City & Hackney | F17: CH-NW2 | G17: Clissold Park (NW2) | H17: Clissold Park (NW2) | I17: U51492 | J17: EMISweb | K17: Somerford Grove | M17: N16 7UA | N17: TQ 33722 85639 | O17: 533722 | P17: 185639 | Q17: 51.553797 | R17: -0.07262063
A18: Active | B18: F84636 | C18: Barretts Grove Surgery | D18: CH | E18: City & Hackney | F18: CH-NW2 | G18: Clissold Park (NW2) | H18: Clissold Park (NW2) | I18: U51492 | J18: EMISweb | K18: 6 Barretts Grove | M18: N16 8AR | N18: TQ 33334 85451 | O18: 533334 | P18: 185451 | Q18: 51.5522 | R18: -0.078284859
A19: Active | B19: F84694 | C19: Brooke Road Surgery | D19: CH | E19: City & Hackney | F19: CH-NW2 | G19: Clissold Park (NW2) | H19: Clissold Park (NW2) | I19: U51492 | J19: EMISweb | K19: 40-42 Brooke Road | M19: N16 7LR | N19: TQ 33833 86338 | O19: 533833 | P19: 186338 | Q19: 51.560052 | R19: -0.070754775
A20: Active | B20: F84003 | C20: Lower Clapton Group Practice | D20: CH | E20: City & Hackney | F20: CH-SE1 | G20: Hackney Marshes (SE1) | H20: Hackney Marshes (SE1) | I20: U05451 | J20: EMISweb | K20: 36 Lower Clapton Road | M20: E5 0PD | N20: TQ 35145 85320 | O20: 535145 | P20: 185320 | Q20: 51.550592 | R20: -0.052230775
A21: Active | B21: F84015 | C21: Kingsmead Healthcare | D21: CH | E21: City & Hackney | F21: CH-SE1 | G21: Hackney Marshes (SE1) | H21: Hackney Marshes (SE1) | I21: U05451 | J21: EMISweb | K21: 4 Kingsmead Way | M21: E9 5QG | N21: TQ 36351 85487 | O21: 536351 | P21: 185487 | Q21: 51.551803 | R21: -0.034783216
A22: Active | B22: F84060 | C22: Athena Medical Centre | D22: CH | E22: City & Hackney | F22: CH-SE1 | G22: Hackney Marshes (SE1) | H22: Hackney Marshes (SE1) | I22: U05451 | J22: EMISweb | K22: 21 Atherden Road | L22: Clapton | M22: E5 0QP | N22: TQ 35057 85799 | O22: 535057 | P22: 185799 | Q22: 51.554917 | R22: -0.053315427
A23: Active | B23: F84105 | C23: The Lea Surgery | D23: CH | E23: City & Hackney | F23: CH-SE1 | G23: Hackney Marshes (SE1) | H23: Hackney Marshes (SE1) | I23: U05451 | J23: EMISweb | K23: 186 Homerton High Street | M23: E9 6AG | N23: TQ 35784 85079 | O23: 535784 | P23: 185079 | Q23: 51.548273 | R23: -0.04311334
A24: Active | B24: F84719 | C24: Latimer Health Centre | D24: CH | E24: City & Hackney | F24: CH-SE1 | G24: Hackney Marshes (SE1) | H24: Hackney Marshes (SE1) | I24: U05451 | J24: EMISweb | K24: 4 Homerton Terrace | M24: E9 6RT | N24: TQ 35346 84880 | O24: 535346 | P24: 184880 | Q24: 51.54659 | R24: -0.049502727
A25: Active | B25: F84069 | C25: The Well Street Surgery | D25: CH | E25: City & Hackney | F25: CH-SE2 | G25: Well Street Common (SE2) | H25: Well Street Common (SE2) | I25: U58256 | J25: EMISweb | K25: 28 Shore Road | M25: E9 7TA | N25: TQ 35138 84055 | O25: 535138 | P25: 184055 | Q25: 51.539226 | R25: -0.052817041
A26: Active | B26: F84601 | C26: Elsdale Street Surgery | D26: CH | E26: City & Hackney | F26: CH-SE2 | G26: Well Street Common (SE2) | H26: Well Street Common (SE2) | I26: U58256 | J26: EMISweb | K26: 28 Elsdale Street | M26: E9 6QY | N26: TQ 35380 84483 | O26: 535380 | P26: 184483 | Q26: 51.543014 | R26: -0.0491653
A27: Active | B27: F84620 | C27: The Wick Health Centre | D27: CH | E27: City & Hackney | F27: CH-SE2 | G27: Well Street Common (SE2) | H27: Well Street Common (SE2) | I27: U58256 | J27: EMISweb | K27: 200 Wick Rd | M27: E9 5AN | N27: TQ 36085 84711 | O27: 536085 | P27: 184711 | Q27: 51.544894 | R27: -0.038917245
A28: Active | B28: F84632 | C28: The Greenhouse | D28: CH | E28: City & Hackney | F28: CH-SE2 | G28: Well Street Common (SE2) | H28: Well Street Common (SE2) | I28: U58256 | J28: EMISweb | K28: 19 Tudor Road | M28: E9 7SN | N28: TQ 34985 83975 | O28: 534985 | P28: 183975 | Q28: 51.538544 | R28: -0.055052455
A29: Active | B29: Y00403 | C29: Trowbridge Surgery | D29: CH | E29: City & Hackney | F29: CH-SE2 | G29: Well Street Common (SE2) | H29: Well Street Common (SE2) | I29: U58256 | J29: EMISweb | K29: 18 Merriam Avenue | M29: E9 5NE | N29: TQ 36747 84792 | O29: 536747 | P29: 184792 | Q29: 51.545462 | R29: -0.029345179
A30: Active | B30: F84021 | C30: London Fields Medical Centre | D30: CH | E30: City & Hackney | F30: CH-SW1 | G30: London Fields (SW1) | H30: London Fields (SW1) | I30: U40100 | J30: EMISweb | K30: 38-44 Broadway Market | M30: E8 4QJ | N30: TQ 34536 83745 | O30: 534536 | P30: 183745 | Q30: 51.536584 | R30: -0.061610386
A31: Active | B31: F84035 | C31: Richmond Road Medical Centre | D31: CH | E31: City & Hackney | F31: CH-SW1 | G31: London Fields (SW1) | H31: London Fields (SW1) | I31: U40100 | J31: EMISweb | K31: 136 Richmond Road | M31: E8 3HN | N31: TQ 34245 84457 | O31: 534245 | P31: 184457 | Q31: 51.543051 | R31: -0.06553224
A32: Active | B32: F84038 | C32: Beechwood Medical Centre | D32: CH | E32: City & Hackney | F32: CH-SW1 | G32: London Fields (SW1) | H32: London Fields (SW1) | I32: U40100 | J32: EMISweb | K32: 86-86a Dalston Lane | M32: E8 3AH | N32: TQ 33890 84780 | O32: 533890 | P32: 184780 | Q32: 51.546038 | R32: -0.070525556
A33: Active | B33: F84063 | C33: Dalston Practice | D33: CH | E33: City & Hackney | F33: CH-SW1 | G33: London Fields (SW1) | H33: London Fields (SW1) | I33: U40100 | J33: EMISweb | K33: 1b Madinah Road | M33: E8 1PG | N33: TQ 34111 84978 | O33: 534111 | P33: 184978 | Q33: 51.547765 | R33: -0.067264996
A34: Active | B34: F84117 | C34: Queensbridge Group Practice | D34: CH | E34: City & Hackney | F34: CH-SW1 | G34: London Fields (SW1) | H34: London Fields (SW1) | I34: U40100 | J34: EMISweb | K34: 24, Holly Street | M34: E8 3XP | N34: TQ 33838 84271 | O34: 533838 | P34: 184271 | Q34: 51.541476 | R34: -0.071468414
A35: Active | B35: F84621 | C35: The Sandringham Practice | D35: CH | E35: City & Hackney | F35: CH-SW1 | G35: London Fields (SW1) | H35: London Fields (SW1) | I35: U40100 | J35: EMISweb | K35: 1a Madinah Road | M35: E8 1PG | N35: TQ 34111 84978 | O35: 534111 | P35: 184978 | Q35: 51.547765 | R35: -0.067264996
A36: Active | B36: F84640 | C36: The Neaman Practice | D36: CH | E36: City & Hackney | F36: CH-SW2 | G36: Shoreditch Park & City (SW2) | H36: Shoreditch Park & City (SW2) | I36: U07169 | J36: EMISweb | K36: 15 Half Moon Court | M36: EC1A 7HF | N36: TQ 32048 81725 | O36: 532048 | P36: 181725 | Q36: 51.519018 | R36: -0.098218282
A37: Active | B37: F84072 | C37: De Beauvoir Surgery | D37: CH | E37: City & Hackney | F37: CH-SW2 | G37: Shoreditch Park & City (SW2) | H37: Shoreditch Park & City (SW2) | I37: U07169 | J37: EMISweb | K37: 30 Hertford Road | M37: N1 5QT | N37: TQ 33377 83922 | O37: 533377 | P37: 183922 | Q37: 51.538449 | R37: -0.078244064
A38: Active | B38: F84096 | C38: The Lawson Practice | D38: CH | E38: City & Hackney | F38: CH-SW2 | G38: Shoreditch Park & City (SW2) | H38: Shoreditch Park & City (SW2) | I38: U07169 | J38: EMISweb | K38: St Leonard's Hospital, Nuttall St | L38: Nuttall Street | M38: N1 5HZ | N38: TQ 33302 83395 | O38: 533302 | P38: 183395 | Q38: 51.533731 | R38: -0.079524183
A39: Active | B39: F84635 | C39: Shoreditch Park Surgery | D39: CH | E39: City & Hackney | F39: CH-SW2 | G39: Shoreditch Park & City (SW2) | H39: Shoreditch Park & City (SW2) | I39: U07169 | J39: EMISweb | K39: 10 Rushton Street | M39: N1 5DR | N39: TQ 32796 83359 | O39: 532796 | P39: 183359 | Q39: 51.533527 | R39: -0.086828572
A40: Active | B40: F84692 | C40: The Hoxton Surgery | D40: CH | E40: City & Hackney | F40: CH-SW2 | G40: Shoreditch Park & City (SW2) | H40: Shoreditch Park & City (SW2) | I40: U07169 | J40: EMISweb | K40: 12 Rushton Street | M40: N1 5DR | N40: TQ 32796 83359 | O40: 532796 | P40: 183359 | Q40: 51.533527 | R40: -0.086828572
A41: N/A | B41: Y06760 | C41: City & Hackney GP Confederation | D41: CH | E41: City & Hackney | J41: EMISweb

Sheet CH LDP TABLE (hidden)
A1: ProjectID | B1: Rel_D | C1: Run_D | D1: Search | E1: 01. Listsize | F1: LDP.04.11: Diabetes and BP in last 12 months | G1: LDP.05: CVD 25-84yrs (excl CVD) | H1: LDP.08.02 CKD Diagnosed (Last 6m) | I1: LDP.08.03 CKD and BP Recorded (last 12 m) | J1: CSPMH. 01.03 QRisk Recorded (12m) | K1: CSPMH. 01.03.01 BP recorded on same day as QRisk (12m) | L1: CSPMH. 01.03.02 Qrisk>=20 (12m) | M1: LDP.08.01 CKD and BP less than 140/90 (last 12 m) | N1: LDP.08 CKD Register | O1: LDP.05.01: CVD QRISK greater than or equal 20% | P1: LDP.05.01.01: CVD Proxy Annual Review (last 12m) | Q1: LDP.05.02: Cardiovascular Risk Score Done (5y) | R1: LDP.04.09: Diabetes BP less than 145/85 (last 12m) | S1: LDP.04.08: Diabetes Chol less than 5mmol (last 12m) | T1: LDP.01.01.01: Obesity BMI more than or equal to 35 less than 40 (last 12m) | U1: LDP.01.01.02: Obesity BMI between 30-35 (last 12m) | V1: LDP.01.01.03: Obesity BMI equal to or over 40 (last 12m) | W1: LDP.01.02: Smoking Status (last 12m) or Never Smoked (25yrs+) | X1: LDP.01.03: Current Smoker (last 12m) | Y1: LDP.01.01: Obesity BMI recorded (last 12m) | Z1: LDP.01: Aged 16yrs+ | AA1: CSPMH.01 SMI Register | AB1: CSPMH.01.02 Smoking Status Recorded (12m) | AC1: CSPMH.01.02.01 Current Smoker (12m) | AD1: CSPMH 01.02.01.01 Ref to clinic 12m | AE1: CSPMH.01.02.02 Ex-smoker Recorded (latest 12m) | AF1: LDP.02: Hypertension Register | AG1: LDP.02.01: Hypertension and BP < 140/90 (age under 80) < 150/90 (Age 80+) | AH1: LDP.04.07: Diabetes Influenza Vaccinations (From August 2018) | AI1: LDP.04.01: Diabetes HbA1c <7.5% OR <59mmol (last 12m) | AJ1: LDP.02.02: Hypertension BP recorded (last 12m) | AK1: LDP.03: CHD Register | AL1: LDP.03.01: CHD Chol less than 5mmol (last 12m) | AM1: LDP.03.04: CHD Cholesterol recorded (last 12m) | AN1: LDP.04: Diabetes Register | AO1: LDP.09 COPD Register | AP1: LDP.09.01 Patients with severe or very severe COPD (FEV1<50) | AQ1: LDP.09.02 Patients with smoking status recorded (last 12m) or never smoked | AR1: LDP.09.03 COPD patients recorded as a Smoker | AS1: LDP.09.04 COPD Patients who are current smokers & referred to the Stop Smoking C | AT1: LDP.09.05 No of COPD with flu vaccination (From August 2018) | AU1: LDP.09.06 No of COPD with pneumococcal vaccination ever | AV1: LDP.09.07 No of COPD patients referred to pulmonary rehab ever | AW1: LDP.03.02: CHD BP less than or equal 150/90 (last 9m) | AX1: LDP.10 Stroke or TIA register | AY1: LDP.10.01: Stroke/TIA BP recorded (last 12m) | AZ1: LDP.10.02 Patients on Stroke/TIA register with BP <140/90 (12m) | BA1: LDP.05.03: CVD QRISK >=10 & <20 | BB1: Practice | BC1: Locality ID | BD1: SubLocality ID | BE1: SubLocality
A2: CH_LDP | B2: 45383 | C2: 45385 | D2: F84003 | E2: 14879 | F2: 921 | G2: 10223 | H2: 125 | I2: 360 | J2: 146 | K2: 80 | L2: 25 | M2: 284 | N2: 378 | O2: 651 | P2: 451 | Q2: 4653 | R2: 735 | S2: 656 | T2: 317 | U2: 743 | V2: 228 | W2: 8044 | X2: 1008 | Y2: 4126 | Z2: 12503 | AA2: 300 | AB2: 249 | AC2: 91 | AD2: 11 | AE2: 21 | AF2: 2030 | AG2: 1435 | AH2: 479 | AI2: 503 | AJ2: 1865 | AK2: 402 | AL2: 270 | AM2: 349 | AN2: 968 | AO2: 219 | AP2: 41 | AQ2: 207 | AR2: 82 | AS2: 8 | AT2: 133 | AU2: 143 | AV2: 200 | AW2: 309 | AX2: 248 | AY2: 236 | AZ2: 197 | BA2: 1156 | BB2: Lower Clapton Group Practice | BC2: CH | BD2: CH-SE1 | BE2: Hackney Marshes (SE1)
A3: CH_LDP | B3: 45383 | C3: 45385 | D3: Total | E3: 347970 | F3: 15880 | G3: 241080 | H3: 687 | I3: 6157 | J3: 2593 | K3: 1683 | L3: 480 | M3: 4831 | N3: 6652 | O3: 13015 | P3: 9646 | Q3: 116541 | R3: 12880 | S3: 11204 | T3: 6852 | U3: 15129 | V3: 4421 | W3: 187068 | X3: 18986 | Y3: 88140 | Z3: 287116 | AA3: 4914 | AB3: 4094 | AC3: 1496 | AD3: 161 | AE3: 482 | AF3: 31553 | AG3: 21458 | AH3: 8907 | AI3: 9732 | AJ3: 28735 | AK3: 5602 | AL3: 3820 | AM3: 4748 | AN3: 16740 | AO3: 3467 | AP3: 623 | AQ3: 3215 | AR3: 1345 | AS3: 198 | AT3: 2184 | AU3: 2497 | AV3: 2817 | AW3: 4166 | AX3: 3179 | AY3: 2930 | AZ3: 2422 | BA3: 21334
A4: CH_LDP | B4: 45383 | C4: 45385 | D4: Y03049 | E4: 16327 | F4: 704 | G4: 9901 | H4: 17 | I4: 255 | J4: 128 | K4: 91 | L4: 22 | M4: 194 | N4: 272 | O4: 552 | P4: 417 | Q4: 4959 | R4: 551 | S4: 484 | T4: 311 | U4: 746 | V4: 204 | W4: 7882 | X4: 795 | Y4: 3988 | Z4: 12187 | AA4: 230 | AB4: 188 | AC4: 62 | AD4: 13 | AE4: 22 | AF4: 1303 | AG4: 875 | AH4: 334 | AI4: 438 | AJ4: 1183 | AK4: 265 | AL4: 179 | AM4: 225 | AN4: 742 | AO4: 118 | AP4: 20 | AQ4: 113 | AR4: 57 | AS4: 14 | AT4: 64 | AU4: 74 | AV4: 91 | AW4: 207 | AX4: 125 | AY4: 109 | AZ4: 87 | BA4: 847 | BB4: Spring Hill Practice | BC4: CH | BD4: CH-NE1 | BE4: Springfield Park (NE1)
A5: CH_LDP | B5: 45383 | C5: 45385 | D5: Y00403 | E5: 7997 | F5: 205 | G5: 6230 | H5: 6 | I5: 73 | J5: 37 | K5: 14 | L5: 7 | M5: 56 | N5: 76 | O5: 117 | P5: 83 | Q5: 1843 | R5: 155 | S5: 148 | T5: 100 | U5: 209 | V5: 69 | W5: 3838 | X5: 355 | Y5: 1389 | Z5: 6945 | AA5: 94 | AB5: 82 | AC5: 28 | AD5: 3 | AE5: 14 | AF5: 436 | AG5: 312 | AH5: 110 | AI5: 119 | AJ5: 402 | AK5: 57 | AL5: 39 | AM5: 49 | AN5: 212 | AO5: 47 | AP5: 12 | AQ5: 45 | AR5: 20 | AS5: 2 | AT5: 30 | AU5: 27 | AV5: 46 | AW5: 44 | AX5: 28 | AY5: 27 | AZ5: 21 | BA5: 285 | BB5: Trowbridge Surgery | BC5: CH | BD5: CH-SE2 | BE5: Well Street Common (SE2)
A6: CH_LDP | B6: 45383 | C6: 45385 | D6: F84720 | E6: 5773 | F6: 408 | G6: 3604 | H6: 10 | I6: 206 | J6: 32 | K6: 26 | L6: 8 | M6: 160 | N6: 244 | O6: 291 | P6: 204 | Q6: 1786 | R6: 316 | S6: 275 | T6: 118 | U6: 230 | V6: 85 | W6: 2772 | X6: 282 | Y6: 1047 | Z6: 4538 | AA6: 107 | AB6: 81 | AC6: 25 | AD6: 1 | AE6: 7 | AF6: 746 | AG6: 457 | AH6: 184 | AI6: 225 | AJ6: 629 | AK6: 161 | AL6: 102 | AM6: 127 | AN6: 432 | AO6: 79 | AP6: 12 | AQ6: 67 | AR6: 27 | AS6: 1 | AT6: 50 | AU6: 56 | AV6: 63 | AW6: 118 | AX6: 87 | AY6: 73 | AZ6: 65 | BA6: 417 | BB6: Healy Medical Centre | BC6: CH | BD6: CH-NE2 | BE6: Hackney Downs (NE2)
A7: CH_LDP | B7: 45383 | C7: 45385 | D7: F84719 | E7: 5196 | F7: 321 | G7: 3767 | H7: 9 | I7: 86 | J7: 44 | K7: 31 | L7: 11 | M7: 70 | N7: 91 | O7: 229 | P7: 175 | Q7: 2234 | R7: 265 | S7: 254 | T7: 197 | U7: 437 | V7: 125 | W7: 3182 | X7: 254 | Y7: 3385 | Z7: 4512 | AA7: 76 | AB7: 70 | AC7: 13 | AD7: 1 | AE7: 9 | AF7: 648 | AG7: 437 | AH7: 234 | AI7: 209 | AJ7: 569 | AK7: 104 | AL7: 81 | AM7: 97 | AN7: 353 | AO7: 92 | AP7: 13 | AQ7: 90 | AR7: 26 | AS7: 8 | AT7: 74 | AU7: 79 | AV7: 86 | AW7: 66 | AX7: 79 | AY7: 74 | AZ7: 66 | BA7: 437 | BB7: Latimer Health Centre | BC7: CH | BD7: CH-SE1 | BE7: Hackney Marshes (SE1)
A8: CH_LDP | B8: 45383 | C8: 45385 | D8: F84716 | E8: 5861 | F8: 209 | G8: 3614 | H8: 2 | I8: 106 | J8: 37 | K8: 20 | L8: 13 | M8: 84 | N8: 114 | O8: 185 | P8: 148 | Q8: 1301 | R8: 167 | S8: 158 | T8: 91 | U8: 233 | V8: 46 | W8: 3040 | X8: 211 | Y8: 1397 | Z8: 4432 | AA8: 79 | AB8: 67 | AC8: 14 | AD8: 2 | AE8: 1 | AF8: 396 | AG8: 278 | AH8: 119 | AI8: 137 | AJ8: 376 | AK8: 79 | AL8: 65 | AM8: 75 | AN8: 220 | AO8: 49 | AP8: 11 | AQ8: 46 | AR8: 13 | AS8: 2 | AT8: 30 | AU8: 43 | AV8: 39 | AW8: 56 | AX8: 47 | AY8: 46 | AZ8: 41 | BA8: 264 | BB8: Allerton Road Medical Centre | BC8: CH | BD8: CH-NW1 | BE8: Woodberry Wetlands (NW1)
A9: CH_LDP | B9: 45383 | C9: 45385 | D9: F84711 | E9: 1788 | F9: 157 | G9: 1250 | H9: 5 | I9: 34 | J9: 12 | K9: 11 | L9: 6 | M9: 29 | N9: 36 | O9: 112 | P9: 96 | Q9: 763 | R9: 126 | S9: 110 | T9: 57 | U9: 113 | V9: 30 | W9: 1024 | X9: 79 | Y9: 535 | Z9: 1491 | AA9: 18 | AB9: 17 | AC9: 3 | AD9: 0 | AE9: 3 | AF9: 290 | AG9: 195 | AH9: 130 | AI9: 100 | AJ9: 267 | AK9: 30 | AL9: 24 | AM9: 28 | AN9: 165 | AO9: 21 | AP9: 5 | AQ9: 21 | AR9: 9 | AS9: 0 | AT9: 17 | AU9: 20 | AV9: 14 | AW9: 23 | AX9: 22 | AY9: 22 | AZ9: 19 | BA9: 159 | BB9: Rosewood Practice | BC9: CH | BD9: CH-NE2 | BE9: Hackney Downs (NE2)
A10: CH_LDP | B10: 45383 | C10: 45385 | D10: F84694 | E10: 4681 | F10: 200 | G10: 3772 | H10: 1 | I10: 51 | J10: 34 | K10: 20 | L10: 2 | M10: 39 | N10: 54 | O10: 137 | P10: 111 | Q10: 2533 | R10: 172 | S10: 155 | T10: 74 | U10: 197 | V10: 40 | W10: 2789 | X10: 325 | Y10: 1439 | Z10: 4132 | AA10: 59 | AB10: 51 | AC10: 14 | AD10: 3 | AE10: 9 | AF10: 343 | AG10: 239 | AH10: 116 | AI10: 130 | AJ10: 316 | AK10: 59 | AL10: 44 | AM10: 52 | AN10: 204 | AO10: 27 | AP10: 2 | AQ10: 26 | AR10: 15 | AS10: 5 | AT10: 14 | AU10: 18 | AV10: 23 | AW10: 47 | AX10: 13 | AY10: 12 | AZ10: 7 | BA10: 201 | BB10: Brooke Road Surgery | BC10: CH | BD10: CH-NW2 | BE10: Clissold Park (NW2)
A11: CH_LDP | B11: 45383 | C11: 45385 | D11: F84692 | E11: 9107 | F11: 316 | G11: 6636 | H11: 6 | I11: 65 | J11: 43 | K11: 35 | L11: 8 | M11: 53 | N11: 68 | O11: 214 | P11: 144 | Q11: 2211 | R11: 264 | S11: 207 | T11: 130 | U11: 307 | V11: 86 | W11: 5029 | X11: 475 | Y11: 1930 | Z11: 8132 | AA11: 90 | AB11: 75 | AC11: 34 | AD11: 3 | AE11: 5 | AF11: 615 | AG11: 424 | AH11: 225 | AI11: 189 | AJ11: 562 | AK11: 104 | AL11: 81 | AM11: 96 | AN11: 335 | AO11: 90 | AP11: 24 | AQ11: 77 | AR11: 32 | AS11: 5 | AT11: 66 | AU11: 61 | AV11: 59 | AW11: 80 | AX11: 59 | AY11: 51 | AZ11: 44 | BA11: 416 | BB11: The Hoxton Surgery | BC11: CH | BD11: CH-SW2 | BE11: Shoreditch Park & City (SW2)
A12: CH_LDP | B12: 45383 | C12: 45385 | D12: F84686 | E12: 8923 | F12: 203 | G12: 3270 | H12: 12 | I12: 44 | J12: 23 | K12: 20 | L12: 4 | M12: 35 | N12: 47 | O12: 196 | P12: 161 | Q12: 1326 | R12: 161 | S12: 155 | T12: 136 | U12: 309 | V12: 87 | W12: 3004 | X12: 74 | Y12: 1371 | Z12: 4890 | AA12: 52 | AB12: 50 | AC12: 5 | AD12: 0 | AE12: 5 | AF12: 377 | AG12: 284 | AH12: 96 | AI12: 123 | AJ12: 353 | AK12: 72 | AL12: 58 | AM12: 63 | AN12: 211 | AO12: 7 | AP12: 1 | AQ12: 7 | AR12: 3 | AS12: 1 | AT12: 4 | AU12: 6 | AV12: 7 | AW12: 50 | AX12: 28 | AY12: 28 | AZ12: 23 | BA12: 254 | BB12: Cranwich Road Surgery | BC12: CH | BD12: CH-NE1 | BE12: Springfield Park (NE1)
A13: CH_LDP | B13: 45383 | C13: 45385 | D13: F84685 | E13: 3003 | F13: 148 | G13: 1921 | H13: 3 | I13: 42 | J13: 23 | K13: 20 | L13: 1 | M13: 37 | N13: 44 | O13: 149 | P13: 113 | Q13: 1026 | R13: 130 | S13: 102 | T13: 70 | U13: 113 | V13: 32 | W13: 1657 | X13: 156 | Y13: 869 | Z13: 2366 | AA13: 34 | AB13: 26 | AC13: 9 | AD13: 1 | AE13: 1 | AF13: 337 | AG13: 250 | AH13: 78 | AI13: 94 | AJ13: 309 | AK13: 52 | AL13: 38 | AM13: 47 | AN13: 153 | AO13: 36 | AP13: 6 | AQ13: 34 | AR13: 14 | AS13: 1 | AT13: 28 | AU13: 19 | AV13: 31 | AW13: 46 | AX13: 30 | AY13: 27 | AZ13: 23 | BA13: 244 | BB13: Elm Practice | BC13: CH | BD13: CH-NE2 | BE13: Hackney Downs (NE2)
A14: CH_LDP | B14: 45383 | C14: 45385 | D14: F84668 | E14: 6068 | F14: 312 | G14: 3051 | H14: 5 | I14: 84 | J14: 42 | K14: 40 | L14: 8 | M14: 70 | N14: 87 | O14: 231 | P14: 191 | Q14: 1558 | R14: 262 | S14: 224 | T14: 178 | U14: 316 | V14: 94 | W14: 2774 | X14: 174 | Y14: 1542 | Z14: 4175 | AA14: 61 | AB14: 57 | AC14: 17 | AD14: 0 | AE14: 6 | AF14: 555 | AG14: 392 | AH14: 177 | AI14: 184 | AJ14: 500 | AK14: 58 | AL14: 43 | AM14: 51 | AN14: 326 | AO14: 22 | AP14: 3 | AQ14: 20 | AR14: 6 | AS14: 0 | AT14: 11 | AU14: 20 | AV14: 19 | AW14: 43 | AX14: 33 | AY14: 28 | AZ14: 23 | BA14: 332 | BB14: Clapton Surgery | BC14: CH | BD14: CH-NE2 | BE14: Hackney Downs (NE2)
A15: CH_LDP | B15: 45383 | C15: 45385 | D15: F84640 | E15: 9150 | F15: 223 | G15: 7185 | H15: 8 | I15: 187 | J15: 42 | K15: 18 | L15: 6 | M15: 159 | N15: 229 | O15: 459 | P15: 263 | Q15: 3071 | R15: 191 | S15: 165 | T15: 81 | U15: 216 | V15: 54 | W15: 5487 | X15: 235 | Y15: 1618 | Z15: 8434 | AA15: 86 | AB15: 73 | AC15: 16 | AD15: 0 | AE15: 11 | AF15: 916 | AG15: 579 | AH15: 163 | AI15: 155 | AJ15: 814 | AK15: 185 | AL15: 108 | AM15: 123 | AN15: 240 | AO15: 50 | AP15: 3 | AQ15: 44 | AR15: 15 | AS15: 2 | AT15: 32 | AU15: 31 | AV15: 42 | AW15: 111 | AX15: 102 | AY15: 92 | AZ15: 84 | BA15: 862 | BB15: The Neaman Practice | BC15: CH | BD15: CH-SW2 | BE15: Shoreditch Park & City (SW2)
A16: CH_LDP | B16: 45383 | C16: 45385 | D16: F84636 | E16: 6826 | F16: 236 | G16: 5405 | H16: 12 | I16: 89 | J16: 32 | K16: 7 | L16: 3 | M16: 70 | N16: 95 | O16: 142 | P16: 117 | Q16: 2135 | R16: 199 | S16: 173 | T16: 128 | U16: 240 | V16: 79 | W16: 4085 | X16: 362 | Y16: 1962 | Z16: 6078 | AA16: 80 | AB16: 64 | AC16: 19 | AD16: 2 | AE16: 8 | AF16: 441 | AG16: 311 | AH16: 141 | AI16: 156 | AJ16: 415 | AK16: 65 | AL16: 43 | AM16: 54 | AN16: 247 | AO16: 32 | AP16: 5 | AQ16: 30 | AR16: 14 | AS16: 3 | AT16: 21 | AU16: 24 | AV16: 24 | AW16: 54 | AX16: 43 | AY16: 38 | AZ16: 34 | BA16: 291 | BB16: Barretts Grove Surgery | BC16: CH | BD16: CH-NW2 | BE16: Clissold Park (NW2)
A17: CH_LDP | B17: 45383 | C17: 45385 | D17: F84635 | E17: 9198 | F17: 358 | G17: 6738 | H17: 13 | I17: 109 | J17: 60 | K17: 42 | L17: 11 | M17: 75 | N17: 116 | O17: 337 | P17: 217 | Q17: 2578 | R17: 280 | S17: 227 | T17: 176 | U17: 367 | V17: 107 | W17: 5414 | X17: 596 | Y17: 2062 | Z17: 7969 | AA17: 130 | AB17: 109 | AC17: 42 | AD17: 9 | AE17: 16 | AF17: 803 | AG17: 489 | AH17: 228 | AI17: 221 | AJ17: 702 | AK17: 115 | AL17: 70 | AM17: 85 | AN17: 395 | AO17: 90 | AP17: 19 | AQ17: 85 | AR17: 39 | AS17: 9 | AT17: 68 | AU17: 73 | AV17: 82 | AW17: 88 | AX17: 68 | AY17: 61 | AZ17: 53 | BA17: 514 | BB17: Shoreditch Park Surgery | BC17: CH | BD17: CH-SW2 | BE17: Shoreditch Park & City (SW2)
A18: CH_LDP | B18: 45383 | C18: 45385 | D18: F84632 | E18: 1240 | F18: 62 | G18: 1111 | H18: 4 | I18: 19 | J18: 50 | K18: 38 | L18: 6 | M18: 12 | N18: 22 | O18: 55 | P18: 43 | Q18: 644 | R18: 33 | S18: 40 | T18: 27 | U18: 66 | V18: 16 | W18: 805 | X18: 420 | Y18: 561 | Z18: 1240 | AA18: 101 | AB18: 78 | AC18: 66 | AD18: 9 | AE18: 2 | AF18: 126 | AG18: 62 | AH18: 36 | AI18: 35 | AJ18: 111 | AK18: 24 | AL18: 12 | AM18: 15 | AN18: 69 | AO18: 45 | AP18: 7 | AQ18: 40 | AR18: 30 | AS18: 6 | AT18: 15 | AU18: 32 | AV18: 27 | AW18: 19 | AX18: 10 | AY18: 9 | AZ18: 7 | BA18: 133 | BB18: The Greenhouse | BC18: CH | BD18: CH-SE2 | BE18: Well Street Common (SE2)
A19: CH_LDP | B19: 45383 | C19: 45385 | D19: F84621 | E19: 4565 | F19: 277 | G19: 3344 | H19: 6 | I19: 106 | J19: 62 | K19: 44 | L19: 12 | M19: 88 | N19: 122 | O19: 195 | P19: 156 | Q19: 2180 | R19: 233 | S19: 198 | T19: 124 | U19: 277 | V19: 64 | W19: 2604 | X19: 306 | Y19: 1456 | Z19: 3969 | AA19: 91 | AB19: 78 | AC19: 37 | AD19: 3 | AE19: 9 | AF19: 530 | AG19: 379 | AH19: 167 | AI19: 169 | AJ19: 486 | AK19: 76 | AL19: 49 | AM19: 65 | AN19: 288 | AO19: 44 | AP19: 13 | AQ19: 44 | AR19: 18 | AS19: 5 | AT19: 34 | AU19: 33 | AV19: 30 | AW19: 51 | AX19: 61 | AY19: 58 | AZ19: 47 | BA19: 361 | BB19: The Sandringham Practice | BC19: CH | BD19: CH-SW1 | BE19: London Fields (SW1)
A20: CH_LDP | B20: 45383 | C20: 45385 | D20: F84620 | E20: 8127 | F20: 505 | G20: 5587 | H20: 12 | I20: 240 | J20: 78 | K20: 71 | L20: 10 | M20: 198 | N20: 260 | O20: 360 | P20: 294 | Q20: 2731 | R20: 407 | S20: 384 | T20: 294 | U20: 552 | V20: 175 | W20: 4086 | X20: 524 | Y20: 2407 | Z20: 6815 | AA20: 157 | AB20: 113 | AC20: 37 | AD20: 4 | AE20: 15 | AF20: 955 | AG20: 690 | AH20: 244 | AI20: 326 | AJ20: 908 | AK20: 175 | AL20: 119 | AM20: 149 | AN20: 517 | AO20: 93 | AP20: 26 | AQ20: 89 | AR20: 44 | AS20: 8 | AT20: 47 | AU20: 55 | AV20: 67 | AW20: 130 | AX20: 90 | AY20: 82 | AZ20: 70 | BA20: 591 | BB20: The Wick Health Centre | BC20: CH | BD20: CH-SE2 | BE20: Well Street Common (SE2)
A21: CH_LDP | B21: 45383 | C21: 45385 | D21: F84619 | E21: 5145 | F21: 257 | G21: 3557 | H21: 9 | I21: 118 | J21: 38 | K21: 21 | L21: 10 | M21: 99 | N21: 122 | O21: 182 | P21: 150 | Q21: 1950 | R21: 231 | S21: 199 | T21: 105 | U21: 236 | V21: 75 | W21: 2833 | X21: 292 | Y21: 1363 | Z21: 4258 | AA21: 68 | AB21: 63 | AC21: 19 | AD21: 4 | AE21: 7 | AF21: 502 | AG21: 359 | AH21: 169 | AI21: 168 | AJ21: 468 | AK21: 98 | AL21: 68 | AM21: 88 | AN21: 270 | AO21: 26 | AP21: 5 | AQ21: 26 | AR21: 7 | AS21: 3 | AT21: 21 | AU21: 20 | AV21: 26 | AW21: 70 | AX21: 57 | AY21: 53 | AZ21: 46 | BA21: 304 | BB21: The Riverside Practice | BC21: CH | BD21: CH-NE2 | BE21: Hackney Downs (NE2)
A22: CH_LDP | B22: 45383 | C22: 45385 | D22: F84601 | E22: 7625 | F22: 342 | G22: 5287 | H22: 11 | I22: 147 | J22: 71 | K22: 44 | L22: 21 | M22: 108 | N22: 158 | O22: 257 | P22: 195 | Q22: 2106 | R22: 269 | S22: 243 | T22: 144 | U22: 338 | V22: 109 | W22: 3982 | X22: 495 | Y22: 1739 | Z22: 6372 | AA22: 127 | AB22: 100 | AC22: 39 | AD22: 3 | AE22: 12 | AF22: 730 | AG22: 491 | AH22: 177 | AI22: 210 | AJ22: 638 | AK22: 121 | AL22: 86 | AM22: 97 | AN22: 370 | AO22: 88 | AP22: 19 | AQ22: 79 | AR22: 30 | AS22: 6 | AT22: 49 | AU22: 52 | AV22: 76 | AW22: 87 | AX22: 70 | AY22: 68 | AZ22: 57 | BA22: 454 | BB22: Elsdale Street Surgery | BC22: CH | BD22: CH-SE2 | BE22: Well Street Common (SE2)
A23: CH_LDP | B23: 45383 | C23: 45385 | D23: F84119 | E23: 12450 | F23: 591 | G23: 9005 | H23: 32 | I23: 245 | J23: 104 | K23: 71 | L23: 21 | M23: 197 | N23: 258 | O23: 541 | P23: 434 | Q23: 4774 | R23: 449 | S23: 432 | T23: 262 | U23: 599 | V23: 163 | W23: 7513 | X23: 765 | Y23: 3762 | Z23: 10410 | AA23: 191 | AB23: 158 | AC23: 57 | AD23: 4 | AE23: 21 | AF23: 1218 | AG23: 829 | AH23: 351 | AI23: 367 | AJ23: 1102 | AK23: 205 | AL23: 143 | AM23: 179 | AN23: 633 | AO23: 139 | AP23: 27 | AQ23: 131 | AR23: 53 | AS23: 3 | AT23: 91 | AU23: 102 | AV23: 125 | AW23: 156 | AX23: 118 | AY23: 111 | AZ23: 90 | BA23: 836 | BB23: The Heron Practice | BC23: CH | BD23: CH-NW1 | BE23: Woodberry Wetlands (NW1)
A24: CH_LDP | B24: 45383 | C24: 45385 | D24: F84117 | E24: 10106 | F24: 462 | G24: 7511 | H24: 22 | I24: 156 | J24: 64 | K24: 41 | L24: 11 | M24: 104 | N24: 169 | O24: 388 | P24: 234 | Q24: 3099 | R24: 351 | S24: 296 | T24: 121 | U24: 290 | V24: 88 | W24: 5093 | X24: 471 | Y24: 1797 | Z24: 8764 | AA24: 136 | AB24: 106 | AC24: 45 | AD24: 6 | AE24: 16 | AF24: 886 | AG24: 520 | AH24: 247 | AI24: 289 | AJ24: 768 | AK24: 196 | AL24: 113 | AM24: 145 | AN24: 498 | AO24: 125 | AP24: 18 | AQ24: 107 | AR24: 40 | AS24: 4 | AT24: 65 | AU24: 89 | AV24: 95 | AW24: 126 | AX24: 120 | AY24: 108 | AZ24: 84 | BA24: 669 | BB24: Queensbridge Group Practice | BC24: CH | BD24: CH-SW1 | BE24: London Fields (SW1)
A25: CH_LDP | B25: 45383 | C25: 45385 | D25: F84115 | E25: 8706 | F25: 300 | G25: 6510 | H25: 23 | I25: 115 | J25: 35 | K25: 16 | L25: 6 | M25: 91 | N25: 131 | O25: 302 | P25: 178 | Q25: 2634 | R25: 238 | S25: 217 | T25: 107 | U25: 279 | V25: 72 | W25: 4868 | X25: 514 | Y25: 2192 | Z25: 7471 | AA25: 97 | AB25: 70 | AC25: 21 | AD25: 5 | AE25: 5 | AF25: 652 | AG25: 441 | AH25: 182 | AI25: 182 | AJ25: 581 | AK25: 166 | AL25: 117 | AM25: 140 | AN25: 326 | AO25: 117 | AP25: 20 | AQ25: 104 | AR25: 41 | AS25: 10 | AT25: 77 | AU25: 88 | AV25: 98 | AW25: 129 | AX25: 86 | AY25: 75 | AZ25: 61 | BA25: 566 | BB25: Statham Grove Surgery | BC25: CH | BD25: CH-NW1 | BE25: Woodberry Wetlands (NW1)
A26: CH_LDP | B26: 45383 | C26: 45385 | D26: F84105 | E26: 11621 | F26: 689 | G26: 8181 | H26: 76 | I26: 285 | J26: 78 | K26: 60 | L26: 20 | M26: 218 | N26: 307 | O26: 470 | P26: 392 | Q26: 3975 | R26: 593 | S26: 509 | T26: 282 | U26: 643 | V26: 212 | W26: 6599 | X26: 689 | Y26: 3136 | Z26: 9631 | AA26: 123 | AB26: 102 | AC26: 38 | AD26: 4 | AE26: 16 | AF26: 1104 | AG26: 773 | AH26: 399 | AI26: 464 | AJ26: 1058 | AK26: 146 | AL26: 109 | AM26: 131 | AN26: 699 | AO26: 99 | AP26: 19 | AQ26: 96 | AR26: 33 | AS26: 6 | AT26: 65 | AU26: 62 | AV26: 94 | AW26: 110 | AX26: 95 | AY26: 90 | AZ26: 72 | BA26: 717 | BB26: The Lea Surgery | BC26: CH | BD26: CH-SE1 | BE26: Hackney Marshes (SE1)
A27: CH_LDP | B27: 45383 | C27: 45385 | D27: F84096 | E27: 16293 | F27: 870 | G27: 11274 | H27: 16 | I27: 366 | J27: 149 | K27: 97 | L27: 29 | M27: 286 | N27: 400 | O27: 693 | P27: 430 | Q27: 5184 | R27: 727 | S27: 551 | T27: 350 | U27: 839 | V27: 270 | W27: 8361 | X27: 896 | Y27: 4015 | Z27: 13977 | AA27: 280 | AB27: 230 | AC27: 85 | AD27: 11 | AE27: 31 | AF27: 1558 | AG27: 1074 | AH27: 489 | AI27: 488 | AJ27: 1418 | AK27: 309 | AL27: 205 | AM27: 257 | AN27: 924 | AO27: 279 | AP27: 35 | AQ27: 253 | AR27: 98 | AS27: 14 | AT27: 172 | AU27: 208 | AV27: 200 | AW27: 232 | AX27: 189 | AY27: 165 | AZ27: 139 | BA27: 1109 | BB27: The Lawson Practice | BC27: CH | BD27: CH-SW2 | BE27: Shoreditch Park & City (SW2)
A28: CH_LDP | B28: 45383 | C28: 45385 | D28: F84080 | E28: 5118 | F28: 325 | G28: 3005 | H28: 18 | I28: 98 | J28: 39 | K28: 21 | L28: 5 | M28: 76 | N28: 105 | O28: 332 | P28: 240 | Q28: 1745 | R28: 289 | S28: 228 | T28: 137 | U28: 304 | V28: 64 | W28: 2763 | X28: 292 | Y28: 1467 | Z28: 3867 | AA28: 56 | AB28: 55 | AC28: 17 | AD28: 2 | AE28: 5 | AF28: 690 | AG28: 492 | AH28: 169 | AI28: 194 | AJ28: 635 | AK28: 102 | AL28: 73 | AM28: 95 | AN28: 348 | AO28: 65 | AP28: 17 | AQ28: 60 | AR28: 18 | AS28: 2 | AT28: 37 | AU28: 47 | AV28: 57 | AW28: 83 | AX28: 42 | AY28: 40 | AZ28: 34 | BA28: 453 | BB28: The Gadvhi Practice | BC28: CH | BD28: CH-NE2 | BE28: Hackney Downs (NE2)
A29: CH_LDP | B29: 45383 | C29: 45385 | D29: F84072 | E29: 12595 | F29: 336 | G29: 9874 | H29: 40 | I29: 136 | J29: 53 | K29: 29 | L29: 5 | M29: 101 | N29: 144 | O29: 267 | P29: 213 | Q29: 3898 | R29: 255 | S29: 225 | T29: 155 | U29: 335 | V29: 111 | W29: 7300 | X29: 554 | Y29: 2789 | Z29: 10866 | AA29: 110 | AB29: 92 | AC29: 21 | AD29: 2 | AE29: 6 | AF29: 764 | AG29: 498 | AH29: 173 | AI29: 224 | AJ29: 679 | AK29: 95 | AL29: 78 | AM29: 89 | AN29: 357 | AO29: 103 | AP29: 15 | AQ29: 97 | AR29: 43 | AS29: 7 | AT29: 67 | AU29: 70 | AV29: 86 | AW29: 78 | AX29: 81 | AY29: 71 | AZ29: 56 | BA29: 489 | BB29: De Beauvoir Surgery | BC29: CH | BD29: CH-SW2 | BE29: Shoreditch Park & City (SW2)
A30: CH_LDP | B30: 45383 | C30: 45385 | D30: F84069 | E30: 14239 | F30: 689 | G30: 10154 | H30: 14 | I30: 331 | J30: 150 | K30: 97 | L30: 25 | M30: 246 | N30: 363 | O30: 680 | P30: 504 | Q30: 4537 | R30: 529 | S30: 458 | T30: 318 | U30: 649 | V30: 232 | W30: 7156 | X30: 848 | Y30: 3332 | Z30: 11897 | AA30: 276 | AB30: 218 | AC30: 93 | AD30: 5 | AE30: 25 | AF30: 1402 | AG30: 935 | AH30: 359 | AI30: 411 | AJ30: 1297 | AK30: 232 | AL30: 172 | AM30: 205 | AN30: 728 | AO30: 220 | AP30: 33 | AQ30: 196 | AR30: 97 | AS30: 8 | AT30: 137 | AU30: 163 | AV30: 180 | AW30: 181 | AX30: 136 | AY30: 132 | AZ30: 103 | BA30: 996 | BB30: The Well Street Surgery | BC30: CH | BD30: CH-SE2 | BE30: Well Street Common (SE2)
A31: CH_LDP | B31: 45383 | C31: 45385 | D31: F84063 | E31: 6378 | F31: 411 | G31: 4789 | H31: 44 | I31: 189 | J31: 51 | K31: 37 | L31: 14 | M31: 150 | N31: 205 | O31: 311 | P31: 244 | Q31: 2248 | R31: 340 | S31: 319 | T31: 130 | U31: 258 | V31: 75 | W31: 3312 | X31: 433 | Y31: 1437 | Z31: 5615 | AA31: 96 | AB31: 80 | AC31: 30 | AD31: 4 | AE31: 9 | AF31: 668 | AG31: 485 | AH31: 237 | AI31: 269 | AJ31: 620 | AK31: 128 | AL31: 92 | AM31: 120 | AN31: 438 | AO31: 49 | AP31: 10 | AQ31: 46 | AR31: 24 | AS31: 5 | AT31: 33 | AU31: 39 | AV31: 36 | AW31: 98 | AX31: 46 | AY31: 43 | AZ31: 35 | BA31: 451 | BB31: Dalston Practice | BC31: CH | BD31: CH-SW1 | BE31: London Fields (SW1)
A32: CH_LDP | B32: 45383 | C32: 45385 | D32: F84060 | E32: 4999 | F32: 313 | G32: 3623 | H32: 6 | I32: 110 | J32: 39 | K32: 26 | L32: 5 | M32: 76 | N32: 122 | O32: 182 | P32: 130 | Q32: 1718 | R32: 231 | S32: 191 | T32: 97 | U32: 240 | V32: 60 | W32: 2728 | X32: 284 | Y32: 1202 | Z32: 4338 | AA32: 66 | AB32: 59 | AC32: 18 | AD32: 3 | AE32: 8 | AF32: 604 | AG32: 337 | AH32: 177 | AI32: 184 | AJ32: 529 | AK32: 77 | AL32: 44 | AM32: 51 | AN32: 333 | AO32: 35 | AP32: 6 | AQ32: 30 | AR32: 12 | AS32: 3 | AT32: 22 | AU32: 25 | AV32: 30 | AW32: 48 | AX32: 59 | AY32: 51 | AZ32: 35 | BA32: 382 | BB32: Athena Medical Centre | BC32: CH | BD32: CH-SE1 | BE32: Hackney Marshes (SE1)
A33: CH_LDP | B33: 45383 | C33: 45385 | D33: F84038 | E33: 3844 | F33: 277 | G33: 2863 | H33: 8 | I33: 109 | J33: 53 | K33: 35 | L33: 3 | M33: 94 | N33: 120 | O33: 199 | P33: 158 | Q33: 1973 | R33: 248 | S33: 197 | T33: 139 | U33: 266 | V33: 85 | W33: 2316 | X33: 329 | Y33: 1432 | Z33: 3382 | AA33: 78 | AB33: 68 | AC33: 36 | AD33: 2 | AE33: 8 | AF33: 432 | AG33: 306 | AH33: 188 | AI33: 156 | AJ33: 383 | AK33: 68 | AL33: 55 | AM33: 61 | AN33: 296 | AO33: 53 | AP33: 6 | AQ33: 51 | AR33: 20 | AS33: 3 | AT33: 32 | AU33: 32 | AV33: 23 | AW33: 55 | AX33: 38 | AY33: 37 | AZ33: 30 | BA33: 302 | BB33: Beechwood Medical Centre | BC33: CH | BD33: CH-SW1 | BE33: London Fields (SW1)
A34: CH_LDP | B34: 45383 | C34: 45385 | D34: F84036 | E34: 8379 | F34: 381 | G34: 6180 | H34: 9 | I34: 126 | J34: 100 | K34: 58 | L34: 13 | M34: 101 | N34: 136 | O34: 336 | P34: 259 | Q34: 5072 | R34: 303 | S34: 285 | T34: 169 | U34: 390 | V34: 113 | W34: 4936 | X34: 499 | Y34: 2449 | Z34: 7265 | AA34: 168 | AB34: 136 | AC34: 67 | AD34: 3 | AE34: 17 | AF34: 808 | AG34: 548 | AH34: 211 | AI34: 224 | AJ34: 730 | AK34: 142 | AL34: 103 | AM34: 126 | AN34: 410 | AO34: 99 | AP34: 23 | AQ34: 95 | AR34: 33 | AS34: 5 | AT34: 58 | AU34: 76 | AV34: 80 | AW34: 108 | AX34: 77 | AY34: 72 | AZ34: 59 | BA34: 610 | BB34: Cedar Practice | BC34: CH | BD34: CH-NW1 | BE34: Woodberry Wetlands (NW1)
A35: CH_LDP | B35: 45383 | C35: 45385 | D35: F84035 | E35: 21019 | F35: 397 | G35: 17698 | H35: 11 | I35: 148 | J35: 49 | K35: 38 | L35: 7 | M35: 107 | N35: 167 | O35: 285 | P35: 202 | Q35: 5189 | R35: 338 | S35: 269 | T35: 161 | U35: 424 | V35: 111 | W35: 12106 | X35: 1040 | Y35: 4390 | Z35: 19102 | AA35: 157 | AB35: 135 | AC35: 33 | AD35: 3 | AE35: 23 | AF35: 707 | AG35: 482 | AH35: 237 | AI35: 247 | AJ35: 652 | AK35: 117 | AL35: 70 | AM35: 92 | AN35: 419 | AO35: 80 | AP35: 16 | AQ35: 75 | AR35: 30 | AS35: 8 | AT35: 54 | AU35: 67 | AV35: 76 | AW35: 89 | AX35: 71 | AY35: 66 | AZ35: 53 | BA35: 513 | BB35: Richmond Road Medical Centre | BC35: CH | BD35: CH-SW1 | BE35: London Fields (SW1)
A36: CH_LDP | B36: 45383 | C36: 45385 | D36: F84033 | E36: 11999 | F36: 667 | G36: 8608 | H36: 14 | I36: 240 | J36: 98 | K36: 43 | L36: 24 | M36: 206 | N36: 253 | O36: 575 | P36: 451 | Q36: 7408 | R36: 585 | S36: 494 | T36: 336 | U36: 728 | V36: 207 | W36: 7963 | X36: 865 | Y36: 3912 | Z36: 10258 | AA36: 171 | AB36: 144 | AC36: 52 | AD36: 8 | AE36: 7 | AF36: 1344 | AG36: 981 | AH36: 382 | AI36: 424 | AJ36: 1213 | AK36: 268 | AL36: 190 | AM36: 227 | AN36: 708 | AO36: 131 | AP36: 23 | AQ36: 125 | AR36: 59 | AS36: 8 | AT36: 86 | AU36: 105 | AV36: 116 | AW36: 209 | AX36: 137 | AY36: 131 | AZ36: 115 | BA36: 974 | BB36: Somerford Grove Practice | BC36: CH | BD36: CH-NW2 | BE36: Clissold Park (NW2)
A37: CH_LDP | B37: 45383 | C37: 45385 | D37: F84021 | E37: 11106 | F37: 505 | G37: 8303 | H37: 11 | I37: 205 | J37: 102 | K37: 67 | L37: 17 | M37: 171 | N37: 221 | O37: 386 | P37: 308 | Q37: 3771 | R37: 399 | S37: 349 | T37: 203 | U37: 406 | V37: 128 | W37: 6332 | X37: 661 | Y37: 2559 | Z37: 9571 | AA37: 179 | AB37: 146 | AC37: 60 | AD37: 9 | AE37: 21 | AF37: 1033 | AG37: 661 | AH37: 271 | AI37: 287 | AJ37: 898 | AK37: 195 | AL37: 113 | AM37: 147 | AN37: 533 | AO37: 125 | AP37: 15 | AQ37: 108 | AR37: 55 | AS37: 3 | AT37: 77 | AU37: 90 | AV37: 79 | AW37: 141 | AX37: 106 | AY37: 88 | AZ37: 77 | BA37: 680 | BB37: London Fields Medical Centre | BC37: CH | BD37: CH-SW1 | BE37: London Fields (SW1)
A38: CH_LDP | B38: 45383 | C38: 45385 | D38: F84018 | E38: 12242 | F38: 641 | G38: 8430 | H38: 26 | I38: 238 | J38: 131 | K38: 91 | L38: 24 | M38: 200 | N38: 250 | O38: 539 | P38: 457 | Q38: 4922 | R38: 490 | S38: 460 | T38: 298 | U38: 629 | V38: 203 | W38: 6881 | X38: 830 | Y38: 3632 | Z38: 10028 | AA38: 222 | AB38: 195 | AC38: 83 | AD38: 4 | AE38: 25 | AF38: 1252 | AG38: 826 | AH38: 353 | AI38: 369 | AJ38: 1184 | AK38: 229 | AL38: 149 | AM38: 206 | AN38: 657 | AO38: 124 | AP38: 26 | AQ38: 119 | AR38: 58 | AS38: 5 | AT38: 84 | AU38: 88 | AV38: 102 | AW38: 170 | AX38: 134 | AY38: 126 | AZ38: 102 | BA38: 737 | BB38: The Nightingale Practice | BC38: CH | BD38: CH-NE2 | BE38: Hackney Downs (NE2)
A39: CH_LDP | B39: 45383 | C39: 45385 | D39: F84015 | E39: 5314 | F39: 470 | G39: 3410 | H39: 1 | I39: 219 | J39: 57 | K39: 43 | L39: 11 | M39: 168 | N39: 228 | O39: 302 | P39: 266 | Q39: 2225 | R39: 431 | S39: 348 | T39: 222 | U39: 452 | V39: 153 | W39: 3161 | X39: 401 | Y39: 1970 | Z39: 4336 | AA39: 86 | AB39: 83 | AC39: 33 | AD39: 3 | AE39: 13 | AF39: 885 | AG39: 696 | AH39: 262 | AI39: 318 | AJ39: 830 | AK39: 132 | AL39: 98 | AM39: 129 | AN39: 485 | AO39: 79 | AP39: 14 | AQ39: 77 | AR39: 26 | AS39: 1 | AT39: 44 | AU39: 56 | AV39: 62 | AW39: 112 | AX39: 78 | AY39: 76 | AZ39: 60 | BA39: 462 | BB39: Kingsmead Healthcare | BC39: CH | BD39: CH-SE1 | BE39: Hackney Marshes (SE1)
A40: CH_LDP | B40: 45383 | C40: 45385 | D40: F84013 | E40: 17922 | F40: 569 | G40: 7555 | H40: 19 | I40: 170 | J40: 70 | K40: 41 | L40: 14 | M40: 132 | N40: 176 | O40: 502 | P40: 397 | Q40: 3324 | R40: 462 | S40: 402 | T40: 285 | U40: 634 | V40: 131 | W40: 6687 | X40: 437 | Y40: 2999 | Z40: 10734 | AA40: 148 | AB40: 133 | AC40: 34 | AD40: 3 | AE40: 10 | AF40: 1051 | AG40: 741 | AH40: 248 | AI40: 371 | AJ40: 988 | AK40: 231 | AL40: 156 | AM40: 196 | AN40: 587 | AO40: 82 | AP40: 14 | AQ40: 79 | AR40: 31 | AS40: 2 | AT40: 52 | AU40: 62 | AV40: 58 | AW40: 161 | AX40: 105 | AY40: 100 | AZ40: 75 | BA40: 736 | BB40: Stamford Hill Surgery | BC40: CH | BD40: CH-NE1 | BE40: Springfield Park (NE1)
A41: CH_LDP | B41: 45383 | C41: 45385 | D41: F84008 | E41: 12161 | F41: 623 | G41: 8654 | H41: 21 | I41: 250 | J41: 137 | K41: 79 | L41: 32 | M41: 187 | N41: 262 | O41: 674 | P41: 420 | Q41: 5257 | R41: 475 | S41: 417 | T41: 222 | U41: 519 | V41: 138 | W41: 6662 | X41: 760 | Y41: 3482 | Z41: 10166 | AA41: 234 | AB41: 193 | AC41: 83 | AD41: 8 | AE41: 33 | AF41: 1416 | AG41: 895 | AH41: 365 | AI41: 373 | AJ41: 1297 | AK41: 262 | AL41: 161 | AM41: 217 | AN41: 644 | AO41: 188 | AP41: 39 | AQ41: 176 | AR41: 73 | AS41: 12 | AT41: 123 | AU41: 142 | AV41: 168 | AW41: 181 | AX41: 161 | AY41: 154 | AZ41: 128 | BA41: 1130 | BB41: Barton House Health Centre | BC41: CH | BD41: CH-NW2 | BE41: Clissold Park (NW2)
